Workbook

Sheet Couverture
G3: Version 2.0
H4: 2020-03-23
B23: Autorité de régulation des transports | D23: Tour Maine-Montparnasse - 33, avenue du Maine - BP 48 - 75755 Paris Cedex 15
D24: E-mails : gaelle.nguyen@autorite-transports.fr; cyprien.dharcourt@autorite-transports.fr

Sheet Introduction
K1: SOMMAIRE | N1: Légende | O1: Explication
O2: Données du profil de gare
B3: CONSTRUCTION DU MODELE BOTTOM-UP D'UNE GARE EFFICIENTE | K3: PROFIL DE GARES | O3: Paramètres modifiables
K4: COÛT DE LA GARE | O4: Calcul
K5: CALCUL DU TARIF
A11: DESCRIPTIF DES ONGLETS DU MODELE DE CALCUL
A13: Introduction du modèle | G13: Lien
A14: Introduction | B14: Présentation de la structure globale du modèle | G14: Introduction | H14: Onglet visible
A15: Liste des unités fonctionnelles | B15: Architecture des autres onglets qui facilite la navigation | G15: Sommaire | H15: Onglet visible
A16: Définitions | B16: Définitions des unités fonctionnelles | G16: Définitions | H16: Onglet visible
A17: Profil de la gare | G17: Lien
A18: Profil des gares | B18: Paramétrage du profil de la gare, c'est-à-dire de ses principaux inducteurs de coûts | G18: Profil des gares | H18: Onglet visible
A19: Banque de profils | B19: Source de profils de gares existantes permettant à l'utilisateur de faire tourner le modèle avec des éléments réels | G19: Banque de profils | H19: Onglet visible
A20: Paramétrage du modèle | G20: Lien
A21: Paramètres hyperpointe | B21: Paramétrage de l'hyperpointe (détermination du nombre de voyageurs en gare au moment de l'hyperpointe) | G21: Paramètres hyperpointe | H21: Onglet visible
A22: Paramètres UF | B22: Paramétrage des unités fonctionnelles du modèle | G22: Paramètres UF | H22: Onglet visible
A23: Foncier | B23: Paramètrage de l'unité fonctionelle "Foncier" | G23: Foncier | H23: Onglet masqué
A24: Gros œuvre | B24: Paramètrage de l'unité fonctionelle "Gros oeuvre" | G24: Gros œuvre | H24: Onglet masqué
A25: Second oeuvre technique | B25: Paramètrage de l'unité fonctionelle "Second œuvre technique" | G25: Second oeuvre technique | H25: Onglet masqué
A26: Second œuvre architectural | B26: Paramètrage de l'unité fonctionelle "Second œuvre architectural" | G26: Second œuvre architectural | H26: Onglet masqué
A27: Dimensionnement du bâtiment | B27: Paramétrage sur les hypothèses pour définir la taille du bâtiment et ses coûts | G27: Dimensionnement du bâtiment | H27: Onglet masqué
A28: Dimensionnement des quais | B28: Paramétrage sur les hypothèses pour définir le nombre de voies, le nombre de quais et la longueur de ceux-ci | G28: Dimensionnement des quais | H28: Onglet masqué
A29: Modulation des prix du bâtiment | B29: Paramétrage sur les variations de prix du bâtiment | G29: Modulation des prix du bâtiment | H29: Onglet masqué
A30: Calcul Hyperpointe Voyageur | B30: Calcul de l'hyperpointe afin de dimensionner le bâtiment | G30: Calcul Hyperpointe Voyageur | H30: Onglet masqué
A31: Niveaux de services | B31: Définition des différents niveaux de services permettant de faire varier la taille et le prix du bâtiment | G31: Niveaux de services | H31: Onglet visible
A32: Calcul des surfaces des gares | B32: Calcul des différentes surfaces de chacun des types de gares et calcul de coefficient permettant de déduire les surfaces pour les gares existantes | G32: Calcul des surfaces des profils | H32: Onglet masqué
A33: Paramétrage par type de gare - UF | B33: Paramétrage sur les unités fonctionnelles à comptabiliser dans le modèle | G33: Paramétrage par type de gare - UF | H33: Onglet visible
A34: Paramétrage par type de gare - CAPEX | B34: Paramétrage pour faire varier les hypothèses dans les unités fonctionnelles, en fonction du type de gare | G34: Paramétrage par type de gare - CAPEX | H34: Onglet masqué
A35: Paramétrage par type de gare - OPEX | B35: Paramétrage pour faire varier les hypothèses dans les unités fonctionnelles, en fonction du type de gare | G35: Paramétrage par type de gare - OPEX | H35: Onglet masqué
A36: Calculs des coûts des unités fonctionnelles | G36: Lien
A37: Unités fonctionnelles | B37: Calcul des coûts de chaque unité fonctionnelle du modèle | G37: Liste unités fonctionnelles | H37: Onglet visible
A38: Calculs du coût de la gare | G38: Lien
A39: Coût du bâtiment | B39: Résultat qui affiche le coût total du bâtiment | G39: Coût du bâtiment | H39: Onglet masqué
A40: Coût de la gare | B40: Résultat qui affiche le coût total de la gare | G40: Coût de la gare | H40: Onglet visible
A41: Subventions | B41: Paramétrage du % de subvention des CAPEX | G41: Subventions | H41: Onglet visible
A42: Coût de la gare (fonds propres) | B42: Calcul des fonds propres de la gare | G42: Coût de la gare (fonds propres) | H42: Onglet visible
A43: Calculs des amortissements et des coûts alloués | G43: Lien
A44: Calculs des VNC | B44: Calcul des valeurs nettes comptables | G44: Calcul des VNC | H44: Onglet masqué
A45: Coûts alloués - VPM | B45: Calcul de l'allocation des coûts selon la méthode annualisation financière | G45: Coûts alloués - VPM | H45: Onglet masqué
A46: Coûts alloués - Méthode DRG | B46: Calcul de l'allocation des coûts selon la méthode appliquée par G&C | G46: Coûts alloués - Méthode DRG | H46: Onglet masqué
A47: Détermination des coûts de la gare alloués aux transporteurs | G47: Lien
A48: Allocation des coûts | B48: Définition de la méthode d'allocation des coûts | G48: Allocation des coûts | H48: Onglet visible
A49: Impôts et taxes | B49: Définition des éléments d'impôts et taxes | G49: Impôts et taxes | H49: Onglet visible
A50: Calculs des tarifs (approche DRG 2020) | G50: Lien
A51: Hypothèses du modulation | B51: Définition des éléments de modulation des tarifs | G51: Hypothèses du modulation | H51: Onglet visible
A52: Calcul du tarif - DRG | B52: Résultat qui affiche les différents tarifs de la gare, selon la méthode d'allocation du DRG | G52: Calcul du tarif - DRG | H52: Onglet visible
A53: Allocations alternatives des coûts entre services conventionnés régionaux et autres services ferroviaires | G53: Lien
A54: Allocation par inducteurs opérationnels | B54: Proposition d'allocation par des inducteurs de coûts opérationnels | G54: Allocation par inducteurs opé | H54: Onglet visible
A55: Calcul du tarif - Opérationnel | B55: Résultat qui affiche les différents tarifs de la gare, selon la méthode d'allocation via les inducteurs opérationnels | G55: Calcul du tarif - Opérationnel | H55: Onglet visible
A56: Allocation par coûts de fournitures isolés et incrémentaux | B56: Proposition d'allocation par le calcul des coûts de fournitures isolés | G56: Allocations CFI - Coûts incré | H56: Onglet visible
A57: Profils des gares allocation CFI et coûts incrémentaux | B57: Paramétrage des profils transporteurs dans le calcul des coûts de fournitures isolés | G57: Profils CFI - Coûts Incré | H57: Onglet visible

Sheet Définitions UF
A1: Unités fonctionnelles | D1: Définitions | G1: INTRODUCTION
A2: Les unités fonctionnelles constituent les "briques élémentaires" du modèle. Elles permettent de simuler les différents éléments constitutifs d'une gare. | G2: PROFIL DE GARES
A3: 1 - Bâtiment | D3: CAPEX | E3: OPEX | G3: COÛT DE LA GARE
A4: 1.1 Foncier | B4: Foncier | C4: Onglet visible | D4: =IF(ISBLANK(INDIRECT("'"&$B4&"'!$A$7")),"",INDIRECT("'"&$B4&"'!$A$7")) -> Cette unité permet de calculer le prix du terrain en fonction de la surface totale nécessaire à la construction de la gare | E4: N/A | G4: CALCUL DU TARIF
A5: 1.2 Gros œuvre | B5: Gros œuvre | C5: Onglet masqué | D5: =IF(ISBLANK(INDIRECT("'"&$B5&"'!$A$21")),"",INDIRECT("'"&$B5&"'!$A$21")) -> Cette unité permet de calculer le coût de construction de l'infrastructure et la suprastructure en fonction de la surface totale nécessaire à la construction de la gare | E5: N/A
A6: 1.3 Second œuvre - Corps d'état techniques | B6: Second œuvre technique | C6: Onglet masqué | D6: ='Second oeuvre technique'!A14 -> Cette unité permet de calculer le coût d'installation des équipements du bâtiment nécessaires à la gare en fonction de la surface bâtiment nécessaire à la construction de la gare. Ces installations sont assez standard, quelques soit l'utilisation de la surface et quelque soit le type de bâtiment. | E6: N/A
A7: 1.4 Second œuvre - Corps d'états architecturaux | B7: Second œuvre architectural | C7: Onglet masqué | D7: ='Second oeuvre architectural'!A17 -> Cette unité permet de calculer le coût d'installation des équipements architecturaux et décoratifs nécessaires à la gare en fonction de la surface bâtiment nécessaire à la construction de la gare et/ou en fonction des différentes surfaces au sein même de la gare. Les coûts de cette unité peuvent beaucoup varier en fonction des souhaits architecturaux des commanditaires du bâtiment. | E7: N/A
A8: 1.5 M.O.A | B8: M.O.E. | C8: Onglet masqué | D8: =IF(ISBLANK(INDIRECT("'"&$B8&"'!$A$7")),"",INDIRECT("'"&$B8&"'!$A$7")) -> Cette unité permet de calculer les coûts d'études et de gestion de projet liés à la construction de la gare | E8: N/A
A9: 1.6 Passerelles et souterrains | B9: Passerelles et souterrains | C9: Onglet masqué | D9: =IF(ISBLANK(INDIRECT("'"&$B9&"'!$B$8")),"",INDIRECT("'"&$B9&"'!$B$8")) -> Passerelle ou souterrain nécessaire ? | E9: N/A
A11: 2 - Circuler et informer les voyageurs
A12: 2.1 Quais | B12: Quais | C12: Onglet masqué | D12: =IF(ISBLANK(INDIRECT("'"&$B12&"'!$B$8")),"",INDIRECT("'"&$B12&"'!$B$8")) -> Construction de quais et des abris de quai | E12: =IF(ISBLANK(INDIRECT("'"&$B12&"'!$I$8")),"",INDIRECT("'"&$B12&"'!$I$8")) -> Travaux d'entretien et de rénovation des quais et des abris de quai
A13: 2.2 Ascenseurs, escalators, portes automatiques | B13: APE | C13: Onglet masqué | D13: =IF(ISBLANK(INDIRECT("'"&$B13&"'!$B$8")),"",INDIRECT("'"&$B13&"'!$B$8")) -> Installation ou rénovation complète des ascenseurs, portes automatiques et escaliers mécaniques | E13: Maintenance et réparation des ascenseurs, portes automatiques et escaliers mécaniques
A14: 2.3 Information voyageur digitale | B14: Info digitale | C14: Onglet masqué | D14: Achat et installation d’écrans d'information voyageur sur les quais et dans les espaces de circulation de la gare | E14: Entretien et maintenance du matériel et du réseau informatique d'information voyageur Estimation du nombre d'agents nécessaires pour renseigner les voyageurs
A15: 2.4 Information voyageur non digitale | B15: Info non digitale | C15: Onglet masqué | D15: Achat et installation de panneaux indiquant le nom de gare, la localisation des quais, la numérotation des quais, la localisation des services dans la gare, des sorties, des modes de transports multimodaux, ... | E15: Modification ou renouvellement des affichages
A16: 2.5 Information voyageur sonore en gare | B16: Info sonore | C16: Onglet masqué | D16: Achat et installation des haut-parleurs dans le hall de gare et sur les quais | E16: Maintenance des haut-parleurs
A17: 2.6 Centre Opérationnel d'Escale | B17: COE | C17: Onglet masqué | D17: Achat et installation du matériel et des équipements informatiques nécessaires à la gestion des arrivées et départs des trains en gare | E17: Equipes opérant dans le centre opérationnel d'escale
A18: 2.7 Accès et services PMR | B18: PMR | C18: Onglet masqué | D18: Aménagement et installation des équipements facilitant l’accès à la gare, la circulation dans la gare ainsi que l’accès aux trains pour les PMR. Achat de matériel spécifique quand l’accès aux trains n’est pas au niveau des voies | E18: Prestations de services pour les PMR
A19: 2.8 Horloges | B19: Horloges | C19: Onglet masqué | D19: Achat et installation d'horloges digitales ou à cadran | E19: Entretien des horloges
A21: 3 - Sécuriser
A22: 3.1 Équipes de sécurité | B22: SUGE | C22: Onglet masqué | D22: N/A | E22: =IF(ISBLANK(INDIRECT("'"&$B22&"'!$I$8")),"",INDIRECT("'"&$B22&"'!$I$8")) -> Prestations de services de la SUGE
A23: 3.2 Équipes de gardiennage | B23: Gardiennage | C23: Onglet masqué | D23: N/A | E23: Prestations de services de société de gardiennage (sûreté, ouverture/fermeture de la gare)
A24: 3.3 Portes d'embarquement | B24: Portes Embarquement | C24: Onglet masqué | D24: =IF(ISBLANK(INDIRECT("'"&$B24&"'!$B$8")),"",INDIRECT("'"&$B24&"'!$B$8")) -> Achat et installation des portes d’embarquement | E24: Maintenance des portes d'embarquement
A25: 3.4 Vidéosurveillance | B25: Vidéosurveillance | C25: Onglet masqué | D25: Achat et installation de caméras de surveillance et, éventuellement, aménagement d'un centre de supervision | E25: Maintenance des équipements de surveillance
A26: 3.5 Sécurité incendie | B26: Sécurité Incendie | C26: Onglet masqué | D26: Achat de dispositif de sécurité incendie (Détecteurs de fumée, sprinkler, volets de désenfumage, signalétique de sortie de secours, déclencheurs manuel d'alerte, …), d'extincteurs, de colonnes sèches, voire de véhicules d'intervention | E26: Maintenance des équipements et des véhicules
A27: 3.6 Barrières de sécurité, clôture, sécurisation d'accès | B27: Barrières | C27: Onglet masqué | D27: Achat et installation de barrières de sécurité au sein de la gare ou à l'entrée, alarmes, … | E27: Maintenance du matériel (barrières, alarmes et clôtures)
A28: 3.7 Points de mise en relation avec le centre de sécurité | B28: Sécurité extérieure | C28: Onglet masqué | D28: Installation des interphones reliés au réseau de communication, achat et installation de défibrillateurs | E28: Maintenance des équipements (Défibrillateurs et postes d'appel d'urgence)
A30: 4 - Entretenir et assurer un bon niveau de confort
A31: 4.1 Espace d’attente | B31: Espace attente | C31: Onglet masqué | D31: =IF(ISBLANK(INDIRECT("'"&$B31&"'!$B$8")),"",INDIRECT("'"&$B31&"'!$B$8")) -> Aménagement des espaces d'attente (intérieur/extérieur) | E31: =IF(ISBLANK(INDIRECT("'"&$B31&"'!$I$8")),"",INDIRECT("'"&$B31&"'!$I$8")) -> Modification ou renouvellement des équipements de l'espace d'attente
A32: 4.2 Propreté | B32: Propreté | C32: Onglet masqué | D32: =IF(ISBLANK(INDIRECT("'"&$B32&"'!$B$8")),"",INDIRECT("'"&$B32&"'!$B$8")) -> Achat et installation de poubelles et cendriers | E32: Maintenance des équipements (Poubelles et cendriers) Equipes de nettoyage pour l’ensemble de la gare
A33: 4.3 Energie et fluide - Installation éclairage | B33: Eclairage | C33: Onglet masqué | D33: Achat et installation des systèmes d'éclairage de la gare | E33: Maintenance des installations
A34: 4.4 Energie et fluide - Installation CVC | B34: Chauffage et clim | C34: Onglet masqué | D34: Achat et installation des systèmes de chauffage et de climatisation | E34: Maintenance des installations
A35: 4.5 Dépenses énergétique et fluides - Eau | B35: Eau | C35: Onglet masqué | D35: N/A | E35: Consommation annuelle d'eau
A36: 4.6 Dépenses énergétique et fluides - KWh | B36: Consommation KWh | C36: Onglet masqué | D36: N/A | E36: Consommation en KWh annuelle
A37: 4.7 Sanitaires | B37: Sanitaires | C37: Onglet masqué | D37: Aménagement de sanitaires à destination des clients ou voyageurs | E37: Frais de fonctionnement du service incluant notamment l’entretien et le renouvellement du matériel hygiénique
A38: 4.8 Wifi voyageur | B38: Wifi | C38: Onglet masqué | D38: Aménagement d'un réseau de wifi public dans la gare | E38: Maintenance et entretien des installations
A40: 5 - Mise à disposition des locaux et des surfaces
A41: 5.1 Locaux destinés au personnel G&C et prestataires | B41: Locaux Prestataires | C41: Onglet masqué | D41: Aménagement de salles (repos, bureaux, vestiaires, sanitaires,…) pour le personnel et d'espaces de stockage de matériel pour les prestataires | E41: =IF(ISBLANK(INDIRECT("'"&$B41&"'!$I$8")),"",INDIRECT("'"&$B41&"'!$I$8")) -> Entretien des locaux
A42: 5.2 Locaux destinés aux entreprises ferroviaires | B42: Locaux Escale | C42: Onglet masqué | D42: Aménagement de salles (repos, bureaux, vestiaires, sanitaires,…) pour le personnel et d'espaces de stockage de matériel | E42: Entretien des locaux
A43: 5.3 Espaces aménagés pour la vente de titres ferroviaires | B43: Espace de vente régulé | C43: Onglet masqué | D43: Aménagement d'un espace pouvant accueillir les activités commerciales ferroviaires, achat et installation du mobilier fixe nécessaire à une utilisation standard des espaces par les occupants | E43: Entretien des locaux
A45: 6 - Autres services
A46: 6.1 Locaux commerciaux ou boutiques | B46: Espace de vente NR | C46: Onglet masqué | D46: Aménagement d'un espace pouvant accueillir des activités commerciales, achat et installation du mobilier fixe nécessaire à une utilisation standard des espaces par les occupants, aménagement des espaces pour permettre la livraison des marchandises | E46: =IF(ISBLANK(INDIRECT("'"&$B46&"'!$I$8")),"",INDIRECT("'"&$B46&"'!$I$8")) -> Entretien des locaux
A47: 6.2 Parking | B47: Parking | C47: Onglet masqué | D47: Aménagement d'un parking pour les voyageurs ou le personnel travaillant en gare (places, barrières automatiques, bornes d'entrée, bornes de paiement, …) | E47: Entretien voierie et maintenance des équipements
A48: 6.3 Salon grands voyageurs | B48: Salon GV | C48: Onglet masqué | D48: Aménagement ou construction d'un espace pouvant accueillir les voyageurs privilégiés par les transporteurs, achat et installation des équipements de la salle d'attente | E48: Entretien des locaux
A49: 6.4 Panneaux publicitaires | B49: Panneau publicitaire | C49: Onglet masqué | D49: Achat et installation de panneaux publicitaires en gare | E49: =IF(ISBLANK(INDIRECT("'"&$B49&"'!$I$8")),"",INDIRECT("'"&$B49&"'!$I$8")) -> Maintenance des installations
A51: 7 - Prestation transmanche
A52: 7.1 Installations et services de l'espace Transmanche | B52: Transmanche | C52: Onglet masqué | D52: Achat et installation des équipements de sécurité propres à l'espace Transmanche, c'est-à-dire la zone d'embarquement pour les trains à destination Outre Manche. | E52: =IF(ISBLANK(INDIRECT("'"&$B52&"'!$I$8")),"",INDIRECT("'"&$B52&"'!$I$8")) -> Maintenance et entretien des installations

Sheet Liste unités fonctionnelles (hidden)
B1: Unités fonctionnelles | C1: Lien | G1: INTRODUCTION
B2: 1 - Bâtiment
B3: 1.1 Foncier | C3: Foncier | D3: Onglet visible | G3: PROFIL DE GARES
B4: 1.2 Gros œuvre | C4: Gros œuvre | D4: Onglet visible | G4: COÛT DE LA GARE
B5: 1.3 Second œuvre - Corps d'état techniques | C5: Second œuvre technique | D5: Onglet visible | G5: CALCUL DU TARIF
B6: 1.4 Second œuvre - Corps d'états architecturaux | C6: Second œuvre architectural | D6: Onglet visible | G6: MODELISATION
B7: 1.5 Frais de maîtrise d'œuvre (MOE) et frais divers | C7: M.O.E. | D7: Onglet masqué
B8: 1.6 Passerelles et souterrains | C8: Passerelles et souterrains | D8: Onglet masqué
B9: 2 - Circuler et informer les voyageurs
B10: 2.1 Quais | C10: Quais | D10: Onglet masqué
B11: 2.2 Ascenseurs, escalators, portes automatiques | C11: APE | D11: Onglet masqué
B12: 2.3 Information voyageur digitale | C12: Info digitale | D12: Onglet masqué
B13: 2.4 Information voyageur non digitale | C13: Info non digitale | D13: Onglet masqué
B14: 2.5 Information voyageur sonore en gare | C14: Info sonore | D14: Onglet masqué
B15: 2.6 Centre Opérationnel d'Escale | C15: COE | D15: Onglet masqué
B16: 2.7 Accès et services PMR | C16: PMR | D16: Onglet masqué
B17: 2.8 Horloges | C17: Horloges | D17: Onglet masqué
B18: 3 - Sécuriser
B19: 3.1 Équipes de sécurité | C19: SUGE | D19: Onglet masqué
B20: 3.2 Équipes de gardiennage | C20: Gardiennage | D20: Onglet masqué
B21: 3.3 Portes d'embarquement | C21: Portes Embarquement | D21: Onglet masqué
B22: 3.4 Vidéosurveillance | C22: Vidéosurveillance | D22: Onglet masqué
B23: 3.5 Sécurité incendie | C23: Sécurité Incendie | D23: Onglet masqué
B24: 3.6 Barrières de sécurité, clôture, sécurisation d'accès | C24: Barrières | D24: Onglet masqué
B25: 3.7 Points de mise en relation avec le centre de sécurité | C25: Sécurité extérieure | D25: Onglet masqué
B26: 4 - Entretenir et assurer un bon niveau de confort
B27: 4.1 Espace d’attente | C27: Espace attente | D27: Onglet masqué
B28: 4.2 Propreté | C28: Propreté | D28: Onglet masqué
B29: 4.3 Energie et fluide - Installation éclairage | C29: Eclairage | D29: Onglet masqué
B30: 4.4 Energie et fluide - Installation CVC | C30: Chauffage et clim | D30: Onglet masqué
B31: 4.5 Dépenses énergétique et fluides - Eau | C31: Eau | D31: Onglet masqué
B32: 4.6 Dépenses énergétique et fluides - KWh | C32: Consommation KWh | D32: Onglet masqué
B33: 4.7 Sanitaires | C33: Sanitaires | D33: Onglet masqué
B34: 4.8 Wifi voyageur | C34: Wifi | D34: Onglet masqué
B35: 5 - Mise à disposition des locaux et des surfaces
B36: 5.1 Locaux destinés au personnel G&C et prestataires | C36: Locaux Prestataires | D36: Onglet masqué
B37: 5.2 Locaux destinés aux entreprises ferroviaires | C37: Locaux Escale | D37: Onglet masqué
B38: 5.3 Espaces aménagés pour la vente de titres ferroviaires | C38: Espace de vente régulé | D38: Onglet masqué
B39: 6 - Autres services
B40: 6.1 Locaux commerciaux ou boutiques | C40: Espace de vente NR | D40: Onglet masqué
B41: 6.2 Parking | C41: Parking | D41: Onglet masqué
B42: 6.3 Salon grands voyageurs | C42: Salon GV | D42: Onglet masqué
B43: 6.4 Panneaux publicitaires | C43: Panneau publicitaire | D43: Onglet masqué
B44: 7 - Prestation transmanche
B45: 7.1 Installations et services de l'espace Transmanche | C45: Transmanche | D45: Onglet masqué
B46: 8 - Siège G&C
B47: 8.1 Siège G&C | C47: Siège G&C | D47: Onglet masqué

Sheet Profil de gare
A1: Saisie semi-libre | B1: Valeur | D1: Profil de la gare simulée | E1: Saisie semi-libre | F1: Gare TGA Parisienne | G1: Gare TGA Autres | H1: Nouvelle Gare A | I1: Gare A Terminus | J1: Gare A Passage | K1: Gare Mass-Transit Francilienne | L1: Gare B | M1: Gare C | N1: Source / Méthode de calcul | S1: Légende | T1: Explication
D2: Type de gare simulée en saisie semi-libre -> | E2: Gare A Passage | T2: Données du profil de gare
A3: CARACTERISTIQUES DE LA GARE | D3: CARACTERISTIQUES DE LA GARE | T3: Paramètres modifiables
A4: Nombre de voyageurs (annuel) | B4: =INDEX('Profil de gare'!$D$1:$M$68,MATCH('Profil de gare'!$A4,'Profil de gare'!$D$1:$D$68,0),MATCH('Profil de gare'!A$1,'Profil de gare'!$D$1:$M$1,0)) -> 2000000 | D4: Nombre de voyageurs (annuel) | E4: 2000000 | F4: 87439752.5 | G4: =#REF! ->  | H4: =#REF! ->  | I4: =#REF! ->  | J4: =#REF! ->  | K4: =#REF! ->  | L4: =#REF! ->  | M4: =#REF! ->  | N4: PDG - DRG | T4: Calcul
A5: Nombre de non voyageurs (annuel) | B5: =INDEX('Profil de gare'!$D$1:$M$68,MATCH('Profil de gare'!$A5,'Profil de gare'!$D$1:$D$68,0),MATCH('Profil de gare'!A$1,'Profil de gare'!$D$1:$M$1,0)) -> 300000 | D5: Nombre de non voyageurs (annuel) | E5: 300000 | F5: 13578210.94 | G5: =G4*#REF! ->  | H5: =H4*#REF! ->  | I5: =I4*#REF! ->  | J5: =J4*#REF! ->  | K5: 300000 | L5: 50000 | M5: 5000 | N5: PDG - DRG
A6: Nombre de départs trains conventionnés régionaux | B6: =INDEX('Profil de gare'!$D$1:$M$68,MATCH('Profil de gare'!$A6,'Profil de gare'!$D$1:$D$68,0),MATCH('Profil de gare'!A$1,'Profil de gare'!$D$1:$M$1,0)) -> 15000 | D6: Nombre de départs trains conventionnés régionaux | E6: 15000 | F6: 69254.16667 | G6: =#REF! ->  | H6: =#REF! ->  | I6: =#REF! ->  | J6: =#REF! ->  | K6: =#REF! ->  | L6: =#REF! ->  | M6: =#REF! ->  | N6: PDG - DRG
A7: Nombre de départs trains autres | B7: =INDEX('Profil de gare'!$D$1:$M$68,MATCH('Profil de gare'!$A7,'Profil de gare'!$D$1:$D$68,0),MATCH('Profil de gare'!A$1,'Profil de gare'!$D$1:$M$1,0)) -> 5000 | D7: Nombre de départs trains autres | E7: 5000 | F7: 22244.57088 | G7: =#REF! ->  | H7: =#REF! ->  | I7: =#REF! ->  | J7: =#REF! ->  | K7: =#REF! ->  | L7: =#REF! ->  | M7: =#REF! ->  | N7: PDG - DRG
A8: Nombre de quais | B8: =INDEX('Profil de gare'!$D$1:$M$68,MATCH('Profil de gare'!$A8,'Profil de gare'!$D$1:$D$68,0),MATCH('Profil de gare'!A$1,'Profil de gare'!$D$1:$M$1,0)) -> 3 | D8: Nombre de quais | E8: ='Dimensionnement des quais'!B15 -> 3 | F8: =ROUND(#REF!,0) ->  | G8: =ROUND(#REF!,0) ->  | H8: =ROUND(#REF!,0) ->  | I8: =ROUND(#REF!,0) ->  | J8: =ROUND(#REF!,0) ->  | K8: =ROUND(#REF!,0) ->  | L8: =ROUND(#REF!,0) ->  | M8: =ROUND(#REF!,0) ->  | N8: Longueur des quais (arrondi)
A9: % de quais 400 | B9: =INDEX('Profil de gare'!$D$1:$M$68,MATCH('Profil de gare'!$A9,'Profil de gare'!$D$1:$D$68,0),MATCH('Profil de gare'!A$1,'Profil de gare'!$D$1:$M$1,0)) -> 0.6666666667 | D9: % de quais 400 | E9: =E12/E8 -> 0.6666666667 | F9: =F7/(F7+F6) -> 0.2431134186 | K9: 0 | L9: 0 | M9: 0 | N9: Répartition par départs trains
A10: % de quais 250 | B10: =INDEX('Profil de gare'!$D$1:$M$68,MATCH('Profil de gare'!$A10,'Profil de gare'!$D$1:$D$68,0),MATCH('Profil de gare'!A$1,'Profil de gare'!$D$1:$M$1,0)) -> 0.3333333333 | D10: % de quais 250 | E10: =E13/E8 -> 0.3333333333 | F10: =F6/(F7+F6) -> 0.7568865814 | K10: 1 | L10: 1 | M10: 1 | N10: Répartition par départs trains
A11: Nombre minimum de quais 400 | B11: =INDEX('Profil de gare'!$D$1:$M$68,MATCH('Profil de gare'!$A11,'Profil de gare'!$D$1:$D$68,0),MATCH('Profil de gare'!A$1,'Profil de gare'!$D$1:$M$1,0)) -> Non utilisé | D11: Nombre minimum de quais 400 | E11: Non utilisé | F11: 6 | G11: 4 | H11: 2 | I11: 2 | J11: 2
A12: Nombre de quais 400 | B12: =INDEX('Profil de gare'!$D$1:$M$68,MATCH('Profil de gare'!$A12,'Profil de gare'!$D$1:$D$68,0),MATCH('Profil de gare'!A$1,'Profil de gare'!$D$1:$M$1,0)) -> 2 | D12: Nombre de quais 400 | E12: ='Dimensionnement des quais'!B21 -> 2 | F12: =IF(F9*F8<F11,F11,F9*F8) ->  | K12: =K9*K8 ->  | L12: =L9*L8 ->  | M12: =M9*M8 ->  | N12: Répartition par départs trains
A13: Nombre de quais 250 | B13: =INDEX('Profil de gare'!$D$1:$M$68,MATCH('Profil de gare'!$A13,'Profil de gare'!$D$1:$D$68,0),MATCH('Profil de gare'!A$1,'Profil de gare'!$D$1:$M$1,0)) -> 1 | D13: Nombre de quais 250 | E13: ='Dimensionnement des quais'!B22 -> 1 | F13: =IF(F9*F8<F11,F8-F11,F10*F8) ->  | K13: =K8*K10 ->  | L13: =L8*L10 ->  | M13: =M8*M10 ->  | N13: Répartition par départs trains
A14: Longueur moyenne des quais | B14: =INDEX('Profil de gare'!$D$1:$M$68,MATCH('Profil de gare'!$A14,'Profil de gare'!$D$1:$D$68,0),MATCH('Profil de gare'!A$1,'Profil de gare'!$D$1:$M$1,0)) -> 350 | D14: Longueur moyenne des quais | E14: =((E12*400)+(E13*250))/(E12+E13) -> 350 | F14: =((F12*400)+(F13*250))/(F12+F13) ->  | G14: =((G12*400)+(G13*250))/(G12+G13) ->  | N14: répartition par départs trains
A15: Nombre de voies | B15: =INDEX('Profil de gare'!$D$1:$M$68,MATCH('Profil de gare'!$A15,'Profil de gare'!$D$1:$D$68,0),MATCH('Profil de gare'!A$1,'Profil de gare'!$D$1:$M$1,0)) -> 4 | D15: Nombre de voies | E15: ='Dimensionnement des quais'!B14 -> 4 | F15: =ROUND(#REF!,0) ->  | G15: =ROUND(#REF!,0) ->  | H15: =ROUND(#REF!,0) ->  | I15: =ROUND(#REF!,0) ->  | J15: =ROUND(#REF!,0) ->  | K15: =ROUND(#REF!,0) ->  | L15: =ROUND(#REF!,0) ->  | M15: =ROUND(#REF!,0) ->  | N15: Longueur des quais (arrondi)
A16: Nombre de transporteurs | B16: =INDEX('Profil de gare'!$D$1:$M$68,MATCH('Profil de gare'!$A16,'Profil de gare'!$D$1:$D$68,0),MATCH('Profil de gare'!A$1,'Profil de gare'!$D$1:$M$1,0)) -> 1 | D16: Nombre de transporteurs | E16: 1 | F16: 4 | G16: 4 | H16: 3 | I16: 3 | J16: 2 | K16: 2 | L16: 2 | M16: 1
A17: Nombre de prestataires G&C | B17: =INDEX('Profil de gare'!$D$1:$M$68,MATCH('Profil de gare'!$A17,'Profil de gare'!$D$1:$D$68,0),MATCH('Profil de gare'!A$1,'Profil de gare'!$D$1:$M$1,0)) -> 2 | D17: Nombre de prestataires G&C | E17: 2 | F17: 2 | G17: 2 | H17: 2 | I17: 2 | J17: 2 | K17: 2 | L17: 2 | M17: 2
A18: Gare Terminus / Passage | B18: =INDEX('Profil de gare'!$D$1:$M$68,MATCH('Profil de gare'!$A18,'Profil de gare'!$D$1:$D$68,0),MATCH('Profil de gare'!A$1,'Profil de gare'!$D$1:$M$1,0)) -> Passage | D18: Gare Terminus / Passage | E18: Passage | F18: Terminus | G18: Passage | H18: Passage | I18: Terminus | J18: Passage | K18: Passage | L18: Passage | M18: Passage
A19: Amplitude horaire d’ouverture de la gare | B19: =INDEX('Profil de gare'!$D$1:$M$68,MATCH('Profil de gare'!$A19,'Profil de gare'!$D$1:$D$68,0),MATCH('Profil de gare'!A$1,'Profil de gare'!$D$1:$M$1,0)) -> 19 | D19: Amplitude horaire d’ouverture de la gare | E19: 19 | F19: 19 | G19: 19 | H19: 19 | I19: 19 | J19: 19 | K19: 19 | L19: 18 | M19: 16
A20: Nombre d’entrées dans la gare | B20: =INDEX('Profil de gare'!$D$1:$M$68,MATCH('Profil de gare'!$A20,'Profil de gare'!$D$1:$D$68,0),MATCH('Profil de gare'!A$1,'Profil de gare'!$D$1:$M$1,0)) -> 2 | D20: Nombre d’entrées dans la gare | E20: 2 | F20: 16 | G20: 8 | H20: 4 | I20: 4 | J20: 4 | K20: 2 | L20: 2 | M20: 1
A21: Nombre d'étages | B21: =INDEX('Profil de gare'!$D$1:$M$68,MATCH('Profil de gare'!$A21,'Profil de gare'!$D$1:$D$68,0),MATCH('Profil de gare'!A$1,'Profil de gare'!$D$1:$M$1,0)) -> 1 | D21: Nombre d'étages | E21: 1 | F21: 3 | G21: 2 | H21: 2 | I21: 2 | J21: 2 | K21: 1 | L21: 1 | M21: 1
A22: Nombre de halls | B22: =INDEX('Profil de gare'!$D$1:$M$68,MATCH('Profil de gare'!$A22,'Profil de gare'!$D$1:$D$68,0),MATCH('Profil de gare'!A$1,'Profil de gare'!$D$1:$M$1,0)) -> 1 | D22: Nombre de halls | E22: 1 | F22: 2 | G22: 1 | H22: 1 | I22: 1 | J22: 1 | K22: 1 | L22: 1 | M22: 1
A23: Nombre de voyageurs transmanche | B23: =INDEX('Profil de gare'!$D$1:$M$68,MATCH('Profil de gare'!$A23,'Profil de gare'!$D$1:$D$68,0),MATCH('Profil de gare'!A$1,'Profil de gare'!$D$1:$M$1,0)) -> 0 | D23: Nombre de voyageurs transmanche | E23: =IFERROR(((E7*'Calcul Hyperpointe Voyageur'!$B$8)/(E7*'Calcul Hyperpointe Voyageur'!$B$8+'Profil de gare'!E6)*E4)*(E24/E7),0) -> 0 | F23: =IFERROR(((F7*'Calcul Hyperpointe Voyageur'!$B$8)/(F7*'Calcul Hyperpointe Voyageur'!$B$8+'Profil de gare'!F6)*F4)*(F24/F7),0) -> 5256013.926 | G23: =IFERROR(((G7*'Calcul Hyperpointe Voyageur'!$B$8)/(G7*'Calcul Hyperpointe Voyageur'!$B$8+'Profil de gare'!G6)*G4)*(G24/G7),0) -> 0 | H23: =IFERROR(((H7*'Calcul Hyperpointe Voyageur'!$B$8)/(H7*'Calcul Hyperpointe Voyageur'!$B$8+'Profil de gare'!H6)*H4)*(H24/H7),0) -> 0 | I23: =IFERROR(((I7*'Calcul Hyperpointe Voyageur'!$B$8)/(I7*'Calcul Hyperpointe Voyageur'!$B$8+'Profil de gare'!I6)*I4)*(I24/I7),0) -> 0 | J23: =IFERROR(((J7*'Calcul Hyperpointe Voyageur'!$B$8)/(J7*'Calcul Hyperpointe Voyageur'!$B$8+'Profil de gare'!J6)*J4)*(J24/J7),0) -> 0 | K23: =IFERROR(((K7*'Calcul Hyperpointe Voyageur'!$B$8)/(K7*'Calcul Hyperpointe Voyageur'!$B$8+'Profil de gare'!K6)*K4)*(K24/K7),0) -> 0 | L23: =IFERROR(((L7*'Calcul Hyperpointe Voyageur'!$B$8)/(L7*'Calcul Hyperpointe Voyageur'!$B$8+'Profil de gare'!L6)*L4)*(L24/L7),0) -> 0 | M23: =IFERROR(((M7*'Calcul Hyperpointe Voyageur'!$B$8)/(M7*'Calcul Hyperpointe Voyageur'!$B$8+'Profil de gare'!M6)*M4)*(M24/M7),0) -> 0
A24: Nombre de départs trains transmanche | B24: =INDEX('Profil de gare'!$D$1:$M$68,MATCH('Profil de gare'!$A24,'Profil de gare'!$D$1:$D$68,0),MATCH('Profil de gare'!A$1,'Profil de gare'!$D$1:$M$1,0)) -> 0 | D24: Nombre de départs trains transmanche | E24: 0 | F24: 5500 | G24: 0 | H24: 0 | I24: 0 | J24: 2200 | K24: 0 | L24: 150 | M24: 0
D25: Type de répartition des quais | E25: % quais par type de gare
A26: Salon Grands Voyageurs (SNCF) | B26: =INDEX('Profil de gare'!$D$1:$M$68,MATCH('Profil de gare'!$A26,'Profil de gare'!$D$1:$D$68,0),MATCH('Profil de gare'!A$1,'Profil de gare'!$D$1:$M$1,0)) -> Oui | D26: Salon Grands Voyageurs (SNCF) | E26: Oui | F26: Oui | G26: Oui | H26: Non | I26: Non | J26: Non | K26: Non | L26: Non | M26: Non
A27: Nombre de places de parking | B27: =INDEX('Profil de gare'!$D$1:$M$68,MATCH('Profil de gare'!$A27,'Profil de gare'!$D$1:$D$68,0),MATCH('Profil de gare'!A$1,'Profil de gare'!$D$1:$M$1,0)) -> 0 | D27: Nombre de places de parking | E27: =Parking!D34 -> 0 | F27: 1500 | G27: 1400 | H27: 520 | I27: 305 | J27: 305 | K27: 30 | L27: 150 | M27: 50
A29: FLUX | D29: FLUX
A30: Nombre de visiteurs (annuel) | B30: =INDEX('Profil de gare'!$D$1:$M$68,MATCH('Profil de gare'!$A30,'Profil de gare'!$D$1:$D$68,0),MATCH('Profil de gare'!A$1,'Profil de gare'!$D$1:$M$1,0)) -> 2300000 | D30: Nombre de visiteurs (annuel) | E30: =E4+E5 -> 2300000 | F30: =F4+F5 -> 101017963.4 | N30: Calculs ci-dessus
A31: Nombre de voyageurs moyen / jour | B31: =INDEX('Profil de gare'!$D$1:$M$68,MATCH('Profil de gare'!$A31,'Profil de gare'!$D$1:$D$68,0),MATCH('Profil de gare'!A$1,'Profil de gare'!$D$1:$M$1,0)) -> 5479.452055 | D31: Nombre de voyageurs moyen / jour | E31: =E4/365 -> 5479.452055 | F31: =F4/365 -> 239560.9658 | N31: Calculs ci-dessus
A32: Nombre de voyageurs moyen / heure | B32: =INDEX('Profil de gare'!$D$1:$M$68,MATCH('Profil de gare'!$A32,'Profil de gare'!$D$1:$D$68,0),MATCH('Profil de gare'!A$1,'Profil de gare'!$D$1:$M$1,0)) -> 288.3922134 | D32: Nombre de voyageurs moyen / heure | E32: =E31/19 -> 288.3922134 | F32: =F31/19 -> 12608.47188 | G32: =G31/19 ->  | N32: Calculs ci-dessus
A33: Nombre de voyageurs par heure de pointe | B33: =INDEX('Profil de gare'!$D$1:$M$68,MATCH('Profil de gare'!$A33,'Profil de gare'!$D$1:$D$68,0),MATCH('Profil de gare'!A$1,'Profil de gare'!$D$1:$M$1,0)) -> 862.2927181 | D33: Nombre de voyageurs par heure de pointe | E33: ='Calcul Hyperpointe Voyageur'!B22 -> 862.2927181 | F33: 28913.23845 | G33: 4128.371314 | H33: 541.1458847 | I33: 677.9070667 | J33: 677.9070667 | K33: 1231.050383 | L33: 122.4957511 | M33: 8.188404557 | N33: Simulation hyperpointe pour chacun des profils
A34: Nombre de non voyageurs par heure de pointe | B34: =INDEX('Profil de gare'!$D$1:$M$68,MATCH('Profil de gare'!$A34,'Profil de gare'!$D$1:$D$68,0),MATCH('Profil de gare'!A$1,'Profil de gare'!$D$1:$M$1,0)) -> 129.3439077 | D34: Nombre de non voyageurs par heure de pointe | E34: ='Calcul Hyperpointe Voyageur'!B43 -> 129.3439077 | F34: 4489.834879 | G34: 1767.686451 | H34: 295.0318221 | I34: 311.2423787 | J34: 311.2423787 | K34: 99.19940631 | L34: 16.53323438 | M34: 1.653323438 | N34: Simulation hyperpointe pour chacun des profils
A35: Nombre de visiteurs par heure de pointe | B35: =INDEX('Profil de gare'!$D$1:$M$68,MATCH('Profil de gare'!$A35,'Profil de gare'!$D$1:$D$68,0),MATCH('Profil de gare'!A$1,'Profil de gare'!$D$1:$M$1,0)) -> 1150.684932 | D35: Nombre de visiteurs par heure de pointe | E35: =E32+E33 -> 1150.684932 | F35: 41521.71033 | G35: 5928.669601 | H35: 777.1285361 | I35: 973.5284721 | J35: 973.5284721 | K35: 1767.886275 | L35: 168.8770969 | M35: 11.28883228 | N35: Simulation hyperpointe pour chacun des profils
A36: Flux à l'hyperpointe (nb voy minute) | B36: =INDEX('Profil de gare'!$D$1:$M$68,MATCH('Profil de gare'!$A36,'Profil de gare'!$D$1:$D$68,0),MATCH('Profil de gare'!A$1,'Profil de gare'!$D$1:$M$1,0)) -> 365.9354722 | D36: Flux à l'hyperpointe (nb voy minute) | E36: ='Calcul Hyperpointe Voyageur'!B48 -> 365.9354722 | F36: 14416.26514 | G36: 2272.828484 | H36: 319.8854948 | I36: 380.4896065 | J36: 380.4896065 | K36: 228.4647509 | L36: 49.21557746 | M36: 3.384945573 | N36: Simulation hyperpointe pour chacun des profils
A37: Temps déambulation moyen (départ) en min (Conventionné régional) | B37: =INDEX('Profil de gare'!$D$1:$M$68,MATCH('Profil de gare'!$A37,'Profil de gare'!$D$1:$D$68,0),MATCH('Profil de gare'!A$1,'Profil de gare'!$D$1:$M$1,0)) -> 10 | D37: Temps déambulation moyen (départ) en min (Conventionné régional) | E37: ='Paramètres hyperpointe'!B4 -> 10 | F37: ='Calcul Hyperpointe Voyageur'!$S$32 ->  | G37: ='Calcul Hyperpointe Voyageur'!$S$32 ->  | H37: ='Calcul Hyperpointe Voyageur'!$S$32 ->  | I37: ='Calcul Hyperpointe Voyageur'!$S$32 ->  | J37: ='Calcul Hyperpointe Voyageur'!$S$32 ->  | K37: 5 | L37: ='Calcul Hyperpointe Voyageur'!$S$32 ->  | M37: ='Calcul Hyperpointe Voyageur'!$S$32 ->  | N37: Simulation hyperpointe pour chacun des profils
A38: Temps déambulation moyen (départ) en min (Autres) | B38: =INDEX('Profil de gare'!$D$1:$M$68,MATCH('Profil de gare'!$A38,'Profil de gare'!$D$1:$D$68,0),MATCH('Profil de gare'!A$1,'Profil de gare'!$D$1:$M$1,0)) -> 20 | D38: Temps déambulation moyen (départ) en min (Autres) | E38: ='Paramètres hyperpointe'!B5 -> 20 | F38: ='Calcul Hyperpointe Voyageur'!$S$33 ->  | G38: ='Calcul Hyperpointe Voyageur'!$S$33 ->  | H38: ='Calcul Hyperpointe Voyageur'!$S$33 ->  | I38: ='Calcul Hyperpointe Voyageur'!$S$33 ->  | J38: ='Calcul Hyperpointe Voyageur'!$S$33 ->  | K38: ='Calcul Hyperpointe Voyageur'!$S$33 ->  | L38: ='Calcul Hyperpointe Voyageur'!$S$33 ->  | M38: ='Calcul Hyperpointe Voyageur'!$S$33 -> 
A39: Temps déambulation moyen (arrivée) en min | B39: =INDEX('Profil de gare'!$D$1:$M$68,MATCH('Profil de gare'!$A39,'Profil de gare'!$D$1:$D$68,0),MATCH('Profil de gare'!A$1,'Profil de gare'!$D$1:$M$1,0)) -> 5 | D39: Temps déambulation moyen (arrivée) en min | E39: ='Paramètres hyperpointe'!B6 -> 5 | F39: 5 | G39: 3 | H39: 3 | I39: 3 | J39: 3 | K39: 3 | L39: 2 | M39: 1
A40: Temps moyen de présence dans la gare d'un non voyageur (min) | B40: =INDEX('Profil de gare'!$D$1:$M$68,MATCH('Profil de gare'!$A40,'Profil de gare'!$D$1:$D$68,0),MATCH('Profil de gare'!A$1,'Profil de gare'!$D$1:$M$1,0)) -> 10 | D40: Temps moyen de présence dans la gare d'un non voyageur (min) | E40: ='Paramètres hyperpointe'!C7 -> 10 | F40: 15 | G40: 10 | H40: 10 | I40: 10 | J40: 10 | K40: 5 | L40: 5 | M40: 5
A42: SURFACES | D42: SURFACES
A43: Surface totale | B43: =INDEX('Profil de gare'!$D$1:$M$68,MATCH('Profil de gare'!$A43,'Profil de gare'!$D$1:$D$68,0),MATCH('Profil de gare'!A$1,'Profil de gare'!$D$1:$M$1,0)) -> 7961.002659 | D43: Surface totale | E43: =VLOOKUP(D43,'Dimensionnement du bâtiment'!$A$34:$B$59,2,0) -> 7961.002659 | F43: =INDEX('Calcul des surfaces des profils'!$A$1:$J$39,MATCH('Profil de gare'!$D43,'Calcul des surfaces des profils'!$A$1:$A$39,0),MATCH('Profil de gare'!F$1,'Calcul des surfaces des profils'!$A$1:$J$1,0)) ->  | G43: =INDEX('Calcul des surfaces des profils'!$A$1:$J$39,MATCH('Profil de gare'!$D43,'Calcul des surfaces des profils'!$A$1:$A$39,0),MATCH('Profil de gare'!G$1,'Calcul des surfaces des profils'!$A$1:$J$1,0)) ->  | H43: =INDEX('Calcul des surfaces des profils'!$A$1:$J$39,MATCH('Profil de gare'!$D43,'Calcul des surfaces des profils'!$A$1:$A$39,0),MATCH('Profil de gare'!H$1,'Calcul des surfaces des profils'!$A$1:$J$1,0)) ->  | I43: =INDEX('Calcul des surfaces des profils'!$A$1:$J$39,MATCH('Profil de gare'!$D43,'Calcul des surfaces des profils'!$A$1:$A$39,0),MATCH('Profil de gare'!I$1,'Calcul des surfaces des profils'!$A$1:$J$1,0)) ->  | J43: =INDEX('Calcul des surfaces des profils'!$A$1:$J$39,MATCH('Profil de gare'!$D43,'Calcul des surfaces des profils'!$A$1:$A$39,0),MATCH('Profil de gare'!J$1,'Calcul des surfaces des profils'!$A$1:$J$1,0)) ->  | K43: =INDEX('Calcul des surfaces des profils'!$A$1:$J$39,MATCH('Profil de gare'!$D43,'Calcul des surfaces des profils'!$A$1:$A$39,0),MATCH('Profil de gare'!K$1,'Calcul des surfaces des profils'!$A$1:$J$1,0)) ->  | L43: =INDEX('Calcul des surfaces des profils'!$A$1:$J$39,MATCH('Profil de gare'!$D43,'Calcul des surfaces des profils'!$A$1:$A$39,0),MATCH('Profil de gare'!L$1,'Calcul des surfaces des profils'!$A$1:$J$1,0)) ->  | M43: =INDEX('Calcul des surfaces des profils'!$A$1:$J$39,MATCH('Profil de gare'!$D43,'Calcul des surfaces des profils'!$A$1:$A$39,0),MATCH('Profil de gare'!M$1,'Calcul des surfaces des profils'!$A$1:$J$1,0)) ->  | N43: Calcul des surfaces des profils
A44: Surface Parking | B44: =INDEX('Profil de gare'!$D$1:$M$68,MATCH('Profil de gare'!$A44,'Profil de gare'!$D$1:$D$68,0),MATCH('Profil de gare'!A$1,'Profil de gare'!$D$1:$M$1,0)) -> 0 | D44: Surface Parking | E44: =VLOOKUP(D44,'Dimensionnement du bâtiment'!$A$34:$B$59,2,0) -> 0 | F44: =INDEX('Calcul des surfaces des profils'!$A$1:$J$39,MATCH('Profil de gare'!$D44,'Calcul des surfaces des profils'!$A$1:$A$39,0),MATCH('Profil de gare'!F$1,'Calcul des surfaces des profils'!$A$1:$J$1,0)) -> 25875 | G44: =INDEX('Calcul des surfaces des profils'!$A$1:$J$39,MATCH('Profil de gare'!$D44,'Calcul des surfaces des profils'!$A$1:$A$39,0),MATCH('Profil de gare'!G$1,'Calcul des surfaces des profils'!$A$1:$J$1,0)) -> 24150 | H44: =INDEX('Calcul des surfaces des profils'!$A$1:$J$39,MATCH('Profil de gare'!$D44,'Calcul des surfaces des profils'!$A$1:$A$39,0),MATCH('Profil de gare'!H$1,'Calcul des surfaces des profils'!$A$1:$J$1,0)) -> 8970 | I44: =INDEX('Calcul des surfaces des profils'!$A$1:$J$39,MATCH('Profil de gare'!$D44,'Calcul des surfaces des profils'!$A$1:$A$39,0),MATCH('Profil de gare'!I$1,'Calcul des surfaces des profils'!$A$1:$J$1,0)) -> 5261.25 | J44: =INDEX('Calcul des surfaces des profils'!$A$1:$J$39,MATCH('Profil de gare'!$D44,'Calcul des surfaces des profils'!$A$1:$A$39,0),MATCH('Profil de gare'!J$1,'Calcul des surfaces des profils'!$A$1:$J$1,0)) -> 5261.25 | K44: =INDEX('Calcul des surfaces des profils'!$A$1:$J$39,MATCH('Profil de gare'!$D44,'Calcul des surfaces des profils'!$A$1:$A$39,0),MATCH('Profil de gare'!K$1,'Calcul des surfaces des profils'!$A$1:$J$1,0)) -> 517.5 | L44: =INDEX('Calcul des surfaces des profils'!$A$1:$J$39,MATCH('Profil de gare'!$D44,'Calcul des surfaces des profils'!$A$1:$A$39,0),MATCH('Profil de gare'!L$1,'Calcul des surfaces des profils'!$A$1:$J$1,0)) -> 2587.5 | M44: =INDEX('Calcul des surfaces des profils'!$A$1:$J$39,MATCH('Profil de gare'!$D44,'Calcul des surfaces des profils'!$A$1:$A$39,0),MATCH('Profil de gare'!M$1,'Calcul des surfaces des profils'!$A$1:$J$1,0)) -> 862.5 | N44: Calcul des surfaces des profils
A45: Surface des quais | B45: =INDEX('Profil de gare'!$D$1:$M$68,MATCH('Profil de gare'!$A45,'Profil de gare'!$D$1:$D$68,0),MATCH('Profil de gare'!A$1,'Profil de gare'!$D$1:$M$1,0)) -> 5775 | D45: Surface des quais | E45: =VLOOKUP(D45,'Dimensionnement du bâtiment'!$A$34:$B$59,2,0) -> 5775 | F45: =F14*F8*'Dimensionnement du bâtiment'!$B$30 ->  | G45: =G14*G8*'Dimensionnement du bâtiment'!$B$30 ->  | H45: =H14*H8*'Dimensionnement du bâtiment'!$B$30 ->  | I45: =I14*I8*'Dimensionnement du bâtiment'!$B$30 ->  | J45: =J14*J8*'Dimensionnement du bâtiment'!$B$30 ->  | K45: =K14*K8*'Dimensionnement du bâtiment'!$B$30 ->  | L45: =L14*L8*'Dimensionnement du bâtiment'!$B$30 ->  | M45: =M14*M8*'Dimensionnement du bâtiment'!$B$30 ->  | N45: Calcul des surfaces des profils
A46: Surface voiries + bâtiment | B46: =INDEX('Profil de gare'!$D$1:$M$68,MATCH('Profil de gare'!$A46,'Profil de gare'!$D$1:$D$68,0),MATCH('Profil de gare'!A$1,'Profil de gare'!$D$1:$M$1,0)) -> 2186.002659 | D46: Surface voiries + bâtiment | E46: =VLOOKUP(D46,'Dimensionnement du bâtiment'!$A$34:$B$59,2,0) -> 2186.002659 | F46: =INDEX('Calcul des surfaces des profils'!$A$1:$J$39,MATCH('Profil de gare'!$D46,'Calcul des surfaces des profils'!$A$1:$A$39,0),MATCH('Profil de gare'!F$1,'Calcul des surfaces des profils'!$A$1:$J$1,0)) ->  | G46: =INDEX('Calcul des surfaces des profils'!$A$1:$J$39,MATCH('Profil de gare'!$D46,'Calcul des surfaces des profils'!$A$1:$A$39,0),MATCH('Profil de gare'!G$1,'Calcul des surfaces des profils'!$A$1:$J$1,0)) ->  | H46: =INDEX('Calcul des surfaces des profils'!$A$1:$J$39,MATCH('Profil de gare'!$D46,'Calcul des surfaces des profils'!$A$1:$A$39,0),MATCH('Profil de gare'!H$1,'Calcul des surfaces des profils'!$A$1:$J$1,0)) ->  | I46: =INDEX('Calcul des surfaces des profils'!$A$1:$J$39,MATCH('Profil de gare'!$D46,'Calcul des surfaces des profils'!$A$1:$A$39,0),MATCH('Profil de gare'!I$1,'Calcul des surfaces des profils'!$A$1:$J$1,0)) ->  | J46: =INDEX('Calcul des surfaces des profils'!$A$1:$J$39,MATCH('Profil de gare'!$D46,'Calcul des surfaces des profils'!$A$1:$A$39,0),MATCH('Profil de gare'!J$1,'Calcul des surfaces des profils'!$A$1:$J$1,0)) ->  | K46: =INDEX('Calcul des surfaces des profils'!$A$1:$J$39,MATCH('Profil de gare'!$D46,'Calcul des surfaces des profils'!$A$1:$A$39,0),MATCH('Profil de gare'!K$1,'Calcul des surfaces des profils'!$A$1:$J$1,0)) ->  | L46: =INDEX('Calcul des surfaces des profils'!$A$1:$J$39,MATCH('Profil de gare'!$D46,'Calcul des surfaces des profils'!$A$1:$A$39,0),MATCH('Profil de gare'!L$1,'Calcul des surfaces des profils'!$A$1:$J$1,0)) ->  | M46: =INDEX('Calcul des surfaces des profils'!$A$1:$J$39,MATCH('Profil de gare'!$D46,'Calcul des surfaces des profils'!$A$1:$A$39,0),MATCH('Profil de gare'!M$1,'Calcul des surfaces des profils'!$A$1:$J$1,0)) ->  | N46: Calcul des surfaces des profils
A47: Surface bâtiment voyageur | B47: =INDEX('Profil de gare'!$D$1:$M$68,MATCH('Profil de gare'!$A47,'Profil de gare'!$D$1:$D$68,0),MATCH('Profil de gare'!A$1,'Profil de gare'!$D$1:$M$1,0)) -> 1249.144376 | D47: Surface bâtiment voyageur | E47: =VLOOKUP(D47,'Dimensionnement du bâtiment'!$A$34:$B$59,2,0) -> 1249.144376 | F47: =INDEX('Calcul des surfaces des profils'!$A$1:$J$39,MATCH('Profil de gare'!$D47,'Calcul des surfaces des profils'!$A$1:$A$39,0),MATCH('Profil de gare'!F$1,'Calcul des surfaces des profils'!$A$1:$J$1,0)) ->  | G47: =INDEX('Calcul des surfaces des profils'!$A$1:$J$39,MATCH('Profil de gare'!$D47,'Calcul des surfaces des profils'!$A$1:$A$39,0),MATCH('Profil de gare'!G$1,'Calcul des surfaces des profils'!$A$1:$J$1,0)) ->  | H47: =INDEX('Calcul des surfaces des profils'!$A$1:$J$39,MATCH('Profil de gare'!$D47,'Calcul des surfaces des profils'!$A$1:$A$39,0),MATCH('Profil de gare'!H$1,'Calcul des surfaces des profils'!$A$1:$J$1,0)) ->  | I47: =INDEX('Calcul des surfaces des profils'!$A$1:$J$39,MATCH('Profil de gare'!$D47,'Calcul des surfaces des profils'!$A$1:$A$39,0),MATCH('Profil de gare'!I$1,'Calcul des surfaces des profils'!$A$1:$J$1,0)) ->  | J47: =INDEX('Calcul des surfaces des profils'!$A$1:$J$39,MATCH('Profil de gare'!$D47,'Calcul des surfaces des profils'!$A$1:$A$39,0),MATCH('Profil de gare'!J$1,'Calcul des surfaces des profils'!$A$1:$J$1,0)) ->  | K47: =INDEX('Calcul des surfaces des profils'!$A$1:$J$39,MATCH('Profil de gare'!$D47,'Calcul des surfaces des profils'!$A$1:$A$39,0),MATCH('Profil de gare'!K$1,'Calcul des surfaces des profils'!$A$1:$J$1,0)) ->  | L47: =INDEX('Calcul des surfaces des profils'!$A$1:$J$39,MATCH('Profil de gare'!$D47,'Calcul des surfaces des profils'!$A$1:$A$39,0),MATCH('Profil de gare'!L$1,'Calcul des surfaces des profils'!$A$1:$J$1,0)) ->  | M47: =INDEX('Calcul des surfaces des profils'!$A$1:$J$39,MATCH('Profil de gare'!$D47,'Calcul des surfaces des profils'!$A$1:$A$39,0),MATCH('Profil de gare'!M$1,'Calcul des surfaces des profils'!$A$1:$J$1,0)) ->  | N47: Calcul des surfaces des profils
A48: Surface voiries | B48: =INDEX('Profil de gare'!$D$1:$M$68,MATCH('Profil de gare'!$A48,'Profil de gare'!$D$1:$D$68,0),MATCH('Profil de gare'!A$1,'Profil de gare'!$D$1:$M$1,0)) -> 936.8582823 | D48: Surface voiries | E48: =VLOOKUP(D48,'Dimensionnement du bâtiment'!$A$34:$B$59,2,0) -> 936.8582823 | F48: =INDEX('Calcul des surfaces des profils'!$A$1:$J$39,MATCH('Profil de gare'!$D48,'Calcul des surfaces des profils'!$A$1:$A$39,0),MATCH('Profil de gare'!F$1,'Calcul des surfaces des profils'!$A$1:$J$1,0)) ->  | G48: =INDEX('Calcul des surfaces des profils'!$A$1:$J$39,MATCH('Profil de gare'!$D48,'Calcul des surfaces des profils'!$A$1:$A$39,0),MATCH('Profil de gare'!G$1,'Calcul des surfaces des profils'!$A$1:$J$1,0)) ->  | H48: =INDEX('Calcul des surfaces des profils'!$A$1:$J$39,MATCH('Profil de gare'!$D48,'Calcul des surfaces des profils'!$A$1:$A$39,0),MATCH('Profil de gare'!H$1,'Calcul des surfaces des profils'!$A$1:$J$1,0)) ->  | I48: =INDEX('Calcul des surfaces des profils'!$A$1:$J$39,MATCH('Profil de gare'!$D48,'Calcul des surfaces des profils'!$A$1:$A$39,0),MATCH('Profil de gare'!I$1,'Calcul des surfaces des profils'!$A$1:$J$1,0)) ->  | J48: =INDEX('Calcul des surfaces des profils'!$A$1:$J$39,MATCH('Profil de gare'!$D48,'Calcul des surfaces des profils'!$A$1:$A$39,0),MATCH('Profil de gare'!J$1,'Calcul des surfaces des profils'!$A$1:$J$1,0)) ->  | K48: =INDEX('Calcul des surfaces des profils'!$A$1:$J$39,MATCH('Profil de gare'!$D48,'Calcul des surfaces des profils'!$A$1:$A$39,0),MATCH('Profil de gare'!K$1,'Calcul des surfaces des profils'!$A$1:$J$1,0)) ->  | L48: =INDEX('Calcul des surfaces des profils'!$A$1:$J$39,MATCH('Profil de gare'!$D48,'Calcul des surfaces des profils'!$A$1:$A$39,0),MATCH('Profil de gare'!L$1,'Calcul des surfaces des profils'!$A$1:$J$1,0)) ->  | M48: =INDEX('Calcul des surfaces des profils'!$A$1:$J$39,MATCH('Profil de gare'!$D48,'Calcul des surfaces des profils'!$A$1:$A$39,0),MATCH('Profil de gare'!M$1,'Calcul des surfaces des profils'!$A$1:$J$1,0)) ->  | N48: Calcul des surfaces des profils
A49: Surface cœur de gare | B49: =INDEX('Profil de gare'!$D$1:$M$68,MATCH('Profil de gare'!$A49,'Profil de gare'!$D$1:$D$68,0),MATCH('Profil de gare'!A$1,'Profil de gare'!$D$1:$M$1,0)) -> 1229.144376 | D49: Surface cœur de gare | E49: =VLOOKUP(D49,'Dimensionnement du bâtiment'!$A$34:$B$59,2,0) -> 1229.144376 | F49: =INDEX('Calcul des surfaces des profils'!$A$1:$J$39,MATCH('Profil de gare'!$D49,'Calcul des surfaces des profils'!$A$1:$A$39,0),MATCH('Profil de gare'!F$1,'Calcul des surfaces des profils'!$A$1:$J$1,0)) ->  | G49: =INDEX('Calcul des surfaces des profils'!$A$1:$J$39,MATCH('Profil de gare'!$D49,'Calcul des surfaces des profils'!$A$1:$A$39,0),MATCH('Profil de gare'!G$1,'Calcul des surfaces des profils'!$A$1:$J$1,0)) ->  | H49: =INDEX('Calcul des surfaces des profils'!$A$1:$J$39,MATCH('Profil de gare'!$D49,'Calcul des surfaces des profils'!$A$1:$A$39,0),MATCH('Profil de gare'!H$1,'Calcul des surfaces des profils'!$A$1:$J$1,0)) ->  | I49: =INDEX('Calcul des surfaces des profils'!$A$1:$J$39,MATCH('Profil de gare'!$D49,'Calcul des surfaces des profils'!$A$1:$A$39,0),MATCH('Profil de gare'!I$1,'Calcul des surfaces des profils'!$A$1:$J$1,0)) ->  | J49: =INDEX('Calcul des surfaces des profils'!$A$1:$J$39,MATCH('Profil de gare'!$D49,'Calcul des surfaces des profils'!$A$1:$A$39,0),MATCH('Profil de gare'!J$1,'Calcul des surfaces des profils'!$A$1:$J$1,0)) ->  | K49: =INDEX('Calcul des surfaces des profils'!$A$1:$J$39,MATCH('Profil de gare'!$D49,'Calcul des surfaces des profils'!$A$1:$A$39,0),MATCH('Profil de gare'!K$1,'Calcul des surfaces des profils'!$A$1:$J$1,0)) ->  | L49: =INDEX('Calcul des surfaces des profils'!$A$1:$J$39,MATCH('Profil de gare'!$D49,'Calcul des surfaces des profils'!$A$1:$A$39,0),MATCH('Profil de gare'!L$1,'Calcul des surfaces des profils'!$A$1:$J$1,0)) ->  | M49: =INDEX('Calcul des surfaces des profils'!$A$1:$J$39,MATCH('Profil de gare'!$D49,'Calcul des surfaces des profils'!$A$1:$A$39,0),MATCH('Profil de gare'!M$1,'Calcul des surfaces des profils'!$A$1:$J$1,0)) ->  | N49: Calcul des surfaces des profils
A50: Surface hall voyageur | B50: =INDEX('Profil de gare'!$D$1:$M$68,MATCH('Profil de gare'!$A50,'Profil de gare'!$D$1:$D$68,0),MATCH('Profil de gare'!A$1,'Profil de gare'!$D$1:$M$1,0)) -> 1006.322549 | D50: Surface hall voyageur | E50: =VLOOKUP(D50,'Dimensionnement du bâtiment'!$A$34:$B$59,2,0) -> 1006.322549 | F50: =INDEX('Calcul des surfaces des profils'!$A$1:$J$39,MATCH('Profil de gare'!$D50,'Calcul des surfaces des profils'!$A$1:$A$39,0),MATCH('Profil de gare'!F$1,'Calcul des surfaces des profils'!$A$1:$J$1,0)) ->  | G50: =INDEX('Calcul des surfaces des profils'!$A$1:$J$39,MATCH('Profil de gare'!$D50,'Calcul des surfaces des profils'!$A$1:$A$39,0),MATCH('Profil de gare'!G$1,'Calcul des surfaces des profils'!$A$1:$J$1,0)) ->  | H50: =INDEX('Calcul des surfaces des profils'!$A$1:$J$39,MATCH('Profil de gare'!$D50,'Calcul des surfaces des profils'!$A$1:$A$39,0),MATCH('Profil de gare'!H$1,'Calcul des surfaces des profils'!$A$1:$J$1,0)) ->  | I50: =INDEX('Calcul des surfaces des profils'!$A$1:$J$39,MATCH('Profil de gare'!$D50,'Calcul des surfaces des profils'!$A$1:$A$39,0),MATCH('Profil de gare'!I$1,'Calcul des surfaces des profils'!$A$1:$J$1,0)) ->  | J50: =INDEX('Calcul des surfaces des profils'!$A$1:$J$39,MATCH('Profil de gare'!$D50,'Calcul des surfaces des profils'!$A$1:$A$39,0),MATCH('Profil de gare'!J$1,'Calcul des surfaces des profils'!$A$1:$J$1,0)) ->  | K50: =INDEX('Calcul des surfaces des profils'!$A$1:$J$39,MATCH('Profil de gare'!$D50,'Calcul des surfaces des profils'!$A$1:$A$39,0),MATCH('Profil de gare'!K$1,'Calcul des surfaces des profils'!$A$1:$J$1,0)) ->  | L50: =INDEX('Calcul des surfaces des profils'!$A$1:$J$39,MATCH('Profil de gare'!$D50,'Calcul des surfaces des profils'!$A$1:$A$39,0),MATCH('Profil de gare'!L$1,'Calcul des surfaces des profils'!$A$1:$J$1,0)) ->  | M50: =INDEX('Calcul des surfaces des profils'!$A$1:$J$39,MATCH('Profil de gare'!$D50,'Calcul des surfaces des profils'!$A$1:$A$39,0),MATCH('Profil de gare'!M$1,'Calcul des surfaces des profils'!$A$1:$J$1,0)) ->  | N50: Calcul des surfaces des profils
A51: Surface commerciale + locaux | B51: =INDEX('Profil de gare'!$D$1:$M$68,MATCH('Profil de gare'!$A51,'Profil de gare'!$D$1:$D$68,0),MATCH('Profil de gare'!A$1,'Profil de gare'!$D$1:$M$1,0)) -> 242.8218277 | D51: Surface commerciale + locaux | E51: =VLOOKUP(D51,'Dimensionnement du bâtiment'!$A$34:$B$59,2,0) -> 242.8218277 | F51: =INDEX('Calcul des surfaces des profils'!$A$1:$J$39,MATCH('Profil de gare'!$D51,'Calcul des surfaces des profils'!$A$1:$A$39,0),MATCH('Profil de gare'!F$1,'Calcul des surfaces des profils'!$A$1:$J$1,0)) ->  | G51: =INDEX('Calcul des surfaces des profils'!$A$1:$J$39,MATCH('Profil de gare'!$D51,'Calcul des surfaces des profils'!$A$1:$A$39,0),MATCH('Profil de gare'!G$1,'Calcul des surfaces des profils'!$A$1:$J$1,0)) ->  | H51: =INDEX('Calcul des surfaces des profils'!$A$1:$J$39,MATCH('Profil de gare'!$D51,'Calcul des surfaces des profils'!$A$1:$A$39,0),MATCH('Profil de gare'!H$1,'Calcul des surfaces des profils'!$A$1:$J$1,0)) ->  | I51: =INDEX('Calcul des surfaces des profils'!$A$1:$J$39,MATCH('Profil de gare'!$D51,'Calcul des surfaces des profils'!$A$1:$A$39,0),MATCH('Profil de gare'!I$1,'Calcul des surfaces des profils'!$A$1:$J$1,0)) ->  | J51: =INDEX('Calcul des surfaces des profils'!$A$1:$J$39,MATCH('Profil de gare'!$D51,'Calcul des surfaces des profils'!$A$1:$A$39,0),MATCH('Profil de gare'!J$1,'Calcul des surfaces des profils'!$A$1:$J$1,0)) ->  | K51: =INDEX('Calcul des surfaces des profils'!$A$1:$J$39,MATCH('Profil de gare'!$D51,'Calcul des surfaces des profils'!$A$1:$A$39,0),MATCH('Profil de gare'!K$1,'Calcul des surfaces des profils'!$A$1:$J$1,0)) -> 259.8739623 | L51: =INDEX('Calcul des surfaces des profils'!$A$1:$J$39,MATCH('Profil de gare'!$D51,'Calcul des surfaces des profils'!$A$1:$A$39,0),MATCH('Profil de gare'!L$1,'Calcul des surfaces des profils'!$A$1:$J$1,0)) -> 82.88231894 | M51: =INDEX('Calcul des surfaces des profils'!$A$1:$J$39,MATCH('Profil de gare'!$D51,'Calcul des surfaces des profils'!$A$1:$A$39,0),MATCH('Profil de gare'!M$1,'Calcul des surfaces des profils'!$A$1:$J$1,0)) -> 0 | N51: Calcul des surfaces des profils
A52: Surface commerciale | B52: =INDEX('Profil de gare'!$D$1:$M$68,MATCH('Profil de gare'!$A52,'Profil de gare'!$D$1:$D$68,0),MATCH('Profil de gare'!A$1,'Profil de gare'!$D$1:$M$1,0)) -> 222.8218277 | D52: Surface commerciale | E52: =VLOOKUP(D52,'Dimensionnement du bâtiment'!$A$34:$B$59,2,0) -> 222.8218277 | F52: =INDEX('Calcul des surfaces des profils'!$A$1:$J$39,MATCH('Profil de gare'!$D52,'Calcul des surfaces des profils'!$A$1:$A$39,0),MATCH('Profil de gare'!F$1,'Calcul des surfaces des profils'!$A$1:$J$1,0)) ->  | G52: =INDEX('Calcul des surfaces des profils'!$A$1:$J$39,MATCH('Profil de gare'!$D52,'Calcul des surfaces des profils'!$A$1:$A$39,0),MATCH('Profil de gare'!G$1,'Calcul des surfaces des profils'!$A$1:$J$1,0)) ->  | H52: =INDEX('Calcul des surfaces des profils'!$A$1:$J$39,MATCH('Profil de gare'!$D52,'Calcul des surfaces des profils'!$A$1:$A$39,0),MATCH('Profil de gare'!H$1,'Calcul des surfaces des profils'!$A$1:$J$1,0)) ->  | I52: =INDEX('Calcul des surfaces des profils'!$A$1:$J$39,MATCH('Profil de gare'!$D52,'Calcul des surfaces des profils'!$A$1:$A$39,0),MATCH('Profil de gare'!I$1,'Calcul des surfaces des profils'!$A$1:$J$1,0)) ->  | J52: =INDEX('Calcul des surfaces des profils'!$A$1:$J$39,MATCH('Profil de gare'!$D52,'Calcul des surfaces des profils'!$A$1:$A$39,0),MATCH('Profil de gare'!J$1,'Calcul des surfaces des profils'!$A$1:$J$1,0)) ->  | K52: =INDEX('Calcul des surfaces des profils'!$A$1:$J$39,MATCH('Profil de gare'!$D52,'Calcul des surfaces des profils'!$A$1:$A$39,0),MATCH('Profil de gare'!K$1,'Calcul des surfaces des profils'!$A$1:$J$1,0)) -> 80 | L52: =INDEX('Calcul des surfaces des profils'!$A$1:$J$39,MATCH('Profil de gare'!$D52,'Calcul des surfaces des profils'!$A$1:$A$39,0),MATCH('Profil de gare'!L$1,'Calcul des surfaces des profils'!$A$1:$J$1,0)) -> 40 | M52: =INDEX('Calcul des surfaces des profils'!$A$1:$J$39,MATCH('Profil de gare'!$D52,'Calcul des surfaces des profils'!$A$1:$A$39,0),MATCH('Profil de gare'!M$1,'Calcul des surfaces des profils'!$A$1:$J$1,0)) -> 0 | N52: Calcul des surfaces des profils
A53: Surface commerciale non régulée | B53: =INDEX('Profil de gare'!$D$1:$M$68,MATCH('Profil de gare'!$A53,'Profil de gare'!$D$1:$D$68,0),MATCH('Profil de gare'!A$1,'Profil de gare'!$D$1:$M$1,0)) -> 100.6322549 | D53: Surface commerciale non régulée | E53: =VLOOKUP(D53,'Dimensionnement du bâtiment'!$A$34:$B$59,2,0) -> 100.6322549 | F53: =INDEX('Calcul des surfaces des profils'!$A$1:$J$39,MATCH('Profil de gare'!$D53,'Calcul des surfaces des profils'!$A$1:$A$39,0),MATCH('Profil de gare'!F$1,'Calcul des surfaces des profils'!$A$1:$J$1,0)) ->  | G53: =INDEX('Calcul des surfaces des profils'!$A$1:$J$39,MATCH('Profil de gare'!$D53,'Calcul des surfaces des profils'!$A$1:$A$39,0),MATCH('Profil de gare'!G$1,'Calcul des surfaces des profils'!$A$1:$J$1,0)) ->  | H53: =INDEX('Calcul des surfaces des profils'!$A$1:$J$39,MATCH('Profil de gare'!$D53,'Calcul des surfaces des profils'!$A$1:$A$39,0),MATCH('Profil de gare'!H$1,'Calcul des surfaces des profils'!$A$1:$J$1,0)) ->  | I53: =INDEX('Calcul des surfaces des profils'!$A$1:$J$39,MATCH('Profil de gare'!$D53,'Calcul des surfaces des profils'!$A$1:$A$39,0),MATCH('Profil de gare'!I$1,'Calcul des surfaces des profils'!$A$1:$J$1,0)) ->  | J53: =INDEX('Calcul des surfaces des profils'!$A$1:$J$39,MATCH('Profil de gare'!$D53,'Calcul des surfaces des profils'!$A$1:$A$39,0),MATCH('Profil de gare'!J$1,'Calcul des surfaces des profils'!$A$1:$J$1,0)) ->  | K53: =INDEX('Calcul des surfaces des profils'!$A$1:$J$39,MATCH('Profil de gare'!$D53,'Calcul des surfaces des profils'!$A$1:$A$39,0),MATCH('Profil de gare'!K$1,'Calcul des surfaces des profils'!$A$1:$J$1,0)) -> 60 | L53: =INDEX('Calcul des surfaces des profils'!$A$1:$J$39,MATCH('Profil de gare'!$D53,'Calcul des surfaces des profils'!$A$1:$A$39,0),MATCH('Profil de gare'!L$1,'Calcul des surfaces des profils'!$A$1:$J$1,0)) -> 30 | M53: =INDEX('Calcul des surfaces des profils'!$A$1:$J$39,MATCH('Profil de gare'!$D53,'Calcul des surfaces des profils'!$A$1:$A$39,0),MATCH('Profil de gare'!M$1,'Calcul des surfaces des profils'!$A$1:$J$1,0)) -> 0 | N53: Calcul des surfaces des profils
A54: Surface commerciale régulée | B54: =INDEX('Profil de gare'!$D$1:$M$68,MATCH('Profil de gare'!$A54,'Profil de gare'!$D$1:$D$68,0),MATCH('Profil de gare'!A$1,'Profil de gare'!$D$1:$M$1,0)) -> 122.1895728 | D54: Surface commerciale régulée | E54: =VLOOKUP(D54,'Dimensionnement du bâtiment'!$A$34:$B$59,2,0) -> 122.1895728 | F54: =INDEX('Calcul des surfaces des profils'!$A$1:$J$39,MATCH('Profil de gare'!$D54,'Calcul des surfaces des profils'!$A$1:$A$39,0),MATCH('Profil de gare'!F$1,'Calcul des surfaces des profils'!$A$1:$J$1,0)) ->  | G54: =INDEX('Calcul des surfaces des profils'!$A$1:$J$39,MATCH('Profil de gare'!$D54,'Calcul des surfaces des profils'!$A$1:$A$39,0),MATCH('Profil de gare'!G$1,'Calcul des surfaces des profils'!$A$1:$J$1,0)) ->  | H54: =INDEX('Calcul des surfaces des profils'!$A$1:$J$39,MATCH('Profil de gare'!$D54,'Calcul des surfaces des profils'!$A$1:$A$39,0),MATCH('Profil de gare'!H$1,'Calcul des surfaces des profils'!$A$1:$J$1,0)) ->  | I54: =INDEX('Calcul des surfaces des profils'!$A$1:$J$39,MATCH('Profil de gare'!$D54,'Calcul des surfaces des profils'!$A$1:$A$39,0),MATCH('Profil de gare'!I$1,'Calcul des surfaces des profils'!$A$1:$J$1,0)) ->  | J54: =INDEX('Calcul des surfaces des profils'!$A$1:$J$39,MATCH('Profil de gare'!$D54,'Calcul des surfaces des profils'!$A$1:$A$39,0),MATCH('Profil de gare'!J$1,'Calcul des surfaces des profils'!$A$1:$J$1,0)) ->  | K54: =INDEX('Calcul des surfaces des profils'!$A$1:$J$39,MATCH('Profil de gare'!$D54,'Calcul des surfaces des profils'!$A$1:$A$39,0),MATCH('Profil de gare'!K$1,'Calcul des surfaces des profils'!$A$1:$J$1,0)) -> 20 | L54: =INDEX('Calcul des surfaces des profils'!$A$1:$J$39,MATCH('Profil de gare'!$D54,'Calcul des surfaces des profils'!$A$1:$A$39,0),MATCH('Profil de gare'!L$1,'Calcul des surfaces des profils'!$A$1:$J$1,0)) -> 10 | M54: =INDEX('Calcul des surfaces des profils'!$A$1:$J$39,MATCH('Profil de gare'!$D54,'Calcul des surfaces des profils'!$A$1:$A$39,0),MATCH('Profil de gare'!M$1,'Calcul des surfaces des profils'!$A$1:$J$1,0)) -> 0 | N54: Calcul des surfaces des profils
A55: Surface commerciale régulée - Espace de vente ferroviaire | B55: =INDEX('Profil de gare'!$D$1:$M$68,MATCH('Profil de gare'!$A55,'Profil de gare'!$D$1:$D$68,0),MATCH('Profil de gare'!A$1,'Profil de gare'!$D$1:$M$1,0)) -> 100.6322549 | D55: Surface commerciale régulée - Espace de vente ferroviaire | E55: =VLOOKUP(D55,'Dimensionnement du bâtiment'!$A$34:$B$59,2,0) -> 100.6322549 | F55: =INDEX('Calcul des surfaces des profils'!$A$1:$J$39,MATCH('Profil de gare'!$D55,'Calcul des surfaces des profils'!$A$1:$A$39,0),MATCH('Profil de gare'!F$1,'Calcul des surfaces des profils'!$A$1:$J$1,0)) ->  | G55: =INDEX('Calcul des surfaces des profils'!$A$1:$J$39,MATCH('Profil de gare'!$D55,'Calcul des surfaces des profils'!$A$1:$A$39,0),MATCH('Profil de gare'!G$1,'Calcul des surfaces des profils'!$A$1:$J$1,0)) ->  | H55: =INDEX('Calcul des surfaces des profils'!$A$1:$J$39,MATCH('Profil de gare'!$D55,'Calcul des surfaces des profils'!$A$1:$A$39,0),MATCH('Profil de gare'!H$1,'Calcul des surfaces des profils'!$A$1:$J$1,0)) ->  | I55: =INDEX('Calcul des surfaces des profils'!$A$1:$J$39,MATCH('Profil de gare'!$D55,'Calcul des surfaces des profils'!$A$1:$A$39,0),MATCH('Profil de gare'!I$1,'Calcul des surfaces des profils'!$A$1:$J$1,0)) ->  | J55: =INDEX('Calcul des surfaces des profils'!$A$1:$J$39,MATCH('Profil de gare'!$D55,'Calcul des surfaces des profils'!$A$1:$A$39,0),MATCH('Profil de gare'!J$1,'Calcul des surfaces des profils'!$A$1:$J$1,0)) ->  | K55: =INDEX('Calcul des surfaces des profils'!$A$1:$J$39,MATCH('Profil de gare'!$D55,'Calcul des surfaces des profils'!$A$1:$A$39,0),MATCH('Profil de gare'!K$1,'Calcul des surfaces des profils'!$A$1:$J$1,0)) -> 20 | L55: =INDEX('Calcul des surfaces des profils'!$A$1:$J$39,MATCH('Profil de gare'!$D55,'Calcul des surfaces des profils'!$A$1:$A$39,0),MATCH('Profil de gare'!L$1,'Calcul des surfaces des profils'!$A$1:$J$1,0)) -> 10 | M55: =INDEX('Calcul des surfaces des profils'!$A$1:$J$39,MATCH('Profil de gare'!$D55,'Calcul des surfaces des profils'!$A$1:$A$39,0),MATCH('Profil de gare'!M$1,'Calcul des surfaces des profils'!$A$1:$J$1,0)) -> 0 | N55: Calcul des surfaces des profils
A56: Surface commerciale régulée - Salon Grands Voyageurs | B56: =INDEX('Profil de gare'!$D$1:$M$68,MATCH('Profil de gare'!$A56,'Profil de gare'!$D$1:$D$68,0),MATCH('Profil de gare'!A$1,'Profil de gare'!$D$1:$M$1,0)) -> 21.55731795 | D56: Surface commerciale régulée - Salon Grands Voyageurs | E56: =VLOOKUP(D56,'Dimensionnement du bâtiment'!$A$34:$B$59,2,0) -> 21.55731795 | F56: =INDEX('Calcul des surfaces des profils'!$A$1:$J$39,MATCH('Profil de gare'!$D56,'Calcul des surfaces des profils'!$A$1:$A$39,0),MATCH('Profil de gare'!F$1,'Calcul des surfaces des profils'!$A$1:$J$1,0)) -> 752.948918 | G56: =INDEX('Calcul des surfaces des profils'!$A$1:$J$39,MATCH('Profil de gare'!$D56,'Calcul des surfaces des profils'!$A$1:$A$39,0),MATCH('Profil de gare'!G$1,'Calcul des surfaces des profils'!$A$1:$J$1,0)) -> 107.5096696 | H56: =INDEX('Calcul des surfaces des profils'!$A$1:$J$39,MATCH('Profil de gare'!$D56,'Calcul des surfaces des profils'!$A$1:$A$39,0),MATCH('Profil de gare'!H$1,'Calcul des surfaces des profils'!$A$1:$J$1,0)) -> 0 | I56: =INDEX('Calcul des surfaces des profils'!$A$1:$J$39,MATCH('Profil de gare'!$D56,'Calcul des surfaces des profils'!$A$1:$A$39,0),MATCH('Profil de gare'!I$1,'Calcul des surfaces des profils'!$A$1:$J$1,0)) -> 0 | J56: =INDEX('Calcul des surfaces des profils'!$A$1:$J$39,MATCH('Profil de gare'!$D56,'Calcul des surfaces des profils'!$A$1:$A$39,0),MATCH('Profil de gare'!J$1,'Calcul des surfaces des profils'!$A$1:$J$1,0)) -> 0 | K56: =INDEX('Calcul des surfaces des profils'!$A$1:$J$39,MATCH('Profil de gare'!$D56,'Calcul des surfaces des profils'!$A$1:$A$39,0),MATCH('Profil de gare'!K$1,'Calcul des surfaces des profils'!$A$1:$J$1,0)) -> 0 | L56: =INDEX('Calcul des surfaces des profils'!$A$1:$J$39,MATCH('Profil de gare'!$D56,'Calcul des surfaces des profils'!$A$1:$A$39,0),MATCH('Profil de gare'!L$1,'Calcul des surfaces des profils'!$A$1:$J$1,0)) -> 0 | M56: =INDEX('Calcul des surfaces des profils'!$A$1:$J$39,MATCH('Profil de gare'!$D56,'Calcul des surfaces des profils'!$A$1:$A$39,0),MATCH('Profil de gare'!M$1,'Calcul des surfaces des profils'!$A$1:$J$1,0)) -> 0 | N56: Calcul des surfaces des profils
A57: Surface locaux | B57: =INDEX('Profil de gare'!$D$1:$M$68,MATCH('Profil de gare'!$A57,'Profil de gare'!$D$1:$D$68,0),MATCH('Profil de gare'!A$1,'Profil de gare'!$D$1:$M$1,0)) -> 20 | D57: Surface locaux | E57: =VLOOKUP(D57,'Dimensionnement du bâtiment'!$A$34:$B$59,2,0) -> 20 | F57: =INDEX('Calcul des surfaces des profils'!$A$1:$J$39,MATCH('Profil de gare'!$D57,'Calcul des surfaces des profils'!$A$1:$A$39,0),MATCH('Profil de gare'!F$1,'Calcul des surfaces des profils'!$A$1:$J$1,0)) -> 3268.465901 | G57: =INDEX('Calcul des surfaces des profils'!$A$1:$J$39,MATCH('Profil de gare'!$D57,'Calcul des surfaces des profils'!$A$1:$A$39,0),MATCH('Profil de gare'!G$1,'Calcul des surfaces des profils'!$A$1:$J$1,0)) -> 564.2980303 | H57: =INDEX('Calcul des surfaces des profils'!$A$1:$J$39,MATCH('Profil de gare'!$D57,'Calcul des surfaces des profils'!$A$1:$A$39,0),MATCH('Profil de gare'!H$1,'Calcul des surfaces des profils'!$A$1:$J$1,0)) -> 107.3850875 | I57: =INDEX('Calcul des surfaces des profils'!$A$1:$J$39,MATCH('Profil de gare'!$D57,'Calcul des surfaces des profils'!$A$1:$A$39,0),MATCH('Profil de gare'!I$1,'Calcul des surfaces des profils'!$A$1:$J$1,0)) -> 121.7547056 | J57: =INDEX('Calcul des surfaces des profils'!$A$1:$J$39,MATCH('Profil de gare'!$D57,'Calcul des surfaces des profils'!$A$1:$A$39,0),MATCH('Profil de gare'!J$1,'Calcul des surfaces des profils'!$A$1:$J$1,0)) -> 121.7547056 | K57: =INDEX('Calcul des surfaces des profils'!$A$1:$J$39,MATCH('Profil de gare'!$D57,'Calcul des surfaces des profils'!$A$1:$A$39,0),MATCH('Profil de gare'!K$1,'Calcul des surfaces des profils'!$A$1:$J$1,0)) -> 179.8739623 | L57: =INDEX('Calcul des surfaces des profils'!$A$1:$J$39,MATCH('Profil de gare'!$D57,'Calcul des surfaces des profils'!$A$1:$A$39,0),MATCH('Profil de gare'!L$1,'Calcul des surfaces des profils'!$A$1:$J$1,0)) -> 42.88231894 | M57: =INDEX('Calcul des surfaces des profils'!$A$1:$J$39,MATCH('Profil de gare'!$D57,'Calcul des surfaces des profils'!$A$1:$A$39,0),MATCH('Profil de gare'!M$1,'Calcul des surfaces des profils'!$A$1:$J$1,0)) -> 0 | N57: Calcul des surfaces des profils
A58: Surface locaux G&C et Presta | B58: =INDEX('Profil de gare'!$D$1:$M$68,MATCH('Profil de gare'!$A58,'Profil de gare'!$D$1:$D$68,0),MATCH('Profil de gare'!A$1,'Profil de gare'!$D$1:$M$1,0)) -> 0 | D58: Surface locaux G&C et Presta | E58: =VLOOKUP(D58,'Dimensionnement du bâtiment'!$A$34:$B$59,2,0) -> 0 | F58: =INDEX('Calcul des surfaces des profils'!$A$1:$J$39,MATCH('Profil de gare'!$D58,'Calcul des surfaces des profils'!$A$1:$A$39,0),MATCH('Profil de gare'!F$1,'Calcul des surfaces des profils'!$A$1:$J$1,0)) -> 1841.07954 | G58: =INDEX('Calcul des surfaces des profils'!$A$1:$J$39,MATCH('Profil de gare'!$D58,'Calcul des surfaces des profils'!$A$1:$A$39,0),MATCH('Profil de gare'!G$1,'Calcul des surfaces des profils'!$A$1:$J$1,0)) -> 278.5788182 | H58: =INDEX('Calcul des surfaces des profils'!$A$1:$J$39,MATCH('Profil de gare'!$D58,'Calcul des surfaces des profils'!$A$1:$A$39,0),MATCH('Profil de gare'!H$1,'Calcul des surfaces des profils'!$A$1:$J$1,0)) -> 52.43105251 | I58: =INDEX('Calcul des surfaces des profils'!$A$1:$J$39,MATCH('Profil de gare'!$D58,'Calcul des surfaces des profils'!$A$1:$A$39,0),MATCH('Profil de gare'!I$1,'Calcul des surfaces des profils'!$A$1:$J$1,0)) -> 61.05282339 | J58: =INDEX('Calcul des surfaces des profils'!$A$1:$J$39,MATCH('Profil de gare'!$D58,'Calcul des surfaces des profils'!$A$1:$A$39,0),MATCH('Profil de gare'!J$1,'Calcul des surfaces des profils'!$A$1:$J$1,0)) -> 61.05282339 | K58: =INDEX('Calcul des surfaces des profils'!$A$1:$J$39,MATCH('Profil de gare'!$D58,'Calcul des surfaces des profils'!$A$1:$A$39,0),MATCH('Profil de gare'!K$1,'Calcul des surfaces des profils'!$A$1:$J$1,0)) -> 95.92437735 | L58: =INDEX('Calcul des surfaces des profils'!$A$1:$J$39,MATCH('Profil de gare'!$D58,'Calcul des surfaces des profils'!$A$1:$A$39,0),MATCH('Profil de gare'!L$1,'Calcul des surfaces des profils'!$A$1:$J$1,0)) -> 25.72939136 | M58: =INDEX('Calcul des surfaces des profils'!$A$1:$J$39,MATCH('Profil de gare'!$D58,'Calcul des surfaces des profils'!$A$1:$A$39,0),MATCH('Profil de gare'!M$1,'Calcul des surfaces des profils'!$A$1:$J$1,0)) -> 0 | N58: Calcul des surfaces des profils
A59: Surface Centre Opérationnel Escale | B59: =INDEX('Profil de gare'!$D$1:$M$68,MATCH('Profil de gare'!$A59,'Profil de gare'!$D$1:$D$68,0),MATCH('Profil de gare'!A$1,'Profil de gare'!$D$1:$M$1,0)) -> 20 | D59: Surface Centre Opérationnel Escale | E59: =VLOOKUP(D59,'Dimensionnement du bâtiment'!$A$34:$B$59,2,0) -> 20 | F59: =INDEX('Calcul des surfaces des profils'!$A$1:$J$39,MATCH('Profil de gare'!$D59,'Calcul des surfaces des profils'!$A$1:$A$39,0),MATCH('Profil de gare'!F$1,'Calcul des surfaces des profils'!$A$1:$J$1,0)) -> 200 | G59: =INDEX('Calcul des surfaces des profils'!$A$1:$J$39,MATCH('Profil de gare'!$D59,'Calcul des surfaces des profils'!$A$1:$A$39,0),MATCH('Profil de gare'!G$1,'Calcul des surfaces des profils'!$A$1:$J$1,0)) -> 100 | H59: =INDEX('Calcul des surfaces des profils'!$A$1:$J$39,MATCH('Profil de gare'!$D59,'Calcul des surfaces des profils'!$A$1:$A$39,0),MATCH('Profil de gare'!H$1,'Calcul des surfaces des profils'!$A$1:$J$1,0)) -> 20 | I59: =INDEX('Calcul des surfaces des profils'!$A$1:$J$39,MATCH('Profil de gare'!$D59,'Calcul des surfaces des profils'!$A$1:$A$39,0),MATCH('Profil de gare'!I$1,'Calcul des surfaces des profils'!$A$1:$J$1,0)) -> 20 | J59: =INDEX('Calcul des surfaces des profils'!$A$1:$J$39,MATCH('Profil de gare'!$D59,'Calcul des surfaces des profils'!$A$1:$A$39,0),MATCH('Profil de gare'!J$1,'Calcul des surfaces des profils'!$A$1:$J$1,0)) -> 20 | K59: =INDEX('Calcul des surfaces des profils'!$A$1:$J$39,MATCH('Profil de gare'!$D59,'Calcul des surfaces des profils'!$A$1:$A$39,0),MATCH('Profil de gare'!K$1,'Calcul des surfaces des profils'!$A$1:$J$1,0)) -> 20 | L59: =INDEX('Calcul des surfaces des profils'!$A$1:$J$39,MATCH('Profil de gare'!$D59,'Calcul des surfaces des profils'!$A$1:$A$39,0),MATCH('Profil de gare'!L$1,'Calcul des surfaces des profils'!$A$1:$J$1,0)) -> 0 | M59: =INDEX('Calcul des surfaces des profils'!$A$1:$J$39,MATCH('Profil de gare'!$D59,'Calcul des surfaces des profils'!$A$1:$A$39,0),MATCH('Profil de gare'!M$1,'Calcul des surfaces des profils'!$A$1:$J$1,0)) -> 0 | N59: Calcul des surfaces des profils
A60: Surface locaux EF | B60: =INDEX('Profil de gare'!$D$1:$M$68,MATCH('Profil de gare'!$A60,'Profil de gare'!$D$1:$D$68,0),MATCH('Profil de gare'!A$1,'Profil de gare'!$D$1:$M$1,0)) -> 0 | D60: Surface locaux EF | E60: =VLOOKUP(D60,'Dimensionnement du bâtiment'!$A$34:$B$59,2,0) -> 0 | F60: =INDEX('Calcul des surfaces des profils'!$A$1:$J$39,MATCH('Profil de gare'!$D60,'Calcul des surfaces des profils'!$A$1:$A$39,0),MATCH('Profil de gare'!F$1,'Calcul des surfaces des profils'!$A$1:$J$1,0)) -> 1227.38636 | G60: =INDEX('Calcul des surfaces des profils'!$A$1:$J$39,MATCH('Profil de gare'!$D60,'Calcul des surfaces des profils'!$A$1:$A$39,0),MATCH('Profil de gare'!G$1,'Calcul des surfaces des profils'!$A$1:$J$1,0)) -> 185.7192121 | H60: =INDEX('Calcul des surfaces des profils'!$A$1:$J$39,MATCH('Profil de gare'!$D60,'Calcul des surfaces des profils'!$A$1:$A$39,0),MATCH('Profil de gare'!H$1,'Calcul des surfaces des profils'!$A$1:$J$1,0)) -> 34.95403501 | I60: =INDEX('Calcul des surfaces des profils'!$A$1:$J$39,MATCH('Profil de gare'!$D60,'Calcul des surfaces des profils'!$A$1:$A$39,0),MATCH('Profil de gare'!I$1,'Calcul des surfaces des profils'!$A$1:$J$1,0)) -> 40.70188226 | J60: =INDEX('Calcul des surfaces des profils'!$A$1:$J$39,MATCH('Profil de gare'!$D60,'Calcul des surfaces des profils'!$A$1:$A$39,0),MATCH('Profil de gare'!J$1,'Calcul des surfaces des profils'!$A$1:$J$1,0)) -> 40.70188226 | K60: =INDEX('Calcul des surfaces des profils'!$A$1:$J$39,MATCH('Profil de gare'!$D60,'Calcul des surfaces des profils'!$A$1:$A$39,0),MATCH('Profil de gare'!K$1,'Calcul des surfaces des profils'!$A$1:$J$1,0)) -> 63.9495849 | L60: =INDEX('Calcul des surfaces des profils'!$A$1:$J$39,MATCH('Profil de gare'!$D60,'Calcul des surfaces des profils'!$A$1:$A$39,0),MATCH('Profil de gare'!L$1,'Calcul des surfaces des profils'!$A$1:$J$1,0)) -> 17.15292757 | M60: =INDEX('Calcul des surfaces des profils'!$A$1:$J$39,MATCH('Profil de gare'!$D60,'Calcul des surfaces des profils'!$A$1:$A$39,0),MATCH('Profil de gare'!M$1,'Calcul des surfaces des profils'!$A$1:$J$1,0)) -> 0 | N60: Calcul des surfaces des profils
A61: Surface locaux et commerces régulés | B61: =INDEX('Profil de gare'!$D$1:$M$68,MATCH('Profil de gare'!$A61,'Profil de gare'!$D$1:$D$68,0),MATCH('Profil de gare'!A$1,'Profil de gare'!$D$1:$M$1,0)) -> 142.1895728 | D61: Surface locaux et commerces régulés | E61: =VLOOKUP(D61,'Dimensionnement du bâtiment'!$A$34:$B$59,2,0) -> 142.1895728 | F61: =INDEX('Calcul des surfaces des profils'!$A$1:$J$39,MATCH('Profil de gare'!$D61,'Calcul des surfaces des profils'!$A$1:$A$39,0),MATCH('Profil de gare'!F$1,'Calcul des surfaces des profils'!$A$1:$J$1,0)) ->  | G61: =INDEX('Calcul des surfaces des profils'!$A$1:$J$39,MATCH('Profil de gare'!$D61,'Calcul des surfaces des profils'!$A$1:$A$39,0),MATCH('Profil de gare'!G$1,'Calcul des surfaces des profils'!$A$1:$J$1,0)) ->  | H61: =INDEX('Calcul des surfaces des profils'!$A$1:$J$39,MATCH('Profil de gare'!$D61,'Calcul des surfaces des profils'!$A$1:$A$39,0),MATCH('Profil de gare'!H$1,'Calcul des surfaces des profils'!$A$1:$J$1,0)) ->  | I61: =INDEX('Calcul des surfaces des profils'!$A$1:$J$39,MATCH('Profil de gare'!$D61,'Calcul des surfaces des profils'!$A$1:$A$39,0),MATCH('Profil de gare'!I$1,'Calcul des surfaces des profils'!$A$1:$J$1,0)) ->  | J61: =INDEX('Calcul des surfaces des profils'!$A$1:$J$39,MATCH('Profil de gare'!$D61,'Calcul des surfaces des profils'!$A$1:$A$39,0),MATCH('Profil de gare'!J$1,'Calcul des surfaces des profils'!$A$1:$J$1,0)) ->  | K61: =INDEX('Calcul des surfaces des profils'!$A$1:$J$39,MATCH('Profil de gare'!$D61,'Calcul des surfaces des profils'!$A$1:$A$39,0),MATCH('Profil de gare'!K$1,'Calcul des surfaces des profils'!$A$1:$J$1,0)) -> 199.8739623 | L61: =INDEX('Calcul des surfaces des profils'!$A$1:$J$39,MATCH('Profil de gare'!$D61,'Calcul des surfaces des profils'!$A$1:$A$39,0),MATCH('Profil de gare'!L$1,'Calcul des surfaces des profils'!$A$1:$J$1,0)) -> 52.88231894 | M61: =INDEX('Calcul des surfaces des profils'!$A$1:$J$39,MATCH('Profil de gare'!$D61,'Calcul des surfaces des profils'!$A$1:$A$39,0),MATCH('Profil de gare'!M$1,'Calcul des surfaces des profils'!$A$1:$J$1,0)) -> 0 | N61: Calcul des surfaces des profils
A62: Surface locaux et commerces non régulés | B62: =INDEX('Profil de gare'!$D$1:$M$68,MATCH('Profil de gare'!$A62,'Profil de gare'!$D$1:$D$68,0),MATCH('Profil de gare'!A$1,'Profil de gare'!$D$1:$M$1,0)) -> 100.6322549 | D62: Surface locaux et commerces non régulés | E62: =VLOOKUP(D62,'Dimensionnement du bâtiment'!$A$34:$B$59,2,0) -> 100.6322549 | F62: =INDEX('Calcul des surfaces des profils'!$A$1:$J$39,MATCH('Profil de gare'!$D62,'Calcul des surfaces des profils'!$A$1:$A$39,0),MATCH('Profil de gare'!F$1,'Calcul des surfaces des profils'!$A$1:$J$1,0)) ->  | G62: =INDEX('Calcul des surfaces des profils'!$A$1:$J$39,MATCH('Profil de gare'!$D62,'Calcul des surfaces des profils'!$A$1:$A$39,0),MATCH('Profil de gare'!G$1,'Calcul des surfaces des profils'!$A$1:$J$1,0)) ->  | H62: =INDEX('Calcul des surfaces des profils'!$A$1:$J$39,MATCH('Profil de gare'!$D62,'Calcul des surfaces des profils'!$A$1:$A$39,0),MATCH('Profil de gare'!H$1,'Calcul des surfaces des profils'!$A$1:$J$1,0)) ->  | I62: =INDEX('Calcul des surfaces des profils'!$A$1:$J$39,MATCH('Profil de gare'!$D62,'Calcul des surfaces des profils'!$A$1:$A$39,0),MATCH('Profil de gare'!I$1,'Calcul des surfaces des profils'!$A$1:$J$1,0)) ->  | J62: =INDEX('Calcul des surfaces des profils'!$A$1:$J$39,MATCH('Profil de gare'!$D62,'Calcul des surfaces des profils'!$A$1:$A$39,0),MATCH('Profil de gare'!J$1,'Calcul des surfaces des profils'!$A$1:$J$1,0)) ->  | K62: =INDEX('Calcul des surfaces des profils'!$A$1:$J$39,MATCH('Profil de gare'!$D62,'Calcul des surfaces des profils'!$A$1:$A$39,0),MATCH('Profil de gare'!K$1,'Calcul des surfaces des profils'!$A$1:$J$1,0)) -> 60 | L62: =INDEX('Calcul des surfaces des profils'!$A$1:$J$39,MATCH('Profil de gare'!$D62,'Calcul des surfaces des profils'!$A$1:$A$39,0),MATCH('Profil de gare'!L$1,'Calcul des surfaces des profils'!$A$1:$J$1,0)) -> 30 | M62: =INDEX('Calcul des surfaces des profils'!$A$1:$J$39,MATCH('Profil de gare'!$D62,'Calcul des surfaces des profils'!$A$1:$A$39,0),MATCH('Profil de gare'!M$1,'Calcul des surfaces des profils'!$A$1:$J$1,0)) -> 0 | N62: Calcul des surfaces des profils
A63: Surface des façades | B63: =INDEX('Profil de gare'!$D$1:$M$68,MATCH('Profil de gare'!$A63,'Profil de gare'!$D$1:$D$68,0),MATCH('Profil de gare'!A$1,'Profil de gare'!$D$1:$M$1,0)) -> 1531.540254 | D63: Surface des façades | E63: =VLOOKUP(D63,'Dimensionnement du bâtiment'!$A$34:$B$59,2,0) -> 1531.540254 | F63: =INDEX('Calcul des surfaces des profils'!$A$1:$J$39,MATCH('Profil de gare'!$D63,'Calcul des surfaces des profils'!$A$1:$A$39,0),MATCH('Profil de gare'!F$1,'Calcul des surfaces des profils'!$A$1:$J$1,0)) ->  | G63: =INDEX('Calcul des surfaces des profils'!$A$1:$J$39,MATCH('Profil de gare'!$D63,'Calcul des surfaces des profils'!$A$1:$A$39,0),MATCH('Profil de gare'!G$1,'Calcul des surfaces des profils'!$A$1:$J$1,0)) ->  | H63: =INDEX('Calcul des surfaces des profils'!$A$1:$J$39,MATCH('Profil de gare'!$D63,'Calcul des surfaces des profils'!$A$1:$A$39,0),MATCH('Profil de gare'!H$1,'Calcul des surfaces des profils'!$A$1:$J$1,0)) ->  | I63: =INDEX('Calcul des surfaces des profils'!$A$1:$J$39,MATCH('Profil de gare'!$D63,'Calcul des surfaces des profils'!$A$1:$A$39,0),MATCH('Profil de gare'!I$1,'Calcul des surfaces des profils'!$A$1:$J$1,0)) ->  | J63: =INDEX('Calcul des surfaces des profils'!$A$1:$J$39,MATCH('Profil de gare'!$D63,'Calcul des surfaces des profils'!$A$1:$A$39,0),MATCH('Profil de gare'!J$1,'Calcul des surfaces des profils'!$A$1:$J$1,0)) ->  | K63: =INDEX('Calcul des surfaces des profils'!$A$1:$J$39,MATCH('Profil de gare'!$D63,'Calcul des surfaces des profils'!$A$1:$A$39,0),MATCH('Profil de gare'!K$1,'Calcul des surfaces des profils'!$A$1:$J$1,0)) ->  | L63: =INDEX('Calcul des surfaces des profils'!$A$1:$J$39,MATCH('Profil de gare'!$D63,'Calcul des surfaces des profils'!$A$1:$A$39,0),MATCH('Profil de gare'!L$1,'Calcul des surfaces des profils'!$A$1:$J$1,0)) ->  | M63: =INDEX('Calcul des surfaces des profils'!$A$1:$J$39,MATCH('Profil de gare'!$D63,'Calcul des surfaces des profils'!$A$1:$A$39,0),MATCH('Profil de gare'!M$1,'Calcul des surfaces des profils'!$A$1:$J$1,0)) ->  | N63: Calcul des surfaces des profils
A64: Surface de la toiture | B64: =INDEX('Profil de gare'!$D$1:$M$68,MATCH('Profil de gare'!$A64,'Profil de gare'!$D$1:$D$68,0),MATCH('Profil de gare'!A$1,'Profil de gare'!$D$1:$M$1,0)) -> 1249.144376 | D64: Surface de la toiture | E64: =VLOOKUP(D64,'Dimensionnement du bâtiment'!$A$34:$B$59,2,0) -> 1249.144376 | F64: =INDEX('Calcul des surfaces des profils'!$A$1:$J$39,MATCH('Profil de gare'!$D64,'Calcul des surfaces des profils'!$A$1:$A$39,0),MATCH('Profil de gare'!F$1,'Calcul des surfaces des profils'!$A$1:$J$1,0)) ->  | G64: =INDEX('Calcul des surfaces des profils'!$A$1:$J$39,MATCH('Profil de gare'!$D64,'Calcul des surfaces des profils'!$A$1:$A$39,0),MATCH('Profil de gare'!G$1,'Calcul des surfaces des profils'!$A$1:$J$1,0)) ->  | H64: =INDEX('Calcul des surfaces des profils'!$A$1:$J$39,MATCH('Profil de gare'!$D64,'Calcul des surfaces des profils'!$A$1:$A$39,0),MATCH('Profil de gare'!H$1,'Calcul des surfaces des profils'!$A$1:$J$1,0)) ->  | I64: =INDEX('Calcul des surfaces des profils'!$A$1:$J$39,MATCH('Profil de gare'!$D64,'Calcul des surfaces des profils'!$A$1:$A$39,0),MATCH('Profil de gare'!I$1,'Calcul des surfaces des profils'!$A$1:$J$1,0)) ->  | J64: =INDEX('Calcul des surfaces des profils'!$A$1:$J$39,MATCH('Profil de gare'!$D64,'Calcul des surfaces des profils'!$A$1:$A$39,0),MATCH('Profil de gare'!J$1,'Calcul des surfaces des profils'!$A$1:$J$1,0)) ->  | K64: =INDEX('Calcul des surfaces des profils'!$A$1:$J$39,MATCH('Profil de gare'!$D64,'Calcul des surfaces des profils'!$A$1:$A$39,0),MATCH('Profil de gare'!K$1,'Calcul des surfaces des profils'!$A$1:$J$1,0)) ->  | L64: =INDEX('Calcul des surfaces des profils'!$A$1:$J$39,MATCH('Profil de gare'!$D64,'Calcul des surfaces des profils'!$A$1:$A$39,0),MATCH('Profil de gare'!L$1,'Calcul des surfaces des profils'!$A$1:$J$1,0)) ->  | M64: =INDEX('Calcul des surfaces des profils'!$A$1:$J$39,MATCH('Profil de gare'!$D64,'Calcul des surfaces des profils'!$A$1:$A$39,0),MATCH('Profil de gare'!M$1,'Calcul des surfaces des profils'!$A$1:$J$1,0)) ->  | N64: Calcul des surfaces des profils
A65: Surface des façades en verre | B65: =INDEX('Profil de gare'!$D$1:$M$68,MATCH('Profil de gare'!$A65,'Profil de gare'!$D$1:$D$68,0),MATCH('Profil de gare'!A$1,'Profil de gare'!$D$1:$M$1,0)) -> 918.9241527 | D65: Surface des façades en verre | E65: =VLOOKUP(D65,'Dimensionnement du bâtiment'!$A$34:$B$59,2,0) -> 918.9241527 | F65: =INDEX('Calcul des surfaces des profils'!$A$1:$J$39,MATCH('Profil de gare'!$D65,'Calcul des surfaces des profils'!$A$1:$A$39,0),MATCH('Profil de gare'!F$1,'Calcul des surfaces des profils'!$A$1:$J$1,0)) ->  | G65: =INDEX('Calcul des surfaces des profils'!$A$1:$J$39,MATCH('Profil de gare'!$D65,'Calcul des surfaces des profils'!$A$1:$A$39,0),MATCH('Profil de gare'!G$1,'Calcul des surfaces des profils'!$A$1:$J$1,0)) ->  | H65: =INDEX('Calcul des surfaces des profils'!$A$1:$J$39,MATCH('Profil de gare'!$D65,'Calcul des surfaces des profils'!$A$1:$A$39,0),MATCH('Profil de gare'!H$1,'Calcul des surfaces des profils'!$A$1:$J$1,0)) ->  | I65: =INDEX('Calcul des surfaces des profils'!$A$1:$J$39,MATCH('Profil de gare'!$D65,'Calcul des surfaces des profils'!$A$1:$A$39,0),MATCH('Profil de gare'!I$1,'Calcul des surfaces des profils'!$A$1:$J$1,0)) ->  | J65: =INDEX('Calcul des surfaces des profils'!$A$1:$J$39,MATCH('Profil de gare'!$D65,'Calcul des surfaces des profils'!$A$1:$A$39,0),MATCH('Profil de gare'!J$1,'Calcul des surfaces des profils'!$A$1:$J$1,0)) ->  | K65: =INDEX('Calcul des surfaces des profils'!$A$1:$J$39,MATCH('Profil de gare'!$D65,'Calcul des surfaces des profils'!$A$1:$A$39,0),MATCH('Profil de gare'!K$1,'Calcul des surfaces des profils'!$A$1:$J$1,0)) ->  | L65: =INDEX('Calcul des surfaces des profils'!$A$1:$J$39,MATCH('Profil de gare'!$D65,'Calcul des surfaces des profils'!$A$1:$A$39,0),MATCH('Profil de gare'!L$1,'Calcul des surfaces des profils'!$A$1:$J$1,0)) ->  | M65: =INDEX('Calcul des surfaces des profils'!$A$1:$J$39,MATCH('Profil de gare'!$D65,'Calcul des surfaces des profils'!$A$1:$A$39,0),MATCH('Profil de gare'!M$1,'Calcul des surfaces des profils'!$A$1:$J$1,0)) ->  | N65: Calcul des surfaces des profils
A66: Surface des façades en bardage | B66: =INDEX('Profil de gare'!$D$1:$M$68,MATCH('Profil de gare'!$A66,'Profil de gare'!$D$1:$D$68,0),MATCH('Profil de gare'!A$1,'Profil de gare'!$D$1:$M$1,0)) -> 612.6161018 | D66: Surface des façades en bardage | E66: =VLOOKUP(D66,'Dimensionnement du bâtiment'!$A$34:$B$59,2,0) -> 612.6161018 | F66: =INDEX('Calcul des surfaces des profils'!$A$1:$J$39,MATCH('Profil de gare'!$D66,'Calcul des surfaces des profils'!$A$1:$A$39,0),MATCH('Profil de gare'!F$1,'Calcul des surfaces des profils'!$A$1:$J$1,0)) ->  | G66: =INDEX('Calcul des surfaces des profils'!$A$1:$J$39,MATCH('Profil de gare'!$D66,'Calcul des surfaces des profils'!$A$1:$A$39,0),MATCH('Profil de gare'!G$1,'Calcul des surfaces des profils'!$A$1:$J$1,0)) ->  | H66: =INDEX('Calcul des surfaces des profils'!$A$1:$J$39,MATCH('Profil de gare'!$D66,'Calcul des surfaces des profils'!$A$1:$A$39,0),MATCH('Profil de gare'!H$1,'Calcul des surfaces des profils'!$A$1:$J$1,0)) ->  | I66: =INDEX('Calcul des surfaces des profils'!$A$1:$J$39,MATCH('Profil de gare'!$D66,'Calcul des surfaces des profils'!$A$1:$A$39,0),MATCH('Profil de gare'!I$1,'Calcul des surfaces des profils'!$A$1:$J$1,0)) ->  | J66: =INDEX('Calcul des surfaces des profils'!$A$1:$J$39,MATCH('Profil de gare'!$D66,'Calcul des surfaces des profils'!$A$1:$A$39,0),MATCH('Profil de gare'!J$1,'Calcul des surfaces des profils'!$A$1:$J$1,0)) ->  | K66: =INDEX('Calcul des surfaces des profils'!$A$1:$J$39,MATCH('Profil de gare'!$D66,'Calcul des surfaces des profils'!$A$1:$A$39,0),MATCH('Profil de gare'!K$1,'Calcul des surfaces des profils'!$A$1:$J$1,0)) ->  | L66: =INDEX('Calcul des surfaces des profils'!$A$1:$J$39,MATCH('Profil de gare'!$D66,'Calcul des surfaces des profils'!$A$1:$A$39,0),MATCH('Profil de gare'!L$1,'Calcul des surfaces des profils'!$A$1:$J$1,0)) ->  | M66: =INDEX('Calcul des surfaces des profils'!$A$1:$J$39,MATCH('Profil de gare'!$D66,'Calcul des surfaces des profils'!$A$1:$A$39,0),MATCH('Profil de gare'!M$1,'Calcul des surfaces des profils'!$A$1:$J$1,0)) ->  | N66: Calcul des surfaces des profils
A67: Surface de la toiture en verre | B67: =INDEX('Profil de gare'!$D$1:$M$68,MATCH('Profil de gare'!$A67,'Profil de gare'!$D$1:$D$68,0),MATCH('Profil de gare'!A$1,'Profil de gare'!$D$1:$M$1,0)) -> 249.8288753 | D67: Surface de la toiture en verre | E67: =VLOOKUP(D67,'Dimensionnement du bâtiment'!$A$34:$B$59,2,0) -> 249.8288753 | F67: =INDEX('Calcul des surfaces des profils'!$A$1:$J$39,MATCH('Profil de gare'!$D67,'Calcul des surfaces des profils'!$A$1:$A$39,0),MATCH('Profil de gare'!F$1,'Calcul des surfaces des profils'!$A$1:$J$1,0)) ->  | G67: =INDEX('Calcul des surfaces des profils'!$A$1:$J$39,MATCH('Profil de gare'!$D67,'Calcul des surfaces des profils'!$A$1:$A$39,0),MATCH('Profil de gare'!G$1,'Calcul des surfaces des profils'!$A$1:$J$1,0)) ->  | H67: =INDEX('Calcul des surfaces des profils'!$A$1:$J$39,MATCH('Profil de gare'!$D67,'Calcul des surfaces des profils'!$A$1:$A$39,0),MATCH('Profil de gare'!H$1,'Calcul des surfaces des profils'!$A$1:$J$1,0)) ->  | I67: =INDEX('Calcul des surfaces des profils'!$A$1:$J$39,MATCH('Profil de gare'!$D67,'Calcul des surfaces des profils'!$A$1:$A$39,0),MATCH('Profil de gare'!I$1,'Calcul des surfaces des profils'!$A$1:$J$1,0)) ->  | J67: =INDEX('Calcul des surfaces des profils'!$A$1:$J$39,MATCH('Profil de gare'!$D67,'Calcul des surfaces des profils'!$A$1:$A$39,0),MATCH('Profil de gare'!J$1,'Calcul des surfaces des profils'!$A$1:$J$1,0)) ->  | K67: =INDEX('Calcul des surfaces des profils'!$A$1:$J$39,MATCH('Profil de gare'!$D67,'Calcul des surfaces des profils'!$A$1:$A$39,0),MATCH('Profil de gare'!K$1,'Calcul des surfaces des profils'!$A$1:$J$1,0)) ->  | L67: =INDEX('Calcul des surfaces des profils'!$A$1:$J$39,MATCH('Profil de gare'!$D67,'Calcul des surfaces des profils'!$A$1:$A$39,0),MATCH('Profil de gare'!L$1,'Calcul des surfaces des profils'!$A$1:$J$1,0)) ->  | M67: =INDEX('Calcul des surfaces des profils'!$A$1:$J$39,MATCH('Profil de gare'!$D67,'Calcul des surfaces des profils'!$A$1:$A$39,0),MATCH('Profil de gare'!M$1,'Calcul des surfaces des profils'!$A$1:$J$1,0)) ->  | N67: Calcul des surfaces des profils
A68: Surface de la toiture en bardage | B68: =INDEX('Profil de gare'!$D$1:$M$68,MATCH('Profil de gare'!$A68,'Profil de gare'!$D$1:$D$68,0),MATCH('Profil de gare'!A$1,'Profil de gare'!$D$1:$M$1,0)) -> 999.3155011 | D68: Surface de la toiture en bardage | E68: =VLOOKUP(D68,'Dimensionnement du bâtiment'!$A$34:$B$59,2,0) -> 999.3155011 | F68: =INDEX('Calcul des surfaces des profils'!$A$1:$J$39,MATCH('Profil de gare'!$D68,'Calcul des surfaces des profils'!$A$1:$A$39,0),MATCH('Profil de gare'!F$1,'Calcul des surfaces des profils'!$A$1:$J$1,0)) ->  | G68: =INDEX('Calcul des surfaces des profils'!$A$1:$J$39,MATCH('Profil de gare'!$D68,'Calcul des surfaces des profils'!$A$1:$A$39,0),MATCH('Profil de gare'!G$1,'Calcul des surfaces des profils'!$A$1:$J$1,0)) ->  | H68: =INDEX('Calcul des surfaces des profils'!$A$1:$J$39,MATCH('Profil de gare'!$D68,'Calcul des surfaces des profils'!$A$1:$A$39,0),MATCH('Profil de gare'!H$1,'Calcul des surfaces des profils'!$A$1:$J$1,0)) ->  | I68: =INDEX('Calcul des surfaces des profils'!$A$1:$J$39,MATCH('Profil de gare'!$D68,'Calcul des surfaces des profils'!$A$1:$A$39,0),MATCH('Profil de gare'!I$1,'Calcul des surfaces des profils'!$A$1:$J$1,0)) ->  | J68: =INDEX('Calcul des surfaces des profils'!$A$1:$J$39,MATCH('Profil de gare'!$D68,'Calcul des surfaces des profils'!$A$1:$A$39,0),MATCH('Profil de gare'!J$1,'Calcul des surfaces des profils'!$A$1:$J$1,0)) ->  | K68: =INDEX('Calcul des surfaces des profils'!$A$1:$J$39,MATCH('Profil de gare'!$D68,'Calcul des surfaces des profils'!$A$1:$A$39,0),MATCH('Profil de gare'!K$1,'Calcul des surfaces des profils'!$A$1:$J$1,0)) ->  | L68: =INDEX('Calcul des surfaces des profils'!$A$1:$J$39,MATCH('Profil de gare'!$D68,'Calcul des surfaces des profils'!$A$1:$A$39,0),MATCH('Profil de gare'!L$1,'Calcul des surfaces des profils'!$A$1:$J$1,0)) ->  | M68: =INDEX('Calcul des surfaces des profils'!$A$1:$J$39,MATCH('Profil de gare'!$D68,'Calcul des surfaces des profils'!$A$1:$A$39,0),MATCH('Profil de gare'!M$1,'Calcul des surfaces des profils'!$A$1:$J$1,0)) ->  | N68: Calcul des surfaces des profils
D69: MODULATION DES PRIX DU BATIMENT
D70: Région choisie | E70: Auvergne-Rhône-Alpes
D71: Fourchette des prix sélectionnée bâtiment | E71: Fourchette moyenne - gare
D72: Fourchette des prix sélectionnée terrain | E72: Médiane
D73: Choix entre passerelle ou souterrain | E73: Souterrain
D74: NIVEAUX DE SERVICE
D75: Niveau de service - Hall Voyageur | E75: CONFORT (3)
D76: Niveau de service - Surface Commerciale non régulée | E76: STANDARD (2)
D77: Niveau de service - Espace de vente ferroviaire | E77: CONFORT (3)
D78: Niveau de service - Locaux G&C et Presta | E78: ECONOMIQUE (1)
D79: Niveau de service - Locaux EF | E79: ECONOMIQUE (1)
D80: Niveau de service - Voiries | E80: PREMIUM (4)
D81: Niveau de service - Parking | E81: PREMIUM (4)
D82: DONNEES ARCHITECTURALES
D83: Hauteur de plafond (en m) | E83: 10
D84: % de façade en verre | E84: 0.6
D85: % de la toiture en verre | E85: 0.2
D86: Niveau architectural - Architecture secondaire | E86: STANDARD (2)
D88: METHODE D'ANNUALISATION DES CAPEX
D89: Méthode d'annualisation des CAPEX | E89: Coûts alloués - Méthode DRG
D90: Année de la simulation | E90: 1
D91: CMPC (avant IS) - Régulé | E91: 0
D92: CMPC (avant IS) - Non régulé | E92: 0

Sheet Banque de Profils
D1: Saisie semi-libre | E1: Saisie semi-libre | F1: Saisie semi-libre | G1: Saisie semi-libre | H1: Saisie semi-libre | I1: Saisie semi-libre | J1: Saisie semi-libre | K1: Gare Mass-Transit Francilienne | L1: Gare C | N1: INTRODUCTION
C2: Paramètre | D2: Gare type 1 | E2: Gare type 2 | F2: Gare type 3 | G2: Gare type 4 | H2: Gare type 5 | I2: Gare type 6 | J2: Gare type 7 | K2: Gare type 8 | L2: Gare type 9
C3: CARACTERISTIQUES DE LA GARE | N3: COÛT DE LA GARE
C4: Nombre de voyageurs (annuel) | D4: 3300000 | E4: 550000 | F4: 7700000 | G4: 11000000 | H4: 1100000 | I4: 7000000 | J4: 400000 | K4: 3700000 | L4: 24000 | N4: CALCUL DU TARIF
C5: Nombre de non voyageurs (annuel) | D5: 1800000 | E5: 370000 | F5: 4000000 | G5: 4600000 | H5: 400000 | I5: 3100000 | J5: 60000 | K5: 300000 | L5: 5000
C6: Nombre de départs trains conventionnés régionaux | D6: 5000 | E6: 1600 | F6: 50000 | G6: 42000 | H6: 10000 | I6: 40000 | J6: 15000 | K6: 60000 | L6: 5000
C7: Nombre de départs trains autres | D7: 18000 | E7: 5500 | F7: 6000 | G7: 15000 | H7: 5000 | I7: 16000 | J7: 250 | K7: 30 | L7: 40
C8: Nombre de transporteurs | D8: 3 | E8: 3 | F8: 3 | G8: 3 | H8: 3 | I8: 3 | J8: 2 | K8: 2 | L8: 2
C9: Nombre de prestataires G&C | D9: 2 | E9: 2 | F9: 2 | G9: 2 | H9: 2 | I9: 2 | J9: 2 | K9: 2 | L9: 2
C10: Gare Terminus / Passage | D10: Passage | E10: Passage | F10: Passage | G10: Terminus | H10: Passage | I10: Passage | J10: Passage | K10: Passage | L10: Passage
C11: Amplitude horaire d’ouverture de la gare | D11: 19 | E11: 19 | F11: 19 | G11: 19 | H11: 19 | I11: 19 | J11: 19 | K11: 19 | L11: 19
C12: Nombre d’entrées dans la gare | D12: 4 | E12: 4 | F12: 4 | G12: 4 | H12: 4 | I12: 4 | J12: 4 | K12: 2 | L12: 4
C13: Nombre d'étages | D13: 2 | E13: 2 | F13: 2 | G13: 2 | H13: 2 | I13: 2 | J13: 2 | K13: 1 | L13: 2
C14: Nombre de halls | D14: 1 | E14: 1 | F14: 1 | G14: 1 | H14: 1 | I14: 1 | J14: 1 | K14: 1 | L14: 1
C15: Nombre de voyageurs transmanche | K15: 0
C16: Nombre de départs trains transmanche | D16: 0 | E16: 0 | F16: 0 | G16: 0 | H16: 0 | I16: 0 | J16: 0 | K16: 0 | L16: 0
C17: Salon Grands Voyageurs (SNCF) | D17: Non | E17: Non | F17: Non | G17: Non | H17: Non | I17: Non | J17: Non | K17: Non | L17: Non
C18: NIVEAUX DE SERVICE
C19: Niveau de service - Hall Voyageur | D19: CONFORT (3) | E19: CONFORT (3) | F19: CONFORT (3) | G19: CONFORT (3) | H19: CONFORT (3) | I19: CONFORT (3) | J19: CONFORT (3) | K19: CONFORT (3) | L19: CONFORT (3)
C20: Niveau de service - Surface Commerciale non régulée | D20: CONFORT (3) | E20: STANDARD (2) | F20: CONFORT (3) | G20: CONFORT (3) | H20: CONFORT (3) | I20: CONFORT (3) | J20: CONFORT (3) | K20: CONFORT (3) | L20: CONFORT (3)
C21: Niveau de service - Espace de vente ferroviaire | D21: STANDARD (2) | E21: CONFORT (3) | F21: CONFORT (3) | G21: CONFORT (3) | H21: CONFORT (3) | I21: CONFORT (3) | J21: CONFORT (3) | K21: CONFORT (3) | L21: CONFORT (3)
C22: Niveau de service - Locaux G&C et Presta | D22: CONFORT (3) | E22: CONFORT (3) | F22: CONFORT (3) | G22: CONFORT (3) | H22: CONFORT (3) | I22: CONFORT (3) | J22: CONFORT (3) | K22: CONFORT (3) | L22: CONFORT (3)
C23: Niveau de service - Locaux EF | D23: CONFORT (3) | E23: CONFORT (3) | F23: CONFORT (3) | G23: CONFORT (3) | H23: CONFORT (3) | I23: CONFORT (3) | J23: CONFORT (3) | K23: CONFORT (3) | L23: CONFORT (3)
C24: Niveau de service - Voiries | D24: CONFORT (3) | E24: CONFORT (3) | F24: CONFORT (3) | G24: CONFORT (3) | H24: CONFORT (3) | I24: CONFORT (3) | J24: CONFORT (3) | K24: CONFORT (3) | L24: CONFORT (3)
C25: Niveau de service - Parking | D25: CONFORT (3) | E25: CONFORT (3) | F25: CONFORT (3) | G25: CONFORT (3) | H25: CONFORT (3) | I25: CONFORT (3) | J25: CONFORT (3) | K25: CONFORT (3) | L25: CONFORT (3)
C26: DONNEES ARCHITECTURALES
C27: Hauteur de plafond | D27: 12 | E27: 9 | F27: 10 | G27: 10 | H27: 10 | I27: 10 | J27: 4 | K27: 4 | L27: 4
C28: % de façades en verre | D28: 0.7 | E28: 0.5 | F28: 0.6 | G28: 0.6 | H28: 0.6 | I28: 0.6 | J28: 0.2 | K28: 0.2 | L28: 0.1
C29: % de la toiture en verre | D29: 0.3 | E29: 0.2 | F29: 0.2 | G29: 0.2 | H29: 0.2 | I29: 0.2 | J29: 0.1 | K29: 0.1 | L29: 0.1
C30: Niveau architectural - Architecture secondaire | D30: CONFORT (3) | E30: CONFORT (3) | F30: CONFORT (3) | G30: CONFORT (3) | H30: CONFORT (3) | I30: CONFORT (3) | J30: CONFORT (3) | K30: CONFORT (3) | L30: CONFORT (3)
B65: Ces tableaux permettent de d'afficher dans cet onglet le nombre de quais en temps réel sans avoir besoin de rentrer la gare dans Profils de Gare. Ces tableaux sont reliés à l'onglet "Dimensionnement des quais" | C65: Profil de la gare
C66: Type de gare simulée | D66: =D1 -> Saisie semi-libre | E66: Saisie semi-libre | F66: Saisie semi-libre | G66: Saisie semi-libre | H66: Saisie semi-libre | I66: Saisie semi-libre | J66: Saisie semi-libre | K66: Gare Mass-Transit Francilienne | L66: Gare C
C67: Type de gare simulée en saisie semi-libre -> | D67: =#REF! ->  | E67: =#REF! ->  | F67: =#REF! ->  | G67: =#REF! ->  | H67: =#REF! ->  | I67: =#REF! ->  | J67: =#REF! ->  | K67: =#REF! ->  | L67: =#REF! -> 
C69: Données d'entrée | D69: Valeur | E69: Valeur | F69: Valeur | G69: Valeur | H69: Valeur | I69: Valeur | J69: Valeur | K69: Valeur | L69: Valeur
C70: Nombre de départs trains conventionnés régionaux | D70: =D6 -> 5000 | E70: 1600 | F70: 50000 | G70: 42000 | H70: 10000 | I70: 40000 | J70: 15000 | K70: 60000 | L70: 5000
C71: Nombre de départs trains autres | D71: =D7 -> 18000 | E71: 5500 | F71: 6000 | G71: 15000 | H71: 5000 | I71: 16000 | J71: 250 | K71: 30 | L71: 40
C72: Nombre de départs trains totaux | D72: =D70+D71 -> 23000 | E72: 7100 | F72: =F70+F71 -> 56000 | G72: 57000 | H72: 15000 | I72: 56000 | J72: 15250 | K72: 60030 | L72: 5040
C73: Ratio départs trains par voies Gare Passage | D73: ='Dimensionnement des quais'!$B9 -> 5000 | E73: ='Dimensionnement des quais'!$B9 -> 5000 | F73: ='Dimensionnement des quais'!$B9 -> 5000 | G73: ='Dimensionnement des quais'!$B9 -> 5000 | H73: ='Dimensionnement des quais'!$B9 -> 5000 | I73: ='Dimensionnement des quais'!$B9 -> 5000 | J73: ='Dimensionnement des quais'!$B9 -> 5000 | K73: ='Dimensionnement des quais'!$B9 -> 5000 | L73: ='Dimensionnement des quais'!$B9 -> 5000
C74: Ratio départs trains par voies Gare Terminus | D74: ='Dimensionnement des quais'!$B10 -> 2500 | E74: ='Dimensionnement des quais'!$B10 -> 2500 | F74: ='Dimensionnement des quais'!$B10 -> 2500 | G74: ='Dimensionnement des quais'!$B10 -> 2500 | H74: ='Dimensionnement des quais'!$B10 -> 2500 | I74: ='Dimensionnement des quais'!$B10 -> 2500 | J74: ='Dimensionnement des quais'!$B10 -> 2500 | K74: ='Dimensionnement des quais'!$B10 -> 2500 | L74: ='Dimensionnement des quais'!$B10 -> 2500
C75: Ratio départs trains par voies Gare Mass Transit | D75: ='Dimensionnement des quais'!$B11 -> 20000 | E75: ='Dimensionnement des quais'!$B11 -> 20000 | F75: ='Dimensionnement des quais'!$B11 -> 20000 | G75: ='Dimensionnement des quais'!$B11 -> 20000 | H75: ='Dimensionnement des quais'!$B11 -> 20000 | I75: ='Dimensionnement des quais'!$B11 -> 20000 | J75: ='Dimensionnement des quais'!$B11 -> 20000 | K75: ='Dimensionnement des quais'!$B11 -> 20000 | L75: ='Dimensionnement des quais'!$B11 -> 20000
C76: Type de gare | D76: =D10 -> Passage | E76: Passage | F76: Passage | G76: Terminus | H76: Passage | I76: Passage | J76: Passage | K76: Passage | L76: Passage
C77: Quai Latéral | D77: =IF(D76="Passage",1,0) -> 1 | E77: 1 | F77: =IF(F76="Passage",1,0) -> 1 | G77: 0 | H77: 1 | I77: 1 | J77: 1 | K77: 1 | L77: 1
C78: Nombre de voies | D78: =IF(OR(D66="Gare Mass-Transit Francilienne",D67="Gare Mass-Transit Francilienne"),MAX(ROUND(D72/D75,0),2),IF(D76="Passage",MAX(ROUND(D72/D73,0),2),MAX(ROUND(D72/D74,0),2))) -> 
C79: Nombre de quais | D79: =MAX(ROUNDUP(D77+(D78-D77)/2,0),2) ->  | F79: =MAX(ROUNDUP(F77+(F78-F77)/2,0),2) -> 
C80: Type de répartition des quais | D80: ='Dimensionnement des quais'!$B16 -> % quais par type de gare | E80: ='Dimensionnement des quais'!$B16 -> % quais par type de gare | F80: ='Dimensionnement des quais'!$B16 -> % quais par type de gare | G80: ='Dimensionnement des quais'!$B16 -> % quais par type de gare | H80: ='Dimensionnement des quais'!$B16 -> % quais par type de gare | I80: ='Dimensionnement des quais'!$B16 -> % quais par type de gare | J80: ='Dimensionnement des quais'!$B16 -> % quais par type de gare | K80: ='Dimensionnement des quais'!$B16 -> % quais par type de gare | L80: ='Dimensionnement des quais'!$B16 -> % quais par type de gare
C81: % départs trains conventionnés régionaux | D81: =D70/D72 -> 0.2173913043 | E81: 0.2253521127 | F81: =F70/F72 -> 0.8928571429 | G81: 0.7368421053 | H81: 0.6666666667 | I81: 0.7142857143 | J81: 0.9836065574 | K81: 0.9995002499 | L81: 0.9920634921
C82: % départs trains autres | D82: =D71/D72 -> 0.7826086957 | E82: 0.7746478873 | F82: =F71/F72 -> 0.1071428571 | G82: 0.2631578947 | H82: 0.3333333333 | I82: 0.2857142857 | J82: 0.01639344262 | K82: 0.0004997501249 | L82: 0.007936507937
C83: % quais 400 (répartition par type de gare) | D83: =IF(D66="Saisie semi-libre",VLOOKUP(D67,$C$91:$D$98,2,0),VLOOKUP(D66,$C$91:$D$98,2,0)) ->  | K83: 0.05 | L83: 0.05
C84: Nombre minimum de quais 400m (si répartition par nb de départs trains) | D84: =IF(IF(D82<$D110,0,ROUND(IF(D66="Saisie semi-libre",VLOOKUP(D67,$C$101:$D$108,2,0),VLOOKUP(D66,$C$101:$D$108,2,0))*D79,0))=1,2,IF(D82<$D110,0,ROUND(IF(D66="Saisie semi-libre",VLOOKUP(D67,$C$101:$D$108,2,0),VLOOKUP(D66,$C$101:$D$108,2,0))*D79,0))) ->  | J84: 0 | K84: 0 | L84: 0
C85: Nombre de quais 400m | D85: =IF(D82<$D110,0,(IF(IF(D80="% quais par type de gare",ROUND(D83*D79,0),MAX(ROUND(D82*D79,0),D84))=1,2,IF(D80="% quais par type de gare",ROUND(D83*D79,0),MAX(ROUND(D82*D79,0),D84))))) ->  | F85: =IF(F82<$D110,0,(IF(IF(F80="% quais par type de gare",ROUND(F83*F79,0),MAX(ROUND(F82*F79,0),F84))=1,2,IF(F80="% quais par type de gare",ROUND(F83*F79,0),MAX(ROUND(F82*F79,0),F84))))) ->  | J85: 0 | K85: 0 | L85: 0
C86: Nombre de quais 250m | D86: =D79-D85 ->  | F86: =F79-F85 -> 
C90: % quais 400
C91: Gare TGA Parisienne | D91: ='Dimensionnement des quais'!$B27 -> 0.6
C92: Gare TGA Autres | D92: ='Dimensionnement des quais'!$B28 -> 0.8
C93: Nouvelle Gare A | D93: ='Dimensionnement des quais'!$B29 -> 0.8
C94: Gare A Terminus | D94: ='Dimensionnement des quais'!$B30 -> 0.8
C95: Gare A Passage | D95: ='Dimensionnement des quais'!$B31 -> 0.8
C96: Gare Mass-Transit Francilienne | D96: ='Dimensionnement des quais'!$B32 -> 0.05
C97: Gare B | D97: ='Dimensionnement des quais'!$B33 -> 0.3
C98: Gare C | D98: ='Dimensionnement des quais'!$B34 -> 0.05
C100: % minimum de quais 400 (dans le cas de la répartition par nombre de départs trains)
C101: Gare TGA Parisienne | D101: ='Dimensionnement des quais'!$B37 -> 0.4
C102: Gare TGA Autres | D102: ='Dimensionnement des quais'!$B38 -> 0.4
C103: Nouvelle Gare A | D103: ='Dimensionnement des quais'!$B39 -> 0.5
C104: Gare A Terminus | D104: ='Dimensionnement des quais'!$B40 -> 0.5
C105: Gare A Passage | D105: ='Dimensionnement des quais'!$B41 -> 0.5
C106: Gare Mass-Transit Francilienne | D106: ='Dimensionnement des quais'!$B42 -> 0
C107: Gare B | D107: ='Dimensionnement des quais'!$B43 -> 0
C108: Gare C | D108: ='Dimensionnement des quais'!$B44 -> 0
C110: Seuil d'application du % | D110: ='Dimensionnement des quais'!$B46 -> 0.05

Sheet Paramètres hyperpointe
A1: Paramètre | B1: Valeur par défaut | C1: Valeur | E1: Légende | F1: Explication
A2: CALCUL HYPERPOINTE | F2: Données du profil de gare
A3: Ratio d'emport (ratio du nombre de voyageurs par train du service A et du nombre de voyageurs du service B) | B3: 1 | C3: 1 | F3: Paramètres modifiables
A4: Temps déambulation moyen (départ) en min (Conventionné régional) | B4: 10 | C4: 10 | F4: Calcul
A5: Temps déambulation moyen (départ) en min (Autres) | B5: 20 | C5: 20
A6: Temps déambulation moyen (arrivée) en min | B6: 5 | C6: 5
A7: Temps moyen de présence dans la gare d'un non voyageur (min) | B7: =VLOOKUP(A7,'Profil de gare'!$D$1:$N$68,2,0) -> 10 | C7: 10
A8: Ratio multiplicatif jour de pointe par rapport à moyenne par jour | B8: 1.3 | C8: 1.3
A9: Ratio multiplicatif heure de pointe par rapport à l'heure moyenne | B9: 2.3 | C9: 2.3
A10: Ratio multiplicatif minute de pointe par rapport à minute moyenne | B10: 2.1 | C10: 2.1
A11: %Voyageur départ minute de pointe | B11: 0.75 | C11: 0.75
A12: %Voyageur arrivée minute de pointe | B12: 0.25 | C12: 0.25

Sheet Dimensionnement du bâtiment (hidden)
A1: Données d'entrée | B1: Valeur | C1: Description | D1: Avertissement d'utilisation | E1: Explications nécessaires | G1: INTRODUCTION
E2: Gare A Passage
A3: PROFIL DE LA GARE | G3: PROFIL DE GARES
A4: ='Profil de gare'!D4 -> Nombre de voyageurs (annuel) | B4: =VLOOKUP(A4,'Profil de gare'!$D$4:$E$36,2,0) -> 2000000 | C4: Issu profil des gares | E4: 761941.0448 | G4: COÛT DE LA GARE
A5: ='Profil de gare'!D5 -> Nombre de non voyageurs (annuel) | B5: =VLOOKUP(A5,'Profil de gare'!$D$4:$E$36,2,0) -> 300000 | C5: Issu profil des gares | E5: 342873.0892 | G5: CALCUL DU TARIF
A6: ='Profil de gare'!D36 -> Flux à l'hyperpointe (nb voy minute) | B6: =VLOOKUP(A6,'Profil de gare'!$D$4:$E$36,2,0) -> 365.9354722 | C6: Issu profil des gares | E6: 0 | G6: MODELISATION
A7: ='Profil de gare'!D17 -> Nombre de prestataires G&C | B7: =VLOOKUP(A7,'Profil de gare'!$D$4:$E$36,2,0) -> 2 | C7: Issu profil des gares | E7: 4000
A8: ='Profil de gare'!D16 -> Nombre de transporteurs | B8: =VLOOKUP(A8,'Profil de gare'!$D$4:$E$36,2,0) -> 1 | C8: Issu profil des gares | E8: 2
A9: ='Profil de gare'!D8 -> Nombre de quais | B9: =VLOOKUP(A9,'Profil de gare'!$D$4:$E$36,2,0) -> 3 | C9: Issu profil des gares
A10: ='Profil de gare'!D14 -> Longueur moyenne des quais | B10: =VLOOKUP(A10,'Profil de gare'!$D$4:$E$36,2,0) -> 350 | C10: Issu profil des gares
A11: ='Profil de gare'!D26 -> Salon Grands Voyageurs (SNCF) | B11: =VLOOKUP(A11,'Profil de gare'!$D$4:$E$36,2,0) -> Oui | C11: Issu profil des gares | E11: 0
A13: MODULATION DES SURFACES - NIVEAUX DE SERVICE
A14: Niveau de service - Hall Voyageur | B14: CONFORT (3) | C14: =INDEX('Niveaux de services'!$A$1:$Q$9,MATCH(B14,'Niveaux de services'!$A$1:$A$9,0),(MATCH(A14&C$1,'Niveaux de services'!$A$2:$Q$2&'Niveaux de services'!$A$4:$Q$4,0))) -> Echelle B (échelle de densité de personnes de Fruin) | D14: Les niveaux de service sont à modifier uniquement dans le cas où l'on a choisi le profil de gare "semi-libre" | E14: Ce niveau de service module la surface du hall voyageur
A15: Niveau de service - Surface Commerciale non régulée | B15: STANDARD (2) | C15: =INDEX('Niveaux de services'!$A$1:$Q$9,MATCH(B15,'Niveaux de services'!$A$1:$A$9,0),(MATCH(A15&C$1,'Niveaux de services'!$A$2:$Q$2&'Niveaux de services'!$A$4:$Q$4,0))) -> Faible potentiel commercial | E15: 3
A16: Niveau de service - Espace de vente ferroviaire | B16: CONFORT (3) | C16: =INDEX('Niveaux de services'!$A$1:$Q$9,MATCH(B16,'Niveaux de services'!$A$1:$A$9,0),(MATCH(A16&C$1,'Niveaux de services'!$A$2:$Q$2&'Niveaux de services'!$A$4:$Q$4,0))) -> Espace de vente moyen | E16: 2
A17: Niveau de service - Locaux G&C et Presta | B17: ECONOMIQUE (1) | C17: =INDEX('Niveaux de services'!$A$1:$Q$9,MATCH(B17,'Niveaux de services'!$A$1:$A$9,0),(MATCH(A17&C$1,'Niveaux de services'!$A$2:$Q$2&'Niveaux de services'!$A$4:$Q$4,0))) -> Pas de locaux | E17: 2
A18: Niveau de service - Locaux EF | B18: ECONOMIQUE (1) | C18: =INDEX('Niveaux de services'!$A$1:$Q$9,MATCH(B18,'Niveaux de services'!$A$1:$A$9,0),(MATCH(A18&C$1,'Niveaux de services'!$A$2:$Q$2&'Niveaux de services'!$A$4:$Q$4,0))) -> Pas de locaux | E18: Passage
A19: Niveau de service - Voiries | B19: PREMIUM (4) | C19: =INDEX('Niveaux de services'!$A$1:$Q$9,MATCH(B19,'Niveaux de services'!$A$1:$A$9,0),(MATCH(A19&C$1,'Niveaux de services'!$A$2:$Q$2&'Niveaux de services'!$A$4:$Q$4,0))) -> Très grandes voiries | E19: 19
A20: Niveau de service - Parking | B20: ECONOMIQUE (1) | C20: =INDEX('Niveaux de services'!$A$1:$Q$9,MATCH(B20,'Niveaux de services'!$A$1:$A$9,0),(MATCH(A20&C$1,'Niveaux de services'!$A$2:$Q$2&'Niveaux de services'!$A$4:$Q$4,0))) -> Pas de parking | E20: 2
E21: 1
A22: DONNEES ARCHITECTURALES | E22: 1
A23: Hauteur de plafond | B23: 10 | C23: en m | D23: Ces éléments sont à paramétrer uniquement dans le cas où l'on a choisi le profil "semi-libre" | E23: La hauteur de plafond est très variable. A titre d'exemple : Bordeaux Saint Jean (TGA) 26 mètres, Orléans (A) 17 mètres, des plus petites gares autour de 5m | P23: <
A24: Longueur du bâtiment | B24: =SQRT(B38)*1.5 -> 53.01485496 | C24: Racine carrée de la surface du bâtiment * 1,5 | E24: 0
A25: Largeur du bâtiment | B25: =B38/B24 -> 23.56215776 | C25: Surface bâtiment divisée par longueur, en m
A26: % de façades en verre | B26: 0.6 | E26: Ce paramètre définit le pourcentage des façades en verre. On sait que c'est en moyenne 40% pour des bureaux (source consultant spécialisé), cela peut être très variable pour une gare
A27: % de la toiture en verre | B27: 0.2
A28: % de façades en bardage | B28: =1-B26 -> 0.4 | C28: 1 - % de façades en verre
A29: % de la toiture en bardage | B29: =1-B27 -> 0.8 | C29: 1 - % de la toiture en verre
A30: Largeur des quais | B30: ='Paramètres UF'!C76 -> 5.5 | C30: http://cpdp.debatpublic.fr/cpdp-regl/file/172/conception_des_gares_et_flux_bgig-mars2012b299.pdf?token=_eM3uOtA (page 19)
A33: CALCUL DES SURFACES | C33: Décomposition de la somme
A34: Surface totale | B34: =B35+B36+B37 -> 7961.002659 | C34: parking + quais + voiries + bâtiment | D34: Ces valeurs sont calculées à partir des niveaux de services sélectionnés et du calcul de l'hyperpointe. Ces valeurs sont ensuite reportées dans l'onglet Profil de Gares pour le profil "semi-libre".
A35: Surface Parking | B35: =VLOOKUP(B20,'Niveaux de services'!$A$1:$P$8,16,0) -> 0
A36: Surface des quais | B36: =B10*B9*B30 -> 5775
A37: Surface voiries + bâtiment | B37: =B39+B38 -> 2186.002659 | C37: voiries + bâtiment
A38: Surface bâtiment voyageur | B38: =B41+B42 -> 1249.144376 | C38: hall voyageur + commerciale + locaux
A39: Surface voiries | B39: =B38*VLOOKUP(B19,'Niveaux de services'!$A$1:$P$8,12,0) -> 936.8582823
A40: Surface cœur de gare | B40: =B41+B43 -> 1229.144376 | C40: hall voyageur + commerciale
A41: Surface hall voyageur | B41: =B6*VLOOKUP(B14,'Niveaux de services'!$A$1:$P$8,2,0) -> 1006.322549
A42: Surface commerciale + locaux | B42: =B43+B48 -> 242.8218277 | C42: commerciale + locaux
A43: Surface commerciale | B43: =B45+B44 -> 222.8218277 | C43: commerciale non régulée + commerciale régulée
A44: Surface commerciale non régulée | B44: =B41*VLOOKUP(B15,'Niveaux de services'!$A$1:$P$8,4,0) -> 100.6322549
A45: Surface commerciale régulée | B45: =B46+B47 -> 122.1895728 | C45: espace de vente ferroviaire + salon GV
A46: Surface commerciale régulée - Espace de vente ferroviaire | B46: =B41*VLOOKUP(B16,'Niveaux de services'!$A$1:$P$8,6,0) -> 100.6322549
A47: Surface commerciale régulée - Salon Grands Voyageurs | B47: =IF(B11="Oui",'Niveaux de services'!B32,0) -> 21.55731795
A48: Surface locaux | B48: =B49+B50+B51 -> 20 | C48: locaux G&C et Presta + COE + locaux EF
A49: Surface locaux G&C et Presta | B49: =VLOOKUP(B17,'Niveaux de services'!$A$1:$P$8,8,0) -> 0
A50: Surface Centre Opérationnel Escale | B50: =INDEX('Profil de gare'!$F$1:$M$68,59,MATCH('Profil de gare'!E2,'Profil de gare'!$F$1:$M$1,0)) -> 20
A51: Surface locaux EF | B51: =VLOOKUP(B18,'Niveaux de services'!$A$1:$P$8,10,0) -> 0
A52: Surface locaux et commerces régulés | B52: =B45+B48 -> 142.1895728 | C52: locaux + commerciale régulée
A53: Surface locaux et commerces non régulés | B53: =B44 -> 100.6322549 | C53: commerciale non régulée
A54: Surface des façades | B54: =2*B23*B25+2*B24*B23 -> 1531.540254 | E54: La surface des façades est calculée à partir de la hauteur de plafond et de la longueur et largeur du bâtiment voyageur
A55: Surface de la toiture | B55: =B38 -> 1249.144376 | C55: bâtiment voyageur | E55: La surface de la toiture est identique à celle du sol puisqu'on a un bâtiment rectangulaire
A56: Surface des façades en verre | B56: =B54*B26 -> 918.9241527
A57: Surface des façades en bardage | B57: =B54*B28 -> 612.6161018
A58: Surface de la toiture en verre | B58: =B55*B27 -> 249.8288753
A59: Surface de la toiture en bardage | B59: =B29*B55 -> 999.3155011

Sheet Dimensionnement des quais (hidden)
A1: Profil de la gare
A2: Type de gare simulée | B2: ='Profil de gare'!A1 -> Saisie semi-libre
A3: Type de gare simulée en saisie semi-libre -> | B3: ='Profil de gare'!E2 -> Gare A Passage
A5: Données d'entrée | B5: Valeur | C5: Sources /Description
A6: Nombre de départs trains conventionnés régionaux | B6: ='Profil de gare'!B6 -> 15000 | C6: Onglet Profil de Gares
A7: Nombre de départs trains autres | B7: ='Profil de gare'!B7 -> 5000 | C7: Onglet Profil de Gares
A8: Nombre de départs trains totaux | B8: =B6+B7 -> 20000 | C8: Onglet Profil de Gares
A9: Ratio départs trains par voies Gare Passage | B9: ='Paramètres UF'!C56 -> 5000 | C9: Tableau ci-contre, 1 voie pour 4463 départs trains
A10: Ratio départs trains par voies Gare Terminus | B10: ='Paramètres UF'!C57 -> 2500 | C10: Tableau ci-contre, 1 voir pour 2817 départs trains
A11: Ratio départs trains par voies Gare Mass Transit | B11: ='Paramètres UF'!C58 -> 20000
A12: Type de gare | B12: ='Profil de gare'!B18 -> Passage
A13: Quai Latéral | B13: =IF(B12="Passage",1,0) -> 1 | C13: Une gare passage a un quai latéral contrairement à une gare Terminus
A14: Nombre de voies | B14: =IF(OR(B2="Gare Mass-Transit Francilienne",B3="Gare Mass-Transit Francilienne"),MAX(ROUND(B8/B11,0),2),IF(B12="Passage",MAX(ROUND(B8/B9,0),2),MAX(ROUND(B8/B10,0),2))) -> 4
A15: Nombre de quais | B15: =MAX(ROUNDUP(B13+(B14-B13)/2,0),2) -> 3
A16: Type de répartition des quais | B16: ='Profil de gare'!E25 -> % quais par type de gare | C16: Cette liste déroulante permet de choisir entre une répartition des quais par % de départs trains % de quais 400 selon les données de l'onglet longueur des quais
A17: % départs trains conventionnés régionaux | B17: =B6/B8 -> 0.75
A18: % départs trains autres | B18: =B7/B8 -> 0.25
A19: % quais 400 (répartition par type de gare) | B19: =IF(B2="Saisie semi-libre",VLOOKUP(B3,A27:B34,2,0),VLOOKUP(B2,A27:B34,2,0)) -> 0.8
A20: Nombre minimum de quais 400m (si répartition par nb de départs trains) | B20: =IF(IF(B18<B46,0,ROUND(IF(B2="Saisie semi-libre",VLOOKUP(B3,A37:B44,2,0),VLOOKUP(B2,A37:B44,2,0))*B15,0))=1,2,IF(B18<B46,0,ROUND(IF(B2="Saisie semi-libre",VLOOKUP(B3,A37:B44,2,0),VLOOKUP(B2,A37:B44,2,0))*B15,0))) -> 2
A21: Nombre de quais 400m | B21: =IF(B18<B46,0,(IF(IF(B16="% quais par type de gare",ROUND(B19*B15,0),MAX(ROUND(B18*B15,0),B20))=1,2,IF(B16="% quais par type de gare",ROUND(B19*B15,0),MAX(ROUND(B18*B15,0),B20))))) -> 2 | C21: Il est à noter que si un seul quai 400m est généré, un second est automatique ajouté
A22: Nombre de quais 250m | B22: =B15-B21 -> 1
A26: % quais 400
A27: Gare TGA Parisienne | B27: ='Paramètres UF'!C59 -> 0.6
A28: Gare TGA Autres | B28: ='Paramètres UF'!C60 -> 0.8
A29: Nouvelle Gare A | B29: ='Paramètres UF'!C61 -> 0.8
A30: Gare A Terminus | B30: ='Paramètres UF'!C62 -> 0.8
A31: Gare A Passage | B31: ='Paramètres UF'!C63 -> 0.8
A32: Gare Mass-Transit Francilienne | B32: ='Paramètres UF'!C64 -> 0.05
A33: Gare B | B33: ='Paramètres UF'!C65 -> 0.3
A34: Gare C | B34: ='Paramètres UF'!C66 -> 0.05
A36: % minimum de quais 400 (dans le cas de la répartition par nombre de départs trains)*
A37: Gare TGA Parisienne | B37: ='Paramètres UF'!C67 -> 0.4 | C37: Ces données sont paramétrables par l'utilisateur. Les données rentrées permettent d'avoir un nombre de quais suffisant pour les gares TGA et A
A38: Gare TGA Autres | B38: ='Paramètres UF'!C68 -> 0.4
A39: Nouvelle Gare A | B39: ='Paramètres UF'!C69 -> 0.5
A40: Gare A Terminus | B40: ='Paramètres UF'!C70 -> 0.5
A41: Gare A Passage | B41: ='Paramètres UF'!C71 -> 0.5
A42: Gare Mass-Transit Francilienne | B42: ='Paramètres UF'!C72 -> 0
A43: Gare B | B43: ='Paramètres UF'!C73 -> 0
A44: Gare C | B44: ='Paramètres UF'!C74 -> 0
A46: Seuil d'application du % | B46: ='Paramètres UF'!C75 -> 0.05 | C46: Si le % de départs trains autres est inférieur au seuil ci-contre, tous les quais seront de 250m peu importe le type de gare. Ce seuil permet de limiter l'effet de bord d'un oubli du changement du type de gare simulé en saisie semi-libre (notamment dans le cas de l'utilisation des macros)

Sheet Modulation des prix du bâtiment (hidden)
A1: Données d'entrée | B1: Valeur | C1: Description | D1: Avertissement d'utilisation | F1: INTRODUCTION
A2: MODULATION DES PRIX DU BÂTIMENT
A3: Région choisie | B3: ='Profil de gare'!E70 -> Auvergne-Rhône-Alpes | C3: 16 Régions disponibles pour le calcul du Foncier | D3: Ces éléments sont à paramétrer indépendamment du profil de gare sélectionné | F3: PROFIL DE GARES
A4: Fourchette de prix sélectionnée bâtiment | B4: Fourchette moyenne - gare | C4: 5 fourchettes de prix sont disponibles, la fourchette sélectionnée est utilisée dans le calcul du coût de la gare (Il est recommandé d'utiliser la fourchette moyenne) | F4: COÛT DE LA GARE
A5: Fourchette de prix sélectionnée terrain | B5: ='Profil de gare'!E72 -> Médiane | C5: 4 prix du terrain au m² différents sont proposés et celui utilisé dans le coût du foncier doit être choisi ici | F5: CALCUL DU TARIF
A6: Niveau architectural - Architecture secondaire | B6: CONFORT (3) | C6: Cette option module le prix du second œuvre architectural indépendamment de la fourchette de prix sélectionnée | F6: MODELISATION
A7: OPEX Rénovation du bâtiment (% Capex construction) | B7: ='Paramètres UF'!C3 -> 0
A8: Choix entre passerelle ou souterrain | B8: ='Profil de gare'!E73 -> Souterrain | C8: Ce paramètre permet de compter le coût de construction des passerelles et bâtiment.
C15: Fourchette moyenne - gare

Sheet Calcul Hyperpointe Voyageur (hidden)
A1: Données d'entrée | B1: Valeur | C1: Sources | E1: INTRODUCTION | H1: Source : SNCF DATA | I1: Temps de précaution (en minute) | R1: Hypothèses | S1: Valeur | T1: Source
A2: VOYAGEURS | I2: 52.5 | J2: 37.5 | K2: 25 | L2: 15 | M2: 7.5 | N2: 2.5 | O2: Temps précaution moyen | P2: Temps d'attente/déambulation moyen | R2: Temps d'accès de la gare vers le train | S2: 5 | T2: Hypothèse Wavestone | U2: Ces hypothèses interviennent pour calculer le temps d'attente en fonction du temps de précaution. Selon la précaution prise, nous estimons que les voyageurs ne partent pas au même vers le train dès lors que la voie est affichée.
A3: Nombre de voyageurs (annuel) | B3: =VLOOKUP(A3,'Profil de gare'!$D$1:$N$68,2,0) -> 2000000 | C3: Onglet Profil de gares | E3: PROFIL DE GARES | I3: Temps d'attente/déambulation | R3: Délai d'affichage de la voie du train avant départ | S3: 20 | T3: Documents Grenoble
A4: Nombre de départs trains conventionnés régionaux | B4: =VLOOKUP(A4,'Profil de gare'!$D$1:$N$68,2,0) -> 15000 | C4: Onglet Profil de gares | E4: COÛT DE LA GARE | H4: Gare | I4: =I2-S3+S2 -> 37.5 | J4: =J2-S3+S2 -> 22.5 | K4: =K2-S4 -> 15 | L4: =L2-S5 -> 10 | M4: =M2-N2 -> 5 | N4: 2.5 | R4: Temps dans le train avant départ pour ceux avec 25mn de précaution | S4: 10 | T4: Hypothèse Wavestone
A5: Nombre de départs trains autres | B5: =VLOOKUP(A5,'Profil de gare'!$D$1:$N$68,2,0) -> 5000 | C5: Onglet Profil de gares | E5: CALCUL DU TARIF | H5: Angoulême | I5: 0.44 | J5: 0.22 | K5: 0.16 | L5: 0.17 | M5: 0.01 | N5: 0 | O5: =SUMPRODUCT(I5:N5,$I$2:$N$2) -> 37.975 | P5: =SUMPRODUCT(I5:N5,$I$4:$N$4) -> 25.6 | R5: Temps dans le train avant départ pour ceux avec 15mn de précaution | S5: 5 | T5: Hypothèse Wavestone
A6: Nombre de voyageurs moyen / jour | B6: =VLOOKUP(A6,'Profil de gare'!$D$1:$N$68,2,0) -> 5479.452055 | C6: Onglet Profil de gares | E6: MODELISATION | H6: Paris Gare de Lyon Hall 1 & 2 | I6: 0.32 | J6: 0.33 | K6: 0.24 | L6: 0.11 | M6: 0 | N6: 0 | O6: 36.825 | P6: 24.125
A7: Amplitude horaire d’ouverture de la gare | B7: =VLOOKUP(A7,'Profil de gare'!$D$1:$N$68,2,0) -> 19 | C7: Onglet Profil de gares | H7: Marne-la-Vallée Chessy | I7: 0.32 | J7: 0.34 | K7: 0.17 | L7: 0.14 | M7: 0.04 | N7: 0 | O7: 36.2 | P7: 23.8
A8: Ratio d'emport (ratio du nombre de voyageurs par train SLO et du nombre de voyageurs par train conventionné) | B8: ='Paramètres hyperpointe'!C3 -> 1 | H8: Laval | I8: 0.46 | J8: 0.1 | K8: 0.21 | M8: 0.17 | N8: 0.07 | O8: 34.6 | P8: 23.675
H9: Massy TGV | I9: 0.22 | J9: 0.3 | K9: 0.26 | L9: 0.19 | M9: 0.03 | N9: 0 | O9: 32.375 | P9: 20.95
A10: Ratio multiplicatif jour de pointe par rapport à moyenne par jour | B10: ='Paramètres hyperpointe'!C8 -> 1.3 | H10: Dijon | I10: 0.23 | J10: 0.21 | K10: 0.27 | L10: 0.25 | M10: 0.04 | N10: 0.01 | O10: 30.775 | P10: 20.125
A11: Ratio multiplicatif heure de pointe par rapport à l'heure moyenne | B11: ='Paramètres hyperpointe'!C9 -> 2.3 | H11: Nantes | I11: 0.25 | J11: 0.19 | K11: 0.25 | L11: 0.24 | M11: 0.05 | N11: 0.03 | O11: 30.55 | P11: 20.125 | R11: PARCOURS VOYAGEURS AVEC UN TEMPS DE PRECAUTION DE 52,5 MIN
A12: Ratio multiplicatif minute de pointe par rapport à minute moyenne | B12: ='Paramètres hyperpointe'!C10 -> 2.1 | H12: Paris Gare du Nord | I12: 0.16 | J12: 0.36 | K12: 0.21 | L12: 0.18 | M12: 0.09 | N12: 0 | O12: 30.525 | P12: 19.5 | R12: Etape | S12: heure
A13: %Voyageur départ minute de pointe | B13: ='Paramètres hyperpointe'!C11 -> 0.75 | H13: Lyon Part Dieu | I13: 0.26 | J13: 0.15 | K13: 0.25 | L13: 0.22 | M13: 0.07 | N13: 0.04 | O13: 29.45 | P13: 19.525 | R13: Arrivée du voyageur dans la gare | S13: 16h00
A14: %Voyageur arrivée minute de pointe | B14: ='Paramètres hyperpointe'!C12 -> 0.25 | H14: Aix-en-Provence TGV | I14: 0.2 | J14: 0.16 | K14: 0.28 | L14: 0.2 | M14: 0.08 | N14: 0.07 | O14: 27.275 | P14: 17.875 | R14: Affichage de la voie du train avant départ | S14: 16h33
A15: % de voyageurs conventionnés régionaux | B15: =1 - B16 -> 0.75 | H15: Avignon TGV | I15: 0.24 | J15: 0.09 | K15: 0.23 | L15: 0.18 | M15: 0.16 | N15: 0.09 | O15: 25.85 | P15: 17.3 | R15: Arrivée dans le train du voyageur | S15: 16h38
A16: % de voyageurs autres | B16: =(B5*B8)/(B8*B5+B4) -> 0.25 | H16: Lorraine TGV | I16: 0.17 | J16: 0.09 | K16: 0.26 | L16: 0.29 | M16: 0.16 | N16: 0.04 | O16: 24.45 | P16: 16.1 | R16: Départ du train | S16: 16h53
A17: Temps déambulation moyen (départ) en min (Conventionné régional) | B17: ='Paramètres hyperpointe'!C4 -> 10 | H17: Paris Austerlitz | I17: 0.18 | J17: 0.14 | K17: 0.2 | L17: 0.23 | M17: 0.07 | N17: 0.18 | O17: 24.125 | P17: 16
A18: Temps déambulation moyen (départ) en min (Autres) | B18: ='Paramètres hyperpointe'!C5 -> 20 | H18: Rouen Rive Droite | I18: 0.24 | J18: 0.08 | K18: 0.15 | L18: 0.18 | M18: 0.15 | N18: 0.21 | O18: 23.7 | P18: 16.125 | R18: PARCOURS VOYAGEURS AVEC UN TEMPS DE PRECAUTION DE 25 MIN
A19: Temps déambulation moyen (arrivée) en min | B19: ='Paramètres hyperpointe'!C6 -> 5 | H19: Marseille Saint-Charles | I19: 0.19 | J19: 0.15 | K19: 0.12 | L19: 0.24 | M19: 0.14 | N19: 0.17 | O19: 23.675 | P19: 15.825 | R19: Etape | S19: heure
H20: Valence TGV Rhône-Alpes Sud | I20: 0.14 | J20: 0.14 | K20: 0.23 | L20: 0.25 | M20: 0.13 | N20: 0.12 | O20: 23.375 | P20: 15.3 | R20: Arrivée du voyageur dans la gare | S20: 16h00
A21: Nombre de voyageurs moyen / heure au jour de pointe | B21: =(B6*B10)/B7 -> 374.9098774 | H21: Bayonne | I21: 0.13 | J21: 0.17 | K21: 0.16 | L21: 0.33 | M21: 0.14 | N21: 0.06 | O21: 23.35 | P21: 15.25 | R21: Affichage de la voie du train avant départ | S21: 16h05
A22: Nombre de voyageurs par heure de pointe | B22: =B21*B11 -> 862.2927181 | H22: Montpellier Saint-Roch | I22: 0.2 | J22: 0.11 | K22: 0.14 | L22: 0.23 | M22: 0.14 | N22: 0.17 | O22: 23.05 | P22: 15.5 | R22: Arrivée dans le train du voyageur | S22: 16h15
A23: Nombre de voyageurs moyen / minute à l'heure de pointe | B23: =B22/60 -> 14.3715453 | H23: Tours | I23: 0.16 | J23: 0.1 | K23: 0.25 | L23: 0.21 | M23: 0.14 | N23: 0.13 | O23: 22.925 | P23: 15.125 | R23: Départ du train | S23: 16h25
A24: Nouveaux voyageurs par minute heure de pointe à l'hyper pointe | B24: =B23*B12 -> 30.18024513 | H24: Cherbourg | I24: 0.12 | J24: 0.11 | K24: 0.22 | L24: 0.29 | M24: 0.17 | N24: 0.1 | O24: 21.8 | P24: 14.275
A25: dont voyageurs départ | B25: =B24*B13 -> 22.63518385 | H25: Lens | I25: 0.22 | J25: 0.08 | K25: 0.11 | L25: 0.17 | M25: 0.14 | N25: 0.27 | O25: 21.575 | P25: 14.775 | R25: TEMPS DE DEAMBULATION MOYEN PAR TYPE DE VOYAGEUR
A26: dont voyageurs départ conventionné régional | B26: =B25*B15 -> 16.97638789 | H26: Poitiers | I26: 0.17 | J26: 0.09 | K26: 0.18 | L26: 0.18 | M26: 0.2 | N26: 0.18 | O26: 21.45 | P26: 14.35 | R26: Etape | S26: heure
A27: dont voyageurs départ autres | B27: =B25*B16 -> 5.658795963 | H27: Caen | I27: 0.1 | J27: 0.12 | K27: 0.24 | L27: 0.29 | M27: 0.14 | N27: 0.11 | O27: 21.425 | P27: 13.925 | R27: Pourcentage de autres (TGV) gare A | S27: ='Profil de gare'!$I$7/('Profil de gare'!$I$6+'Profil de gare'!$I$7) ->  | T27: Cette hypothèse considère qu'il y'a autant de voyageurs dans un TGV que dans un TER, il faut donc rajouter un paramètre.
A28: dont voyageurs arrivée | B28: =B24*B14 -> 7.545061283 | H28: Nancy | I28: 0.1 | J28: 0.14 | K28: 0.21 | L28: 0.24 | M28: 0.16 | N28: 0.15 | O28: 20.925 | P28: 13.625 | R28: Pourcentage de conventionnés régionaux gare A | S28: ='Profil de gare'!$I$6/('Profil de gare'!$I$6+'Profil de gare'!$I$7) -> 
A29: Nombre de partants dans le hall voyageur à l'hyperpointe | B29: =SUMPRODUCT(B17:B18,B26:B27) -> 282.9397981 | H29: Cannes | I29: 0.1 | J29: 0.13 | K29: 0.14 | L29: 0.3 | M29: 0.21 | N29: 0.11 | O29: 19.975 | P29: 13.1 | R29: Temps moyen toutes gares | S29: =P58 -> 14.12211538
A30: Nombre d'arrivants dans le hall voyageur à l'hyperpointe | B30: =B28*B19 -> 37.72530642 | H30: Lyon Perrache | I30: 0.09 | J30: 0.08 | K30: 0.21 | L30: 0.38 | M30: 0.13 | N30: 0.11 | O30: 19.925 | P30: 13.05 | R30: Hypothèse Précaution TER AREP | S30: 15
A31: Voyageurs totaux dans le hall voyageur à l'hyperpointe | B31: =B29+B30 -> 320.6651045 | H31: Grenoble | I31: 0.12 | J31: 0.08 | K31: 0.19 | L31: 0.26 | M31: 0.21 | N31: 0.13 | O31: 19.85 | P31: 13.125 | R31: Hypothèse Précaution TGV AREP | S31: 25
H32: Angers Saint-Laud | I32: 0.11 | J32: 0.1 | K32: 0.18 | L32: 0.22 | M32: 0.19 | N32: 0.19 | O32: 19.225 | P32: 12.7 | R32: Temps déambulation moyen (départ) en min (Conventionné régional) | S32: =(S29/(S28+S27*(S31/S30))) -> 
A33: NON VOYAGEURS | H33: Paris Est | I33: 0.12 | J33: 0.11 | K33: 0.05 | L33: 0.46 | M33: 0 | N33: 0.26 | O33: 19.225 | P33: 12.975 | R33: Temps déambulation moyen (départ) en min (Autres) | S33: =(S29/(S27+S28*(S30/S31))) -> 
A34: Nombre de non voyageurs annuel | B34: ='Profil de gare'!E5 -> 300000 | C34: Onglet Profil de gares | H34: Toulon | I34: 0.15 | J34: 0.07 | K34: 0.15 | L34: 0.17 | M34: 0.21 | N34: 0.26 | O34: 19.025 | P34: 12.85
A35: Nombre de non voyageurs moyen / jour | B35: =B34/365 -> 821.9178082 | H35: Bordeaux Saint-Jean | I35: 0.12 | J35: 0.07 | K35: 0.11 | L35: 0.32 | M35: 0.21 | N35: 0.17 | O35: 18.475 | P35: 12.4
H36: Metz Ville | I36: 0.13 | J36: 0.09 | K36: 0.14 | L36: 0.14 | M36: 0.15 | N36: 0.34 | O36: 17.775 | P36: 12
A37: Ratio multiplicatif jour de pointe par rapport à moyenne par jour | B37: ='Paramètres hyperpointe'!C8 -> 1.3 | H37: Reims | I37: 0.1 | J37: 0.08 | K37: 0.16 | L37: 0.22 | M37: 0.22 | N37: 0.22 | O37: =SUMPRODUCT(I37:N37,$I$2:$N$2) -> 17.75 | P37: =SUMPRODUCT(I37:N37,$I$4:$N$4) -> 11.8
A38: Ratio multiplicatif heure de pointe par rapport à l'heure moyenne | B38: ='Paramètres hyperpointe'!C9 -> 2.3 | H38: Toulouse Matabiau | I38: 0.13 | J38: 0.09 | K38: 0.08 | L38: 0.22 | M38: 0.2 | N38: 0.28 | O38: 17.7 | P38: 12
A39: Ratio multiplicatif minute de pointe par rapport à minute moyenne | B39: ='Paramètres hyperpointe'!C10 -> 2.1 | H39: Nîmes | I39: 0.14 | J39: 0.07 | K39: 0.08 | L39: 0.22 | M39: 0.2 | N39: 0.28 | O39: 17.475 | P39: 11.925
A40: Temps moyen de présence dans la gare d'un non voyageur (min) | B40: ='Paramètres hyperpointe'!B7 -> 10 | C40: Onglet Profil de gares | H40: Le Mans | I40: 0.09 | J40: 0.07 | K40: 0.17 | L40: 0.22 | M40: 0.25 | N40: 0.2 | O40: 17.275 | P40: 11.45
H41: Lille Europe | I41: 0.12 | J41: 0.1 | K41: 0.05 | L41: 0.24 | M41: 0.22 | N41: 0.27 | O41: 17.225 | P41: 11.675
A42: Nombre de non voyageurs moyen / heure au jour de pointe | B42: =B35/B7*B37 -> 56.23648161 | H42: Amiens | I42: 0.09 | J42: 0.06 | K42: 0.17 | L42: 0.22 | M42: 0.29 | N42: 0.17 | O42: 17.125 | P42: 11.35
A43: Nombre de non voyageurs par heure de pointe | B43: =B42*B38 -> 129.3439077 | H43: Besançon Franche-Comté TGV | I43: 0.07 | J43: 0.1 | K43: 0.16 | L43: 0.24 | M43: 0.19 | N43: 0.25 | O43: 17.075 | P43: 11.25
A44: Nombre de non voyageurs moyen / minute à l'heure de pointe | B44: =B43/60 -> 2.155731795 | H44: Besançon Viotte | I44: 0.01 | J44: 0.11 | K44: 0.11 | L44: 0.52 | M44: 0.14 | N44: 0.12 | O44: 16.55 | P44: 10.7
A45: Hyperpointe nouveaux non voyageurs par minute heure de pointe | B45: =B44*B39 -> 4.52703677 | H45: Hendaye | I45: 0.14 | J45: 0.08 | K45: 0.07 | L45: 0.15 | M45: 0.13 | N45: 0.43 | O45: 16.4 | P45: 11.325
A46: Non voyageurs totaux dans le hall à l'hyperpointe | B46: =B45*B40 -> 45.2703677 | H46: Mulhouse | I46: 0.08 | J46: 0.08 | K46: 0.14 | L46: 0.19 | M46: 0.23 | N46: 0.28 | O46: 15.975 | P46: 10.65
A47: TOTAL | H47: Lille Flandres | I47: 0.09 | J47: 0.07 | K47: 0.07 | L47: 0.26 | M47: 0.2 | N47: 0.31 | O47: 15.275 | P47: 10.375
A48: Personnes au total dans le hall à l'hyperpointe | B48: =B31+B46 -> 365.9354722 | H48: Colmar | I48: 0.04 | J48: 0.03 | K48: 0.12 | L48: 0.39 | M48: 0.37 | N48: 0.05 | O48: 14.975 | P48: 9.85
H49: Strasbourg | I49: 0.06 | J49: 0.06 | K49: 0.14 | L49: 0.21 | M49: 0.17 | N49: 0.37 | O49: 14.25 | P49: 9.575
H50: Nice | I50: 0.07 | J50: 0.07 | K50: 0.11 | L50: 0.16 | M50: 0.26 | N50: 0.33 | O50: 14.225 | P50: 9.575
H51: Biarritz | I51: 0.11 | J51: 0.05 | K51: 0.08 | L51: 0.13 | M51: 0.13 | N51: 0.51 | O51: 13.85 | P51: 9.675
H52: Paris Saint-Lazare | I52: 0.04 | J52: 0.05 | K52: 0.09 | L52: 0.33 | M52: 0.26 | N52: 0.22 | O52: 13.675 | P52: 9.125
H53: Perpignan | I53: 0.09 | J53: 0.06 | K53: 0.07 | L53: 0.14 | M53: 0.25 | N53: 0.38 | O53: 13.65 | P53: 9.375
H54: Rennes | I54: 0.05 | J54: 0.06 | K54: 0.07 | L54: 0.2 | M54: 0.14 | N54: 0.49 | O54: 11.9 | P54: 8.2
H55: Troyes | I55: 0.05 | J55: 0.03 | K55: 0.04 | L55: 0.17 | M55: 0.33 | N55: 0.38 | O55: 10.725 | P55: 7.45
H56: Belfort - Montbéliard TGV | I56: 0.02 | J56: 0.03 | K56: 0.06 | L56: 0.13 | M56: 0.21 | N56: 0.55 | O56: 8.575 | P56: 6.05
H58: MOYENNE | I58: =AVERAGE(I5:I56) -> 0.1490384615 | J58: 0.1163461538 | K58: 0.1578846154 | L58: 0.2317647059 | M58: =AVERAGE(M5:M56) -> 0.16 | N58: 0.1896153846 | O58: =AVERAGE(O2:O56) -> 21.21826923 | P58: =AVERAGE(P2:P56) -> 14.12211538
H64: Source : Ile de France Mobilités (2016) | I64: Plage horaire | K64: Valeur
I65: 06:00:00 | K65: 2
I66: 06:45:00 | K66: 14 | S66: =20000/60 -> 333.3333333
I67: 07:30:00 | K67: 46
I68: 08:15:00 | K68: 80
I69: 09:00:00 | K69: 80
I70: 09:45:00 | K70: 47
I71: 10:30:00 | K71: 28
I72: 11:15:00 | K72: 27
I73: 12:00:00 | K73: 30
I74: 12:45:00 | K74: 32
I75: 13:30:00 | K75: 34
I76: 14:15:00 | K76: 32
I77: 15:00:00 | K77: 34
I78: 15:45:00 | K78: 37
I79: 16:30:00 | K79: 51
I80: 17:15:00 | K80: 73
I81: 18:00:00 | K81: 75
I82: 18:45:00 | K82: 65
I83: 19:30:00 | K83: 52
I84: 20:15:00 | K84: 33
I85: 21:00:00 | K85: 20
I86: 21:45:00 | K86: 14
I87: 22:30:00 | K87: 11
I88: 23:15:00 | K88: 4
H89: MOYENNE | K89: =SUM(K65:K88)/I90 -> 38.375
H90: Nb de plages | I90: =COUNT(I65:I88) -> 24
H91: Pic "réel" | K91: 88
H92: Ratio | K92: =K91/K89 -> 2.293159609
H96: Source : Grenoble - Etude capacitaire du bâtiment voyageurs page 12 03/07/2012 | I96: Plage horaire | K96: Valeur
I97: 17:00:00 | K97: 160
I98: 17:05:00 | K98: 285
I99: 17:10:00 | K99: 350
I100: 17:15:00 | K100: 300
I101: 17:20:00 | K101: 225
I102: 17:25:00 | K102: 210
I103: 17:30:00 | K103: 110
I104: 17:35:00 | K104: 60
I105: 17:40:00 | K105: 150
I106: 17:45:00 | K106: 145
I107: 17:50:00 | K107: 140
I108: 17:55:00 | K108: 145
I109: 18:00:00 | K109: 125
H110: MOYENNE | K110: =AVERAGE(K97:K109) -> 185
H111: Nb de plages | I111: =COUNT(I97:I109) -> 13
H112: Pic "réel" | K112: 385
H113: Ratio | K113: =K112/K110 -> 2.081081081
H117: Source : Grenoble - Etude capacitaire du bâtiment voyageurs 03/07/2012
H119: %Partants minute de pointe | I119: 560 | J119: =I119/(SUM(I119:I120)) -> 0.7724137931
H120: %Arrivants minute de pointe | I120: 165 | J120: =I120/SUM(I119:I120) -> 0.2275862069

Sheet Niveaux de services
A1: Niveau de service | B1: Niveau de service - Hall Voyageur | D1: Niveau de service - Surface Commerciale non régulée | E1: Niveau de service - Surface Commerciale non régulée | F1: Niveau de service - Espace de vente ferroviaire | G1: Niveau de service - Espace de vente ferroviaire | H1: Niveau de service - Locaux G&C et Presta | I1: Niveau de service - Locaux G&C et Presta | J1: Niveau de service - Locaux EF | K1: Niveau de service - Locaux EF | L1: Niveau de service - Voiries | M1: Niveau de service - Voiries | N1: Niveau architectural - Architecture secondaire | O1: Niveau de service - Architecture secondaire | P1: Niveau de service - Parking | Q1: Niveau de service - Parking | S1: INTRODUCTION
B2: =B1 -> Niveau de service - Hall Voyageur | C2: =B1 -> Niveau de service - Hall Voyageur | D2: =D1 -> Niveau de service - Surface Commerciale non régulée | E2: =D1 -> Niveau de service - Surface Commerciale non régulée | F2: =F1 -> Niveau de service - Espace de vente ferroviaire | G2: =F1 -> Niveau de service - Espace de vente ferroviaire | H2: =H1 -> Niveau de service - Locaux G&C et Presta | I2: =H1 -> Niveau de service - Locaux G&C et Presta | J2: =J1 -> Niveau de service - Locaux EF | K2: =J1 -> Niveau de service - Locaux EF | L2: =L1 -> Niveau de service - Voiries | M2: =L1 -> Niveau de service - Voiries | N2: =N1 -> Niveau architectural - Architecture secondaire | O2: =N1 -> Niveau architectural - Architecture secondaire | P2: =P1 -> Niveau de service - Parking | Q2: =P1 -> Niveau de service - Parking
A3: METHODE | B3: Nombre de m² par voyageurs (Flux minute) | D3: Pourcentage de la surface du hall voyageur | F3: Pourcentage de la surface du hall voyageur | H3: Nombre de locaux et surface de ceux-ci | J3: Nombre de locaux et surface de ceux-ci | L3: Pourcentage de la surface du bâtiment voyageur | N3: Modulation du prix de l'architecture secondaire | P3: Calcul de la surface du parking en fonction du nombre de places | S3: PROFIL DE GARES
B4: Valeur | C4: Description | D4: Valeur | E4: Description | F4: Valeur | G4: Description | H4: Valeur | I4: Description | J4: Valeur | K4: Description | L4: Valeur | M4: Description | N4: Valeur | O4: Description | P4: Valeur | Q4: Description | S4: COÛT DE LA GARE
A5: ECONOMIQUE (1) | B5: 1.25 | C5: Echelle D (échelle de densité de personnes de Fruin) | D5: 0 | E5: Pas de potentiel commercial | F5: 0 | G5: Pas d'espace de vente | H5: 0 | I5: Pas de locaux | J5: 0 | K5: Pas de locaux | L5: 0.1 | M5: Petites voiries | N5: -0.2 | O5: Architecture secondaire minimaliste | P5: 0 | Q5: Pas de parking | S5: CALCUL DU TARIF
A6: STANDARD (2) | B6: 1.85 | C6: Echelle C (échelle de densité de personnes de Fruin) | D6: 0.1 | E6: Faible potentiel commercial | F6: 0.05 | G6: Petit espace de vente | H6: =I16*(1+(($I$13-$I$14)*$I$20/$I$14)) -> 50 | I6: 1 seul grand local, partagé | J6: =I16*(1+(($I$13-$I$14)*$I$20/$I$14)) -> 50 | K6: 1 seul grand local pour toutes les EF | L6: 0.3 | M6: Moyennes voiries | N6: 0 | O6: Architecture secondaire classique | P6: =I17*(1+(($I$13-$I$14)*$I$20/$I$14))*$I$22 -> 2587.5 | Q6: Petit parking
A7: CONFORT (3) | B7: 2.75 | C7: Echelle B (échelle de densité de personnes de Fruin) | D7: 0.3 | E7: Potentiel commercial intermédiaire | F7: 0.1 | G7: Espace de vente moyen | H7: =I15*(1+(($I$13-$I$14)*$I$20/$I$14))*('Dimensionnement du bâtiment'!B7+1)*I21 -> 60 | I7: 1 ou plusieurs petits locaux pour G&C et chacun de ses prestataires | J7: =I15*(1+(($I$13-$I$14)*$I$20/$I$14))*'Dimensionnement du bâtiment'!B8*I21 -> 20 | K7: 1 ou plusieurs petits locaux par EF | L7: 0.5 | M7: Grandes voiries | N7: 0.5 | O7: Architecture secondaire travaillée | P7: =I18*(1+(($I$13-$I$14)*$I$20/$I$14))*$I$22 -> 5175 | Q7: Parking moyen
A8: PREMIUM (4) | B8: 3.5 | C8: Echelle A (échelle de densité de personnes de Fruin) | D8: 0.5 | E8: Fort potentiel commercial | F8: 0.15 | G8: Grand espace de vente | H8: =I16*(1+(($I$13-$I$14)*$I$20/$I$14))*('Dimensionnement du bâtiment'!B7+1)*I21 -> 150 | I8: 1 ou plusieurs grands locaux pour G&C et chacun de ses prestataires | J8: =I16*(1+(($I$13-$I$14)*$I$20/$I$14))*'Dimensionnement du bâtiment'!B8*I21 -> 50 | K8: 1 ou plusieurs grands locaux par EF | L8: 0.75 | M8: Très grandes voiries | N8: 1 | O8: Architecture secondaire fantastique | P8: =I19*(1+(($I$13-$I$14)*$I$20/$I$14))*$I$22 -> 10350 | Q8: Grand parking
A9: DESCRIPTION | D9: Ces données sont des moyennes des surfaces commerciales | F9: Ces données sont paramétrables par l'utilisateur (les valeurs initiales sont les valeurs conseillées) | H9: Calcul à partir des hypothèses ci-dessous | J9: Calcul à partir des hypothèses ci-dessous | L9: Ces données sont paramétrables par l'utilisateur (les valeurs initiales sont les valeurs conseillées) | N9: Ces données sont paramétrables par l'utilisateur (les valeurs initiales sont les valeurs conseillées) | P9: Calcul à partir du tableau ci-dessous
H11: Paramètres niveaux de service parking
H12: Donnée | I12: Valeur | K12: Source/Explication
H13: Nombre de voyageurs réel | I13: ='Dimensionnement du bâtiment'!B4 -> 2000000
H14: Nombre de voyageurs - base | I14: 2000000 | K14: Ces valeurs sont des hypothèses définies pour une gare avec 2000000 de voyageurs. Les données varient en fonction du ratio entre le nombre de voyageurs réel de la gare simulée et de 2000000 de voyageurs. La modulation permet de réduire l'influence de ce ratio.
H15: Petit Local | I15: 20
H16: Grand Local | I16: 50
H17: Petit parking | I17: 150
H18: Parking moyen | I18: 300
H19: Grand Parking | I19: 600
H20: Modulation parking | I20: 0.7
H21: Nombre de local par EF/G&C/Presta | I21: 1 | K21: Permet de choisir le nombre de local pour les niveaux de service Confort et Premium
H22: Surface place de parking + circu | I22: =2.3*(5+5/2) -> 17.25
A27: Paramètres niveaux de service salon grand voyageurs
A28: Donnée | B28: Valeur | D28: Source/Explication
A29: Pourcentage de voyageurs éligibles au salon GV | B29: ='Paramètres UF'!C320 -> 0.005
A30: Surface par voyageur Salon GV | B30: ='Paramètres UF'!C321 -> 5
A31: Nombre de voyageurs par heure de pointe | B31: =VLOOKUP('Niveaux de services'!A31,'Profil de gare'!D4:M68,2,0) -> 862.2927181 | D31: Calcul onglet hyperpointe
A32: Surface du salon GV (si existant) | B32: =B29*B30*B31 -> 21.55731795 | D32: Multiplication des 3 paramètres ci-dessus

Sheet Calcul des surfaces des profils (hidden)
B1: Ratio | C1: Gare TGA Parisienne | D1: Gare TGA Autres | E1: Nouvelle Gare A | F1: Gare A Terminus | G1: Gare A Passage | H1: Gare Mass-Transit Francilienne | I1: Gare B | J1: Gare C | N1: INTRODUCTION
A2: CALCUL DES SURFACES
A3: Surfaces principales de la gare | N3: PROFIL DE GARES
A4: Surface totale | C4: =#REF! ->  | D4: =#REF! ->  | E4: =#REF! ->  | F4: =#REF! ->  | G4: =#REF! ->  | H4: =#REF! ->  | I4: =#REF! ->  | J4: =#REF! ->  | N4: COÛT DE LA GARE
A5: Surface bâtiment voyageur | C5: =C7+C30 ->  | N5: CALCUL DU TARIF
A6: Surface cœur de gare | C6: =#REF! ->  | D6: =#REF! ->  | E6: =#REF! ->  | F6: =#REF!+F8-G8 ->  | G6: =#REF! ->  | H6: =#REF! ->  | I6: =#REF! ->  | J6: =#REF! ->  | K6: La surface commerciale non régulée d'une gare Terminus A est augmentée de 20%. | N6: MODELISATION
A7: Surface hall voyageur | C7: =C6-C8 ->  | D7: =D6-D8 ->  | E7: =E6-E8 -> 
A8: Surface commerciale | C8: =C4*#REF! ->  | D8: =D4*#REF! ->  | E8: =E4*#REF! ->  | F8: =F9+F10 ->  | G8: =G4*#REF! ->  | H8: 80 | I8: 40 | J8: 0
A9: Surface commerciale non régulée | B9: 0.75 | C9: =(C8-C12)*$B9 ->  | D9: =(D8-D12)*$B9 ->  | F9: =(G8-F12)*$B9*1.2 ->  | G9: =(G8-G12)*$B9 ->  | H9: =(H8-H12)*$B9 -> 60 | I9: =(I8-I12)*$B9 -> 30 | J9: =(J8-J12)*$B9 -> 0 | K9: Issus de nos hypothèses de niveaux de service
A10: Surface commerciale régulée | C10: =C11+C12 ->  | F10: =(F11+F12) ->  | G10: =G11+G12 ->  | H10: 20 | I10: 10 | J10: 0
A11: Surface commerciale régulée - Espace de vente ferroviaire | B11: 0.25 | C11: =(C8-C12)*$B11 ->  | D11: =(D8-D12)*$B11 ->  | E11: =(E8-E12)*$B11 ->  | F11: =(G8-F12)*$B11 ->  | G11: =(G8-G12)*$B11 ->  | H11: =(H8-H12)*$B11 -> 20 | I11: =(I8-I12)*$B11 -> 10 | J11: =(J8-J12)*$B11 -> 0
A12: Surface commerciale régulée - Salon Grands Voyageurs | C12: 752.948918 | D12: 107.5096696 | E12: 0 | F12: 0 | G12: 0 | H12: 0 | I12: 0 | J12: 0
A13: Surface locaux | C13: =C14+C15+C16 -> 3268.465901 | D13: 564.2980303 | E13: 107.3850875 | F13: 121.7547056 | G13: 121.7547056 | H13: 179.8739623 | I13: 42.88231894 | J13: 0
A14: Surface locaux G&C et Presta | C14: 1841.07954 | D14: 278.5788182 | E14: 52.43105251 | F14: 61.05282339 | G14: 61.05282339 | H14: 95.92437735 | I14: 25.72939136 | J14: 0
A15: Surface Centre Opérationnel Escale | C15: 200 | D15: 100 | E15: 20 | F15: 20 | G15: 20 | H15: 20 | I15: 0 | J15: 0
A16: Surface locaux EF | C16: 1227.38636 | D16: 185.7192121 | E16: 34.95403501 | F16: 40.70188226 | G16: 40.70188226 | H16: 63.9495849 | I16: 17.15292757 | J16: 0
A17: Surface voiries | B17: 0.5 | C17: =C5*$B17 -> 
A18: Surface Parking | C18: ='Profil de gare'!F27*'Niveaux de services'!$I$22 -> 25875 | D18: ='Profil de gare'!G27*'Niveaux de services'!$I$22 -> 24150 | E18: ='Profil de gare'!H27*'Niveaux de services'!$I$22 -> 8970 | F18: ='Profil de gare'!I27*'Niveaux de services'!$I$22 -> 5261.25 | G18: ='Profil de gare'!J27*'Niveaux de services'!$I$22 -> 5261.25 | H18: ='Profil de gare'!K27*'Niveaux de services'!$I$22 -> 517.5 | I18: ='Profil de gare'!L27*'Niveaux de services'!$I$22 -> 2587.5 | J18: ='Profil de gare'!M27*'Niveaux de services'!$I$22 -> 862.5
A19: Surface des quais
A21: Surfaces relatives à l'architecture
A22: Surface des façades | C22: =2*C35*C37+2*C36*C35 -> 
A23: Surface de la toiture | C23: =C5 -> 
A24: Surface des façades en verre | C24: =C22*C38 -> 
A25: Surface des façades en bardage | C25: =C22*#REF! ->  | D25: =D22*#REF! ->  | E25: =E22*#REF! ->  | F25: =F22*#REF! ->  | G25: =G22*#REF! ->  | H25: =H22*#REF! ->  | I25: =I22*#REF! ->  | J25: =J22*#REF! -> 
A26: Surface de la toiture en verre | C26: =C23*C39 -> 
A27: Surface de la toiture en bardage | C27: =#REF!*C23 ->  | D27: =#REF!*D23 ->  | E27: =#REF!*E23 ->  | F27: =#REF!*F23 ->  | G27: =#REF!*G23 ->  | H27: =#REF!*H23 ->  | I27: =#REF!*I23 ->  | J27: =#REF!*J23 -> 
A29: Surfaces sommées pour calculs
A30: Surface commerciale + locaux | C30: =C8+C13 ->  | H30: 259.8739623 | I30: 82.88231894 | J30: 0
A31: Surface voiries + bâtiment | C31: =C17+C5 -> 
A32: Surface locaux et commerces régulés | C32: =C10+C13 ->  | H32: 199.8739623 | I32: 52.88231894 | J32: 0
A33: Surface locaux et commerces non régulés | C33: =C9 ->  | H33: 60 | I33: 30 | J33: 0
A34: DONNEES ARCHITECTURALES
A35: Hauteur de plafond | C35: 20 | D35: 15 | E35: 10 | F35: 10 | G35: 10 | H35: 5 | I35: 5 | J35: 5
A36: Longueur du bâtiment | C36: =SQRT(C5)*1.5 -> 
A37: Largeur du bâtiment | C37: =C6/C36 -> 
A38: % de façades en verre | C38: 0.3 | D38: 0.3 | E38: 0.7 | F38: 0.3 | G38: 0.3 | H38: 0.1 | I38: 0.15 | J38: 0.15
A39: % de la toiture en verre | C39: 0.3 | D39: 0.3 | E39: 0.3 | F39: 0.3 | G39: 0.3 | H39: 0.1 | I39: 0 | J39: 0

Sheet Paramètres UF
A1: Paramètre | B1: Valeur par défaut | C1: Valeur | D1: Commentaire
A2: RENOVATION BATIMENT | F2: Légende | G2: Explication
A3: OPEX Rénovation du bâtiment (% Capex construction) | B3: 0 | C3: 0 | G3: Données du profil de gare
A4: 1.1 FONCIER | G4: Paramètres modifiables
A5: Durée d'amortissement | B5: 50 | C5: 50 | G5: Calcul
A6: 1.2 GROS ŒUVRE | L6: 1 - Bâtiment
A7: Confortement de sol | B7: 43 | C7: 43 | D7: Prix par m2 surface voiries + bâtiment | L7: 1.1 Foncier | M7: =VLOOKUP($L7,'Coût de la gare'!$A$4:$E$10,3) -> 0.01903259533 | N7: =VLOOKUP($L7,'Coût de la gare'!$A$4:$E$10,5) -> 0
A8: Fondations - Infrastructures | B8: 40 | C8: 40 | D8: Prix par m2 surface voiries + bâtiment | L8: 1.2 Gros œuvre | M8: =VLOOKUP($L8,'Coût de la gare'!$A$4:$E$10,3) -> 0.07487083884 | N8: =VLOOKUP($L8,'Coût de la gare'!$A$4:$E$10,5,) -> 0
A9: Terrassements Généraux - Apports | B9: 68 | C9: 68 | D9: Prix par m2 surface voiries + bâtiment | L9: 1.3 Second œuvre - Corps d'état techniques | M9: =VLOOKUP($L9,'Coût de la gare'!$A$4:$E$10,3) -> 0.1043711646 | N9: =VLOOKUP($L9,'Coût de la gare'!$A$4:$E$10,5,) -> 0
A10: Espaces Verts | B10: 6.5 | C10: 6.5 | D10: Prix par m2 surface voiries | L10: 1.4 Second œuvre - Corps d'états architecturaux | M10: =VLOOKUP($L10,'Coût de la gare'!$A$4:$E$10,3) -> 0 | N10: =VLOOKUP($L10,'Coût de la gare'!$A$4:$E$10,5,) -> 0
A11: Canalisations - Assainissements | B11: 8.5 | C11: 8.5 | D11: Prix par m2 surface voiries + bâtiment | L11: 1.5 Frais de maîtrise d'œuvre (MOE) et frais divers | M11: =VLOOKUP($L11,'Coût de la gare'!$A$4:$E$10,3) -> 0.03584840069 | N11: =VLOOKUP($L11,'Coût de la gare'!$A$4:$E$10,5,) -> 0
A12: Travaux annexes aux VRD | B12: 6 | C12: 6 | D12: Prix par m2 surface totale | L12: 1.6 Passerelles et souterrains | M12: =VLOOKUP($L12,'Coût de la gare'!$A$4:$E$10,3) -> 0.1475242009 | N12: =VLOOKUP($L12,'Coût de la gare'!$A$4:$E$10,5,) -> 0
A13: Voirie Véhicules Légers | B13: 14.5 | C13: 14.5 | D13: Prix par m2 voiries | L13: 2 - Circuler et informer les voyageurs
A14: Cheminements piétons | B14: 37.5 | C14: 37.5 | D14: Prix par m2 voiries | L14: 2.1 Quais | M14: =VLOOKUP($L14,'Coût de la gare'!$A$13:$E$20,3) -> 0.2775220669 | N14: =VLOOKUP($L14,'Coût de la gare'!$A$13:$E$20,5,FALSE) -> 0.01264206955
A15: Dallage Béton - Voiries | B15: 74 | C15: 74 | D15: Prix par m2 voiries | L15: 2.2 Ascenseurs, escalators, portes automatiques | M15: =VLOOKUP($L15,'Coût de la gare'!$A$13:$E$20,3) -> 0.09985346978 | N15: =VLOOKUP($L15,'Coût de la gare'!$A$13:$E$20,5,FALSE) -> 0.04548663547
A16: Dallage Béton (+Revêtement industriel) - Halle | B16: 74 | C16: 74 | D16: Prix par m2 hall voyageur | L16: 2.3 Information voyageur digitale | M16: =VLOOKUP($L16,'Coût de la gare'!$A$13:$E$20,3) -> 0.02981963003 | N16: =VLOOKUP($L16,'Coût de la gare'!$A$13:$E$20,5,FALSE) -> 0.2522789907
A17: Dallage Béton (+Revêtement industriel) - Bureaux & Locaux | B17: 135 | C17: 135 | D17: Prix par m2 surface commerciale + locaux | L17: 2.4 Information voyageur non digitale | M17: =VLOOKUP($L17,'Coût de la gare'!$A$13:$E$20,3) -> 0.01094840118 | N17: =VLOOKUP($L17,'Coût de la gare'!$A$13:$E$20,5,FALSE) -> 0.004987367334
A18: Local de garde + chauffeurs + poubelles + technique | B18: 210 | C18: 210 | D18: Prix par m2 surface commerciale + locaux | L18: 2.5 Information voyageur sonore en gare | M18: =VLOOKUP($L18,'Coût de la gare'!$A$13:$E$20,3) -> 0.00717919931 | N18: =VLOOKUP($L18,'Coût de la gare'!$A$13:$E$20,5,FALSE) -> 0.006540736595
A19: Charpente métallique | B19: 125 | C19: 125 | D19: Prix par m2 bâtiment voyageur | L19: 2.6 Centre Opérationnel d'Escale | M19: =VLOOKUP($L19,'Coût de la gare'!$A$13:$E$20,3) -> 0.01267677269 | N19: =VLOOKUP($L19,'Coût de la gare'!$A$13:$E$20,5,FALSE) -> 0.2177886503
A20: Ossatures secondaires bardages | B20: 20 | C20: 20 | D20: Prix par m2 bâtiment voyageur | L20: 2.7 Accès et services PMR | M20: =VLOOKUP($L20,'Coût de la gare'!$A$13:$E$20,3) -> 0.01685967644 | N20: =VLOOKUP($L20,'Coût de la gare'!$A$13:$E$20,5,FALSE) -> 0.1354973399
A21: Durée d'amortissement | B21: 50 | C21: 50 | L21: 2.8 Horloges | M21: =VLOOKUP($L21,'Coût de la gare'!$A$13:$E$20,3) -> 0.002898544403 | N21: =VLOOKUP($L21,'Coût de la gare'!$A$13:$E$20,5,FALSE) -> 0.002640770179
A22: 1.3 SECOND ŒUVRE TECHNIQUE | L22: 3.2 Équipes de gardiennage | M22: =VLOOKUP($L22,'Coût de la gare'!$A$23:$E$29,3) -> 0 | N22: =VLOOKUP($L22,'Coût de la gare'!$A$23:$E$29,5) -> 0.0384977102
A23: Couverture - Etanchéité - Désenfumage | B23: 110 | C23: 110 | D23: Prix par m2 surface bâtiment voyageurs | L23: 3.3 Portes d'embarquement | M23: =VLOOKUP($L23,'Coût de la gare'!$A$23:$E$29,3) -> 0 | N23: =VLOOKUP($L23,'Coût de la gare'!$A$23:$E$29,5) -> 0
A24: Bardage métallique - Façades | B24: 115 | C24: 115 | D24: Prix par m2 surface des façades en bardage | L24: 3.4 Vidéosurveillance | M24: =VLOOKUP($L24,'Coût de la gare'!$A$23:$E$29,3) -> 0.03819974694 | N24: =VLOOKUP($L24,'Coût de la gare'!$A$23:$E$29,5) -> 0.03480255554
A25: Bardage métallique - Toiture | B25: 115 | C25: 115 | D25: Prix par m2 surface de la toiture en bardage | L25: 3.5 Sécurité incendie | M25: =VLOOKUP($L25,'Coût de la gare'!$A$23:$E$29,3) -> 0.007898527062 | N25: =VLOOKUP($L25,'Coût de la gare'!$A$23:$E$29,5) -> 0.007196092875
A26: Electricité - Courants forts/courants faibles bâtiment voyageur | B26: 167.5 | C26: 167.5 | D26: Prix par m2 surface bâtiement voyageurs | L26: 3.6 Barrières de sécurité, clôture, sécurisation d'accès | M26: =VLOOKUP($L26,'Coût de la gare'!$A$23:$E$29,3) -> 0.01898033273 | N26: =VLOOKUP($L26,'Coût de la gare'!$A$23:$E$29,5) -> 0.0008646184034
A27: Electricité - Courants forts/courants faibles quais | B27: 92.5 | C27: 92.5 | D27: Prix par m2 surface des quais | L27: 3.7 Points de mise en relation avec le centre de sécurité | M27: =VLOOKUP($L27,'Coût de la gare'!$A$23:$E$29,3) -> 0.0005223944789 | N27: =VLOOKUP($L27,'Coût de la gare'!$A$23:$E$29,5) -> 0.0004759367358
A28: Froid - Production et distribution | B28: 100 | C28: 100 | D28: Prix par m2 surface bâtiment voyageurs | L28: 4 - Entretenir et assurer un bon niveau de confort
A29: Plomberie | B29: 3.5 | C29: 3.5 | D29: Prix par m2 surface voiries + bâtiment | L29: 4.1 Espace d’attente | M29: =VLOOKUP($L29,'Coût de la gare'!$A$32:$E$39,3) -> 0.01100204802 | N29: =VLOOKUP($L29,'Coût de la gare'!$A$32:$E$39,5) -> 0.01002361057
A30: Durée d'amortissement | B30: 50 | C30: 50 | L30: 4.2 Propreté | M30: =VLOOKUP($L30,'Coût de la gare'!$A$32:$E$39,3) -> 0.003152800443 | N30: =VLOOKUP($L30,'Coût de la gare'!$A$32:$E$39,5) -> 0.0295628098
A31: 1.4 SECOND ŒUVRE ARCHITECTURAL | L31: 4.5 Dépenses énergétique et fluides - Eau | M31: =VLOOKUP($L31,'Coût de la gare'!$A$32:$E$39,3) -> 0 | N31: =VLOOKUP($L31,'Coût de la gare'!$A$32:$E$39,5) -> 0.01277188984
A32: Vitrerie - Façades | B32: 1150 | C32: 1150 | D32: Prix par m2 surface des façades en verre | L32: 4.6 Dépenses énergétique et fluides - KWh | M32: =VLOOKUP($L32,'Coût de la gare'!$A$32:$E$39,3) -> 0 | N32: =VLOOKUP($L32,'Coût de la gare'!$A$32:$E$39,5) -> 0.01426832873
A33: Vitrerie - Toiture | B33: 1150 | C33: 1150 | D33: Prix par m2 surface de la toiture en verre | L33: 4.7 Sanitaires | M33: =VLOOKUP($L33,'Coût de la gare'!$A$32:$E$39,3) -> 0 | N33: =VLOOKUP($L33,'Coût de la gare'!$A$32:$E$39,5) -> 0.0007932278931
A34: Menuiseries intérieures | B34: 50 | C34: 50 | D34: Prix par m2 surface bâtiment voyageurs | L34: 4.8 Wifi voyageur | M34: =VLOOKUP($L34,'Coût de la gare'!$A$32:$E$39,3) -> 0.001128459372 | N34: =VLOOKUP($L34,'Coût de la gare'!$A$32:$E$39,5) -> 0.02052793496
A35: Plâtrerie - façades non vitrées | B35: 115 | C35: 115 | D35: Prix par m2 des façades en bardage | L35: 5 - Mise à disposition des locaux et des surfaces
A36: Plâtrerie - bureaux et commerces | B36: 115 | C36: 115 | D36: Prix par m2 de la surface commerciale + locaux | L36: 5.1 Locaux destinés au personnel G&C et prestataires | M36: =VLOOKUP($L36,'Coût de la gare'!$A$42:$E$44,3) -> 0 | N36: =VLOOKUP($L36,'Coût de la gare'!$A$42:$E$44,5) -> 0
A37: Cloisons amovibles | B37: 130 | C37: 130 | D37: Prix par m2 de la surface commerciale + locaux | L37: 5.2 Locaux destinés aux entreprises ferroviaires | M37: =VLOOKUP($L37,'Coût de la gare'!$A$42:$E$44,3) -> 0 | N37: =VLOOKUP($L37,'Coût de la gare'!$A$42:$E$44,5) -> 0
A38: Faux-plafonds - Isolation | B38: 83 | C38: 83 | D38: Prix par m2 de la surface commerciale + locaux | L38: 5.3 Espaces aménagés pour la vente de titres ferroviaires | M38: =VLOOKUP($L38,'Coût de la gare'!$A$42:$E$44,3) -> 0.003191557911 | N38: =VLOOKUP($L38,'Coût de la gare'!$A$42:$E$44,5) -> 0.002907725322
A39: Carrelages - Faïences | B39: 90 | C39: 90 | D39: Prix par m2 de la surface commerciale + locaux | L39: 6 - Autres services
A40: Peinture - Façades non vitrées | B40: 55 | C40: 55 | D40: Prix par m2 des façades en bardage | L40: 6.1 Locaux commerciaux ou boutiques | M40: =VLOOKUP($L40,'Coût de la gare'!$A$47:$E$50,3) -> 0 | N40: =VLOOKUP($L40,'Coût de la gare'!$A$47:$E$50,5) -> 0
A41: Revêtements souples | B41: 85 | C41: 85 | D41: Prix par m2 de la surface commerciale + locaux | L41: 6.2 Parking | M41: =VLOOKUP($L41,'Coût de la gare'!$A$47:$E$50,3) -> 0 | N41: =VLOOKUP($L41,'Coût de la gare'!$A$47:$E$50,5) -> 0
A42: Durée d'amortissement | B42: 50 | C42: 50 | L42: 6.3 Salon grands voyageurs | M42: =VLOOKUP($L42,'Coût de la gare'!$A$47:$E$50,3) -> 0 | N42: =VLOOKUP($L42,'Coût de la gare'!$A$47:$E$50,5) -> 0
A43: 1.5 FRAIS DE MAITRISE D'OUVRAGE | L43: 7.1 Installations et services de l'espace Transmanche | M43: =VLOOKUP($L43,'Coût de la gare'!$A$47:$E$50,3) -> 0.008850365006 | N43: =VLOOKUP($L43,'Coût de la gare'!$A$47:$E$50,3) -> 0.008850365006
A44: Coefficient de maîtrise d'ouvrage par rapport au coût global de construction | B44: 0.2 | C44: 0.2
A45: Durée d'amortissement | B45: 50 | C45: 50
A46: 1.6 PASSERELLES ET SOUTERRAINS
A47: Ecartement des rails (m) | B47: 1.435 | C47: 1.435 | D47: Paramètre dont la modification n'est pas pertinente
A48: Distance entre deux voies (m) | B48: 2 | C48: 2 | D48: Paramètre dont la modification n'est pas pertinente
A49: Distance entre quai et la voie (m) | B49: 0.5 | C49: 0.5 | D49: Paramètre dont la modification n'est pas pertinente
A50: Souterrain - Largeur de l'infrastructure | B50: 6 | C50: 6
A51: Prix du souterrain au m² | B51: 10000 | C51: 10000
A52: Passerelle - Largeur de l'infrastructure | B52: 4 | C52: 4
A53: Prix de la passerelle au m² | B53: 10000 | C53: 10000
A54: Durée d'amortissement | B54: 50 | C54: 50
A55: 2.1 QUAIS
A56: Ratio départs trains par voies Gare Passage | B56: 5000 | C56: 5000
A57: Ratio départs trains par voies Gare Terminus | B57: 2500 | C57: 2500
A58: Ratio départs trains par voies Gare Mass Transit | B58: 20000 | C58: 20000
A59: Proportion quais de 400m - Gare TGA Parisienne | B59: 0.6 | C59: 0.6 | D59: Paramètres utilisés uniquement dans le cas où la répartition des types de quais est réalisée selon les types de gares.
A60: Proportion quais de 400m - Gare TGA Autres | B60: 0.8 | C60: 0.8
A61: Proportion quais de 400m - Nouvelle Gare A | B61: 0.8 | C61: 0.8
A62: Proportion quais de 400m - Gare A Terminus | B62: 0.8 | C62: 0.8
A63: Proportion quais de 400m - Gare A Passage | B63: 0.8 | C63: 0.8
A64: Proportion quais de 400m - Gare Mass-Transit Francilienne | B64: 0.05 | C64: 0.05
A65: Proportion quais de 400m - Gare B | B65: 0.3 | C65: 0.3
A66: Proportion quais de 400m - Gare C | B66: 0.05 | C66: 0.05
A67: Proportion minimale quais de 400m - Gare TGA Parisienne | B67: 0.4 | C67: 0.4 | D67: Paramètres utilisés uniquement dans le cas où la répartition des types de quais est réalisée selon les départs-trains.
A68: Proportion minimale quais de 400m - Gare TGA Autres | B68: 0.4 | C68: 0.4
A69: Proportion minimale quais de 400m - Nouvelle Gare A | B69: 0.51 | C69: 0.5
A70: Proportion minimale quais de 400m - Gare A Terminus | B70: 0.51 | C70: 0.5
A71: Proportion minimale quais de 400m - Gare A Passage | B71: 0.51 | C71: 0.5
A72: Proportion minimale quais de 400m - Gare Mass-Transit Francilienne | B72: 0 | C72: 0
A73: Proportion minimale quais de 400m - Gare B | B73: 0 | C73: 0
A74: Proportion minimale quais de 400m - Gare C | B74: 0 | C74: 0
A75: Seuil d'application du % | B75: 0.05 | C75: 0.05 | D75: Si le % de départs trains autres que conventionnés régionaux est inférieur au seuil ci-contre, tous les quais seront de 250m peu importe le type de gare. Ainsi, dès lors que le trafic "longue distance" est marginal comparé au trafic conventionné régional, les quais ne sont dimensionnés que pour le trafic conventionné régional.
A76: Largeur des quais (en m) | B76: 5.5 | C76: 5.5
A77: Nombre d'abris quai par quai | B77: 1 | C77: 1
A78: Coût de construction d'un quai par m² | B78: 500 | C78: 500
A79: Coût de construction d'un abri quai | B79: 100000 | C79: 100000
A80: % du prix d'achat en maintenance/rénovation annuelle | B80: 0.005 | C80: 0.005
A81: Durée d'amortissement | B81: 50 | C81: 50
A82: 2.2 ASCENSEURS, ESCALATORS ET PORTES AUTOMATIQUES
A83: Nombre d'ascenseurs par quai | B83: 1 | C83: 1
A84: Nombre d'ascenseurs par m² cœur de gare | B84: =1/5000 -> 0.0002 | C84: =1/5000 -> 0.0002 | D84: Un ascenseur pour 5 000 m² de surface cœur de gare
A85: Nombre d'escalators par quai | B85: 2 | C85: 2
A86: Nombre de portes automatiques par entrée | B86: 2 | C86: 2
A87: Coût d’installation d’un ascenseur quai | B87: 150000 | C87: 150000
A88: Coût d’installation d’un ascenseur cœur de gare | B88: 150000 | C88: 150000
A89: Coût d’installation d’un escalator | B89: 100000 | C89: 100000
A90: Coût d’installation d’une porte automatique | B90: 15000 | C90: 15000
A91: % du prix d'achat en maintenance/rénovation annuelle | B91: 0.05 | C91: 0.05
A92: Durée d'amortissement | B92: 20 | C92: 20
A93: 2.3 INFORMATION VOYAGEURS DIGITALE (ET HUMAINE)
A94: Nombre d’écrans par m² de cœur de gare | B94: =1/100 -> 0.01 | C94: =1/100 -> 0.01 | D94: Un écran pour 100 m² de surface cœur de gare
A95: Nombre d’écrans par voie par mètre de quai | B95: =1/150 -> 0.006666666667 | C95: 0.006666666667 | D95: Un écran pour 150 m de quais
A96: Grand écran départs/arrivées par hall de gare | B96: 1 | C96: 1
A97: Ecran affichage départ/arrivée | B97: 20000 | C97: 20000
A98: Ecran affichage itinéraire | B98: 5000 | C98: 5000
A99: Grand écran de départ/arrivées | B99: 50000 | C99: 50000
A100: % du prix d'achat en maintenance/rénovation annuelle | B100: 0.15 | C100: 0.15
A101: Flux maximum par heure par ETP | B101: 30 | C101: 30
A102: % ouverture point information (sur amplitude d'ouverture) | B102: 0.8 | C102: 0.8
A103: % de personnes ayant recours au point information | B103: 0.1 | C103: 0.1 | D103: Permet de dimensionner le personnel d'accueil au point d'information
A104: Coût horaire ETP Point Information | B104: 50 | C104: 50
A105: Durée d'amortissement | B105: 10 | C105: 10
A106: 2.4 INFORMATION VOYAGEURS NON DIGITALE (SIGNALETIQUE)
A107: Panneaux d'orientation par m² de cœur de gare | B107: =1/20 -> 0.05 | C107: =1/20 -> 0.05 | D107: Un panneau pour 20 m² de surface cœur de gare
A108: Panneaux de nom de gare par quai | B108: 8 | C108: 8
A109: Panneaux de numérotation des voies par quai | B109: 8 | C109: 8
A110: Signalétique d'information en sortie de gare par entrées | B110: 1 | C110: 1
A111: Cadre information mural par m² cœur de gare | B111: 0.01 | C111: 0.01
A112: Coût d'installation panneaux d'orientation | B112: 1000 | C112: 1000
A113: Coût d'installation panneaux de nom de gare (quai) | B113: 1000 | C113: 1000
A114: Coût d'installation panneaux de numérotation des quais | B114: 1000 | C114: 1000
A115: Coût d'installation signalétique d'information en sortie de gare | B115: 2000 | C115: 2000
A116: Coût d'installation cadre information mural | B116: 1000 | C116: 1000
A117: % du prix d'achat en maintenance/rénovation annuelle | B117: 0.05 | C117: 0.05
A118: Durée d'amortissement | B118: 15 | C118: 15
A119: 2.5 INFORMATION VOYAGEURS SONORE EN GARE
A120: Nombre de haut-parleurs par m² de cœur de gare | B120: =20/400 -> 0.05 | C120: =20/400 -> 0.05 | D120: Un haut-parleur pour 20 m² de surface cœur de gare
A121: Nombre de haut-parleurs par mètres de quai | B121: 0.02 | C121: 0.02 | D121: Un haut-parleur pour 50 m de quais
A122: Coût d’installation de la sonorisation par nombre de hauts parleurs | B122: 1000 | C122: 1000
A123: Coût d'installation haut-parleur quai | B123: 1000 | C123: 1000
A124: % du prix d'achat en maintenance/rénovation annuelle | B124: 0.1 | C124: 0.1
A125: Durée d'amortissement | B125: 15 | C125: 15
A126: 2.6 CENTRE OPERATIONNEL D'ESCALE
A127: Ecran de supervision du trafic par voie | B127: 3 | C127: 3
A128: Bureaux à installer par écran | B128: 0.25 | C128: 0.25 | D128: Un bureau pour 4 écrans
A129: Ecrans d'information voyageur par local | B129: 3 | C129: 3
A130: Pourcentage de la surface du COE à aménager par G&C | B130: 1 | C130: 1
A131: Ecran de supervision du trafic | B131: 10000 | C131: 10000
A132: Installation de bureaux | B132: 200 | C132: 200
A133: Ecrans d'information voyageur | B133: 5000 | C133: 5000
A134: Aménagement du local au m² | B134: 500 | C134: 500
A135: Entretien du matériel | B135: 0.1 | C135: 0.1
A136: Nombre d'ETP par départ train | B136: 1 | C136: 1
A137: % d'ETP G&C | B137: 0.2 | C137: 0.2
A138: Coût horaire d'un ETP | B138: 65 | C138: 65
A139: Durée d'amortissement | B139: 20 | C139: 20
A140: 2.7 PMR
A141: Elévateurs fixes PMR par m² cœur de gare | B141: =1/200 -> 0.005 | C141: =3/600 -> 0.005 | D141: Unélévateur fixe PMR pour 200 m² de surface cœur de gare
A142: Rampes d'accès par voie | B142: 1 | C142: 1
A143: Elévateurs mobiles par voie | B143: 1 | C143: 1
A144: % de la surface à aménager pour les PMR (vitrophanies, bandes..) | B144: 0.05 | C144: 0.05
A145: Prix d'un élévateur PMR fixe | B145: 5000 | C145: 5000
A146: Prix d'une rampe d'accès PMR | B146: 5000 | C146: 5000
A147: Prix d'un élévateur Mobile | B147: 5000 | C147: 5000
A148: Prix de l'aménagement PMR par m² | B148: 2000 | C148: 2000
A149: % du prix d'achat en maintenance/rénovation annuelle | B149: 0.05 | C149: 0.05
A150: Nombre de prestations PMR par voyageur | B150: =1/600 -> 0.001666666667 | C150: =1/600 -> 0.001666666667 | D150: Une prestation PMR pour 600 voyageurs en gare
A151: Durée moyenne d'une prestation (en heure) | B151: 0.5 | C151: 0.5
A152: % de surface PMR à rénover annuellement | B152: 0.005 | C152: 0.005
A153: Coût horaire d'une prestation PMR | B153: 100 | C153: 100
A154: Durée d'amortissement | B154: 15 | C154: 15
A155: 2.8 HORLOGES
A156: Nombre d'horloges par mètres de quais | B156: =1/100 -> 0.01 | C156: 0.01 | D156: Un horloge pour 100 m de quais
A157: Nombre d'horloges par m² cœur de de gare | B157: =1/200 -> 0.005 | C157: =1/200 -> 0.005 | D157: 1 horloge pour 200 m² de surface cœur de gare
A158: Coût d'installation d'une horloge de quai | B158: 2000 | C158: 2000
A159: Coût d'installation d'une horloge de gare | B159: 2000 | C159: 2000
A160: % du prix d'achat en maintenance/rénovation annuelle | B160: 0.1 | C160: 0.1
A161: Durée d'amortissement | B161: 15 | C161: 15
A162: 3.1 EQUIPES DE SECURITE
A163: Coût horaire d’un ETP SUGE (régulé) | B163: 84.13 | C163: 84.13
A164: Charges fixes annuelles par heure de SUGE | B164: 5.681843034 | C164: 5.68
A165: Durée d'amortissement | B165: 15 | C165: 15
A166: 3.2 EQUIPES DE GARDIENNAGE
A167: Heures sécurité gardiennage en supplément SUGE | B167: 1 | C167: 1 | D167: Choix directeur de gare, en complément de la SUGE
A168: Coût horaire moyen d’un ETP | B168: 25 | C168: 25
A169: Durée d'amortissement | B169: 15 | C169: 15
A170: Taux de renouvellement des équipements | B170: 0 | C170: 0 | D170: Taux de renouvellement des équipements au terme de la durée d'amortissement
A171: Coefficient de progrès techniques et inflation | B171: 0.005 | C171: 0.005 | D171: Coefficient annuel permettant de simuler la hausse annuelle des prix pour cette unité fonctionnelle (permet de calculer le coût de renouvellement)
A172: 3.3 PORTES D'EMBARQUEMENT
A173: Nombre de portes d'embarquement par quais | B173: 6 | C173: 6
A174: Coût d’installation unitaire d’une porte d’embarquement | B174: 0 | C174: 0 | D174: Valeur mise à zéro
A175: % du prix d'achat en maintenance/rénovation annuelle | B175: 0.1 | C175: 0.1
A176: Durée d'amortissement | B176: 15 | C176: 15
A177: 3.4 VIDEOSURVEILLANCE
A178: Caméras par m² de gares | B178: =1/100 -> 0.01 | C178: =1/100 -> 0.01 | D178: 1 caméra pour 100 m² de surface de gare
A179: Caméras par mètre de quais | B179: =1/100 -> 0.01 | C179: 0.01 | D179: 1 caméra pour 100 m de quais
A180: Caméras par entrées | B180: 2 | C180: 2
A181: Coefficient d'augmentation du parc de caméras cœur de gare | B181: 0.2 | C181: 0.2
A182: Caméra cœur de gare | B182: 15000 | C182: 15000
A183: Caméra quais | B183: 15000 | C183: 15000
A184: Caméra entrées | B184: 15000 | C184: 15000
A185: % du prix d'achat en maintenance/rénovation annuelle | B185: 0.1 | C185: 0.1
A186: Durée d'amortissement | B186: 15 | C186: 15
A187: 3.5 SECURITE INCENDIE
A188: Dispositif de sécurité incendie (Détecteurs de fumée, sprinkler, volets de désenfumage, signalétique de sortie de secours, déclencheurs manuel d'alerte, …) par m2 | B188: 0.02 | C188: 0.02 | D188: 1 dispositif pour 50 m² de surface totale
A189: Nombre d'extincteurs par m2 | B189: 0.005 | C189: 0.005
A190: Nombre de colonnes sèches par m2 | B190: 0.0005 | C190: 0.0005
A191: Nombre de véhicule d'intervention par m2 | B191: 0.0001 | C191: 0.0001
A192: Dispositifs de sécurité incendie | B192: 2000 | C192: 2000
A193: Extincteurs | B193: 100 | C193: 100
A194: Colonnes sèches | B194: 2000 | C194: 2000
A195: Véhicule d'intervention | B195: 100000 | C195: 100000
A196: Entretien des équipements | B196: 0.1 | C196: 0.1
A197: Durée d'amortissement | B197: 20 | C197: 20
A198: 3.6 BARRIERES
A199: Nombre d'alarmes par entrées | B199: 1 | C199: 1
A200: Barrière par voie | B200: 1 | C200: 1
... 146 more rows

Sheet Foncier
A1: 1.1 Foncier | H1: Profil de la gare testée : | J1: ='Profil de gare'!A1 -> Saisie semi-libre | L1: =IF(INDEX('Sous paramétrage UF'!A3:B48,MATCH(A1,'Sous paramétrage UF'!A3:A48,0),MATCH(J1,'Sous paramétrage UF'!A3:B3,0))=1,"Unité active","Unité non active") -> Unité active | O1: INTRODUCTION
A2: Sous-unité | B2: Inducteur de coût Gare | C2: Région choisie | D2: Surface | E2: Unité | F2: 1er quartile | G2: Moyenne | H2: Médiane | I2: 3ème quartile | J2: 1er quartile | K2: Moyenne | L2: Médiane | M2: 3ème quartile
A3: Prix du terrain | B3: Surface voiries + bâtiment | C3: =VLOOKUP(C2,'Modulation des prix du bâtiment'!A3:B8,2,0) -> Auvergne-Rhône-Alpes | D3: =VLOOKUP(B3,'Profil de gare'!A4:B68,2,0) -> 2186.002659 | E3: m² | F3: =INDEX(A11:E28,MATCH(Foncier!$C$3,A11:A28,0),MATCH($F$2,A11:E11,0)) -> 53 | G3: =INDEX(A11:E28,MATCH(Foncier!$C$3,A11:A28,0),MATCH(G2,A11:E11,0)) -> 92 | H3: =INDEX(A11:E28,MATCH(Foncier!$C$3,A11:A28,0),MATCH(H2,A11:E11,0)) -> 100 | I3: =INDEX(A11:E28,MATCH(Foncier!$C$3,A11:A28,0),MATCH(I2,A11:E11,0)) -> 176 | J3: =IF($L$1="Unité active",F3*$D$3,0) -> 115858.1409 | K3: =IF($L$1="Unité active",G3*$D$3,0) -> 201112.2446 | L3: 218600.2659 | M3: 384736.4679 | O3: PROFIL DE GARES
O4: COÛT DE LA GARE
O5: CALCUL DU TARIF
A6: Description de l'unité
A7: Cette unité permet de calculer le prix du terrain en fonction de la surface totale nécessaire à la construction de la gare
A11: Région | B11: 1er quartile | C11: Moyenne | D11: Médiane | E11: 3ème quartile
A13: Auvergne-Rhône-Alpes | B13: 53 | C13: 92 | D13: 100 | E13: 176
A14: Bourgogne-Franche-Comté | B14: 27 | C14: 46 | D14: 54 | E14: 90
A15: Bretagne | B15: 56 | C15: 78 | D15: 97 | E15: 142
A16: Centre-Val de Loire | B16: 39 | C16: 59 | D16: 70 | E16: 114
A17: Corse | B17: 59 | C17: 83 | D17: 90 | E17: 115
A18: Grand Est | B18: 48 | C18: 79 | D18: 101 | E18: 165
A19: Hauts-de-France | B19: 50 | C19: 72 | D19: 91 | E19: 124
A20: Île-de-France | B20: 174 | C20: 232 | D20: 259 | E20: 372
A21: Normandie | B21: 32 | C21: 51 | D21: 59 | E21: 102
A22: Nouvelle-Aquitaine | B22: 27 | C22: 59 | D22: 71 | E22: 129
A23: Occitanie | B23: 51 | C23: 82 | D23: 115 | E23: 214
A24: Pays de la Loire | B24: 60 | C24: 87 | D24: 97 | E24: 150
A25: Provence-Alpes-Côte d'Azur | B25: 111 | C25: 154 | D25: 194 | E25: 270
A26: DOM | B26: 97 | C26: 133 | D26: 149 | E26: 237
A27: France métropolitaine | B27: 48 | C27: 82 | D27: 95 | E27: 163
A28: France entière | B28: 49 | C28: 82 | D28: 96 | E28: 165
A31: Commissariat général au développement durable
A32: Le prix des terrains à bâtir en 2016

Sheet Gros œuvre (hidden)
A1: 1.2 Gros œuvre | G1: Profil de la gare testée : | I1: ='Profil de gare'!A1 -> Saisie semi-libre | K1: =IF(INDEX('Sous paramétrage UF'!A3:B48,MATCH(A1,'Sous paramétrage UF'!A3:A48,0),MATCH(I1,'Sous paramétrage UF'!A3:B3,0))=1,"Unité active","Unité non active") -> Unité active
A2: Désignation | B2: Sous unité | C2: Description | D2: Assiette de calcul | E2: Inducteur de coût Gare | F2: Valeur | G2: Unité | H2: Prix unitaire | I2: Coût total gare | O2: INTRODUCTION
A3: Confortement de sol | B3: Fondations - Infrastructures | C3: Compris : Etudes et plans d'exécution, implantation par géomètre, Transport de la machine, Exécution des colonnes ballastées sous les emprises des bâtiments, Mission G4 | D3: Surface au sol bâtiment | E3: Surface voiries + bâtiment | F3: =VLOOKUP(E3,'Profil de gare'!$A$4:$B$68,2,0) -> 2186.002659 | G3: m² | H3: ='Paramètres UF'!C7 -> 43 | I3: =IF($K$1="Unité active",$F3*'Paramètres UF'!C7,0) -> 93998.11432
A4: Fondations - Infrastructures | B4: Fondations - Infrastructures | C4: Compris : Etudes BA et plans d'exécution, Implantations de chantier et géomètre, Béton de propreté, Semelles, fûts BA, Semelles filantes, longrines BA, Dallage des bâtiments annexes, Fosses et cuvettes ascenseur, Massifs (candélabres, signalétique, portails), Réseaux sous dallage, Longrines, + Chambre de tirage | D4: Emprise au sol des bâtiments | E4: Surface voiries + bâtiment | F4: =VLOOKUP(E4,'Profil de gare'!$A$4:$B$68,2,0) -> 2186.002659 | G4: m² | H4: ='Paramètres UF'!C8 -> 40 | I4: =IF($K$1="Unité active",$F4*'Paramètres UF'!C8,0) -> 87440.10634 | O4: PROFIL DE GARES
A5: Terrassements Généraux - Apports | B5: Terrassement | D5: Surface au sol bâtiment + Aire de manœuvre véhicules | E5: Surface voiries + bâtiment | F5: =VLOOKUP(E5,'Profil de gare'!$A$4:$B$68,2,0) -> 2186.002659 | G5: m² | H5: ='Paramètres UF'!C9 -> 68 | I5: =IF($K$1="Unité active",$F5*'Paramètres UF'!C9,0) -> 148648.1808 | O5: COÛT DE LA GARE
A6: Espaces Verts | B6: Terrassement | C6: Compris : Reprise terre végétale, Préparation du terrain (griffage, fosses de plantations…), Semage , Plantations des végétaux (arbustes de haies, arbres tiges, plantes …) | D6: Surface espaces verts | E6: Surface voiries | F6: =VLOOKUP(E6,'Profil de gare'!$A$4:$B$68,2,0) -> 936.8582823 | G6: m² | H6: ='Paramètres UF'!C10 -> 6.5 | I6: =IF($K$1="Unité active",$F6*'Paramètres UF'!C10,0) -> 6089.578835 | O6: CALCUL DU TARIF
A7: Canalisations - Assainissements | B7: VRD (Voieries Réseau Accès) | C7: Compris : Canalisation EP/EU/EV, y compris tranchées, Regards et tampons, Séparateurs à hydrocarbures, Passage caméra et inspections TV | D7: Surface au sol bâtiment + Surface Voiries | E7: Surface voiries + bâtiment | F7: =VLOOKUP(E7,'Profil de gare'!$A$4:$B$68,2,0) -> 2186.002659 | G7: m² | H7: ='Paramètres UF'!C11 -> 8.5 | I7: =IF($K$1="Unité active",$F7*'Paramètres UF'!C11,0) -> 18581.0226
A8: Travaux annexes aux VRD | B8: VRD (Voieries Réseau Accès) | C8: Compris : Alimentations HT MT BT y compris tranchées, fourreaux et chambres de tirages, Alimentations électriques diverses y compris tranchées, fourreaux et chambres de tirages, Eclairage extérieur y compris tranchées, fourreaux et chambres de tirages, Eau de ville y compris tranchées et fourreaux, Réseaux gaz y compris tranchées et logette, Réseaux téléphone y compris tranchées, fourreaux, chambres de tirages et contrôle, Poteaux d'incendie y compris tranchées, fourreaux et massifs | D8: Surface totale parcelle de la Plateforme | E8: Surface totale | F8: =VLOOKUP(E8,'Profil de gare'!$A$4:$B$68,2,0) -> 7961.002659 | G8: m² | H8: ='Paramètres UF'!C12 -> 6 | I8: =IF($K$1="Unité active",$F8*'Paramètres UF'!C12,0) -> 47766.01595
A9: Voirie Véhicules Légers | B9: VRD (Voieries Réseau Accès) | D9: Surface Voirie VL | E9: Surface voiries | F9: =VLOOKUP(E9,'Profil de gare'!$A$4:$B$68,2,0) -> 936.8582823 | G9: m² | H9: ='Paramètres UF'!C13 -> 14.5 | I9: =IF($K$1="Unité active",$F9*'Paramètres UF'!C13,0) -> 13584.44509
A10: Cheminements piétons | B10: VRD (Voieries Réseau Accès) | D10: Surface Cheminements piétons | E10: Surface voiries | F10: =VLOOKUP(E10,'Profil de gare'!$A$4:$B$68,2,0) -> 936.8582823 | G10: m² | H10: ='Paramètres UF'!C14 -> 37.5 | I10: =IF($K$1="Unité active",$F10*'Paramètres UF'!C14,0) -> 35132.18558
A11: Dallage Béton - Voiries | B11: Dallage | D11: Surface de plancher halle de production | E11: Surface voiries | F11: =VLOOKUP(E11,'Profil de gare'!$A$4:$B$68,2,0) -> 936.8582823 | G11: m² | H11: ='Paramètres UF'!C15 -> 74 | I11: =IF($K$1="Unité active",$F11*'Paramètres UF'!C15,0) -> 69327.51289
A12: Dallage Béton (+Revêtement industriel) - Halle | B12: Dallage | D12: Surface de plancher halle de production | E12: Surface hall voyageur | F12: =VLOOKUP(E12,'Profil de gare'!$A$4:$B$68,2,0) -> 1006.322549 | G12: m² | H12: ='Paramètres UF'!C16 -> 74 | I12: =IF($K$1="Unité active",$F12*'Paramètres UF'!C16,0) -> 74467.8686
A13: Dallage Béton (+Revêtement industriel) - Bureaux & Locaux | B13: Dallage | D13: Surface de plancher rdc bureaux | E13: Surface commerciale + locaux | F13: =VLOOKUP(E13,'Profil de gare'!$A$4:$B$68,2,0) -> 242.8218277 | G13: m² | H13: ='Paramètres UF'!C17 -> 135 | I13: =IF($K$1="Unité active",$F13*'Paramètres UF'!C17,0) -> 32780.94674
A14: Local de garde + chauffeurs + poubelles + technique | B14: Maçonnerie - superstructure | D14: Surface murs des locaux | E14: Surface commerciale + locaux | F14: =VLOOKUP(E14,'Profil de gare'!$A$4:$B$68,2,0) -> 242.8218277 | G14: m² | H14: ='Paramètres UF'!C18 -> 210 | I14: =IF($K$1="Unité active",$F14*'Paramètres UF'!C18,0) -> 50992.58381
A15: Charpente métallique | B15: Maçonnerie - superstructure | C15: Structure métallique en trieur simple, constitué de pannes, poutres, poteaux pour la Halle | D15: Surface de plancher halle de production | E15: Surface bâtiment voyageur | F15: =VLOOKUP(E15,'Profil de gare'!$A$4:$B$68,2,0) -> 1249.144376 | G15: m² | H15: ='Paramètres UF'!C19 -> 125 | I15: =IF($K$1="Unité active",$F15*'Paramètres UF'!C19,0) -> 156143.047
A16: Ossatures secondaires bardages | B16: Maçonnerie - superstructure | C16: Ossatures secondaires pour fixation bardages, compris toutes sujétions. | D16: Surface de plancher halle de production + bureaux | E16: Surface bâtiment voyageur | F16: =VLOOKUP(E16,'Profil de gare'!$A$4:$B$68,2,0) -> 1249.144376 | G16: m² | H16: ='Paramètres UF'!C20 -> 20 | I16: =IF($K$1="Unité active",$F16*'Paramètres UF'!C20,0) -> 24982.88753
I17: =SUM(I3:I16) -> 859934.4961
A20: Description de l'unité
A21: Cette unité permet de calculer le coût de construction de l'infrastructure et la suprastructure en fonction de la surface totale nécessaire à la construction de la gare

Sheet Second oeuvre technique (hidden)
A1: 1.3 Second œuvre - Corps d'état techniques | G1: Profil de la gare testée : | I1: ='Profil de gare'!A1 -> Saisie semi-libre | K1: =IF(INDEX('Sous paramétrage UF'!A3:B48,MATCH(A1,'Sous paramétrage UF'!A3:A48,0),MATCH(I1,'Sous paramétrage UF'!A3:B3,0))=1,"Unité active","Unité non active") -> Unité active
A2: Désignation | B2: Sous unité | C2: Description | D2: Assiette de calcul | E2: Inducteur de coût Gare | F2: Valeur | G2: Unité | H2: Prix unitaire | I2: Coût total gare | O2: INTRODUCTION
A3: Couverture - Etanchéité - Désenfumage | B3: Couverture - Etanchéité - Désenfumage | C3: Bac acier, faible isolant thermique, étanchéité bicouche | D3: Surface de plancher halle de production | E3: Surface bâtiment voyageur | F3: =VLOOKUP(E3,'Profil de gare'!$A$4:$B$68,2,0) -> 1249.144376 | G3: m² | H3: 110 | I3: =IF($K$1="Unité active",$F3*H3,0) -> 137405.8814
A4: Bardage métallique - Façades | B4: Bardage métallique | C4: Bardage double peau, avec isolation incorporé | D4: Surface des façades halle de production | E4: Surface des façades en bardage | F4: =VLOOKUP(E4,'Profil de gare'!$A$4:$B$68,2,0) -> 612.6161018 | G4: m² | H4: 115 | I4: =IF($K$1="Unité active",$F4*H4,0) -> 70450.85171 | O4: PROFIL DE GARES
A5: Bardage métallique - Toiture | B5: Bardage métallique | D5: Surface toiture en bardage | E5: Surface de la toiture en bardage | F5: =VLOOKUP(E5,'Profil de gare'!$A$4:$B$68,2,0) -> 999.3155011 | G5: m² | H5: 115 | I5: 114921.2826 | O5: COÛT DE LA GARE
A6: Electricité - Courants forts/courants faibles bâtiment voyageur | B6: Electricité - Courants forts/faibles | C6: Alimentation principale du site, tableau divisionnaires, tableau général BT, distribution générale secondaire, chemin de câbles, installation lumière, appareillage, éclairage, installation force, mise à la terre, protection foudre … | D6: Surface de plancher opération | E6: Surface bâtiment voyageur | F6: =VLOOKUP(E6,'Profil de gare'!$A$4:$B$68,2,0) -> 1249.144376 | G6: m² | H6: 167.5 | I6: 209231.683 | O6: CALCUL DU TARIF
A7: Electricité - Courants forts/courants faibles quais | B7: Electricité - Courants forts/faibles | C7: Alimentation principale du site, tableau divisionnaires, tableau général BT, distribution générale secondaire, chemin de câbles, installation lumière, appareillage, éclairage, installation force, mise à la terre, protection foudre … | D7: Surface de plancher opération | E7: Surface des quais | F7: =VLOOKUP(E7,'Profil de gare'!$A$4:$B$68,2,0) -> 5775 | G7: m² | H7: 92.5 | I7: 534187.5
A8: Froid - Production et distribution | B8: Froid - Production et distribution | E8: Surface bâtiment voyageur | F8: =VLOOKUP(E8,'Profil de gare'!$A$4:$B$68,2,0) -> 1249.144376 | G8: m² | H8: 100 | I8: 124914.4376
A9: Plomberie | B9: Plomberie | C9: Compris : Air, Adduction eau froide, traitement eau, distribution eau froide, distribution eau adoucie, Eau chaude distribution sanitaire, évacuation, EP, Récupération eau de pluie … | D9: Surface de plancher RIE + bureaux | E9: Surface voiries + bâtiment | F9: =VLOOKUP(E9,'Profil de gare'!$A$4:$B$68,2,0) -> 2186.002659 | G9: m² | H9: 3.5 | I9: 7651.009305
I10: =SUM(I3:I9) -> 1198762.646
A13: Description de l'unité
A14: Cette unité permet de calculer le coût d'installation des équipements du bâtiment nécessaires à la gare en fonction de la surface bâtiment nécessaire à la construction de la gare. Ces installations sont assez standard, quelques soit l'utilisation de la surface et quelque soit le type de bâtiment.

Sheet Second oeuvre architectural (hidden)
A1: 1.4 Second œuvre - Corps d'états architecturaux | G1: Profil de la gare testée : | I1: ='Profil de gare'!A1 -> Saisie semi-libre | K1: =IF(INDEX('Sous paramétrage UF'!A3:B48,MATCH(A1,'Sous paramétrage UF'!A3:A48,0),MATCH(I1,'Sous paramétrage UF'!A3:B3,0))=1,"Unité active","Unité non active") -> Unité active
A2: Désignation | B2: Sous unité | C2: Description | D2: Assiette de calcul | E2: Inducteur de coût Gare | F2: Valeur | G2: Unité | H2: Prix unitaire | I2: Coût total gare | O2: INTRODUCTION
A3: Vitrerie - Façades | B3: Vitrerie | D3: Surface façade en verre | E3: Surface des façades en verre | F3: =VLOOKUP(E3,'Profil de gare'!$A$4:$B$68,2,0) -> 918.9241527 | G3: m² | H3: 1150 | I3: =IF($K$1="Unité active",$F3*H3*(1+VLOOKUP('Modulation des prix du bâtiment'!$B$6,'Niveaux de services'!$A$5:$Q$8,14,0)),0) -> 1585144.163
A4: Vitrerie - Toiture | B4: Vitrerie | D4: Surface toiture en verre | E4: Surface de la toiture en verre | F4: =VLOOKUP(E4,'Profil de gare'!$A$4:$B$68,2,0) -> 249.8288753 | G4: m² | H4: 1150 | I4: =IF($K$1="Unité active",$F4*H4*(1+VLOOKUP('Modulation des prix du bâtiment'!$B$6,'Niveaux de services'!$A$5:$Q$8,14,0)),0) -> 430954.8098 | O4: PROFIL DE GARES
A5: Menuiseries intérieures | B5: Menuiseries intérieures | C5: Compris : Bloc-portes, plinthes, habillages, trappes, placards, châssis, pictogrammes | D5: Surface de plancher bureaux + locaux sociaux | E5: Surface bâtiment voyageur | F5: =VLOOKUP(E5,'Profil de gare'!$A$4:$B$68,2,0) -> 1249.144376 | G5: m² | H5: 50 | I5: =IF($K$1="Unité active",$F5*H5*(1+VLOOKUP('Modulation des prix du bâtiment'!$B$6,'Niveaux de services'!$A$5:$Q$8,14,0)),0) -> 93685.82823 | O5: COÛT DE LA GARE
A6: Plâtrerie - façades non vitrées | B6: Plâtrerie | C6: Compris : Doublage bureaux, Doublage mur CF, Cloison de distribution standard , Cloison de distribution hydrofuge | D6: Surface de plancher bureaux | E6: Surface des façades en bardage | F6: =VLOOKUP(E6,'Profil de gare'!$A$4:$B$68,2,0) -> 612.6161018 | G6: m² | H6: 115 | I6: =IF($K$1="Unité active",$F6*H6*(1+VLOOKUP('Modulation des prix du bâtiment'!$B$6,'Niveaux de services'!$A$5:$Q$8,14,0)),0) -> 105676.2776 | O6: CALCUL DU TARIF
A7: Plâtrerie - bureaux et commerces | B7: Plâtrerie | E7: Surface commerciale + locaux | F7: =VLOOKUP(E7,'Profil de gare'!$A$4:$B$68,2,0) -> 242.8218277 | G7: m² | H7: 115 | I7: =IF($K$1="Unité active",$F7*H7*(1+VLOOKUP('Modulation des prix du bâtiment'!$B$6,'Niveaux de services'!$A$5:$Q$8,14,0)),0) -> 41886.76528
A8: Cloisons amovibles | B8: Second œuvre architectural - bureaux & locaux | C8: Cloison démontables pour bureaux | D8: Surface de plancher RdC bureaux | E8: Surface commerciale + locaux | F8: =VLOOKUP(E8,'Profil de gare'!$A$4:$B$68,2,0) -> 242.8218277 | G8: m² | H8: 130 | I8: =IF($K$1="Unité active",$F8*H8*(1+VLOOKUP('Modulation des prix du bâtiment'!$B$6,'Niveaux de services'!$A$5:$Q$8,14,0)),0) -> 47350.2564
A9: Faux-plafonds - Isolation | B9: Second œuvre architectural - bureaux & locaux | C9: Compris faux plafonds en dalle standard dans bureaux et Faux plafond en dalle hygiène dans locaux sociaux | D9: Surface de plancher bureaux + locaux sociaux | E9: Surface commerciale + locaux | F9: =VLOOKUP(E9,'Profil de gare'!$A$4:$B$68,2,0) -> 242.8218277 | G9: m² | H9: 83 | I9: =IF($K$1="Unité active",$F9*H9*(1+VLOOKUP('Modulation des prix du bâtiment'!$B$6,'Niveaux de services'!$A$5:$Q$8,14,0)),0) -> 30231.31755
A10: Carrelages - Faïences | B10: Second œuvre architectural - bureaux & locaux | C10: Compris : Carrelage au sol en grès cérame, Faïence toute hauteur dans LS et Autres (tapis, seuil …) | D10: Surface de plancher locaux sociaux | E10: Surface commerciale + locaux | F10: =VLOOKUP(E10,'Profil de gare'!$A$4:$B$68,2,0) -> 242.8218277 | G10: m² | H10: 90 | I10: =IF($K$1="Unité active",$F10*H10*(1+VLOOKUP('Modulation des prix du bâtiment'!$B$6,'Niveaux de services'!$A$5:$Q$8,14,0)),0) -> 32780.94674
A11: Peinture - Façades non vitrées | B11: Peinture | C11: Compris : peinture sur plaque de plâtre, boiseries et métal | D11: Surface de plancher bureaux | E11: Surface des façades en bardage | F11: =VLOOKUP(E11,'Profil de gare'!$A$4:$B$68,2,0) -> 612.6161018 | G11: m² | H11: 55 | I11: =IF($K$1="Unité active",$F11*H11*(1+VLOOKUP('Modulation des prix du bâtiment'!$B$6,'Niveaux de services'!$A$5:$Q$8,14,0)),0) -> 50540.8284
A12: Revêtements souples | B12: Second œuvre architectural - bureaux & locaux | C12: Sol souple | D12: Surface de plancher bureaux | E12: Surface commerciale + locaux | F12: =VLOOKUP(E12,'Profil de gare'!$A$4:$B$68,2,0) -> 242.8218277 | G12: m² | H12: 85 | I12: =IF($K$1="Unité active",$F12*H12*(1+VLOOKUP('Modulation des prix du bâtiment'!$B$6,'Niveaux de services'!$A$5:$Q$8,14,0)),0) -> 30959.78303
I13: =IF($K$1="Unité active",SUM(I3:I12),0) -> 2449210.976
A16: Description de l'unité
A17: Cette unité permet de calculer le coût d'installation des équipements architecturaux et décoratifs nécessaires à la gare en fonction de la surface bâtiment nécessaire à la construction de la gare et/ou en fonction des différentes surfaces au sein même de la gare. Les coûts de cette unité peuvent beaucoup varier en fonction des souhaits architecturaux des commanditaires du bâtiment.

Sheet M.O.E. (hidden)
A1: 1.5 Frais de maîtrise d'œuvre (MOE) et frais divers | D1: Profil de la gare testée : | E1: ='Profil de gare'!A1 -> Saisie semi-libre | F1: =IF(INDEX('Sous paramétrage UF'!A3:B48,MATCH(A1,'Sous paramétrage UF'!A3:A48,0),MATCH(E1,'Sous paramétrage UF'!A3:B3,0))=1,"Unité active","Unité non active") -> Unité active | H1: INTRODUCTION
A2: Sous-unité | B2: Assiette de calcul | C2: Coefficient de MOE par rapport au coût global de construction | D2: Source | H2: PROFIL DE GARES
A3: M.O.E. Projet | C3: ='Paramètres UF'!C44 -> 0.2 | H3: COÛT DE LA GARE
H4: CALCUL DU TARIF
H5: MODELISATION
A6: Description de l'unité
A7: Cette unité permet de calculer les coûts d'études et de gestion de projet liés à la construction de la gare

Sheet Siège G&C (hidden)
A1: Sous-unité | B1: Mark-Up sur l'annualisation de CAPEX + OPEX | C1: Source | E1: INTRODUCTION
A2: Siège G&C | B2: ='Paramètres UF'!C344 -> 0 | E2: PROFIL DE GARES
E3: COÛT DE LA GARE
E4: CALCUL DU TARIF
A5: Description de l'unité | E5: MODELISATION
A6: L'unité fonctionnelle Siège permet de couvrir les frais (immobilier de bureau et site) et les charges de personnel (salaires), les frais de fonctionnement du Siège G&C et les frais de SI métier de G&C
A9: A contrario, la redevance entreprise est le montant payé par G&C à SNCF Réseau pour la centralisation de services portés par la maison mère et non assurés par G&C.

Sheet Sous paramétrage UF
A1: Ce tableau permet de définir les unités qui seront comptabilisées dans le calcul des coûts de la gare par type de gares. La valeur 1 permet de prendre en compte l'unité fonctionnelle tandis que la valeur 0 la désactive. | D1: INTRODUCTION
A3: UNITE FONCTIONELLE | B3: Saisie semi-libre | D3: PROFIL DE GARES
A4: Type de gare simulée en saisie semi-libre -> | B4: ='Profil de gare'!E2 -> Gare A Passage | D4: COÛT DE LA GARE
A5: 1 - Bâtiment | D5: CALCUL DU TARIF
A6: 1.1 Foncier | B6: 1
A7: 1.2 Gros œuvre | B7: 1
A8: 1.3 Second œuvre - Corps d'état techniques | B8: 1
A9: 1.4 Second œuvre - Corps d'états architecturaux | B9: 1
A10: 1.5 Frais de maîtrise d'œuvre (MOE) et frais divers | B10: 1
A11: 1.6 Passerelles et souterrains | B11: 1
A12: 2 - Circuler et informer les voyageurs
A13: 2.1 Quais | B13: 1
A14: 2.2 Ascenseurs, escalators, portes automatiques | B14: 1
A15: 2.3 Information voyageur digitale | B15: 1
A16: 2.4 Information voyageur non digitale | B16: 1
A17: 2.5 Information voyageur sonore en gare | B17: 1
A18: 2.6 Centre Opérationnel d'Escale | B18: 1
A19: 2.7 Accès et services PMR | B19: 1
A20: 2.8 Horloges | B20: 1
A21: 3 - Sécuriser
A22: 3.1 Équipes de sécurité | B22: 1
A23: 3.2 Équipes de gardiennage | B23: 1
A24: 3.3 Portes d'embarquement | B24: 1
A25: 3.4 Vidéosurveillance | B25: 1
A26: 3.5 Sécurité incendie | B26: 1
A27: 3.6 Barrières de sécurité, clôture, sécurisation d'accès | B27: 1
A28: 3.7 Points de mise en relation avec le centre de sécurité | B28: 1
A29: 4 - Entretenir et assurer un bon niveau de confort
A30: 4.1 Espace d’attente | B30: 1
A31: 4.2 Propreté | B31: 1
A32: 4.3 Energie et fluide - Installation éclairage | B32: 1
A33: 4.4 Energie et fluide - Installation CVC | B33: 1
A34: 4.5 Dépenses énergétique et fluides - Eau | B34: 1
A35: 4.6 Dépenses énergétique et fluides - KWh | B35: 1
A36: 4.7 Sanitaires | B36: 0
A37: 4.8 Wifi voyageur | B37: 1
A38: 5 - Mise à disposition des locaux et des surfaces
A39: 5.1 Locaux destinés au personnel G&C et prestataires | B39: 1
A40: 5.2 Locaux destinés aux entreprises ferroviaires | B40: 1
A41: 5.3 Espaces aménagés pour la vente de titres ferroviaires | B41: 1
A42: 6 - Autres services
A43: 6.1 Locaux commerciaux ou boutiques | B43: 1
A44: 6.2 Parking | B44: 0
A45: 6.3 Salon grands voyageurs | B45: 1
A46: 6.4 Panneaux publicitaires | B46: 1
A47: 7 - Prestation transmanche
A48: 7.1 Installations et services de l'espace Transmanche | B48: 1

Sheet Sous paramétrage OPEX (hidden)
B1: Nom de l'unité fonctionnelle | D1: Valeur référence | E1: Saisie semi-libre | F1: Gare TGA Parisienne | G1: Gare TGA Autres | H1: Nouvelle Gare A | I1: Gare A Terminus | J1: Gare A Passage | K1: Gare Mass-Transit Francilienne | L1: Gare B | M1: Gare C | N1: Remarques et explications | P1: INTRODUCTION
C2: Type de gare simulée en saisie semi-libre -> | E2: ='Profil de gare'!E2 -> Gare A Passage
B3: 2 - Circuler et informer les voyageurs | C3: =B3 -> 2 - Circuler et informer les voyageurs
A4: =C4 -> Quais | B4: 2.1 Quais | C4: Quais | P4: PROFIL DE GARES
A5: =C4 -> Quais | B5: Paramètre #1 | C5: =IF(ISBLANK(INDIRECT("'"&$A5&"'!$J$29")),"Non utilisé",INDIRECT("'"&$A5&"'!$J$29")) -> % du prix d'achat en maintenance/rénovation annuelle | D5: =IF(ISBLANK(INDIRECT("'"&$A5&"'!$K$29")),"",INDIRECT("'"&$A5&"'!$K$29")) -> 0.005 | E5: =INDEX($A$1:$M$194,MATCH(A5&C5,$A$1:$A$194&$C$1:$C$194,0),MATCH($E$2,$A$1:$M$1,0)) -> 1 | F5: 1 | G5: 1 | H5: 1 | I5: 1 | J5: 1 | K5: 1 | L5: 1 | M5: 0 | P5: COÛT DE LA GARE
A6: =C4 -> Quais | B6: Paramètre #2 | C6: =IF(ISBLANK(INDIRECT("'"&$A6&"'!$J$30")),"Non utilisé",INDIRECT("'"&$A6&"'!$J$30")) -> Non utilisé | D6: =IF(ISBLANK(INDIRECT("'"&$A6&"'!$K$30")),"",INDIRECT("'"&$A6&"'!$K$30")) ->  | E6: =INDEX($A$1:$M$194,MATCH(A6&C6,$A$1:$A$194&$C$1:$C$194,0),MATCH($E$2,$A$1:$M$1,0)) -> 0
A7: =C4 -> Quais | B7: Paramètre #3 | C7: =IF(ISBLANK(INDIRECT("'"&$A7&"'!$J$31")),"Non utilisé",INDIRECT("'"&$A7&"'!$J$31")) -> Non utilisé | D7: =IF(ISBLANK(INDIRECT("'"&$A7&"'!$K$31")),"",INDIRECT("'"&$A7&"'!$K$31")) ->  | E7: =INDEX($A$1:$M$194,MATCH(A7&C7,$A$1:$A$194&$C$1:$C$194,0),MATCH($E$2,$A$1:$M$1,0)) -> 0
A8: =C4 -> Quais | B8: Paramètre #4 | C8: =IF(ISBLANK(INDIRECT("'"&$A8&"'!$J$32")),"Non utilisé",INDIRECT("'"&$A8&"'!$J$32")) -> Non utilisé | D8: =IF(ISBLANK(INDIRECT("'"&$A8&"'!$K$32")),"",INDIRECT("'"&$A8&"'!$K$32")) ->  | E8: =INDEX($A$1:$M$194,MATCH(A8&C8,$A$1:$A$194&$C$1:$C$194,0),MATCH($E$2,$A$1:$M$1,0)) -> 0
A9: =C4 -> Quais | B9: Paramètre #5 | C9: =IF(ISBLANK(INDIRECT("'"&$A9&"'!$J$33")),"Non utilisé",INDIRECT("'"&$A9&"'!$J$33")) -> Non utilisé | D9: =IF(ISBLANK(INDIRECT("'"&$A9&"'!$K$33")),"",INDIRECT("'"&$A9&"'!$K$33")) ->  | E9: =INDEX($A$1:$M$194,MATCH(A9&C9,$A$1:$A$194&$C$1:$C$194,0),MATCH($E$2,$A$1:$M$1,0)) -> 0
A10: =C10 -> APE | B10: 2.2 Ascenseurs, escalators, portes automatiques | C10: APE | E10: =INDEX($A$1:$M$194,MATCH(A10&C10,$A$1:$A$194&$C$1:$C$194,0),MATCH($E$2,$A$1:$M$1,0)) -> 0 | P10: CALCUL DU TARIF
A11: =C10 -> APE | B11: Paramètre #1 | C11: =IF(ISBLANK(INDIRECT("'"&$A11&"'!$J$29")),"Non utilisé",INDIRECT("'"&$A11&"'!$J$29")) -> % du prix d'achat en maintenance/rénovation annuelle | D11: =IF(ISBLANK(INDIRECT("'"&$A11&"'!$K$29")),"",INDIRECT("'"&$A11&"'!$K$29")) -> 0.05 | E11: =INDEX($A$1:$M$194,MATCH(A11&C11,$A$1:$A$194&$C$1:$C$194,0),MATCH($E$2,$A$1:$M$1,0)) -> 1 | F11: 1 | G11: 1 | H11: 1 | I11: 1 | J11: 1 | K11: 1 | L11: 1 | M11: 0 | P11: MODELISATION
A12: =C10 -> APE | B12: Paramètre #2 | C12: =IF(ISBLANK(INDIRECT("'"&$A12&"'!$J$30")),"Non utilisé",INDIRECT("'"&$A12&"'!$J$30")) -> Non utilisé | D12: =IF(ISBLANK(INDIRECT("'"&$A12&"'!$K$30")),"",INDIRECT("'"&$A12&"'!$K$30")) ->  | E12: =INDEX($A$1:$M$194,MATCH(A12&C12,$A$1:$A$194&$C$1:$C$194,0),MATCH($E$2,$A$1:$M$1,0)) -> 1 | F12: 1 | G12: 1 | H12: 1 | I12: 1 | J12: 1 | K12: 1 | L12: 0 | M12: 0
A13: =C10 -> APE | B13: Paramètre #3 | C13: =IF(ISBLANK(INDIRECT("'"&$A13&"'!$J$31")),"Non utilisé",INDIRECT("'"&$A13&"'!$J$31")) -> Non utilisé | D13: =IF(ISBLANK(INDIRECT("'"&$A13&"'!$K$31")),"",INDIRECT("'"&$A13&"'!$K$31")) ->  | E13: =INDEX($A$1:$M$194,MATCH(A13&C13,$A$1:$A$194&$C$1:$C$194,0),MATCH($E$2,$A$1:$M$1,0)) -> 1 | F13: 1 | G13: 1 | H13: 1 | I13: 1 | J13: 1 | K13: 1 | L13: 1 | M13: 0
A14: =C10 -> APE | B14: Paramètre #4 | C14: =IF(ISBLANK(INDIRECT("'"&$A14&"'!$J$32")),"Non utilisé",INDIRECT("'"&$A14&"'!$J$32")) -> Non utilisé | D14: =IF(ISBLANK(INDIRECT("'"&$A14&"'!$K$32")),"",INDIRECT("'"&$A14&"'!$K$32")) ->  | E14: =INDEX($A$1:$M$194,MATCH(A14&C14,$A$1:$A$194&$C$1:$C$194,0),MATCH($E$2,$A$1:$M$1,0)) -> 1
A15: =C10 -> APE | B15: Paramètre #5 | C15: =IF(ISBLANK(INDIRECT("'"&$A15&"'!$J$33")),"Non utilisé",INDIRECT("'"&$A15&"'!$J$33")) -> Non utilisé | D15: =IF(ISBLANK(INDIRECT("'"&$A15&"'!$K$33")),"",INDIRECT("'"&$A15&"'!$K$33")) ->  | E15: =INDEX($A$1:$M$194,MATCH(A15&C15,$A$1:$A$194&$C$1:$C$194,0),MATCH($E$2,$A$1:$M$1,0)) -> 1
A16: =C16 -> Info digitale | B16: 2.3 Information voyageur digitale | C16: Info digitale | E16: =INDEX($A$1:$M$194,MATCH(A16&C16,$A$1:$A$194&$C$1:$C$194,0),MATCH($E$2,$A$1:$M$1,0)) -> 0
A17: =C16 -> Info digitale | B17: Paramètre #1 | C17: =IF(ISBLANK(INDIRECT("'"&$A17&"'!$J$29")),"Non utilisé",INDIRECT("'"&$A17&"'!$J$29")) -> % du prix d'achat en maintenance/rénovation annuelle | D17: =IF(ISBLANK(INDIRECT("'"&$A17&"'!$K$29")),"",INDIRECT("'"&$A17&"'!$K$29")) -> 0.15 | E17: =INDEX($A$1:$M$194,MATCH(A17&C17,$A$1:$A$194&$C$1:$C$194,0),MATCH($E$2,$A$1:$M$1,0)) -> 1 | F17: 1 | G17: 1 | H17: 1 | I17: 1 | J17: 1 | K17: 1 | L17: 1 | M17: 0.5
A18: =C16 -> Info digitale | B18: Paramètre #2 | C18: =IF(ISBLANK(INDIRECT("'"&$A18&"'!$J$30")),"Non utilisé",INDIRECT("'"&$A18&"'!$J$30")) -> Flux maximum par heure par ETP | D18: =IF(ISBLANK(INDIRECT("'"&$A18&"'!$K$30")),"",INDIRECT("'"&$A18&"'!$K$30")) -> 30 | E18: =INDEX($A$1:$M$194,MATCH(A18&C18,$A$1:$A$194&$C$1:$C$194,0),MATCH($E$2,$A$1:$M$1,0)) -> 1 | F18: 1 | G18: 1 | H18: 1 | I18: 1 | J18: 1 | K18: 0 | L18: 1 | M18: 0
A19: =C16 -> Info digitale | B19: Paramètre #3 | C19: =IF(ISBLANK(INDIRECT("'"&$A19&"'!$J$31")),"Non utilisé",INDIRECT("'"&$A19&"'!$J$31")) -> % ouverture point information (sur amplitude d'ouverture) | D19: =IF(ISBLANK(INDIRECT("'"&$A19&"'!$K$31")),"",INDIRECT("'"&$A19&"'!$K$31")) -> 0.8 | E19: =INDEX($A$1:$M$194,MATCH(A19&C19,$A$1:$A$194&$C$1:$C$194,0),MATCH($E$2,$A$1:$M$1,0)) -> 1 | F19: 1 | G19: 1 | H19: 1 | I19: 1 | J19: 1 | K19: 0 | L19: 1 | M19: 0
A20: =C16 -> Info digitale | B20: Paramètre #4 | C20: =IF(ISBLANK(INDIRECT("'"&$A20&"'!$J$32")),"Non utilisé",INDIRECT("'"&$A20&"'!$J$32")) -> % de personnes intéressées par le point information | D20: =IF(ISBLANK(INDIRECT("'"&$A20&"'!$K$32")),"",INDIRECT("'"&$A20&"'!$K$32")) -> 0.1 | E20: =INDEX($A$1:$M$194,MATCH(A20&C20,$A$1:$A$194&$C$1:$C$194,0),MATCH($E$2,$A$1:$M$1,0)) -> 1 | F20: 0.2 | G20: 0.4 | H20: 1 | I20: 1 | J20: 1 | K20: 0 | L20: 1 | M20: 0
A21: =C16 -> Info digitale | B21: Paramètre #5 | C21: =IF(ISBLANK(INDIRECT("'"&$A21&"'!$J$33")),"Non utilisé",INDIRECT("'"&$A21&"'!$J$33")) -> Non utilisé | D21: =IF(ISBLANK(INDIRECT("'"&$A21&"'!$K$33")),"",INDIRECT("'"&$A21&"'!$K$33")) ->  | E21: =INDEX($A$1:$M$194,MATCH(A21&C21,$A$1:$A$194&$C$1:$C$194,0),MATCH($E$2,$A$1:$M$1,0)) -> 0
A22: =C22 -> Info non digitale | B22: 2.4 Information voyageur non digitale | C22: Info non digitale | E22: =INDEX($A$1:$M$194,MATCH(A22&C22,$A$1:$A$194&$C$1:$C$194,0),MATCH($E$2,$A$1:$M$1,0)) -> 0
A23: =C22 -> Info non digitale | B23: Paramètre #1 | C23: =IF(ISBLANK(INDIRECT("'"&$A23&"'!$J$29")),"Non utilisé",INDIRECT("'"&$A23&"'!$J$29")) -> % du prix d'achat en maintenance/rénovation annuelle | D23: =IF(ISBLANK(INDIRECT("'"&$A23&"'!$K$29")),"",INDIRECT("'"&$A23&"'!$K$29")) -> 0.05 | E23: =INDEX($A$1:$M$194,MATCH(A23&C23,$A$1:$A$194&$C$1:$C$194,0),MATCH($E$2,$A$1:$M$1,0)) -> 1 | F23: 1 | G23: 1 | H23: 1 | I23: 1 | J23: 1 | K23: 1 | L23: 1 | M23: 0.5
A24: =C22 -> Info non digitale | B24: Paramètre #2 | C24: =IF(ISBLANK(INDIRECT("'"&$A24&"'!$J$30")),"Non utilisé",INDIRECT("'"&$A24&"'!$J$30")) -> Non utilisé | D24: =IF(ISBLANK(INDIRECT("'"&$A24&"'!$K$30")),"",INDIRECT("'"&$A24&"'!$K$30")) ->  | E24: =INDEX($A$1:$M$194,MATCH(A24&C24,$A$1:$A$194&$C$1:$C$194,0),MATCH($E$2,$A$1:$M$1,0)) -> 1 | F24: 1 | G24: 1 | H24: 1 | I24: 1 | J24: 1 | K24: 1 | L24: 1 | M24: 1
A25: =C22 -> Info non digitale | B25: Paramètre #3 | C25: =IF(ISBLANK(INDIRECT("'"&$A25&"'!$J$31")),"Non utilisé",INDIRECT("'"&$A25&"'!$J$31")) -> Non utilisé | D25: =IF(ISBLANK(INDIRECT("'"&$A25&"'!$K$31")),"",INDIRECT("'"&$A25&"'!$K$31")) ->  | E25: =INDEX($A$1:$M$194,MATCH(A25&C25,$A$1:$A$194&$C$1:$C$194,0),MATCH($E$2,$A$1:$M$1,0)) -> 1 | F25: 1 | G25: 1 | H25: 1 | I25: 1 | J25: 1 | K25: 1 | L25: 1 | M25: 1
A26: =C22 -> Info non digitale | B26: Paramètre #4 | C26: =IF(ISBLANK(INDIRECT("'"&$A26&"'!$J$32")),"Non utilisé",INDIRECT("'"&$A26&"'!$J$32")) -> Non utilisé | D26: =IF(ISBLANK(INDIRECT("'"&$A26&"'!$K$32")),"",INDIRECT("'"&$A26&"'!$K$32")) ->  | E26: =INDEX($A$1:$M$194,MATCH(A26&C26,$A$1:$A$194&$C$1:$C$194,0),MATCH($E$2,$A$1:$M$1,0)) -> 1 | F26: 1 | G26: 1 | H26: 1 | I26: 1 | J26: 1 | K26: 1 | L26: 1 | M26: 1
A27: =C22 -> Info non digitale | B27: Paramètre #5 | C27: =IF(ISBLANK(INDIRECT("'"&$A27&"'!$J$33")),"Non utilisé",INDIRECT("'"&$A27&"'!$J$33")) -> Non utilisé | D27: =IF(ISBLANK(INDIRECT("'"&$A27&"'!$K$33")),"",INDIRECT("'"&$A27&"'!$K$33")) ->  | E27: =INDEX($A$1:$M$194,MATCH(A27&C27,$A$1:$A$194&$C$1:$C$194,0),MATCH($E$2,$A$1:$M$1,0)) -> 1 | F27: 1 | G27: 1 | H27: 1 | I27: 1 | J27: 1 | K27: 1 | L27: 0 | M27: 0
A28: =C28 -> Info sonore | B28: 2.5 Information voyageur sonore en gare | C28: Info sonore | E28: =INDEX($A$1:$M$194,MATCH(A28&C28,$A$1:$A$194&$C$1:$C$194,0),MATCH($E$2,$A$1:$M$1,0)) -> 0
A29: =C28 -> Info sonore | B29: Paramètre #1 | C29: =IF(ISBLANK(INDIRECT("'"&$A29&"'!$J$29")),"Non utilisé",INDIRECT("'"&$A29&"'!$J$29")) -> % du prix d'achat en maintenance/rénovation annuelle | D29: =IF(ISBLANK(INDIRECT("'"&$A29&"'!$K$29")),"",INDIRECT("'"&$A29&"'!$K$29")) -> 0.1 | E29: =INDEX($A$1:$M$194,MATCH(A29&C29,$A$1:$A$194&$C$1:$C$194,0),MATCH($E$2,$A$1:$M$1,0)) -> 1 | F29: 1 | G29: 1 | H29: 1 | I29: 1 | J29: 1 | K29: 1 | L29: 1 | M29: 0.5
A30: =C28 -> Info sonore | B30: Paramètre #2 | C30: =IF(ISBLANK(INDIRECT("'"&$A30&"'!$J$30")),"Non utilisé",INDIRECT("'"&$A30&"'!$J$30")) -> Non utilisé | D30: =IF(ISBLANK(INDIRECT("'"&$A30&"'!$K$30")),"",INDIRECT("'"&$A30&"'!$K$30")) ->  | E30: =INDEX($A$1:$M$194,MATCH(A30&C30,$A$1:$A$194&$C$1:$C$194,0),MATCH($E$2,$A$1:$M$1,0)) -> 1 | F30: 1 | G30: 1 | H30: 1 | I30: 1 | J30: 1 | K30: 1 | L30: 1 | M30: 1
A31: =C28 -> Info sonore | B31: Paramètre #3 | C31: =IF(ISBLANK(INDIRECT("'"&$A31&"'!$J$31")),"Non utilisé",INDIRECT("'"&$A31&"'!$J$31")) -> Non utilisé | D31: =IF(ISBLANK(INDIRECT("'"&$A31&"'!$K$31")),"",INDIRECT("'"&$A31&"'!$K$31")) ->  | E31: =INDEX($A$1:$M$194,MATCH(A31&C31,$A$1:$A$194&$C$1:$C$194,0),MATCH($E$2,$A$1:$M$1,0)) -> 1
A32: =C28 -> Info sonore | B32: Paramètre #4 | C32: =IF(ISBLANK(INDIRECT("'"&$A32&"'!$J$32")),"Non utilisé",INDIRECT("'"&$A32&"'!$J$32")) -> Non utilisé | D32: =IF(ISBLANK(INDIRECT("'"&$A32&"'!$K$32")),"",INDIRECT("'"&$A32&"'!$K$32")) ->  | E32: =INDEX($A$1:$M$194,MATCH(A32&C32,$A$1:$A$194&$C$1:$C$194,0),MATCH($E$2,$A$1:$M$1,0)) -> 1
A33: =C28 -> Info sonore | B33: Paramètre #5 | C33: =IF(ISBLANK(INDIRECT("'"&$A33&"'!$J$33")),"Non utilisé",INDIRECT("'"&$A33&"'!$J$33")) -> Non utilisé | D33: =IF(ISBLANK(INDIRECT("'"&$A33&"'!$K$33")),"",INDIRECT("'"&$A33&"'!$K$33")) ->  | E33: =INDEX($A$1:$M$194,MATCH(A33&C33,$A$1:$A$194&$C$1:$C$194,0),MATCH($E$2,$A$1:$M$1,0)) -> 1
A34: =C34 -> COE | B34: 2.6 Centre Opérationnel d'Escale | C34: COE | E34: =INDEX($A$1:$M$194,MATCH(A34&C34,$A$1:$A$194&$C$1:$C$194,0),MATCH($E$2,$A$1:$M$1,0)) -> 0
A35: =C34 -> COE | B35: Paramètre #1 | C35: =IF(ISBLANK(INDIRECT("'"&$A35&"'!$J$29")),"Non utilisé",INDIRECT("'"&$A35&"'!$J$29")) -> Entretien du matériel | D35: =IF(ISBLANK(INDIRECT("'"&$A35&"'!$K$29")),"",INDIRECT("'"&$A35&"'!$K$29")) -> 0.1 | E35: =INDEX($A$1:$M$194,MATCH(A35&C35,$A$1:$A$194&$C$1:$C$194,0),MATCH($E$2,$A$1:$M$1,0)) -> 1 | F35: 1 | G35: 1 | H35: 1 | I35: 1 | J35: 1 | K35: 1 | L35: 1 | M35: 1
A36: =C34 -> COE | B36: Paramètre #2 | C36: =IF(ISBLANK(INDIRECT("'"&$A36&"'!$J$30")),"Non utilisé",INDIRECT("'"&$A36&"'!$J$30")) -> Nombre de départs trains moyen par heure | D36: =IF(ISBLANK(INDIRECT("'"&$A36&"'!$K$30")),"",INDIRECT("'"&$A36&"'!$K$30")) -> 2.883922134 | E36: =INDEX($A$1:$M$194,MATCH(A36&C36,$A$1:$A$194&$C$1:$C$194,0),MATCH($E$2,$A$1:$M$1,0)) -> 1 | F36: 1 | G36: 1 | H36: 1 | I36: 1 | J36: 1 | K36: 1 | L36: 1 | M36: 1
A37: =C34 -> COE | B37: Paramètre #3 | C37: =IF(ISBLANK(INDIRECT("'"&$A37&"'!$J$31")),"Non utilisé",INDIRECT("'"&$A37&"'!$J$31")) -> Nombre d'ETP par départ train | D37: =IF(ISBLANK(INDIRECT("'"&$A37&"'!$K$31")),"",INDIRECT("'"&$A37&"'!$K$31")) -> 1 | E37: =INDEX($A$1:$M$194,MATCH(A37&C37,$A$1:$A$194&$C$1:$C$194,0),MATCH($E$2,$A$1:$M$1,0)) -> 1 | F37: 2 | G37: 2 | H37: 1 | I37: 1 | J37: 1 | K37: =1/3 -> 0.3333333333 | L37: =1/3 -> 0.3333333333 | M37: 0.1
A38: =C34 -> COE | B38: Paramètre #4 | C38: =IF(ISBLANK(INDIRECT("'"&$A38&"'!$J$32")),"Non utilisé",INDIRECT("'"&$A38&"'!$J$32")) -> % d'ETP G&C | D38: =IF(ISBLANK(INDIRECT("'"&$A38&"'!$K$32")),"",INDIRECT("'"&$A38&"'!$K$32")) -> 0.2 | E38: =INDEX($A$1:$M$194,MATCH(A38&C38,$A$1:$A$194&$C$1:$C$194,0),MATCH($E$2,$A$1:$M$1,0)) -> 1 | F38: 1 | G38: 1 | H38: 1 | I38: 1 | J38: 1 | K38: 0.5 | L38: 0.5 | M38: 0.5
A39: =C34 -> COE | B39: Paramètre #5 | C39: =IF(ISBLANK(INDIRECT("'"&$A39&"'!$J$33")),"Non utilisé",INDIRECT("'"&$A39&"'!$J$33")) -> Nombre d'ETP G&C moyen par heure d'ouverture | D39: =IF(ISBLANK(INDIRECT("'"&$A39&"'!$K$33")),"",INDIRECT("'"&$A39&"'!$K$33")) -> 0.5767844268 | E39: =INDEX($A$1:$M$194,MATCH(A39&C39,$A$1:$A$194&$C$1:$C$194,0),MATCH($E$2,$A$1:$M$1,0)) -> 1 | F39: 1 | G39: 1 | H39: 1 | I39: 1 | J39: 1 | K39: 1 | L39: 1 | M39: 1
A40: =C40 -> PMR | B40: 2.7 Accès et services PMR | C40: PMR | E40: =INDEX($A$1:$M$194,MATCH(A40&C40,$A$1:$A$194&$C$1:$C$194,0),MATCH($E$2,$A$1:$M$1,0)) -> 0 | N40: Les équipements PMR ne sont pas nécessaires dans les gares qui sont aux normes
A41: =C40 -> PMR | B41: Paramètre #1 | C41: =IF(ISBLANK(INDIRECT("'"&$A41&"'!$J$29")),"Non utilisé",INDIRECT("'"&$A41&"'!$J$29")) -> % du prix d'achat en maintenance/rénovation annuelle | D41: =IF(ISBLANK(INDIRECT("'"&$A41&"'!$K$29")),"",INDIRECT("'"&$A41&"'!$K$29")) -> 0.05 | E41: =INDEX($A$1:$M$194,MATCH(A41&C41,$A$1:$A$194&$C$1:$C$194,0),MATCH($E$2,$A$1:$M$1,0)) -> 1 | F41: 1 | G41: 1 | H41: 1 | I41: 1 | J41: 1 | K41: 1 | L41: 1 | M41: 1
A42: =C40 -> PMR | B42: Paramètre #2 | C42: =IF(ISBLANK(INDIRECT("'"&$A42&"'!$J$30")),"Non utilisé",INDIRECT("'"&$A42&"'!$J$30")) -> Nombre de prestations PMR par voyageur | D42: =IF(ISBLANK(INDIRECT("'"&$A42&"'!$K$30")),"",INDIRECT("'"&$A42&"'!$K$30")) -> 0.001666666667 | E42: =INDEX($A$1:$M$194,MATCH(A42&C42,$A$1:$A$194&$C$1:$C$194,0),MATCH($E$2,$A$1:$M$1,0)) -> 1 | F42: 1 | G42: 1 | H42: 1 | I42: 1 | J42: 1 | K42: =1/5 -> 0.2 | L42: =1/5 -> 0.2 | M42: 0.05
A43: =C40 -> PMR | B43: Paramètre #3 | C43: =IF(ISBLANK(INDIRECT("'"&$A43&"'!$J$31")),"Non utilisé",INDIRECT("'"&$A43&"'!$J$31")) -> Durée moyenne d'une prestation (en heure) | D43: =IF(ISBLANK(INDIRECT("'"&$A43&"'!$K$31")),"",INDIRECT("'"&$A43&"'!$K$31")) -> 0.5 | E43: =INDEX($A$1:$M$194,MATCH(A43&C43,$A$1:$A$194&$C$1:$C$194,0),MATCH($E$2,$A$1:$M$1,0)) -> 1 | F43: 1 | G43: 1 | H43: 1 | I43: 1 | J43: 1 | K43: 1 | L43: 1 | M43: 1
A44: =C40 -> PMR | B44: Paramètre #4 | C44: =IF(ISBLANK(INDIRECT("'"&$A44&"'!$J$32")),"Non utilisé",INDIRECT("'"&$A44&"'!$J$32")) -> % de surface PMR à rénover annuellement | D44: =IF(ISBLANK(INDIRECT("'"&$A44&"'!$K$32")),"",INDIRECT("'"&$A44&"'!$K$32")) -> 0.005 | E44: =INDEX($A$1:$M$194,MATCH(A44&C44,$A$1:$A$194&$C$1:$C$194,0),MATCH($E$2,$A$1:$M$1,0)) -> 1 | F44: 1 | G44: 1 | H44: 1 | I44: 1 | J44: 1 | K44: 1 | L44: 1 | M44: 1
A45: =C40 -> PMR | B45: Paramètre #5 | C45: =IF(ISBLANK(INDIRECT("'"&$A45&"'!$J$33")),"Non utilisé",INDIRECT("'"&$A45&"'!$J$33")) -> Non utilisé | D45: =IF(ISBLANK(INDIRECT("'"&$A45&"'!$K$33")),"",INDIRECT("'"&$A45&"'!$K$33")) ->  | E45: =INDEX($A$1:$M$194,MATCH(A45&C45,$A$1:$A$194&$C$1:$C$194,0),MATCH($E$2,$A$1:$M$1,0)) -> 0
A46: =C46 -> Horloges | B46: 2.8 Horloges | C46: Horloges | E46: =INDEX($A$1:$M$194,MATCH(A46&C46,$A$1:$A$194&$C$1:$C$194,0),MATCH($E$2,$A$1:$M$1,0)) -> 0
A47: =C46 -> Horloges | B47: Paramètre #1 | C47: =IF(ISBLANK(INDIRECT("'"&$A47&"'!$J$29")),"Non utilisé",INDIRECT("'"&$A47&"'!$J$29")) -> % du prix d'achat en maintenance/rénovation annuelle | D47: =IF(ISBLANK(INDIRECT("'"&$A47&"'!$K$29")),"",INDIRECT("'"&$A47&"'!$K$29")) -> 0.1 | E47: =INDEX($A$1:$M$194,MATCH(A47&C47,$A$1:$A$194&$C$1:$C$194,0),MATCH($E$2,$A$1:$M$1,0)) -> 1 | F47: 1 | G47: 1 | H47: 1 | I47: 1 | J47: 1 | K47: 1 | L47: 1 | M47: 1
A48: =C46 -> Horloges | B48: Paramètre #2 | C48: =IF(ISBLANK(INDIRECT("'"&$A48&"'!$J$30")),"Non utilisé",INDIRECT("'"&$A48&"'!$J$30")) -> Non utilisé | D48: =IF(ISBLANK(INDIRECT("'"&$A48&"'!$K$30")),"",INDIRECT("'"&$A48&"'!$K$30")) ->  | E48: =INDEX($A$1:$M$194,MATCH(A48&C48,$A$1:$A$194&$C$1:$C$194,0),MATCH($E$2,$A$1:$M$1,0)) -> 1 | F48: 1 | G48: 1 | H48: 1 | I48: 1 | J48: 1 | K48: 1 | L48: 1 | M48: 1
A49: =C46 -> Horloges | B49: Paramètre #3 | C49: =IF(ISBLANK(INDIRECT("'"&$A49&"'!$J$31")),"Non utilisé",INDIRECT("'"&$A49&"'!$J$31")) -> Non utilisé | D49: =IF(ISBLANK(INDIRECT("'"&$A49&"'!$K$31")),"",INDIRECT("'"&$A49&"'!$K$31")) ->  | E49: =INDEX($A$1:$M$194,MATCH(A49&C49,$A$1:$A$194&$C$1:$C$194,0),MATCH($E$2,$A$1:$M$1,0)) -> 1
A50: =C46 -> Horloges | B50: Paramètre #4 | C50: =IF(ISBLANK(INDIRECT("'"&$A50&"'!$J$32")),"Non utilisé",INDIRECT("'"&$A50&"'!$J$32")) -> Non utilisé | D50: =IF(ISBLANK(INDIRECT("'"&$A50&"'!$K$32")),"",INDIRECT("'"&$A50&"'!$K$32")) ->  | E50: =INDEX($A$1:$M$194,MATCH(A50&C50,$A$1:$A$194&$C$1:$C$194,0),MATCH($E$2,$A$1:$M$1,0)) -> 1
A51: =C46 -> Horloges | B51: Paramètre #5 | C51: =IF(ISBLANK(INDIRECT("'"&$A51&"'!$J$33")),"Non utilisé",INDIRECT("'"&$A51&"'!$J$33")) -> Non utilisé | D51: =IF(ISBLANK(INDIRECT("'"&$A51&"'!$K$33")),"",INDIRECT("'"&$A51&"'!$K$33")) ->  | E51: =INDEX($A$1:$M$194,MATCH(A51&C51,$A$1:$A$194&$C$1:$C$194,0),MATCH($E$2,$A$1:$M$1,0)) -> 1
B52: 3 - Sécuriser | C52: =B52 -> 3 - Sécuriser | E52: =INDEX($A$1:$M$194,MATCH(A52&C52,$A$1:$A$194&$C$1:$C$194,0),MATCH($E$2,$A$1:$M$1,0)) -> 0
A53: =C53 -> SUGE | B53: 3.1 Équipes de sécurité | C53: SUGE | E53: =INDEX($A$1:$M$194,MATCH(A53&C53,$A$1:$A$194&$C$1:$C$194,0),MATCH($E$2,$A$1:$M$1,0)) -> 0
A54: =C53 -> SUGE | B54: Paramètre #1 | C54: =IF(ISBLANK(INDIRECT("'"&$A54&"'!$J$29")),"Non utilisé",INDIRECT("'"&$A54&"'!$J$29")) -> Nombre d'heures moyenne par non voy+voy annuel | D54: =IF(ISBLANK(INDIRECT("'"&$A54&"'!$K$29")),"",INDIRECT("'"&$A54&"'!$K$29")) -> 1 | E54: =INDEX($A$1:$M$194,MATCH(A54&C54,$A$1:$A$194&$C$1:$C$194,0),MATCH($E$2,$A$1:$M$1,0)) -> 0.0008440517545 | F54: 0.0002511353559 | G54: 0.000615564884 | H54: 0.0006419510188 | I54: 0.0008440517545 | J54: 0.0008440517545 | K54: 0.0003795304009 | L54: 0.0005563842813 | M54: 0.0007537135327
A55: =C53 -> SUGE | B55: Paramètre #2 | C55: =IF(ISBLANK(INDIRECT("'"&$A55&"'!$J$30")),"Non utilisé",INDIRECT("'"&$A55&"'!$J$30")) -> Non utilisé | D55: =IF(ISBLANK(INDIRECT("'"&$A55&"'!$K$30")),"",INDIRECT("'"&$A55&"'!$K$30")) ->  | E55: =INDEX($A$1:$M$194,MATCH(A55&C55,$A$1:$A$194&$C$1:$C$194,0),MATCH($E$2,$A$1:$M$1,0)) -> 1 | F55: 1 | G55: 1 | H55: 1 | I55: 1 | J55: 1 | K55: 1 | L55: 1 | M55: 1
A56: =C53 -> SUGE | B56: Paramètre #3 | C56: =IF(ISBLANK(INDIRECT("'"&$A56&"'!$J$31")),"Non utilisé",INDIRECT("'"&$A56&"'!$J$31")) -> Non utilisé | D56: =IF(ISBLANK(INDIRECT("'"&$A56&"'!$K$31")),"",INDIRECT("'"&$A56&"'!$K$31")) ->  | E56: =INDEX($A$1:$M$194,MATCH(A56&C56,$A$1:$A$194&$C$1:$C$194,0),MATCH($E$2,$A$1:$M$1,0)) -> 1
A57: =C53 -> SUGE | B57: Paramètre #4 | C57: =IF(ISBLANK(INDIRECT("'"&$A57&"'!$J$32")),"Non utilisé",INDIRECT("'"&$A57&"'!$J$32")) -> Non utilisé | D57: =IF(ISBLANK(INDIRECT("'"&$A57&"'!$K$32")),"",INDIRECT("'"&$A57&"'!$K$32")) ->  | E57: =INDEX($A$1:$M$194,MATCH(A57&C57,$A$1:$A$194&$C$1:$C$194,0),MATCH($E$2,$A$1:$M$1,0)) -> 1
A58: =C53 -> SUGE | B58: Paramètre #5 | C58: =IF(ISBLANK(INDIRECT("'"&$A58&"'!$J$33")),"Non utilisé",INDIRECT("'"&$A58&"'!$J$33")) -> Non utilisé | D58: =IF(ISBLANK(INDIRECT("'"&$A58&"'!$K$33")),"",INDIRECT("'"&$A58&"'!$K$33")) ->  | E58: =INDEX($A$1:$M$194,MATCH(A58&C58,$A$1:$A$194&$C$1:$C$194,0),MATCH($E$2,$A$1:$M$1,0)) -> 1
A59: =C59 -> Gardiennage | B59: 3.2 Équipes de gardiennage | C59: Gardiennage | E59: =INDEX($A$1:$M$194,MATCH(A59&C59,$A$1:$A$194&$C$1:$C$194,0),MATCH($E$2,$A$1:$M$1,0)) -> 0
A60: =C59 -> Gardiennage | B60: Paramètre #1 | C60: =IF(ISBLANK(INDIRECT("'"&$A60&"'!$J$29")),"Non utilisé",INDIRECT("'"&$A60&"'!$J$29")) -> Nombre d'heures d'agents SUGE | D60: =IF(ISBLANK(INDIRECT("'"&$A60&"'!$K$29")),"",INDIRECT("'"&$A60&"'!$K$29")) -> 1941.319035 | E60: =INDEX($A$1:$M$194,MATCH(A60&C60,$A$1:$A$194&$C$1:$C$194,0),MATCH($E$2,$A$1:$M$1,0)) -> 1 | F60: 1 | G60: 1 | H60: 1 | I60: 1 | J60: 1 | K60: 1 | L60: 1 | M60: 1
A61: =C59 -> Gardiennage | B61: Paramètre #2 | C61: =IF(ISBLANK(INDIRECT("'"&$A61&"'!$J$30")),"Non utilisé",INDIRECT("'"&$A61&"'!$J$30")) -> Heures sécurité gardiennage en supplément SUGE | D61: =IF(ISBLANK(INDIRECT("'"&$A61&"'!$K$30")),"",INDIRECT("'"&$A61&"'!$K$30")) -> 1 | E61: =INDEX($A$1:$M$194,MATCH(A61&C61,$A$1:$A$194&$C$1:$C$194,0),MATCH($E$2,$A$1:$M$1,0)) -> 1 | F61: 0.8 | G61: 0.8 | H61: 1 | I61: 1 | J61: 1 | K61: 1.5 | L61: 1.5 | M61: 3
A62: =C59 -> Gardiennage | B62: Paramètre #3 | C62: =IF(ISBLANK(INDIRECT("'"&$A62&"'!$J$31")),"Non utilisé",INDIRECT("'"&$A62&"'!$J$31")) -> Non utilisé | D62: =IF(ISBLANK(INDIRECT("'"&$A62&"'!$K$31")),"",INDIRECT("'"&$A62&"'!$K$31")) ->  | E62: =INDEX($A$1:$M$194,MATCH(A62&C62,$A$1:$A$194&$C$1:$C$194,0),MATCH($E$2,$A$1:$M$1,0)) -> 0
A63: =C59 -> Gardiennage | B63: Paramètre #4 | C63: =IF(ISBLANK(INDIRECT("'"&$A63&"'!$J$32")),"Non utilisé",INDIRECT("'"&$A63&"'!$J$32")) -> Non utilisé | D63: =IF(ISBLANK(INDIRECT("'"&$A63&"'!$K$32")),"",INDIRECT("'"&$A63&"'!$K$32")) ->  | E63: =INDEX($A$1:$M$194,MATCH(A63&C63,$A$1:$A$194&$C$1:$C$194,0),MATCH($E$2,$A$1:$M$1,0)) -> 0
A64: =C59 -> Gardiennage | B64: Paramètre #5 | C64: =IF(ISBLANK(INDIRECT("'"&$A64&"'!$J$33")),"Non utilisé",INDIRECT("'"&$A64&"'!$J$33")) -> Non utilisé | D64: =IF(ISBLANK(INDIRECT("'"&$A64&"'!$K$33")),"",INDIRECT("'"&$A64&"'!$K$33")) ->  | E64: =INDEX($A$1:$M$194,MATCH(A64&C64,$A$1:$A$194&$C$1:$C$194,0),MATCH($E$2,$A$1:$M$1,0)) -> 0
A65: =C65 -> Portes Embarquement | B65: 3.3 Portes d'embarquement | C65: Portes Embarquement | E65: =INDEX($A$1:$M$194,MATCH(A65&C65,$A$1:$A$194&$C$1:$C$194,0),MATCH($E$2,$A$1:$M$1,0)) -> 0
A66: =C65 -> Portes Embarquement | B66: Paramètre #1 | C66: =IF(ISBLANK(INDIRECT("'"&$A66&"'!$J$29")),"Non utilisé",INDIRECT("'"&$A66&"'!$J$29")) -> % du prix d'achat en maintenance/rénovation annuelle | D66: =IF(ISBLANK(INDIRECT("'"&$A66&"'!$K$29")),"",INDIRECT("'"&$A66&"'!$K$29")) -> 0.1 | E66: =INDEX($A$1:$M$194,MATCH(A66&C66,$A$1:$A$194&$C$1:$C$194,0),MATCH($E$2,$A$1:$M$1,0)) -> 1 | F66: 1 | G66: 1 | H66: 1 | I66: 1 | J66: 1 | K66: 0.5 | L66: 0 | M66: 0
A67: =C65 -> Portes Embarquement | B67: Paramètre #2 | C67: =IF(ISBLANK(INDIRECT("'"&$A67&"'!$J$30")),"Non utilisé",INDIRECT("'"&$A67&"'!$J$30")) -> Non utilisé | D67: =IF(ISBLANK(INDIRECT("'"&$A67&"'!$K$30")),"",INDIRECT("'"&$A67&"'!$K$30")) ->  | E67: =INDEX($A$1:$M$194,MATCH(A67&C67,$A$1:$A$194&$C$1:$C$194,0),MATCH($E$2,$A$1:$M$1,0)) -> 0
A68: =C65 -> Portes Embarquement | B68: Paramètre #3 | C68: =IF(ISBLANK(INDIRECT("'"&$A68&"'!$J$31")),"Non utilisé",INDIRECT("'"&$A68&"'!$J$31")) -> Non utilisé | D68: =IF(ISBLANK(INDIRECT("'"&$A68&"'!$K$31")),"",INDIRECT("'"&$A68&"'!$K$31")) ->  | E68: =INDEX($A$1:$M$194,MATCH(A68&C68,$A$1:$A$194&$C$1:$C$194,0),MATCH($E$2,$A$1:$M$1,0)) -> 0
A69: =C65 -> Portes Embarquement | B69: Paramètre #4 | C69: =IF(ISBLANK(INDIRECT("'"&$A69&"'!$J$32")),"Non utilisé",INDIRECT("'"&$A69&"'!$J$32")) -> Non utilisé | D69: =IF(ISBLANK(INDIRECT("'"&$A69&"'!$K$32")),"",INDIRECT("'"&$A69&"'!$K$32")) ->  | E69: =INDEX($A$1:$M$194,MATCH(A69&C69,$A$1:$A$194&$C$1:$C$194,0),MATCH($E$2,$A$1:$M$1,0)) -> 0
A70: =C65 -> Portes Embarquement | B70: Paramètre #5 | C70: =IF(ISBLANK(INDIRECT("'"&$A70&"'!$J$33")),"Non utilisé",INDIRECT("'"&$A70&"'!$J$33")) -> Non utilisé | D70: =IF(ISBLANK(INDIRECT("'"&$A70&"'!$K$33")),"",INDIRECT("'"&$A70&"'!$K$33")) ->  | E70: =INDEX($A$1:$M$194,MATCH(A70&C70,$A$1:$A$194&$C$1:$C$194,0),MATCH($E$2,$A$1:$M$1,0)) -> 0
A71: =C71 -> Vidéosurveillance | B71: 3.4 Vidéosurveillance | C71: Vidéosurveillance | E71: =INDEX($A$1:$M$194,MATCH(A71&C71,$A$1:$A$194&$C$1:$C$194,0),MATCH($E$2,$A$1:$M$1,0)) -> 0
A72: =C71 -> Vidéosurveillance | B72: Paramètre #1 | C72: =IF(ISBLANK(INDIRECT("'"&$A72&"'!$J$29")),"Non utilisé",INDIRECT("'"&$A72&"'!$J$29")) -> % du prix d'achat en maintenance/rénovation annuelle | D72: =IF(ISBLANK(INDIRECT("'"&$A72&"'!$K$29")),"",INDIRECT("'"&$A72&"'!$K$29")) -> 0.1 | E72: =INDEX($A$1:$M$194,MATCH(A72&C72,$A$1:$A$194&$C$1:$C$194,0),MATCH($E$2,$A$1:$M$1,0)) -> 1 | F72: 1 | G72: 1 | H72: 1 | I72: 1 | J72: 1 | K72: 1 | L72: 0.5 | M72: 0
A73: =C71 -> Vidéosurveillance | B73: Paramètre #2 | C73: =IF(ISBLANK(INDIRECT("'"&$A73&"'!$J$30")),"Non utilisé",INDIRECT("'"&$A73&"'!$J$30")) -> Non utilisé | D73: =IF(ISBLANK(INDIRECT("'"&$A73&"'!$K$30")),"",INDIRECT("'"&$A73&"'!$K$30")) ->  | E73: =INDEX($A$1:$M$194,MATCH(A73&C73,$A$1:$A$194&$C$1:$C$194,0),MATCH($E$2,$A$1:$M$1,0)) -> 1 | F73: 1 | G73: 1 | H73: 1 | I73: 1 | J73: 1 | K73: 1 | L73: 0.5 | M73: 0.5
A74: =C71 -> Vidéosurveillance | B74: Paramètre #3 | C74: =IF(ISBLANK(INDIRECT("'"&$A74&"'!$J$31")),"Non utilisé",INDIRECT("'"&$A74&"'!$J$31")) -> Non utilisé | D74: =IF(ISBLANK(INDIRECT("'"&$A74&"'!$K$31")),"",INDIRECT("'"&$A74&"'!$K$31")) ->  | E74: =INDEX($A$1:$M$194,MATCH(A74&C74,$A$1:$A$194&$C$1:$C$194,0),MATCH($E$2,$A$1:$M$1,0)) -> 1 | F74: 1 | G74: 1 | H74: 1 | I74: 1 | J74: 1 | K74: 1 | L74: 1 | M74: 0.5
A75: =C71 -> Vidéosurveillance | B75: Paramètre #4 | C75: =IF(ISBLANK(INDIRECT("'"&$A75&"'!$J$32")),"Non utilisé",INDIRECT("'"&$A75&"'!$J$32")) -> Non utilisé | D75: =IF(ISBLANK(INDIRECT("'"&$A75&"'!$K$32")),"",INDIRECT("'"&$A75&"'!$K$32")) ->  | E75: =INDEX($A$1:$M$194,MATCH(A75&C75,$A$1:$A$194&$C$1:$C$194,0),MATCH($E$2,$A$1:$M$1,0)) -> 1 | F75: 1 | G75: 1 | H75: 1 | I75: 1 | J75: 1 | K75: 0 | L75: 1 | M75: 1
A76: =C71 -> Vidéosurveillance | B76: Paramètre #5 | C76: =IF(ISBLANK(INDIRECT("'"&$A76&"'!$J$33")),"Non utilisé",INDIRECT("'"&$A76&"'!$J$33")) -> Non utilisé | D76: =IF(ISBLANK(INDIRECT("'"&$A76&"'!$K$33")),"",INDIRECT("'"&$A76&"'!$K$33")) ->  | E76: =INDEX($A$1:$M$194,MATCH(A76&C76,$A$1:$A$194&$C$1:$C$194,0),MATCH($E$2,$A$1:$M$1,0)) -> 1
A77: =C77 -> Sécurité Incendie | B77: 3.5 Sécurité incendie | C77: Sécurité Incendie | E77: =INDEX($A$1:$M$194,MATCH(A77&C77,$A$1:$A$194&$C$1:$C$194,0),MATCH($E$2,$A$1:$M$1,0)) -> 0
A78: =C77 -> Sécurité Incendie | B78: Paramètre #1 | C78: =IF(ISBLANK(INDIRECT("'"&$A78&"'!$J$29")),"Non utilisé",INDIRECT("'"&$A78&"'!$J$29")) -> Entretien des équipements | D78: =IF(ISBLANK(INDIRECT("'"&$A78&"'!$K$29")),"",INDIRECT("'"&$A78&"'!$K$29")) -> 0.1 | E78: =INDEX($A$1:$M$194,MATCH(A78&C78,$A$1:$A$194&$C$1:$C$194,0),MATCH($E$2,$A$1:$M$1,0)) -> 1 | F78: 1 | G78: 1 | H78: 1 | I78: 1 | J78: 1 | K78: 1 | L78: 1 | M78: 1
A79: =C77 -> Sécurité Incendie | B79: Paramètre #2 | C79: =IF(ISBLANK(INDIRECT("'"&$A79&"'!$J$30")),"Non utilisé",INDIRECT("'"&$A79&"'!$J$30")) -> Non utilisé | D79: =IF(ISBLANK(INDIRECT("'"&$A79&"'!$K$30")),"",INDIRECT("'"&$A79&"'!$K$30")) ->  | E79: =INDEX($A$1:$M$194,MATCH(A79&C79,$A$1:$A$194&$C$1:$C$194,0),MATCH($E$2,$A$1:$M$1,0)) -> 1 | F79: 1 | G79: 1 | H79: 1 | I79: 1 | J79: 1 | K79: 1 | L79: 1 | M79: 1
A80: =C77 -> Sécurité Incendie | B80: Paramètre #3 | C80: =IF(ISBLANK(INDIRECT("'"&$A80&"'!$J$31")),"Non utilisé",INDIRECT("'"&$A80&"'!$J$31")) -> Non utilisé | D80: =IF(ISBLANK(INDIRECT("'"&$A80&"'!$K$31")),"",INDIRECT("'"&$A80&"'!$K$31")) ->  | E80: =INDEX($A$1:$M$194,MATCH(A80&C80,$A$1:$A$194&$C$1:$C$194,0),MATCH($E$2,$A$1:$M$1,0)) -> 1 | F80: 1 | G80: 1 | H80: 1 | I80: 1 | J80: 1 | K80: 1 | L80: 1 | M80: 1
A81: =C77 -> Sécurité Incendie | B81: Paramètre #4 | C81: =IF(ISBLANK(INDIRECT("'"&$A81&"'!$J$32")),"Non utilisé",INDIRECT("'"&$A81&"'!$J$32")) -> Non utilisé | D81: =IF(ISBLANK(INDIRECT("'"&$A81&"'!$K$32")),"",INDIRECT("'"&$A81&"'!$K$32")) ->  | E81: =INDEX($A$1:$M$194,MATCH(A81&C81,$A$1:$A$194&$C$1:$C$194,0),MATCH($E$2,$A$1:$M$1,0)) -> 1 | F81: 1 | G81: 1 | H81: 1 | I81: 1 | J81: 1 | K81: 1 | L81: 1 | M81: 1
A82: =C77 -> Sécurité Incendie | B82: Paramètre #5 | C82: =IF(ISBLANK(INDIRECT("'"&$A82&"'!$J$33")),"Non utilisé",INDIRECT("'"&$A82&"'!$J$33")) -> Non utilisé | D82: =IF(ISBLANK(INDIRECT("'"&$A82&"'!$K$33")),"",INDIRECT("'"&$A82&"'!$K$33")) ->  | E82: =INDEX($A$1:$M$194,MATCH(A82&C82,$A$1:$A$194&$C$1:$C$194,0),MATCH($E$2,$A$1:$M$1,0)) -> 1
A83: =C83 -> Barrières | B83: 3.6 Barrières de sécurité, clôture, sécurisation d'accès | C83: Barrières | E83: =INDEX($A$1:$M$194,MATCH(A83&C83,$A$1:$A$194&$C$1:$C$194,0),MATCH($E$2,$A$1:$M$1,0)) -> 0
A84: =C83 -> Barrières | B84: Paramètre #1 | C84: =IF(ISBLANK(INDIRECT("'"&$A84&"'!$J$29")),"Non utilisé",INDIRECT("'"&$A84&"'!$J$29")) -> Entretien des équipements | D84: =IF(ISBLANK(INDIRECT("'"&$A84&"'!$K$29")),"",INDIRECT("'"&$A84&"'!$K$29")) -> 0.005 | E84: =INDEX($A$1:$M$194,MATCH(A84&C84,$A$1:$A$194&$C$1:$C$194,0),MATCH($E$2,$A$1:$M$1,0)) -> 1 | F84: 1 | G84: 1 | H84: 1 | I84: 1 | J84: 1 | K84: 1 | L84: 1 | M84: 1
A85: =C83 -> Barrières | B85: Paramètre #2 | C85: =IF(ISBLANK(INDIRECT("'"&$A85&"'!$J$30")),"Non utilisé",INDIRECT("'"&$A85&"'!$J$30")) -> Non utilisé | D85: =IF(ISBLANK(INDIRECT("'"&$A85&"'!$K$30")),"",INDIRECT("'"&$A85&"'!$K$30")) ->  | E85: =INDEX($A$1:$M$194,MATCH(A85&C85,$A$1:$A$194&$C$1:$C$194,0),MATCH($E$2,$A$1:$M$1,0)) -> 1 | F85: 1 | G85: 1 | H85: 1 | I85: 1 | J85: 1 | K85: 1 | L85: 1 | M85: 1
A86: =C83 -> Barrières | B86: Paramètre #3 | C86: =IF(ISBLANK(INDIRECT("'"&$A86&"'!$J$31")),"Non utilisé",INDIRECT("'"&$A86&"'!$J$31")) -> Non utilisé | D86: =IF(ISBLANK(INDIRECT("'"&$A86&"'!$K$31")),"",INDIRECT("'"&$A86&"'!$K$31")) ->  | E86: =INDEX($A$1:$M$194,MATCH(A86&C86,$A$1:$A$194&$C$1:$C$194,0),MATCH($E$2,$A$1:$M$1,0)) -> 1
A87: =C83 -> Barrières | B87: Paramètre #4 | C87: =IF(ISBLANK(INDIRECT("'"&$A87&"'!$J$32")),"Non utilisé",INDIRECT("'"&$A87&"'!$J$32")) -> Non utilisé | D87: =IF(ISBLANK(INDIRECT("'"&$A87&"'!$K$32")),"",INDIRECT("'"&$A87&"'!$K$32")) ->  | E87: =INDEX($A$1:$M$194,MATCH(A87&C87,$A$1:$A$194&$C$1:$C$194,0),MATCH($E$2,$A$1:$M$1,0)) -> 1
A88: =C83 -> Barrières | B88: Paramètre #5 | C88: =IF(ISBLANK(INDIRECT("'"&$A88&"'!$J$33")),"Non utilisé",INDIRECT("'"&$A88&"'!$J$33")) -> Non utilisé | D88: =IF(ISBLANK(INDIRECT("'"&$A88&"'!$K$33")),"",INDIRECT("'"&$A88&"'!$K$33")) ->  | E88: =INDEX($A$1:$M$194,MATCH(A88&C88,$A$1:$A$194&$C$1:$C$194,0),MATCH($E$2,$A$1:$M$1,0)) -> 1
A89: =C89 -> Sécurité extérieure | B89: 3.7 Points de mise en relation avec le centre de sécurité | C89: Sécurité extérieure | E89: =INDEX($A$1:$M$194,MATCH(A89&C89,$A$1:$A$194&$C$1:$C$194,0),MATCH($E$2,$A$1:$M$1,0)) -> 0
A90: =C89 -> Sécurité extérieure | B90: Paramètre #1 | C90: =IF(ISBLANK(INDIRECT("'"&$A90&"'!$J$29")),"Non utilisé",INDIRECT("'"&$A90&"'!$J$29")) -> Entretien des équipements | D90: =IF(ISBLANK(INDIRECT("'"&$A90&"'!$K$29")),"",INDIRECT("'"&$A90&"'!$K$29")) -> 0.1 | E90: =INDEX($A$1:$M$194,MATCH(A90&C90,$A$1:$A$194&$C$1:$C$194,0),MATCH($E$2,$A$1:$M$1,0)) -> 1 | F90: 1 | G90: 1 | H90: 1 | I90: 1 | J90: 1 | K90: 1 | L90: 1 | M90: 1
A91: =C89 -> Sécurité extérieure | B91: Paramètre #2 | C91: =IF(ISBLANK(INDIRECT("'"&$A91&"'!$J$30")),"Non utilisé",INDIRECT("'"&$A91&"'!$J$30")) -> Non utilisé | D91: =IF(ISBLANK(INDIRECT("'"&$A91&"'!$K$30")),"",INDIRECT("'"&$A91&"'!$K$30")) ->  | E91: =INDEX($A$1:$M$194,MATCH(A91&C91,$A$1:$A$194&$C$1:$C$194,0),MATCH($E$2,$A$1:$M$1,0)) -> 1 | F91: 1 | G91: 1 | H91: 1 | I91: 1 | J91: 1 | K91: 1 | L91: 1 | M91: 1
A92: =C89 -> Sécurité extérieure | B92: Paramètre #3 | C92: =IF(ISBLANK(INDIRECT("'"&$A92&"'!$J$31")),"Non utilisé",INDIRECT("'"&$A92&"'!$J$31")) -> Non utilisé | D92: =IF(ISBLANK(INDIRECT("'"&$A92&"'!$K$31")),"",INDIRECT("'"&$A92&"'!$K$31")) ->  | E92: =INDEX($A$1:$M$194,MATCH(A92&C92,$A$1:$A$194&$C$1:$C$194,0),MATCH($E$2,$A$1:$M$1,0)) -> 1
A93: =C89 -> Sécurité extérieure | B93: Paramètre #4 | C93: =IF(ISBLANK(INDIRECT("'"&$A93&"'!$J$32")),"Non utilisé",INDIRECT("'"&$A93&"'!$J$32")) -> Non utilisé | D93: =IF(ISBLANK(INDIRECT("'"&$A93&"'!$K$32")),"",INDIRECT("'"&$A93&"'!$K$32")) ->  | E93: =INDEX($A$1:$M$194,MATCH(A93&C93,$A$1:$A$194&$C$1:$C$194,0),MATCH($E$2,$A$1:$M$1,0)) -> 1
A94: =C89 -> Sécurité extérieure | B94: Paramètre #5 | C94: =IF(ISBLANK(INDIRECT("'"&$A94&"'!$J$33")),"Non utilisé",INDIRECT("'"&$A94&"'!$J$33")) -> Non utilisé | D94: =IF(ISBLANK(INDIRECT("'"&$A94&"'!$K$33")),"",INDIRECT("'"&$A94&"'!$K$33")) ->  | E94: =INDEX($A$1:$M$194,MATCH(A94&C94,$A$1:$A$194&$C$1:$C$194,0),MATCH($E$2,$A$1:$M$1,0)) -> 1
B95: 4 - Entretenir et assurer un bon niveau de confort | C95: =B95 -> 4 - Entretenir et assurer un bon niveau de confort | E95: =INDEX($A$1:$M$194,MATCH(A95&C95,$A$1:$A$194&$C$1:$C$194,0),MATCH($E$2,$A$1:$M$1,0)) -> 0
A96: =C96 -> Espace attente | B96: 4.1 Espace d’attente | C96: Espace attente | E96: =INDEX($A$1:$M$194,MATCH(A96&C96,$A$1:$A$194&$C$1:$C$194,0),MATCH($E$2,$A$1:$M$1,0)) -> 0
A97: =C96 -> Espace attente | B97: Paramètre #1 | C97: =IF(ISBLANK(INDIRECT("'"&$A97&"'!$J$29")),"Non utilisé",INDIRECT("'"&$A97&"'!$J$29")) -> % du prix d'achat en maintenance/rénovation annuelle | D97: =IF(ISBLANK(INDIRECT("'"&$A97&"'!$K$29")),"",INDIRECT("'"&$A97&"'!$K$29")) -> 0.1 | E97: =INDEX($A$1:$M$194,MATCH(A97&C97,$A$1:$A$194&$C$1:$C$194,0),MATCH($E$2,$A$1:$M$1,0)) -> 1 | F97: 1 | G97: 1 | H97: 1 | I97: 1 | J97: 1 | K97: 0.5 | L97: 1 | M97: 0.5
A98: =C96 -> Espace attente | B98: Paramètre #2 | C98: =IF(ISBLANK(INDIRECT("'"&$A98&"'!$J$30")),"Non utilisé",INDIRECT("'"&$A98&"'!$J$30")) -> Non utilisé | D98: =IF(ISBLANK(INDIRECT("'"&$A98&"'!$K$30")),"",INDIRECT("'"&$A98&"'!$K$30")) ->  | E98: =INDEX($A$1:$M$194,MATCH(A98&C98,$A$1:$A$194&$C$1:$C$194,0),MATCH($E$2,$A$1:$M$1,0)) -> 1 | F98: 1 | G98: 1 | H98: 1 | I98: 1 | J98: 1 | K98: 0 | L98: 0 | M98: 0
A99: =C96 -> Espace attente | B99: Paramètre #3 | C99: =IF(ISBLANK(INDIRECT("'"&$A99&"'!$J$31")),"Non utilisé",INDIRECT("'"&$A99&"'!$J$31")) -> Non utilisé | D99: =IF(ISBLANK(INDIRECT("'"&$A99&"'!$K$31")),"",INDIRECT("'"&$A99&"'!$K$31")) ->  | E99: =INDEX($A$1:$M$194,MATCH(A99&C99,$A$1:$A$194&$C$1:$C$194,0),MATCH($E$2,$A$1:$M$1,0)) -> 1 | F99: 1 | G99: 1 | H99: 1 | I99: 1 | J99: 1 | K99: 0 | L99: 0 | M99: 0
A100: =C96 -> Espace attente | B100: Paramètre #4 | C100: =IF(ISBLANK(INDIRECT("'"&$A100&"'!$J$32")),"Non utilisé",INDIRECT("'"&$A100&"'!$J$32")) -> Non utilisé | D100: =IF(ISBLANK(INDIRECT("'"&$A100&"'!$K$32")),"",INDIRECT("'"&$A100&"'!$K$32")) ->  | E100: =INDEX($A$1:$M$194,MATCH(A100&C100,$A$1:$A$194&$C$1:$C$194,0),MATCH($E$2,$A$1:$M$1,0)) -> 1 | F100: 1 | G100: 1 | H100: 1 | I100: 1 | J100: 1 | K100: 0 | L100: 0 | M100: 0
A101: =C96 -> Espace attente | B101: Paramètre #5 | C101: =IF(ISBLANK(INDIRECT("'"&$A101&"'!$J$33")),"Non utilisé",INDIRECT("'"&$A101&"'!$J$33")) -> Non utilisé | D101: =IF(ISBLANK(INDIRECT("'"&$A101&"'!$K$33")),"",INDIRECT("'"&$A101&"'!$K$33")) ->  | E101: =INDEX($A$1:$M$194,MATCH(A101&C101,$A$1:$A$194&$C$1:$C$194,0),MATCH($E$2,$A$1:$M$1,0)) -> 1 | F101: 1 | G101: 1 | H101: 1 | I101: 1 | J101: 1 | K101: 1 | L101: 1 | M101: 1
A102: =C102 -> Propreté | B102: 4.2 Propreté | C102: Propreté | E102: =INDEX($A$1:$M$194,MATCH(A102&C102,$A$1:$A$194&$C$1:$C$194,0),MATCH($E$2,$A$1:$M$1,0)) -> 0
A103: =C102 -> Propreté | B103: Paramètre #1 | C103: =IF(ISBLANK(INDIRECT("'"&$A103&"'!$J$29")),"Non utilisé",INDIRECT("'"&$A103&"'!$J$29")) -> % du prix d'achat en maintenance/rénovation annuelle | D103: =IF(ISBLANK(INDIRECT("'"&$A103&"'!$K$29")),"",INDIRECT("'"&$A103&"'!$K$29")) -> 0.1 | E103: =INDEX($A$1:$M$194,MATCH(A103&C103,$A$1:$A$194&$C$1:$C$194,0),MATCH($E$2,$A$1:$M$1,0)) -> 1 | F103: 1 | G103: 1 | H103: 1 | I103: 1 | J103: 1 | K103: 1 | L103: 1 | M103: 1
A104: =C102 -> Propreté | B104: Paramètre #2 | C104: =IF(ISBLANK(INDIRECT("'"&$A104&"'!$J$30")),"Non utilisé",INDIRECT("'"&$A104&"'!$J$30")) -> Surface de nettoyage par heure d'une autolaveuse | D104: =IF(ISBLANK(INDIRECT("'"&$A104&"'!$K$30")),"",INDIRECT("'"&$A104&"'!$K$30")) -> 1000 | E104: =INDEX($A$1:$M$194,MATCH(A104&C104,$A$1:$A$194&$C$1:$C$194,0),MATCH($E$2,$A$1:$M$1,0)) -> 1 | F104: 1 | G104: 1 | H104: 1 | I104: 1 | J104: 1 | K104: 1 | L104: 1 | M104: 1
A105: =C102 -> Propreté | B105: Paramètre #3 | C105: =IF(ISBLANK(INDIRECT("'"&$A105&"'!$J$31")),"Non utilisé",INDIRECT("'"&$A105&"'!$J$31")) -> Nombre de nettoyage par jour | D105: =IF(ISBLANK(INDIRECT("'"&$A105&"'!$K$31")),"",INDIRECT("'"&$A105&"'!$K$31")) -> 3 | E105: =INDEX($A$1:$M$194,MATCH(A105&C105,$A$1:$A$194&$C$1:$C$194,0),MATCH($E$2,$A$1:$M$1,0)) -> 1 | F105: 1 | G105: 1 | H105: 1 | I105: 1 | J105: 1 | K105: 1 | L105: 0.5 | M105: 0.5
A106: =C102 -> Propreté | B106: Paramètre #4 | C106: =IF(ISBLANK(INDIRECT("'"&$A106&"'!$J$32")),"Non utilisé",INDIRECT("'"&$A106&"'!$J$32")) -> Surface à nettoyer par jour | D106: =IF(ISBLANK(INDIRECT("'"&$A106&"'!$K$32")),"",INDIRECT("'"&$A106&"'!$K$32")) -> 3687.433129 | E106: =INDEX($A$1:$M$194,MATCH(A106&C106,$A$1:$A$194&$C$1:$C$194,0),MATCH($E$2,$A$1:$M$1,0)) -> 1 | F106: 1 | G106: 1 | H106: 1 | I106: 1 | J106: 1 | K106: 1 | L106: 0.5 | M106: 0.5
A107: =C102 -> Propreté | B107: Paramètre #5 | C107: =IF(ISBLANK(INDIRECT("'"&$A107&"'!$J$33")),"Non utilisé",INDIRECT("'"&$A107&"'!$J$33")) -> Heures de nettoyage supplémentaires par tranche de n voyageurs | D107: =IF(ISBLANK(INDIRECT("'"&$A107&"'!$K$33")),"",INDIRECT("'"&$A107&"'!$K$33")) -> 0 | E107: =INDEX($A$1:$M$194,MATCH(A107&C107,$A$1:$A$194&$C$1:$C$194,0),MATCH($E$2,$A$1:$M$1,0)) -> 1 | F107: 1 | G107: 1 | H107: 1 | I107: 1 | J107: 1 | K107: 1 | L107: 0.5 | M107: 0.5
A108: =C108 -> Eclairage | B108: 4.3 Energie et fluide - Installation éclairage | C108: Eclairage | E108: =INDEX($A$1:$M$194,MATCH(A108&C108,$A$1:$A$194&$C$1:$C$194,0),MATCH($E$2,$A$1:$M$1,0)) -> 0
A109: =C108 -> Eclairage | B109: Paramètre #1 | C109: =IF(ISBLANK(INDIRECT("'"&$A109&"'!$J$29")),"Non utilisé",INDIRECT("'"&$A109&"'!$J$29")) -> % du prix d'achat en maintenance/rénovation annuelle | D109: =IF(ISBLANK(INDIRECT("'"&$A109&"'!$K$29")),"",INDIRECT("'"&$A109&"'!$K$29")) -> 0.005 | E109: =INDEX($A$1:$M$194,MATCH(A109&C109,$A$1:$A$194&$C$1:$C$194,0),MATCH($E$2,$A$1:$M$1,0)) -> 1 | F109: 1 | G109: 1 | H109: 1 | I109: 1 | J109: 1 | K109: 1 | L109: 1 | M109: 1
A110: =C108 -> Eclairage | B110: Paramètre #2 | C110: =IF(ISBLANK(INDIRECT("'"&$A110&"'!$J$30")),"Non utilisé",INDIRECT("'"&$A110&"'!$J$30")) -> Non utilisé | D110: =IF(ISBLANK(INDIRECT("'"&$A110&"'!$K$30")),"",INDIRECT("'"&$A110&"'!$K$30")) ->  | E110: =INDEX($A$1:$M$194,MATCH(A110&C110,$A$1:$A$194&$C$1:$C$194,0),MATCH($E$2,$A$1:$M$1,0)) -> 1 | F110: 1 | G110: 1 | H110: 1 | I110: 1 | J110: 1 | K110: 1 | L110: 1 | M110: 1
A111: =C108 -> Eclairage | B111: Paramètre #3 | C111: =IF(ISBLANK(INDIRECT("'"&$A111&"'!$J$31")),"Non utilisé",INDIRECT("'"&$A111&"'!$J$31")) -> Non utilisé | D111: =IF(ISBLANK(INDIRECT("'"&$A111&"'!$K$31")),"",INDIRECT("'"&$A111&"'!$K$31")) ->  | E111: =INDEX($A$1:$M$194,MATCH(A111&C111,$A$1:$A$194&$C$1:$C$194,0),MATCH($E$2,$A$1:$M$1,0)) -> 1 | F111: 1 | G111: 1 | H111: 1 | I111: 1 | J111: 1 | K111: 1 | L111: 1 | M111: 1
A112: =C108 -> Eclairage | B112: Paramètre #4 | C112: =IF(ISBLANK(INDIRECT("'"&$A112&"'!$J$32")),"Non utilisé",INDIRECT("'"&$A112&"'!$J$32")) -> Non utilisé | D112: =IF(ISBLANK(INDIRECT("'"&$A112&"'!$K$32")),"",INDIRECT("'"&$A112&"'!$K$32")) ->  | E112: =INDEX($A$1:$M$194,MATCH(A112&C112,$A$1:$A$194&$C$1:$C$194,0),MATCH($E$2,$A$1:$M$1,0)) -> 1 | F112: 1 | G112: 1 | H112: 1 | I112: 1 | J112: 1 | K112: 1 | L112: 1 | M112: 1
A113: =C108 -> Eclairage | B113: Paramètre #5 | C113: =IF(ISBLANK(INDIRECT("'"&$A113&"'!$J$33")),"Non utilisé",INDIRECT("'"&$A113&"'!$J$33")) -> Non utilisé | D113: =IF(ISBLANK(INDIRECT("'"&$A113&"'!$K$33")),"",INDIRECT("'"&$A113&"'!$K$33")) ->  | E113: =INDEX($A$1:$M$194,MATCH(A113&C113,$A$1:$A$194&$C$1:$C$194,0),MATCH($E$2,$A$1:$M$1,0)) -> 1 | F113: 1 | G113: 1 | H113: 1 | I113: 1 | J113: 1 | K113: 1 | L113: 1 | M113: 1
A114: =C114 -> Chauffage et clim | B114: 4.4 Energie et fluide - Installation CVC | C114: Chauffage et clim | E114: =INDEX($A$1:$M$194,MATCH(A114&C114,$A$1:$A$194&$C$1:$C$194,0),MATCH($E$2,$A$1:$M$1,0)) -> 0
A115: =C114 -> Chauffage et clim | B115: Paramètre #1 | C115: =IF(ISBLANK(INDIRECT("'"&$A115&"'!$J$29")),"Non utilisé",INDIRECT("'"&$A115&"'!$J$29")) -> % du prix d'achat en maintenance/rénovation annuelle | D115: =IF(ISBLANK(INDIRECT("'"&$A115&"'!$K$29")),"",INDIRECT("'"&$A115&"'!$K$29")) -> 0.005 | E115: =INDEX($A$1:$M$194,MATCH(A115&C115,$A$1:$A$194&$C$1:$C$194,0),MATCH($E$2,$A$1:$M$1,0)) -> 1 | F115: 1 | G115: 1 | H115: 1 | I115: 1 | J115: 1 | K115: 1 | L115: 1 | M115: 1
A116: =C114 -> Chauffage et clim | B116: Paramètre #2 | C116: =IF(ISBLANK(INDIRECT("'"&$A116&"'!$J$30")),"Non utilisé",INDIRECT("'"&$A116&"'!$J$30")) -> Non utilisé | D116: =IF(ISBLANK(INDIRECT("'"&$A116&"'!$K$30")),"",INDIRECT("'"&$A116&"'!$K$30")) ->  | E116: =INDEX($A$1:$M$194,MATCH(A116&C116,$A$1:$A$194&$C$1:$C$194,0),MATCH($E$2,$A$1:$M$1,0)) -> 1 | F116: 1 | G116: 1 | H116: 1 | I116: 1 | J116: 1 | K116: 1 | L116: 1 | M116: 1
A117: =C114 -> Chauffage et clim | B117: Paramètre #3 | C117: =IF(ISBLANK(INDIRECT("'"&$A117&"'!$J$31")),"Non utilisé",INDIRECT("'"&$A117&"'!$J$31")) -> Non utilisé | D117: =IF(ISBLANK(INDIRECT("'"&$A117&"'!$K$31")),"",INDIRECT("'"&$A117&"'!$K$31")) ->  | E117: =INDEX($A$1:$M$194,MATCH(A117&C117,$A$1:$A$194&$C$1:$C$194,0),MATCH($E$2,$A$1:$M$1,0)) -> 1 | F117: 1 | G117: 1 | H117: 1 | I117: 1 | J117: 1 | K117: 1 | L117: 1 | M117: 1
A118: =C114 -> Chauffage et clim | B118: Paramètre #4 | C118: =IF(ISBLANK(INDIRECT("'"&$A118&"'!$J$32")),"Non utilisé",INDIRECT("'"&$A118&"'!$J$32")) -> Non utilisé | D118: =IF(ISBLANK(INDIRECT("'"&$A118&"'!$K$32")),"",INDIRECT("'"&$A118&"'!$K$32")) ->  | E118: =INDEX($A$1:$M$194,MATCH(A118&C118,$A$1:$A$194&$C$1:$C$194,0),MATCH($E$2,$A$1:$M$1,0)) -> 1 | F118: 1 | G118: 1 | H118: 1 | I118: 1 | J118: 1 | K118: 1 | L118: 1 | M118: 1
A119: =C114 -> Chauffage et clim | B119: Paramètre #5 | C119: =IF(ISBLANK(INDIRECT("'"&$A119&"'!$J$33")),"Non utilisé",INDIRECT("'"&$A119&"'!$J$33")) -> Non utilisé | D119: =IF(ISBLANK(INDIRECT("'"&$A119&"'!$K$33")),"",INDIRECT("'"&$A119&"'!$K$33")) ->  | E119: =INDEX($A$1:$M$194,MATCH(A119&C119,$A$1:$A$194&$C$1:$C$194,0),MATCH($E$2,$A$1:$M$1,0)) -> 1 | F119: 1 | G119: 1 | H119: 1 | I119: 1 | J119: 1 | K119: 1 | L119: 1 | M119: 1
A120: =C120 -> Eau | B120: 4.5 Dépenses énergétique et fluides - Eau | C120: Eau | E120: =INDEX($A$1:$M$194,MATCH(A120&C120,$A$1:$A$194&$C$1:$C$194,0),MATCH($E$2,$A$1:$M$1,0)) -> 0
A121: =C120 -> Eau | B121: Paramètre #1 | C121: =IF(ISBLANK(INDIRECT("'"&$A121&"'!$J$29")),"Non utilisé",INDIRECT("'"&$A121&"'!$J$29")) -> Consommation en m3 par m² par an | D121: =IF(ISBLANK(INDIRECT("'"&$A121&"'!$K$29")),"",INDIRECT("'"&$A121&"'!$K$29")) -> 4 | E121: =INDEX($A$1:$M$194,MATCH(A121&C121,$A$1:$A$194&$C$1:$C$194,0),MATCH($E$2,$A$1:$M$1,0)) -> 1 | F121: 1 | G121: 1 | H121: 1 | I121: 1 | J121: 1 | K121: 1 | L121: 1 | M121: 1
A122: =C120 -> Eau | B122: Paramètre #2 | C122: =IF(ISBLANK(INDIRECT("'"&$A122&"'!$J$30")),"Non utilisé",INDIRECT("'"&$A122&"'!$J$30")) -> Non utilisé | D122: =IF(ISBLANK(INDIRECT("'"&$A122&"'!$K$30")),"",INDIRECT("'"&$A122&"'!$K$30")) ->  | E122: =INDEX($A$1:$M$194,MATCH(A122&C122,$A$1:$A$194&$C$1:$C$194,0),MATCH($E$2,$A$1:$M$1,0)) -> 1 | F122: 1 | G122: 1 | H122: 1 | I122: 1 | J122: 1 | K122: 1 | L122: 1 | M122: 1
A123: =C120 -> Eau | B123: Paramètre #3 | C123: =IF(ISBLANK(INDIRECT("'"&$A123&"'!$J$31")),"Non utilisé",INDIRECT("'"&$A123&"'!$J$31")) -> Non utilisé | D123: =IF(ISBLANK(INDIRECT("'"&$A123&"'!$K$31")),"",INDIRECT("'"&$A123&"'!$K$31")) ->  | E123: =INDEX($A$1:$M$194,MATCH(A123&C123,$A$1:$A$194&$C$1:$C$194,0),MATCH($E$2,$A$1:$M$1,0)) -> 1
A124: =C120 -> Eau | B124: Paramètre #4 | C124: =IF(ISBLANK(INDIRECT("'"&$A124&"'!$J$32")),"Non utilisé",INDIRECT("'"&$A124&"'!$J$32")) -> Non utilisé | D124: =IF(ISBLANK(INDIRECT("'"&$A124&"'!$K$32")),"",INDIRECT("'"&$A124&"'!$K$32")) ->  | E124: =INDEX($A$1:$M$194,MATCH(A124&C124,$A$1:$A$194&$C$1:$C$194,0),MATCH($E$2,$A$1:$M$1,0)) -> 1
A125: =C120 -> Eau | B125: Paramètre #5 | C125: =IF(ISBLANK(INDIRECT("'"&$A125&"'!$J$33")),"Non utilisé",INDIRECT("'"&$A125&"'!$J$33")) -> Non utilisé | D125: =IF(ISBLANK(INDIRECT("'"&$A125&"'!$K$33")),"",INDIRECT("'"&$A125&"'!$K$33")) ->  | E125: =INDEX($A$1:$M$194,MATCH(A125&C125,$A$1:$A$194&$C$1:$C$194,0),MATCH($E$2,$A$1:$M$1,0)) -> 1
A126: =C126 -> Consommation KWh | B126: 4.6 Dépenses énergétique et fluides - KWh | C126: Consommation KWh | E126: =INDEX($A$1:$M$194,MATCH(A126&C126,$A$1:$A$194&$C$1:$C$194,0),MATCH($E$2,$A$1:$M$1,0)) -> 0
A127: =C126 -> Consommation KWh | B127: Paramètre #1 | C127: =IF(ISBLANK(INDIRECT("'"&$A127&"'!$J$29")),"Non utilisé",INDIRECT("'"&$A127&"'!$J$29")) -> Consommation moyenne annuelle électricité en KWh par m² | D127: =IF(ISBLANK(INDIRECT("'"&$A127&"'!$K$29")),"",INDIRECT("'"&$A127&"'!$K$29")) -> 120 | E127: =INDEX($A$1:$M$194,MATCH(A127&C127,$A$1:$A$194&$C$1:$C$194,0),MATCH($E$2,$A$1:$M$1,0)) -> 1 | F127: 1 | G127: 1 | H127: 1 | I127: 1 | J127: 1 | K127: 1 | L127: 1 | M127: 1
A128: =C126 -> Consommation KWh | B128: Paramètre #2 | C128: =IF(ISBLANK(INDIRECT("'"&$A128&"'!$J$30")),"Non utilisé",INDIRECT("'"&$A128&"'!$J$30")) -> Consommation moyenne annuelle chaleur moyenne en KWh par m² | D128: =IF(ISBLANK(INDIRECT("'"&$A128&"'!$K$30")),"",INDIRECT("'"&$A128&"'!$K$30")) -> 24 | E128: =INDEX($A$1:$M$194,MATCH(A128&C128,$A$1:$A$194&$C$1:$C$194,0),MATCH($E$2,$A$1:$M$1,0)) -> 1 | F128: 1 | G128: 1 | H128: 1 | I128: 1 | J128: 1 | K128: 1 | L128: 1 | M128: 1
A129: =C126 -> Consommation KWh | B129: Paramètre #3 | C129: =IF(ISBLANK(INDIRECT("'"&$A129&"'!$J$31")),"Non utilisé",INDIRECT("'"&$A129&"'!$J$31")) -> Non utilisé | D129: =IF(ISBLANK(INDIRECT("'"&$A129&"'!$K$31")),"",INDIRECT("'"&$A129&"'!$K$31")) ->  | E129: =INDEX($A$1:$M$194,MATCH(A129&C129,$A$1:$A$194&$C$1:$C$194,0),MATCH($E$2,$A$1:$M$1,0)) -> 0
A130: =C126 -> Consommation KWh | B130: Paramètre #4 | C130: =IF(ISBLANK(INDIRECT("'"&$A130&"'!$J$32")),"Non utilisé",INDIRECT("'"&$A130&"'!$J$32")) -> Non utilisé | D130: =IF(ISBLANK(INDIRECT("'"&$A130&"'!$K$32")),"",INDIRECT("'"&$A130&"'!$K$32")) ->  | E130: =INDEX($A$1:$M$194,MATCH(A130&C130,$A$1:$A$194&$C$1:$C$194,0),MATCH($E$2,$A$1:$M$1,0)) -> 0
A131: =C126 -> Consommation KWh | B131: Paramètre #5 | C131: =IF(ISBLANK(INDIRECT("'"&$A131&"'!$J$33")),"Non utilisé",INDIRECT("'"&$A131&"'!$J$33")) -> Non utilisé | D131: =IF(ISBLANK(INDIRECT("'"&$A131&"'!$K$33")),"",INDIRECT("'"&$A131&"'!$K$33")) ->  | E131: =INDEX($A$1:$M$194,MATCH(A131&C131,$A$1:$A$194&$C$1:$C$194,0),MATCH($E$2,$A$1:$M$1,0)) -> 0
A132: =C132 -> Sanitaires | B132: 4.7 Sanitaires | C132: Sanitaires | E132: =INDEX($A$1:$M$194,MATCH(A132&C132,$A$1:$A$194&$C$1:$C$194,0),MATCH($E$2,$A$1:$M$1,0)) -> 0
A133: =C132 -> Sanitaires | B133: Paramètre #1 | C133: =IF(ISBLANK(INDIRECT("'"&$A133&"'!$J$29")),"Non utilisé",INDIRECT("'"&$A133&"'!$J$29")) -> % du prix d'achat en maintenance/rénovation annuelle | D133: =IF(ISBLANK(INDIRECT("'"&$A133&"'!$K$29")),"",INDIRECT("'"&$A133&"'!$K$29")) -> 0.1 | E133: =INDEX($A$1:$M$194,MATCH(A133&C133,$A$1:$A$194&$C$1:$C$194,0),MATCH($E$2,$A$1:$M$1,0)) -> 1 | F133: 1 | G133: 1 | H133: 1 | I133: 1 | J133: 1 | K133: 1 | L133: 1 | M133: 1
A134: =C132 -> Sanitaires | B134: Paramètre #2 | C134: =IF(ISBLANK(INDIRECT("'"&$A134&"'!$J$30")),"Non utilisé",INDIRECT("'"&$A134&"'!$J$30")) -> Non utilisé | D134: =IF(ISBLANK(INDIRECT("'"&$A134&"'!$K$30")),"",INDIRECT("'"&$A134&"'!$K$30")) ->  | E134: =INDEX($A$1:$M$194,MATCH(A134&C134,$A$1:$A$194&$C$1:$C$194,0),MATCH($E$2,$A$1:$M$1,0)) -> 1 | F134: 1 | G134: 1 | H134: 1 | I134: 1 | J134: 1 | K134: 1 | L134: 1 | M134: 1
A135: =C132 -> Sanitaires | B135: Paramètre #3 | C135: =IF(ISBLANK(INDIRECT("'"&$A135&"'!$J$31")),"Non utilisé",INDIRECT("'"&$A135&"'!$J$31")) -> Non utilisé | D135: =IF(ISBLANK(INDIRECT("'"&$A135&"'!$K$31")),"",INDIRECT("'"&$A135&"'!$K$31")) ->  | E135: =INDEX($A$1:$M$194,MATCH(A135&C135,$A$1:$A$194&$C$1:$C$194,0),MATCH($E$2,$A$1:$M$1,0)) -> 1
A136: =C132 -> Sanitaires | B136: Paramètre #4 | C136: =IF(ISBLANK(INDIRECT("'"&$A136&"'!$J$32")),"Non utilisé",INDIRECT("'"&$A136&"'!$J$32")) -> Non utilisé | D136: =IF(ISBLANK(INDIRECT("'"&$A136&"'!$K$32")),"",INDIRECT("'"&$A136&"'!$K$32")) ->  | E136: =INDEX($A$1:$M$194,MATCH(A136&C136,$A$1:$A$194&$C$1:$C$194,0),MATCH($E$2,$A$1:$M$1,0)) -> 1
A137: =C132 -> Sanitaires | B137: Paramètre #5 | C137: =IF(ISBLANK(INDIRECT("'"&$A137&"'!$J$33")),"Non utilisé",INDIRECT("'"&$A137&"'!$J$33")) -> Non utilisé | D137: =IF(ISBLANK(INDIRECT("'"&$A137&"'!$K$33")),"",INDIRECT("'"&$A137&"'!$K$33")) ->  | E137: =INDEX($A$1:$M$194,MATCH(A137&C137,$A$1:$A$194&$C$1:$C$194,0),MATCH($E$2,$A$1:$M$1,0)) -> 1
A138: =C138 -> Wifi | B138: 4.8 Wifi voyageur | C138: Wifi | E138: =INDEX($A$1:$M$194,MATCH(A138&C138,$A$1:$A$194&$C$1:$C$194,0),MATCH($E$2,$A$1:$M$1,0)) -> 0
A139: =C138 -> Wifi | B139: Paramètre #1 | C139: =IF(ISBLANK(INDIRECT("'"&$A139&"'!$J$29")),"Non utilisé",INDIRECT("'"&$A139&"'!$J$29")) -> % du prix d'achat en maintenance/rénovation annuelle | D139: =IF(ISBLANK(INDIRECT("'"&$A139&"'!$K$29")),"",INDIRECT("'"&$A139&"'!$K$29")) -> 0.1 | E139: =INDEX($A$1:$M$194,MATCH(A139&C139,$A$1:$A$194&$C$1:$C$194,0),MATCH($E$2,$A$1:$M$1,0)) -> 1 | F139: 1 | G139: 1 | H139: 1 | I139: 1 | J139: 1 | K139: 1 | L139: 1 | M139: 1
A140: =C138 -> Wifi | B140: Paramètre #2 | C140: =IF(ISBLANK(INDIRECT("'"&$A140&"'!$J$30")),"Non utilisé",INDIRECT("'"&$A140&"'!$J$30")) -> Non utilisé | D140: =IF(ISBLANK(INDIRECT("'"&$A140&"'!$K$30")),"",INDIRECT("'"&$A140&"'!$K$30")) ->  | E140: =INDEX($A$1:$M$194,MATCH(A140&C140,$A$1:$A$194&$C$1:$C$194,0),MATCH($E$2,$A$1:$M$1,0)) -> 1 | F140: 1 | G140: 1 | H140: 1 | I140: 1 | J140: 1 | K140: 1 | L140: 1 | M140: 1
A141: =C138 -> Wifi | B141: Paramètre #3 | C141: =IF(ISBLANK(INDIRECT("'"&$A141&"'!$J$31")),"Non utilisé",INDIRECT("'"&$A141&"'!$J$31")) -> Non utilisé | D141: =IF(ISBLANK(INDIRECT("'"&$A141&"'!$K$31")),"",INDIRECT("'"&$A141&"'!$K$31")) ->  | E141: =INDEX($A$1:$M$194,MATCH(A141&C141,$A$1:$A$194&$C$1:$C$194,0),MATCH($E$2,$A$1:$M$1,0)) -> 1
A142: =C138 -> Wifi | B142: Paramètre #4 | C142: =IF(ISBLANK(INDIRECT("'"&$A142&"'!$J$32")),"Non utilisé",INDIRECT("'"&$A142&"'!$J$32")) -> Non utilisé | D142: =IF(ISBLANK(INDIRECT("'"&$A142&"'!$K$32")),"",INDIRECT("'"&$A142&"'!$K$32")) ->  | E142: =INDEX($A$1:$M$194,MATCH(A142&C142,$A$1:$A$194&$C$1:$C$194,0),MATCH($E$2,$A$1:$M$1,0)) -> 1
A143: =C138 -> Wifi | B143: Paramètre #5 | C143: =IF(ISBLANK(INDIRECT("'"&$A143&"'!$J$33")),"Non utilisé",INDIRECT("'"&$A143&"'!$J$33")) -> Non utilisé | D143: =IF(ISBLANK(INDIRECT("'"&$A143&"'!$K$33")),"",INDIRECT("'"&$A143&"'!$K$33")) ->  | E143: =INDEX($A$1:$M$194,MATCH(A143&C143,$A$1:$A$194&$C$1:$C$194,0),MATCH($E$2,$A$1:$M$1,0)) -> 1
B144: 5 - Mise à disposition des locaux et des surfaces | C144: =B144 -> 5 - Mise à disposition des locaux et des surfaces | E144: =INDEX($A$1:$M$194,MATCH(A144&C144,$A$1:$A$194&$C$1:$C$194,0),MATCH($E$2,$A$1:$M$1,0)) -> 0
A145: =C145 -> Locaux Prestataires | B145: 5.1 Locaux destinés au personnel G&C et prestataires | C145: Locaux Prestataires | E145: =INDEX($A$1:$M$194,MATCH(A145&C145,$A$1:$A$194&$C$1:$C$194,0),MATCH($E$2,$A$1:$M$1,0)) -> 0
A146: =C145 -> Locaux Prestataires | B146: Paramètre #1 | C146: =IF(ISBLANK(INDIRECT("'"&$A146&"'!$J$29")),"Non utilisé",INDIRECT("'"&$A146&"'!$J$29")) -> % du prix d'achat en maintenance/rénovation annuelle | D146: =IF(ISBLANK(INDIRECT("'"&$A146&"'!$K$29")),"",INDIRECT("'"&$A146&"'!$K$29")) -> 0.1 | E146: =INDEX($A$1:$M$194,MATCH(A146&C146,$A$1:$A$194&$C$1:$C$194,0),MATCH($E$2,$A$1:$M$1,0)) -> 1 | F146: 1 | G146: 1 | H146: 1 | I146: 1 | J146: 1 | K146: 1 | L146: 1 | M146: 1
A147: =C145 -> Locaux Prestataires | B147: Paramètre #2 | C147: =IF(ISBLANK(INDIRECT("'"&$A147&"'!$J$30")),"Non utilisé",INDIRECT("'"&$A147&"'!$J$30")) -> Non utilisé | D147: =IF(ISBLANK(INDIRECT("'"&$A147&"'!$K$30")),"",INDIRECT("'"&$A147&"'!$K$30")) ->  | E147: =INDEX($A$1:$M$194,MATCH(A147&C147,$A$1:$A$194&$C$1:$C$194,0),MATCH($E$2,$A$1:$M$1,0)) -> 0
A148: =C145 -> Locaux Prestataires | B148: Paramètre #3 | C148: =IF(ISBLANK(INDIRECT("'"&$A148&"'!$J$31")),"Non utilisé",INDIRECT("'"&$A148&"'!$J$31")) -> Non utilisé | D148: =IF(ISBLANK(INDIRECT("'"&$A148&"'!$K$31")),"",INDIRECT("'"&$A148&"'!$K$31")) ->  | E148: =INDEX($A$1:$M$194,MATCH(A148&C148,$A$1:$A$194&$C$1:$C$194,0),MATCH($E$2,$A$1:$M$1,0)) -> 0
A149: =C145 -> Locaux Prestataires | B149: Paramètre #4 | C149: =IF(ISBLANK(INDIRECT("'"&$A149&"'!$J$32")),"Non utilisé",INDIRECT("'"&$A149&"'!$J$32")) -> Non utilisé | D149: =IF(ISBLANK(INDIRECT("'"&$A149&"'!$K$32")),"",INDIRECT("'"&$A149&"'!$K$32")) ->  | E149: =INDEX($A$1:$M$194,MATCH(A149&C149,$A$1:$A$194&$C$1:$C$194,0),MATCH($E$2,$A$1:$M$1,0)) -> 0
A150: =C145 -> Locaux Prestataires | B150: Paramètre #5 | C150: =IF(ISBLANK(INDIRECT("'"&$A150&"'!$J$33")),"Non utilisé",INDIRECT("'"&$A150&"'!$J$33")) -> Non utilisé | D150: =IF(ISBLANK(INDIRECT("'"&$A150&"'!$K$33")),"",INDIRECT("'"&$A150&"'!$K$33")) ->  | E150: =INDEX($A$1:$M$194,MATCH(A150&C150,$A$1:$A$194&$C$1:$C$194,0),MATCH($E$2,$A$1:$M$1,0)) -> 0
A151: =C151 -> Locaux Escale | B151: 5.2 Locaux destinés aux entreprises ferroviaires | C151: Locaux Escale | E151: =INDEX($A$1:$M$194,MATCH(A151&C151,$A$1:$A$194&$C$1:$C$194,0),MATCH($E$2,$A$1:$M$1,0)) -> 0
A152: =C151 -> Locaux Escale | B152: Paramètre #1 | C152: =IF(ISBLANK(INDIRECT("'"&$A152&"'!$J$29")),"Non utilisé",INDIRECT("'"&$A152&"'!$J$29")) -> % du prix d'achat en maintenance/rénovation annuelle | D152: =IF(ISBLANK(INDIRECT("'"&$A152&"'!$K$29")),"",INDIRECT("'"&$A152&"'!$K$29")) -> 0.1 | E152: =INDEX($A$1:$M$194,MATCH(A152&C152,$A$1:$A$194&$C$1:$C$194,0),MATCH($E$2,$A$1:$M$1,0)) -> 1 | F152: 1 | G152: 1 | H152: 1 | I152: 1 | J152: 1 | K152: 1 | L152: 1 | M152: 1
A153: =C151 -> Locaux Escale | B153: Paramètre #2 | C153: =IF(ISBLANK(INDIRECT("'"&$A153&"'!$J$30")),"Non utilisé",INDIRECT("'"&$A153&"'!$J$30")) -> Non utilisé | D153: =IF(ISBLANK(INDIRECT("'"&$A153&"'!$K$30")),"",INDIRECT("'"&$A153&"'!$K$30")) ->  | E153: =INDEX($A$1:$M$194,MATCH(A153&C153,$A$1:$A$194&$C$1:$C$194,0),MATCH($E$2,$A$1:$M$1,0)) -> 0
A154: =C151 -> Locaux Escale | B154: Paramètre #3 | C154: =IF(ISBLANK(INDIRECT("'"&$A154&"'!$J$31")),"Non utilisé",INDIRECT("'"&$A154&"'!$J$31")) -> Non utilisé | D154: =IF(ISBLANK(INDIRECT("'"&$A154&"'!$K$31")),"",INDIRECT("'"&$A154&"'!$K$31")) ->  | E154: =INDEX($A$1:$M$194,MATCH(A154&C154,$A$1:$A$194&$C$1:$C$194,0),MATCH($E$2,$A$1:$M$1,0)) -> 0
A155: =C151 -> Locaux Escale | B155: Paramètre #4 | C155: =IF(ISBLANK(INDIRECT("'"&$A155&"'!$J$32")),"Non utilisé",INDIRECT("'"&$A155&"'!$J$32")) -> Non utilisé | D155: =IF(ISBLANK(INDIRECT("'"&$A155&"'!$K$32")),"",INDIRECT("'"&$A155&"'!$K$32")) ->  | E155: =INDEX($A$1:$M$194,MATCH(A155&C155,$A$1:$A$194&$C$1:$C$194,0),MATCH($E$2,$A$1:$M$1,0)) -> 0
A156: =C151 -> Locaux Escale | B156: Paramètre #5 | C156: =IF(ISBLANK(INDIRECT("'"&$A156&"'!$J$33")),"Non utilisé",INDIRECT("'"&$A156&"'!$J$33")) -> Non utilisé | D156: =IF(ISBLANK(INDIRECT("'"&$A156&"'!$K$33")),"",INDIRECT("'"&$A156&"'!$K$33")) ->  | E156: =INDEX($A$1:$M$194,MATCH(A156&C156,$A$1:$A$194&$C$1:$C$194,0),MATCH($E$2,$A$1:$M$1,0)) -> 0
A157: =C157 -> Espace de vente régulé | B157: 5.3 Espaces aménagés pour la vente de titres ferroviaires | C157: Espace de vente régulé | E157: =INDEX($A$1:$M$194,MATCH(A157&C157,$A$1:$A$194&$C$1:$C$194,0),MATCH($E$2,$A$1:$M$1,0)) -> 0
A158: =C157 -> Espace de vente régulé | B158: Paramètre #1 | C158: =IF(ISBLANK(INDIRECT("'"&$A158&"'!$J$29")),"Non utilisé",INDIRECT("'"&$A158&"'!$J$29")) -> % du prix d'achat en maintenance/rénovation annuelle | D158: =IF(ISBLANK(INDIRECT("'"&$A158&"'!$K$29")),"",INDIRECT("'"&$A158&"'!$K$29")) -> 0.1 | E158: =INDEX($A$1:$M$194,MATCH(A158&C158,$A$1:$A$194&$C$1:$C$194,0),MATCH($E$2,$A$1:$M$1,0)) -> 1 | F158: 1 | G158: 1 | H158: 1 | I158: 1 | J158: 1 | K158: 1 | L158: 1 | M158: 1
A159: =C157 -> Espace de vente régulé | B159: Paramètre #2 | C159: =IF(ISBLANK(INDIRECT("'"&$A159&"'!$J$30")),"Non utilisé",INDIRECT("'"&$A159&"'!$J$30")) -> Non utilisé | D159: =IF(ISBLANK(INDIRECT("'"&$A159&"'!$K$30")),"",INDIRECT("'"&$A159&"'!$K$30")) ->  | E159: =INDEX($A$1:$M$194,MATCH(A159&C159,$A$1:$A$194&$C$1:$C$194,0),MATCH($E$2,$A$1:$M$1,0)) -> 1 | F159: 1 | G159: 1 | H159: 1 | I159: 1 | J159: 1 | K159: 1 | L159: 1 | M159: 1
A160: =C157 -> Espace de vente régulé | B160: Paramètre #3 | C160: =IF(ISBLANK(INDIRECT("'"&$A160&"'!$J$31")),"Non utilisé",INDIRECT("'"&$A160&"'!$J$31")) -> Non utilisé | D160: =IF(ISBLANK(INDIRECT("'"&$A160&"'!$K$31")),"",INDIRECT("'"&$A160&"'!$K$31")) ->  | E160: =INDEX($A$1:$M$194,MATCH(A160&C160,$A$1:$A$194&$C$1:$C$194,0),MATCH($E$2,$A$1:$M$1,0)) -> 1 | F160: 1 | G160: 1 | H160: 1 | I160: 1 | J160: 1 | K160: 1 | L160: 1 | M160: 1
A161: =C157 -> Espace de vente régulé | B161: Paramètre #4 | C161: =IF(ISBLANK(INDIRECT("'"&$A161&"'!$J$32")),"Non utilisé",INDIRECT("'"&$A161&"'!$J$32")) -> Non utilisé | D161: =IF(ISBLANK(INDIRECT("'"&$A161&"'!$K$32")),"",INDIRECT("'"&$A161&"'!$K$32")) ->  | E161: =INDEX($A$1:$M$194,MATCH(A161&C161,$A$1:$A$194&$C$1:$C$194,0),MATCH($E$2,$A$1:$M$1,0)) -> 1 | F161: 1 | G161: 1 | H161: 1 | I161: 1 | J161: 1 | K161: 1 | L161: 1 | M161: 1
A162: =C157 -> Espace de vente régulé | B162: Paramètre #5 | C162: =IF(ISBLANK(INDIRECT("'"&$A162&"'!$J$33")),"Non utilisé",INDIRECT("'"&$A162&"'!$J$33")) -> Non utilisé | D162: =IF(ISBLANK(INDIRECT("'"&$A162&"'!$K$33")),"",INDIRECT("'"&$A162&"'!$K$33")) ->  | E162: =INDEX($A$1:$M$194,MATCH(A162&C162,$A$1:$A$194&$C$1:$C$194,0),MATCH($E$2,$A$1:$M$1,0)) -> 1 | F162: 1 | G162: 1 | H162: 1 | I162: 1 | J162: 1 | K162: 1 | L162: 1 | M162: 1
B163: 6 - Autres services | C163: =B163 -> 6 - Autres services | E163: =INDEX($A$1:$M$194,MATCH(A163&C163,$A$1:$A$194&$C$1:$C$194,0),MATCH($E$2,$A$1:$M$1,0)) -> 0
A164: =C164 -> Espace de vente NR | B164: 6.1 Locaux commerciaux ou boutiques | C164: Espace de vente NR | E164: =INDEX($A$1:$M$194,MATCH(A164&C164,$A$1:$A$194&$C$1:$C$194,0),MATCH($E$2,$A$1:$M$1,0)) -> 0
A165: =C164 -> Espace de vente NR | B165: Paramètre #1 | C165: =IF(ISBLANK(INDIRECT("'"&$A165&"'!$J$29")),"Non utilisé",INDIRECT("'"&$A165&"'!$J$29")) -> % du prix d'achat en maintenance/rénovation annuelle | D165: =IF(ISBLANK(INDIRECT("'"&$A165&"'!$K$29")),"",INDIRECT("'"&$A165&"'!$K$29")) -> 0.1 | E165: =INDEX($A$1:$M$194,MATCH(A165&C165,$A$1:$A$194&$C$1:$C$194,0),MATCH($E$2,$A$1:$M$1,0)) -> 1 | F165: 1 | G165: 1 | H165: 1 | I165: 1 | J165: 1 | K165: 1 | L165: 1 | M165: 1
A166: =C164 -> Espace de vente NR | B166: Paramètre #2 | C166: =IF(ISBLANK(INDIRECT("'"&$A166&"'!$J$30")),"Non utilisé",INDIRECT("'"&$A166&"'!$J$30")) -> Non utilisé | D166: =IF(ISBLANK(INDIRECT("'"&$A166&"'!$K$30")),"",INDIRECT("'"&$A166&"'!$K$30")) ->  | E166: =INDEX($A$1:$M$194,MATCH(A166&C166,$A$1:$A$194&$C$1:$C$194,0),MATCH($E$2,$A$1:$M$1,0)) -> 0
A167: =C164 -> Espace de vente NR | B167: Paramètre #3 | C167: =IF(ISBLANK(INDIRECT("'"&$A167&"'!$J$31")),"Non utilisé",INDIRECT("'"&$A167&"'!$J$31")) -> Non utilisé | D167: =IF(ISBLANK(INDIRECT("'"&$A167&"'!$K$31")),"",INDIRECT("'"&$A167&"'!$K$31")) ->  | E167: =INDEX($A$1:$M$194,MATCH(A167&C167,$A$1:$A$194&$C$1:$C$194,0),MATCH($E$2,$A$1:$M$1,0)) -> 0
A168: =C164 -> Espace de vente NR | B168: Paramètre #4 | C168: =IF(ISBLANK(INDIRECT("'"&$A168&"'!$J$32")),"Non utilisé",INDIRECT("'"&$A168&"'!$J$32")) -> Non utilisé | D168: =IF(ISBLANK(INDIRECT("'"&$A168&"'!$K$32")),"",INDIRECT("'"&$A168&"'!$K$32")) ->  | E168: =INDEX($A$1:$M$194,MATCH(A168&C168,$A$1:$A$194&$C$1:$C$194,0),MATCH($E$2,$A$1:$M$1,0)) -> 0
A169: =C164 -> Espace de vente NR | B169: Paramètre #5 | C169: =IF(ISBLANK(INDIRECT("'"&$A169&"'!$J$33")),"Non utilisé",INDIRECT("'"&$A169&"'!$J$33")) -> Non utilisé | D169: =IF(ISBLANK(INDIRECT("'"&$A169&"'!$K$33")),"",INDIRECT("'"&$A169&"'!$K$33")) ->  | E169: =INDEX($A$1:$M$194,MATCH(A169&C169,$A$1:$A$194&$C$1:$C$194,0),MATCH($E$2,$A$1:$M$1,0)) -> 0
A170: =C170 -> Parking | B170: 6.2 Parking | C170: Parking | E170: =INDEX($A$1:$M$194,MATCH(A170&C170,$A$1:$A$194&$C$1:$C$194,0),MATCH($E$2,$A$1:$M$1,0)) -> 0
A171: =C170 -> Parking | B171: Paramètre #1 | C171: =IF(ISBLANK(INDIRECT("'"&$A171&"'!$J$29")),"Non utilisé",INDIRECT("'"&$A171&"'!$J$29")) -> % du prix d'achat en maintenance/rénovation annuelle | D171: =IF(ISBLANK(INDIRECT("'"&$A171&"'!$K$29")),"",INDIRECT("'"&$A171&"'!$K$29")) -> 0 | E171: =INDEX($A$1:$M$194,MATCH(A171&C171,$A$1:$A$194&$C$1:$C$194,0),MATCH($E$2,$A$1:$M$1,0)) -> 1 | F171: 1 | G171: 1 | H171: 1 | I171: 1 | J171: 1 | K171: 1 | L171: 1 | M171: 1
A172: =C170 -> Parking | B172: Paramètre #2 | C172: =IF(ISBLANK(INDIRECT("'"&$A172&"'!$J$30")),"Non utilisé",INDIRECT("'"&$A172&"'!$J$30")) -> Non utilisé | D172: =IF(ISBLANK(INDIRECT("'"&$A172&"'!$K$30")),"",INDIRECT("'"&$A172&"'!$K$30")) ->  | E172: =INDEX($A$1:$M$194,MATCH(A172&C172,$A$1:$A$194&$C$1:$C$194,0),MATCH($E$2,$A$1:$M$1,0)) -> 0
A173: =C170 -> Parking | B173: Paramètre #3 | C173: =IF(ISBLANK(INDIRECT("'"&$A173&"'!$J$31")),"Non utilisé",INDIRECT("'"&$A173&"'!$J$31")) -> Non utilisé | D173: =IF(ISBLANK(INDIRECT("'"&$A173&"'!$K$31")),"",INDIRECT("'"&$A173&"'!$K$31")) ->  | E173: =INDEX($A$1:$M$194,MATCH(A173&C173,$A$1:$A$194&$C$1:$C$194,0),MATCH($E$2,$A$1:$M$1,0)) -> 0
A174: =C170 -> Parking | B174: Paramètre #4 | C174: =IF(ISBLANK(INDIRECT("'"&$A174&"'!$J$32")),"Non utilisé",INDIRECT("'"&$A174&"'!$J$32")) -> Non utilisé | D174: =IF(ISBLANK(INDIRECT("'"&$A174&"'!$K$32")),"",INDIRECT("'"&$A174&"'!$K$32")) ->  | E174: =INDEX($A$1:$M$194,MATCH(A174&C174,$A$1:$A$194&$C$1:$C$194,0),MATCH($E$2,$A$1:$M$1,0)) -> 0
A175: =C170 -> Parking | B175: Paramètre #5 | C175: =IF(ISBLANK(INDIRECT("'"&$A175&"'!$J$33")),"Non utilisé",INDIRECT("'"&$A175&"'!$J$33")) -> Non utilisé | D175: =IF(ISBLANK(INDIRECT("'"&$A175&"'!$K$33")),"",INDIRECT("'"&$A175&"'!$K$33")) ->  | E175: =INDEX($A$1:$M$194,MATCH(A175&C175,$A$1:$A$194&$C$1:$C$194,0),MATCH($E$2,$A$1:$M$1,0)) -> 0
A176: =C176 -> Salon GV | B176: 6.3 Salon grands voyageurs | C176: Salon GV | E176: =INDEX($A$1:$M$194,MATCH(A176&C176,$A$1:$A$194&$C$1:$C$194,0),MATCH($E$2,$A$1:$M$1,0)) -> 0
A177: =C176 -> Salon GV | B177: Paramètre #1 | C177: =IF(ISBLANK(INDIRECT("'"&$A177&"'!$J$29")),"Non utilisé",INDIRECT("'"&$A177&"'!$J$29")) -> % du prix d'achat en maintenance/rénovation annuelle | D177: =IF(ISBLANK(INDIRECT("'"&$A177&"'!$K$29")),"",INDIRECT("'"&$A177&"'!$K$29")) -> 0.1 | E177: =INDEX($A$1:$M$194,MATCH(A177&C177,$A$1:$A$194&$C$1:$C$194,0),MATCH($E$2,$A$1:$M$1,0)) -> 1 | F177: 1 | G177: 1 | H177: 1 | I177: 1 | J177: 1 | K177: 1 | L177: 1 | M177: 1
A178: =C176 -> Salon GV | B178: Paramètre #2 | C178: =IF(ISBLANK(INDIRECT("'"&$A178&"'!$J$30")),"Non utilisé",INDIRECT("'"&$A178&"'!$J$30")) -> Non utilisé | D178: =IF(ISBLANK(INDIRECT("'"&$A178&"'!$K$30")),"",INDIRECT("'"&$A178&"'!$K$30")) ->  | E178: =INDEX($A$1:$M$194,MATCH(A178&C178,$A$1:$A$194&$C$1:$C$194,0),MATCH($E$2,$A$1:$M$1,0)) -> 0 | F178: 1 | G178: 1 | H178: 0 | I178: 0 | J178: 0 | K178: 0 | L178: 0 | M178: 0
A179: =C176 -> Salon GV | B179: Paramètre #3 | C179: =IF(ISBLANK(INDIRECT("'"&$A179&"'!$J$31")),"Non utilisé",INDIRECT("'"&$A179&"'!$J$31")) -> Non utilisé | D179: =IF(ISBLANK(INDIRECT("'"&$A179&"'!$K$31")),"",INDIRECT("'"&$A179&"'!$K$31")) ->  | E179: =INDEX($A$1:$M$194,MATCH(A179&C179,$A$1:$A$194&$C$1:$C$194,0),MATCH($E$2,$A$1:$M$1,0)) -> 0
A180: =C176 -> Salon GV | B180: Paramètre #4 | C180: =IF(ISBLANK(INDIRECT("'"&$A180&"'!$J$32")),"Non utilisé",INDIRECT("'"&$A180&"'!$J$32")) -> Non utilisé | D180: =IF(ISBLANK(INDIRECT("'"&$A180&"'!$K$32")),"",INDIRECT("'"&$A180&"'!$K$32")) ->  | E180: =INDEX($A$1:$M$194,MATCH(A180&C180,$A$1:$A$194&$C$1:$C$194,0),MATCH($E$2,$A$1:$M$1,0)) -> 0
A181: =C176 -> Salon GV | B181: Paramètre #5 | C181: =IF(ISBLANK(INDIRECT("'"&$A181&"'!$J$33")),"Non utilisé",INDIRECT("'"&$A181&"'!$J$33")) -> Non utilisé | D181: =IF(ISBLANK(INDIRECT("'"&$A181&"'!$K$33")),"",INDIRECT("'"&$A181&"'!$K$33")) ->  | E181: =INDEX($A$1:$M$194,MATCH(A181&C181,$A$1:$A$194&$C$1:$C$194,0),MATCH($E$2,$A$1:$M$1,0)) -> 0
A182: =C182 -> Panneau publicitaire | B182: 6.5 Panneaux publicitaires | C182: Panneau publicitaire | E182: =INDEX($A$1:$M$194,MATCH(A182&C182,$A$1:$A$194&$C$1:$C$194,0),MATCH($E$2,$A$1:$M$1,0)) -> 0
A183: =C182 -> Panneau publicitaire | B183: Paramètre #1 | C183: =IF(ISBLANK(INDIRECT("'"&$A183&"'!$J$29")),"Non utilisé",INDIRECT("'"&$A183&"'!$J$29")) -> % du prix d'achat en maintenance/rénovation annuelle | D183: =IF(ISBLANK(INDIRECT("'"&$A183&"'!$K$29")),"",INDIRECT("'"&$A183&"'!$K$29")) -> 0.1 | E183: =INDEX($A$1:$M$194,MATCH(A183&C183,$A$1:$A$194&$C$1:$C$194,0),MATCH($E$2,$A$1:$M$1,0)) -> 1 | F183: 1 | G183: 1 | H183: 1 | I183: 1 | J183: 1 | K183: 1 | L183: 1 | M183: 1
A184: =C182 -> Panneau publicitaire | B184: Paramètre #2 | C184: =IF(ISBLANK(INDIRECT("'"&$A184&"'!$J$30")),"Non utilisé",INDIRECT("'"&$A184&"'!$J$30")) -> Non utilisé | D184: =IF(ISBLANK(INDIRECT("'"&$A184&"'!$K$30")),"",INDIRECT("'"&$A184&"'!$K$30")) ->  | E184: =INDEX($A$1:$M$194,MATCH(A184&C184,$A$1:$A$194&$C$1:$C$194,0),MATCH($E$2,$A$1:$M$1,0)) -> 1 | F184: 1 | G184: 1 | H184: 1 | I184: 1 | J184: 1 | K184: 1 | L184: 1 | M184: 1
A185: =C182 -> Panneau publicitaire | B185: Paramètre #3 | C185: =IF(ISBLANK(INDIRECT("'"&$A185&"'!$J$31")),"Non utilisé",INDIRECT("'"&$A185&"'!$J$31")) -> Non utilisé | D185: =IF(ISBLANK(INDIRECT("'"&$A185&"'!$K$31")),"",INDIRECT("'"&$A185&"'!$K$31")) ->  | E185: =INDEX($A$1:$M$194,MATCH(A185&C185,$A$1:$A$194&$C$1:$C$194,0),MATCH($E$2,$A$1:$M$1,0)) -> 1 | F185: 1 | G185: 1 | H185: 1 | I185: 1 | J185: 1 | K185: 1 | L185: 1 | M185: 1
A186: =C182 -> Panneau publicitaire | B186: Paramètre #4 | C186: =IF(ISBLANK(INDIRECT("'"&$A186&"'!$J$32")),"Non utilisé",INDIRECT("'"&$A186&"'!$J$32")) -> Non utilisé | D186: =IF(ISBLANK(INDIRECT("'"&$A186&"'!$K$32")),"",INDIRECT("'"&$A186&"'!$K$32")) ->  | E186: =INDEX($A$1:$M$194,MATCH(A186&C186,$A$1:$A$194&$C$1:$C$194,0),MATCH($E$2,$A$1:$M$1,0)) -> 1
A187: =C182 -> Panneau publicitaire | B187: Paramètre #5 | C187: =IF(ISBLANK(INDIRECT("'"&$A187&"'!$J$33")),"Non utilisé",INDIRECT("'"&$A187&"'!$J$33")) -> Non utilisé | D187: =IF(ISBLANK(INDIRECT("'"&$A187&"'!$K$33")),"",INDIRECT("'"&$A187&"'!$K$33")) ->  | E187: =INDEX($A$1:$M$194,MATCH(A187&C187,$A$1:$A$194&$C$1:$C$194,0),MATCH($E$2,$A$1:$M$1,0)) -> 1
B188: 7 - Prestation transmanche | C188: =B188 -> 7 - Prestation transmanche | E188: =INDEX($A$1:$M$194,MATCH(A188&C188,$A$1:$A$194&$C$1:$C$194,0),MATCH($E$2,$A$1:$M$1,0)) -> 0
A189: =C189 -> Transmanche | B189: 7.1 Installations et services de l'espace Transmanche | C189: Transmanche | E189: =INDEX($A$1:$M$194,MATCH(A189&C189,$A$1:$A$194&$C$1:$C$194,0),MATCH($E$2,$A$1:$M$1,0)) -> 0
A190: =C189 -> Transmanche | B190: Paramètre #1 | C190: =IF(ISBLANK(INDIRECT("'"&$A190&"'!$J$29")),"Non utilisé",INDIRECT("'"&$A190&"'!$J$29")) -> % du prix d'achat en maintenance/rénovation annuelle | D190: =IF(ISBLANK(INDIRECT("'"&$A190&"'!$K$29")),"",INDIRECT("'"&$A190&"'!$K$29")) -> 0 | E190: =INDEX($A$1:$M$194,MATCH(A190&C190,$A$1:$A$194&$C$1:$C$194,0),MATCH($E$2,$A$1:$M$1,0)) -> 1 | F190: 1 | G190: 1 | H190: 1 | I190: 1 | J190: 1 | K190: 1 | L190: 1 | M190: 1
A191: =C189 -> Transmanche | B191: Paramètre #2 | C191: =IF(ISBLANK(INDIRECT("'"&$A191&"'!$J$30")),"Non utilisé",INDIRECT("'"&$A191&"'!$J$30")) -> Non utilisé | D191: =IF(ISBLANK(INDIRECT("'"&$A191&"'!$K$30")),"",INDIRECT("'"&$A191&"'!$K$30")) ->  | E191: =INDEX($A$1:$M$194,MATCH(A191&C191,$A$1:$A$194&$C$1:$C$194,0),MATCH($E$2,$A$1:$M$1,0)) -> 0
A192: =C189 -> Transmanche | B192: Paramètre #3 | C192: =IF(ISBLANK(INDIRECT("'"&$A192&"'!$J$31")),"Non utilisé",INDIRECT("'"&$A192&"'!$J$31")) -> Non utilisé | D192: =IF(ISBLANK(INDIRECT("'"&$A192&"'!$K$31")),"",INDIRECT("'"&$A192&"'!$K$31")) ->  | E192: =INDEX($A$1:$M$194,MATCH(A192&C192,$A$1:$A$194&$C$1:$C$194,0),MATCH($E$2,$A$1:$M$1,0)) -> 0
A193: =C189 -> Transmanche | B193: Paramètre #4 | C193: =IF(ISBLANK(INDIRECT("'"&$A193&"'!$J$32")),"Non utilisé",INDIRECT("'"&$A193&"'!$J$32")) -> Non utilisé | D193: =IF(ISBLANK(INDIRECT("'"&$A193&"'!$K$32")),"",INDIRECT("'"&$A193&"'!$K$32")) ->  | E193: =INDEX($A$1:$M$194,MATCH(A193&C193,$A$1:$A$194&$C$1:$C$194,0),MATCH($E$2,$A$1:$M$1,0)) -> 0
A194: =C189 -> Transmanche | B194: Paramètre #5 | C194: =IF(ISBLANK(INDIRECT("'"&$A194&"'!$J$33")),"Non utilisé",INDIRECT("'"&$A194&"'!$J$33")) -> Non utilisé | D194: =IF(ISBLANK(INDIRECT("'"&$A194&"'!$K$33")),"",INDIRECT("'"&$A194&"'!$K$33")) ->  | E194: =INDEX($A$1:$M$194,MATCH(A194&C194,$A$1:$A$194&$C$1:$C$194,0),MATCH($E$2,$A$1:$M$1,0)) -> 0

Sheet Sous paramétrage CAPEX (hidden)
B1: Nom de l'unité fonctionnelle | C1: UNITE FONCTIONELLE | D1: Valeur actuelle | E1: Saisie semi-libre | F1: Gare TGA Parisienne | G1: Gare TGA Autres | H1: Nouvelle Gare A | I1: Gare A Terminus | J1: Gare A Passage | K1: Gare Mass-Transit Francilienne | L1: Gare B | M1: Gare C | O1: INTRODUCTION | S1: Cet onglet permet de modifier les valeurs de chaque paramètre d'unités d'œuvres pour les CAPEX par type de gares. Les données sont modifiables par l'utilisateur mais les valeurs préconfigurées sont celles recommandées.
C2: Type de gare simulée en saisie semi-libre -> | E2: ='Profil de gare'!E2 -> Gare A Passage
B3: 2 - Circuler et informer les voyageurs | C3: =B3 -> 2 - Circuler et informer les voyageurs | O3: PROFIL DE GARES | Q3: MODELISATION
A4: =C4 -> Quais | B4: 2.1 Quais | C4: Quais | O4: COÛT DE LA GARE
A5: =C4 -> Quais | B5: Paramètre #1 | C5: =IF(ISBLANK(INDIRECT("'"&$A5&"'!$C$29")),"Non utilisé",INDIRECT("'"&$A5&"'!$C$29")) -> Nombre d'abris quai par quai | D5: =IF(ISBLANK(INDIRECT("'"&$A5&"'!$D$29")),"",INDIRECT("'"&$A5&"'!$D$29")) -> 1 | E5: =INDEX($A$1:$M$194,MATCH(A5&C5,$A$1:$A$194&$C$1:$C$194,0),MATCH($E$2,$A$1:$M$1,0)) -> 1 | F5: 1 | G5: 1 | H5: 1 | I5: 1 | J5: 1 | K5: 0 | L5: 0 | M5: 0 | O5: CALCUL DU TARIF
A6: =C4 -> Quais | B6: Paramètre #2 | C6: =IF(ISBLANK(INDIRECT("'"&$A6&"'!$C$30")),"Non utilisé",INDIRECT("'"&$A6&"'!$C$30")) -> Non utilisé | D6: =IF(ISBLANK(INDIRECT("'"&$A6&"'!$D$30")),"",INDIRECT("'"&$A6&"'!$D$30")) ->  | E6: =INDEX($A$1:$M$194,MATCH(A6&C6,$A$1:$A$194&$C$1:$C$194,0),MATCH($E$2,$A$1:$M$1,0)) -> 0
A7: =C4 -> Quais | B7: Paramètre #3 | C7: =IF(ISBLANK(INDIRECT("'"&$A7&"'!$C$31")),"Non utilisé",INDIRECT("'"&$A7&"'!$C$31")) -> Non utilisé | D7: =IF(ISBLANK(INDIRECT("'"&$A7&"'!$D$31")),"",INDIRECT("'"&$A7&"'!$D$31")) ->  | E7: =INDEX($A$1:$M$194,MATCH(A7&C7,$A$1:$A$194&$C$1:$C$194,0),MATCH($E$2,$A$1:$M$1,0)) -> 0
A8: =C4 -> Quais | B8: Paramètre #4 | C8: =IF(ISBLANK(INDIRECT("'"&$A8&"'!$C$32")),"Non utilisé",INDIRECT("'"&$A8&"'!$C$32")) -> Non utilisé | D8: =IF(ISBLANK(INDIRECT("'"&$A8&"'!$D$32")),"",INDIRECT("'"&$A8&"'!$D$32")) ->  | E8: =INDEX($A$1:$M$194,MATCH(A8&C8,$A$1:$A$194&$C$1:$C$194,0),MATCH($E$2,$A$1:$M$1,0)) -> 0
A9: =C4 -> Quais | B9: Paramètre #5 | C9: =IF(ISBLANK(INDIRECT("'"&$A9&"'!$C$33")),"Non utilisé",INDIRECT("'"&$A9&"'!$C$33")) -> Non utilisé | D9: =IF(ISBLANK(INDIRECT("'"&$A9&"'!$D$33")),"",INDIRECT("'"&$A9&"'!$D$33")) ->  | E9: =INDEX($A$1:$M$194,MATCH(A9&C9,$A$1:$A$194&$C$1:$C$194,0),MATCH($E$2,$A$1:$M$1,0)) -> 0
A10: =C10 -> APE | B10: 2.2 Ascenseurs, escalators, portes automatiques | C10: APE
A11: =C10 -> APE | B11: Paramètre #1 | C11: =IF(ISBLANK(INDIRECT("'"&$A11&"'!$C$29")),"Non utilisé",INDIRECT("'"&$A11&"'!$C$29")) -> Nombre d'ascenseurs par quai | D11: =IF(ISBLANK(INDIRECT("'"&$A11&"'!$D$29")),"",INDIRECT("'"&$A11&"'!$D$29")) -> 1 | E11: =INDEX($A$1:$M$194,MATCH(A11&C11,$A$1:$A$194&$C$1:$C$194,0),MATCH($E$2,$A$1:$M$1,0)) -> 1 | F11: 1 | G11: 1 | H11: 1 | I11: 1 | J11: 1 | K11: 1 | L11: 1 | M11: 0
A12: =C10 -> APE | B12: Paramètre #2 | C12: =IF(ISBLANK(INDIRECT("'"&$A12&"'!$C$30")),"Non utilisé",INDIRECT("'"&$A12&"'!$C$30")) -> Nombre d'ascenseurs par m² cœur de gare | D12: =IF(ISBLANK(INDIRECT("'"&$A12&"'!$D$30")),"",INDIRECT("'"&$A12&"'!$D$30")) -> 0.0002 | E12: =INDEX($A$1:$M$194,MATCH(A12&C12,$A$1:$A$194&$C$1:$C$194,0),MATCH($E$2,$A$1:$M$1,0)) -> 1 | F12: 1 | G12: 1 | H12: 1 | I12: 1 | J12: 1 | K12: 1 | L12: 0 | M12: 0
A13: =C10 -> APE | B13: Paramètre #3 | C13: =IF(ISBLANK(INDIRECT("'"&$A13&"'!$C$31")),"Non utilisé",INDIRECT("'"&$A13&"'!$C$31")) -> Nombre d'escalators par quai | D13: =IF(ISBLANK(INDIRECT("'"&$A13&"'!$D$31")),"",INDIRECT("'"&$A13&"'!$D$31")) -> 2 | E13: =INDEX($A$1:$M$194,MATCH(A13&C13,$A$1:$A$194&$C$1:$C$194,0),MATCH($E$2,$A$1:$M$1,0)) -> 1 | F13: 1 | G13: 1 | H13: 1 | I13: 1 | J13: 1 | K13: 1 | L13: 1 | M13: 0
A14: =C10 -> APE | B14: Paramètre #4 | C14: =IF(ISBLANK(INDIRECT("'"&$A14&"'!$C$32")),"Non utilisé",INDIRECT("'"&$A14&"'!$C$32")) -> Nombre de portes automatiques par entrée | D14: =IF(ISBLANK(INDIRECT("'"&$A14&"'!$D$32")),"",INDIRECT("'"&$A14&"'!$D$32")) -> 2 | E14: =INDEX($A$1:$M$194,MATCH(A14&C14,$A$1:$A$194&$C$1:$C$194,0),MATCH($E$2,$A$1:$M$1,0)) -> 1 | F14: 1 | G14: 1 | H14: 1 | I14: 1 | J14: 1 | K14: 1 | L14: 1 | M14: 0
A15: =C10 -> APE | B15: Paramètre #5 | C15: =IF(ISBLANK(INDIRECT("'"&$A15&"'!$C$33")),"Non utilisé",INDIRECT("'"&$A15&"'!$C$33")) -> Non utilisé | D15: =IF(ISBLANK(INDIRECT("'"&$A15&"'!$D$33")),"",INDIRECT("'"&$A15&"'!$D$33")) ->  | E15: =INDEX($A$1:$M$194,MATCH(A15&C15,$A$1:$A$194&$C$1:$C$194,0),MATCH($E$2,$A$1:$M$1,0)) -> 0
A16: =C16 -> Info digitale | B16: 2.3 Information voyageur digitale | C16: Info digitale
A17: =C16 -> Info digitale | B17: Paramètre #1 | C17: =IF(ISBLANK(INDIRECT("'"&$A17&"'!$C$29")),"Non utilisé",INDIRECT("'"&$A17&"'!$C$29")) -> Nombre d’écrans par m² de cœur de gare | D17: =IF(ISBLANK(INDIRECT("'"&$A17&"'!$D$29")),"",INDIRECT("'"&$A17&"'!$D$29")) -> 0.01 | E17: =INDEX($A$1:$M$194,MATCH(A17&C17,$A$1:$A$194&$C$1:$C$194,0),MATCH($E$2,$A$1:$M$1,0)) -> 1 | F17: 1 | G17: 1 | H17: 1 | I17: 1 | J17: 1 | K17: 1 | L17: 0.5 | M17: 0.5
A18: =C16 -> Info digitale | B18: Paramètre #2 | C18: =IF(ISBLANK(INDIRECT("'"&$A18&"'!$C$30")),"Non utilisé",INDIRECT("'"&$A18&"'!$C$30")) -> Nombre d’écrans par voie par mètre de quai | D18: =IF(ISBLANK(INDIRECT("'"&$A18&"'!$D$30")),"",INDIRECT("'"&$A18&"'!$D$30")) -> 0.006666666667 | E18: =INDEX($A$1:$M$194,MATCH(A18&C18,$A$1:$A$194&$C$1:$C$194,0),MATCH($E$2,$A$1:$M$1,0)) -> 1 | F18: 1 | G18: 1 | H18: 1 | I18: 1 | J18: 1 | K18: 1 | L18: 0.5 | M18: 0
A19: =C16 -> Info digitale | B19: Paramètre #3 | C19: =IF(ISBLANK(INDIRECT("'"&$A19&"'!$C$31")),"Non utilisé",INDIRECT("'"&$A19&"'!$C$31")) -> Grand écran départs/arrivées par hall de gare | D19: =IF(ISBLANK(INDIRECT("'"&$A19&"'!$D$31")),"",INDIRECT("'"&$A19&"'!$D$31")) -> 1 | E19: =INDEX($A$1:$M$194,MATCH(A19&C19,$A$1:$A$194&$C$1:$C$194,0),MATCH($E$2,$A$1:$M$1,0)) -> 1 | F19: 1 | G19: 1 | H19: 1 | I19: 1 | J19: 1 | K19: 0 | L19: 0 | M19: 0
A20: =C16 -> Info digitale | B20: Paramètre #4 | C20: =IF(ISBLANK(INDIRECT("'"&$A20&"'!$C$32")),"Non utilisé",INDIRECT("'"&$A20&"'!$C$32")) -> Non utilisé | D20: =IF(ISBLANK(INDIRECT("'"&$A20&"'!$D$32")),"",INDIRECT("'"&$A20&"'!$D$32")) ->  | E20: =INDEX($A$1:$M$194,MATCH(A20&C20,$A$1:$A$194&$C$1:$C$194,0),MATCH($E$2,$A$1:$M$1,0)) -> 1 | F20: 1 | G20: 1 | H20: 1 | I20: 1 | J20: 1 | K20: 1 | L20: 1 | M20: 1
A21: =C16 -> Info digitale | B21: Paramètre #5 | C21: =IF(ISBLANK(INDIRECT("'"&$A21&"'!$C$33")),"Non utilisé",INDIRECT("'"&$A21&"'!$C$33")) -> Non utilisé | D21: =IF(ISBLANK(INDIRECT("'"&$A21&"'!$D$33")),"",INDIRECT("'"&$A21&"'!$D$33")) ->  | E21: =INDEX($A$1:$M$194,MATCH(A21&C21,$A$1:$A$194&$C$1:$C$194,0),MATCH($E$2,$A$1:$M$1,0)) -> 1
A22: =C22 -> Info non digitale | B22: 2.4 Information voyageur non digitale | C22: Info non digitale
A23: =C22 -> Info non digitale | B23: Paramètre #1 | C23: =IF(ISBLANK(INDIRECT("'"&$A23&"'!$C$29")),"Non utilisé",INDIRECT("'"&$A23&"'!$C$29")) -> Panneaux d'orientation par m² de cœur de gare | D23: =IF(ISBLANK(INDIRECT("'"&$A23&"'!$D$29")),"",INDIRECT("'"&$A23&"'!$D$29")) -> 0.05 | E23: =INDEX($A$1:$M$194,MATCH(A23&C23,$A$1:$A$194&$C$1:$C$194,0),MATCH($E$2,$A$1:$M$1,0)) -> 1 | F23: 1 | G23: 1 | H23: 1 | I23: 1 | J23: 1 | K23: 1 | L23: 0.75 | M23: 0.5
A24: =C22 -> Info non digitale | B24: Paramètre #2 | C24: =IF(ISBLANK(INDIRECT("'"&$A24&"'!$C$30")),"Non utilisé",INDIRECT("'"&$A24&"'!$C$30")) -> Panneaux de nom de gare par quai | D24: =IF(ISBLANK(INDIRECT("'"&$A24&"'!$D$30")),"",INDIRECT("'"&$A24&"'!$D$30")) -> 8 | E24: =INDEX($A$1:$M$194,MATCH(A24&C24,$A$1:$A$194&$C$1:$C$194,0),MATCH($E$2,$A$1:$M$1,0)) -> 1 | F24: 1 | G24: 1 | H24: 1 | I24: 1 | J24: 1 | K24: 1 | L24: 1 | M24: 1
A25: =C22 -> Info non digitale | B25: Paramètre #3 | C25: =IF(ISBLANK(INDIRECT("'"&$A25&"'!$C$31")),"Non utilisé",INDIRECT("'"&$A25&"'!$C$31")) -> Panneaux de numérotation des voies par quai | D25: =IF(ISBLANK(INDIRECT("'"&$A25&"'!$D$31")),"",INDIRECT("'"&$A25&"'!$D$31")) -> 8 | E25: =INDEX($A$1:$M$194,MATCH(A25&C25,$A$1:$A$194&$C$1:$C$194,0),MATCH($E$2,$A$1:$M$1,0)) -> 1 | F25: 1 | G25: 1 | H25: 1 | I25: 1 | J25: 1 | K25: 1 | L25: 1 | M25: 1
A26: =C22 -> Info non digitale | B26: Paramètre #4 | C26: =IF(ISBLANK(INDIRECT("'"&$A26&"'!$C$32")),"Non utilisé",INDIRECT("'"&$A26&"'!$C$32")) -> Signalétique d'information en sortie de gare par entrées | D26: =IF(ISBLANK(INDIRECT("'"&$A26&"'!$D$32")),"",INDIRECT("'"&$A26&"'!$D$32")) -> 1 | E26: =INDEX($A$1:$M$194,MATCH(A26&C26,$A$1:$A$194&$C$1:$C$194,0),MATCH($E$2,$A$1:$M$1,0)) -> 1 | F26: 1 | G26: 1 | H26: 1 | I26: 1 | J26: 1 | K26: 1 | L26: 1 | M26: 1
A27: =C22 -> Info non digitale | B27: Paramètre #5 | C27: =IF(ISBLANK(INDIRECT("'"&$A27&"'!$C$33")),"Non utilisé",INDIRECT("'"&$A27&"'!$C$33")) -> Cadre information mural par m² cœur de gare | D27: =IF(ISBLANK(INDIRECT("'"&$A27&"'!$D$33")),"",INDIRECT("'"&$A27&"'!$D$33")) -> 0.01 | E27: =INDEX($A$1:$M$194,MATCH(A27&C27,$A$1:$A$194&$C$1:$C$194,0),MATCH($E$2,$A$1:$M$1,0)) -> 1 | F27: 1 | G27: 1 | H27: 1 | I27: 1 | J27: 1 | K27: 1 | L27: 0 | M27: 0
A28: =C28 -> Info sonore | B28: 2.5 Information voyageur sonore en gare | C28: Info sonore
A29: =C28 -> Info sonore | B29: Paramètre #1 | C29: =IF(ISBLANK(INDIRECT("'"&$A29&"'!$C$29")),"Non utilisé",INDIRECT("'"&$A29&"'!$C$29")) -> Nombre de haut-parleurs par m² de cœur de gare | D29: =IF(ISBLANK(INDIRECT("'"&$A29&"'!$D$29")),"",INDIRECT("'"&$A29&"'!$D$29")) -> 0.05 | E29: =INDEX($A$1:$M$194,MATCH(A29&C29,$A$1:$A$194&$C$1:$C$194,0),MATCH($E$2,$A$1:$M$1,0)) -> 1 | F29: 1 | G29: 1 | H29: 1 | I29: 1 | J29: 1 | K29: 1 | L29: 1 | M29: 0.5
A30: =C28 -> Info sonore | B30: Paramètre #2 | C30: =IF(ISBLANK(INDIRECT("'"&$A30&"'!$C$30")),"Non utilisé",INDIRECT("'"&$A30&"'!$C$30")) -> Nombre de haut-parleurs par mètres de quai | D30: =IF(ISBLANK(INDIRECT("'"&$A30&"'!$D$30")),"",INDIRECT("'"&$A30&"'!$D$30")) -> 0.02 | E30: =INDEX($A$1:$M$194,MATCH(A30&C30,$A$1:$A$194&$C$1:$C$194,0),MATCH($E$2,$A$1:$M$1,0)) -> 1 | F30: 1 | G30: 1 | H30: 1 | I30: 1 | J30: 1 | K30: 1 | L30: 1 | M30: 0.5
A31: =C28 -> Info sonore | B31: Paramètre #3 | C31: =IF(ISBLANK(INDIRECT("'"&$A31&"'!$C$31")),"Non utilisé",INDIRECT("'"&$A31&"'!$C$31")) -> Non utilisé | D31: =IF(ISBLANK(INDIRECT("'"&$A31&"'!$D$31")),"",INDIRECT("'"&$A31&"'!$D$31")) ->  | E31: =INDEX($A$1:$M$194,MATCH(A31&C31,$A$1:$A$194&$C$1:$C$194,0),MATCH($E$2,$A$1:$M$1,0)) -> 1 | F31: 1 | G31: 1 | H31: 0.8 | I31: 1 | J31: 1 | K31: 1 | L31: 0.8 | M31: 0.8
A32: =C28 -> Info sonore | B32: Paramètre #4 | C32: =IF(ISBLANK(INDIRECT("'"&$A32&"'!$C$32")),"Non utilisé",INDIRECT("'"&$A32&"'!$C$32")) -> Non utilisé | D32: =IF(ISBLANK(INDIRECT("'"&$A32&"'!$D$32")),"",INDIRECT("'"&$A32&"'!$D$32")) ->  | E32: =INDEX($A$1:$M$194,MATCH(A32&C32,$A$1:$A$194&$C$1:$C$194,0),MATCH($E$2,$A$1:$M$1,0)) -> 1
A33: =C28 -> Info sonore | B33: Paramètre #5 | C33: =IF(ISBLANK(INDIRECT("'"&$A33&"'!$C$33")),"Non utilisé",INDIRECT("'"&$A33&"'!$C$33")) -> Non utilisé | D33: =IF(ISBLANK(INDIRECT("'"&$A33&"'!$D$33")),"",INDIRECT("'"&$A33&"'!$D$33")) ->  | E33: =INDEX($A$1:$M$194,MATCH(A33&C33,$A$1:$A$194&$C$1:$C$194,0),MATCH($E$2,$A$1:$M$1,0)) -> 1
A34: =C34 -> COE | B34: 2.6 Centre Opérationnel d'Escale | C34: COE
A35: =C34 -> COE | B35: Paramètre #1 | C35: =IF(ISBLANK(INDIRECT("'"&$A35&"'!$C$29")),"Non utilisé",INDIRECT("'"&$A35&"'!$C$29")) -> Ecran de supervision du trafic par voie | D35: =IF(ISBLANK(INDIRECT("'"&$A35&"'!$D$29")),"",INDIRECT("'"&$A35&"'!$D$29")) -> 3 | E35: =INDEX($A$1:$M$194,MATCH(A35&C35,$A$1:$A$194&$C$1:$C$194,0),MATCH($E$2,$A$1:$M$1,0)) -> 1 | F35: 1 | G35: 1 | H35: 1 | I35: 1 | J35: 1 | K35: 0 | L35: 0 | M35: 0
A36: =C34 -> COE | B36: Paramètre #2 | C36: =IF(ISBLANK(INDIRECT("'"&$A36&"'!$C$30")),"Non utilisé",INDIRECT("'"&$A36&"'!$C$30")) -> Bureaux à installer par écran | D36: =IF(ISBLANK(INDIRECT("'"&$A36&"'!$D$30")),"",INDIRECT("'"&$A36&"'!$D$30")) -> 0.25 | E36: =INDEX($A$1:$M$194,MATCH(A36&C36,$A$1:$A$194&$C$1:$C$194,0),MATCH($E$2,$A$1:$M$1,0)) -> 1 | F36: 1 | G36: 1 | H36: 1 | I36: 1 | J36: 1 | K36: 0 | L36: 0 | M36: 0
A37: =C34 -> COE | B37: Paramètre #3 | C37: =IF(ISBLANK(INDIRECT("'"&$A37&"'!$C$31")),"Non utilisé",INDIRECT("'"&$A37&"'!$C$31")) -> Ecrans d'information voyageur par local | D37: =IF(ISBLANK(INDIRECT("'"&$A37&"'!$D$31")),"",INDIRECT("'"&$A37&"'!$D$31")) -> 3 | E37: =INDEX($A$1:$M$194,MATCH(A37&C37,$A$1:$A$194&$C$1:$C$194,0),MATCH($E$2,$A$1:$M$1,0)) -> 1 | F37: 1 | G37: 1 | H37: 1 | I37: 1 | J37: 1 | K37: 0 | L37: 0 | M37: 0
A38: =C34 -> COE | B38: Paramètre #4 | C38: =IF(ISBLANK(INDIRECT("'"&$A38&"'!$C$32")),"Non utilisé",INDIRECT("'"&$A38&"'!$C$32")) -> Pourcentage de la surface du COE à aménager par G&C | D38: =IF(ISBLANK(INDIRECT("'"&$A38&"'!$D$32")),"",INDIRECT("'"&$A38&"'!$D$32")) -> 1 | E38: =INDEX($A$1:$M$194,MATCH(A38&C38,$A$1:$A$194&$C$1:$C$194,0),MATCH($E$2,$A$1:$M$1,0)) -> 1 | F38: 1 | G38: 1 | H38: 1 | I38: 1 | J38: 1 | K38: 0 | L38: 0 | M38: 0
A39: =C34 -> COE | B39: Paramètre #5 | C39: =IF(ISBLANK(INDIRECT("'"&$A39&"'!$C$33")),"Non utilisé",INDIRECT("'"&$A39&"'!$C$33")) -> Non utilisé | D39: =IF(ISBLANK(INDIRECT("'"&$A39&"'!$D$33")),"",INDIRECT("'"&$A39&"'!$D$33")) ->  | E39: =INDEX($A$1:$M$194,MATCH(A39&C39,$A$1:$A$194&$C$1:$C$194,0),MATCH($E$2,$A$1:$M$1,0)) -> 0
A40: =C40 -> PMR | B40: 2.7 Accès et services PMR | C40: PMR
A41: =C40 -> PMR | B41: Paramètre #1 | C41: =IF(ISBLANK(INDIRECT("'"&$A41&"'!$C$29")),"Non utilisé",INDIRECT("'"&$A41&"'!$C$29")) -> Elévateurs fixes PMR par m² cœur de gare | D41: =IF(ISBLANK(INDIRECT("'"&$A41&"'!$D$29")),"",INDIRECT("'"&$A41&"'!$D$29")) -> 0.005 | E41: =INDEX($A$1:$M$194,MATCH(A41&C41,$A$1:$A$194&$C$1:$C$194,0),MATCH($E$2,$A$1:$M$1,0)) -> 1 | F41: 1 | G41: 1 | H41: 1 | I41: 1 | J41: 1 | K41: 1 | L41: 1 | M41: 0.5
A42: =C40 -> PMR | B42: Paramètre #2 | C42: =IF(ISBLANK(INDIRECT("'"&$A42&"'!$C$30")),"Non utilisé",INDIRECT("'"&$A42&"'!$C$30")) -> Rampes d'accès par voie | D42: =IF(ISBLANK(INDIRECT("'"&$A42&"'!$D$30")),"",INDIRECT("'"&$A42&"'!$D$30")) -> 1 | E42: =INDEX($A$1:$M$194,MATCH(A42&C42,$A$1:$A$194&$C$1:$C$194,0),MATCH($E$2,$A$1:$M$1,0)) -> 1 | F42: 1 | G42: 1 | H42: 1 | I42: 1 | J42: 1 | K42: 1 | L42: 1 | M42: 0.5
A43: =C40 -> PMR | B43: Paramètre #3 | C43: =IF(ISBLANK(INDIRECT("'"&$A43&"'!$C$31")),"Non utilisé",INDIRECT("'"&$A43&"'!$C$31")) -> Elévateurs mobiles par voie | D43: =IF(ISBLANK(INDIRECT("'"&$A43&"'!$D$31")),"",INDIRECT("'"&$A43&"'!$D$31")) -> 1 | E43: =INDEX($A$1:$M$194,MATCH(A43&C43,$A$1:$A$194&$C$1:$C$194,0),MATCH($E$2,$A$1:$M$1,0)) -> 1 | F43: 1 | G43: 1 | H43: 1 | I43: 1 | J43: 1 | K43: 1 | L43: 0 | M43: 0
A44: =C40 -> PMR | B44: Paramètre #4 | C44: =IF(ISBLANK(INDIRECT("'"&$A44&"'!$C$32")),"Non utilisé",INDIRECT("'"&$A44&"'!$C$32")) -> % de la surface à aménager pour les PMR (vitrophanies, bandes..) | D44: =IF(ISBLANK(INDIRECT("'"&$A44&"'!$D$32")),"",INDIRECT("'"&$A44&"'!$D$32")) -> 0.05 | E44: =INDEX($A$1:$M$194,MATCH(A44&C44,$A$1:$A$194&$C$1:$C$194,0),MATCH($E$2,$A$1:$M$1,0)) -> 1 | F44: 1 | G44: 1 | H44: 1 | I44: 1 | J44: 1 | K44: 1 | L44: 1 | M44: 1
A45: =C40 -> PMR | B45: Paramètre #5 | C45: =IF(ISBLANK(INDIRECT("'"&$A45&"'!$C$33")),"Non utilisé",INDIRECT("'"&$A45&"'!$C$33")) -> Non utilisé | D45: =IF(ISBLANK(INDIRECT("'"&$A45&"'!$D$33")),"",INDIRECT("'"&$A45&"'!$D$33")) ->  | E45: =INDEX($A$1:$M$194,MATCH(A45&C45,$A$1:$A$194&$C$1:$C$194,0),MATCH($E$2,$A$1:$M$1,0)) -> 0
A46: =C46 -> Horloges | B46: 2.8 Horloges | C46: Horloges
A47: =C46 -> Horloges | B47: Paramètre #1 | C47: =IF(ISBLANK(INDIRECT("'"&$A47&"'!$C$29")),"Non utilisé",INDIRECT("'"&$A47&"'!$C$29")) -> Nombre d'horloges par mètres de quais | D47: =IF(ISBLANK(INDIRECT("'"&$A47&"'!$D$29")),"",INDIRECT("'"&$A47&"'!$D$29")) -> 0.01 | E47: =INDEX($A$1:$M$194,MATCH(A47&C47,$A$1:$A$194&$C$1:$C$194,0),MATCH($E$2,$A$1:$M$1,0)) -> 1 | F47: 1 | G47: 1 | H47: 1 | I47: 1 | J47: 1 | K47: 1 | L47: 0.5 | M47: 0.5
A48: =C46 -> Horloges | B48: Paramètre #2 | C48: =IF(ISBLANK(INDIRECT("'"&$A48&"'!$C$30")),"Non utilisé",INDIRECT("'"&$A48&"'!$C$30")) -> Nombre d'horloges par m² cœur de de gare | D48: =IF(ISBLANK(INDIRECT("'"&$A48&"'!$D$30")),"",INDIRECT("'"&$A48&"'!$D$30")) -> 0.005 | E48: =INDEX($A$1:$M$194,MATCH(A48&C48,$A$1:$A$194&$C$1:$C$194,0),MATCH($E$2,$A$1:$M$1,0)) -> 1 | F48: 1 | G48: 1 | H48: 1 | I48: 1 | J48: 1 | K48: 1 | L48: 0.5 | M48: 0.5
A49: =C46 -> Horloges | B49: Paramètre #3 | C49: =IF(ISBLANK(INDIRECT("'"&$A49&"'!$C$31")),"Non utilisé",INDIRECT("'"&$A49&"'!$C$31")) -> Non utilisé | D49: =IF(ISBLANK(INDIRECT("'"&$A49&"'!$D$31")),"",INDIRECT("'"&$A49&"'!$D$31")) ->  | E49: =INDEX($A$1:$M$194,MATCH(A49&C49,$A$1:$A$194&$C$1:$C$194,0),MATCH($E$2,$A$1:$M$1,0)) -> 1 | F49: 1 | G49: 1 | H49: 1 | I49: 1 | J49: 1 | K49: 1 | L49: 0.5 | M49: 0.5
A50: =C46 -> Horloges | B50: Paramètre #4 | C50: =IF(ISBLANK(INDIRECT("'"&$A50&"'!$C$32")),"Non utilisé",INDIRECT("'"&$A50&"'!$C$32")) -> Non utilisé | D50: =IF(ISBLANK(INDIRECT("'"&$A50&"'!$D$32")),"",INDIRECT("'"&$A50&"'!$D$32")) ->  | E50: =INDEX($A$1:$M$194,MATCH(A50&C50,$A$1:$A$194&$C$1:$C$194,0),MATCH($E$2,$A$1:$M$1,0)) -> 1
A51: =C46 -> Horloges | B51: Paramètre #5 | C51: =IF(ISBLANK(INDIRECT("'"&$A51&"'!$C$33")),"Non utilisé",INDIRECT("'"&$A51&"'!$C$33")) -> Non utilisé | D51: =IF(ISBLANK(INDIRECT("'"&$A51&"'!$D$33")),"",INDIRECT("'"&$A51&"'!$D$33")) ->  | E51: =INDEX($A$1:$M$194,MATCH(A51&C51,$A$1:$A$194&$C$1:$C$194,0),MATCH($E$2,$A$1:$M$1,0)) -> 1
B52: 3 - Sécuriser | C52: =B52 -> 3 - Sécuriser
A53: =C53 -> SUGE | B53: 3.1 Équipes de sécurité | C53: SUGE
A54: =C53 -> SUGE | B54: Paramètre #1 | C54: =IF(ISBLANK(INDIRECT("'"&$A54&"'!$C$29")),"Non utilisé",INDIRECT("'"&$A54&"'!$C$29")) -> Non utilisé | D54: =IF(ISBLANK(INDIRECT("'"&$A54&"'!$D$29")),"",INDIRECT("'"&$A54&"'!$D$29")) ->  | E54: =INDEX($A$1:$M$194,MATCH(A54&C54,$A$1:$A$194&$C$1:$C$194,0),MATCH($E$2,$A$1:$M$1,0)) -> 0
A55: =C53 -> SUGE | B55: Paramètre #2 | C55: =IF(ISBLANK(INDIRECT("'"&$A55&"'!$C$30")),"Non utilisé",INDIRECT("'"&$A55&"'!$C$30")) -> Non utilisé | D55: =IF(ISBLANK(INDIRECT("'"&$A55&"'!$D$30")),"",INDIRECT("'"&$A55&"'!$D$30")) ->  | E55: =INDEX($A$1:$M$194,MATCH(A55&C55,$A$1:$A$194&$C$1:$C$194,0),MATCH($E$2,$A$1:$M$1,0)) -> 0
A56: =C53 -> SUGE | B56: Paramètre #3 | C56: =IF(ISBLANK(INDIRECT("'"&$A56&"'!$C$31")),"Non utilisé",INDIRECT("'"&$A56&"'!$C$31")) -> Non utilisé | D56: =IF(ISBLANK(INDIRECT("'"&$A56&"'!$D$31")),"",INDIRECT("'"&$A56&"'!$D$31")) ->  | E56: =INDEX($A$1:$M$194,MATCH(A56&C56,$A$1:$A$194&$C$1:$C$194,0),MATCH($E$2,$A$1:$M$1,0)) -> 0
A57: =C53 -> SUGE | B57: Paramètre #4 | C57: =IF(ISBLANK(INDIRECT("'"&$A57&"'!$C$32")),"Non utilisé",INDIRECT("'"&$A57&"'!$C$32")) -> Non utilisé | D57: =IF(ISBLANK(INDIRECT("'"&$A57&"'!$D$32")),"",INDIRECT("'"&$A57&"'!$D$32")) ->  | E57: =INDEX($A$1:$M$194,MATCH(A57&C57,$A$1:$A$194&$C$1:$C$194,0),MATCH($E$2,$A$1:$M$1,0)) -> 0
A58: =C53 -> SUGE | B58: Paramètre #5 | C58: =IF(ISBLANK(INDIRECT("'"&$A58&"'!$C$33")),"Non utilisé",INDIRECT("'"&$A58&"'!$C$33")) -> Non utilisé | D58: =IF(ISBLANK(INDIRECT("'"&$A58&"'!$D$33")),"",INDIRECT("'"&$A58&"'!$D$33")) ->  | E58: =INDEX($A$1:$M$194,MATCH(A58&C58,$A$1:$A$194&$C$1:$C$194,0),MATCH($E$2,$A$1:$M$1,0)) -> 0
A59: =C59 -> Gardiennage | B59: 3.2 Équipes de gardiennage | C59: Gardiennage
A60: =C59 -> Gardiennage | B60: Paramètre #1 | C60: =IF(ISBLANK(INDIRECT("'"&$A60&"'!$C$29")),"Non utilisé",INDIRECT("'"&$A60&"'!$C$29")) -> Non utilisé | D60: =IF(ISBLANK(INDIRECT("'"&$A60&"'!$D$29")),"",INDIRECT("'"&$A60&"'!$D$29")) ->  | E60: =INDEX($A$1:$M$194,MATCH(A60&C60,$A$1:$A$194&$C$1:$C$194,0),MATCH($E$2,$A$1:$M$1,0)) -> 0
A61: =C59 -> Gardiennage | B61: Paramètre #2 | C61: =IF(ISBLANK(INDIRECT("'"&$A61&"'!$C$30")),"Non utilisé",INDIRECT("'"&$A61&"'!$C$30")) -> Non utilisé | D61: =IF(ISBLANK(INDIRECT("'"&$A61&"'!$D$30")),"",INDIRECT("'"&$A61&"'!$D$30")) ->  | E61: =INDEX($A$1:$M$194,MATCH(A61&C61,$A$1:$A$194&$C$1:$C$194,0),MATCH($E$2,$A$1:$M$1,0)) -> 0
A62: =C59 -> Gardiennage | B62: Paramètre #3 | C62: =IF(ISBLANK(INDIRECT("'"&$A62&"'!$C$31")),"Non utilisé",INDIRECT("'"&$A62&"'!$C$31")) -> Non utilisé | D62: =IF(ISBLANK(INDIRECT("'"&$A62&"'!$D$31")),"",INDIRECT("'"&$A62&"'!$D$31")) ->  | E62: =INDEX($A$1:$M$194,MATCH(A62&C62,$A$1:$A$194&$C$1:$C$194,0),MATCH($E$2,$A$1:$M$1,0)) -> 0
A63: =C59 -> Gardiennage | B63: Paramètre #4 | C63: =IF(ISBLANK(INDIRECT("'"&$A63&"'!$C$32")),"Non utilisé",INDIRECT("'"&$A63&"'!$C$32")) -> Non utilisé | D63: =IF(ISBLANK(INDIRECT("'"&$A63&"'!$D$32")),"",INDIRECT("'"&$A63&"'!$D$32")) ->  | E63: =INDEX($A$1:$M$194,MATCH(A63&C63,$A$1:$A$194&$C$1:$C$194,0),MATCH($E$2,$A$1:$M$1,0)) -> 0
A64: =C59 -> Gardiennage | B64: Paramètre #5 | C64: =IF(ISBLANK(INDIRECT("'"&$A64&"'!$C$33")),"Non utilisé",INDIRECT("'"&$A64&"'!$C$33")) -> Non utilisé | D64: =IF(ISBLANK(INDIRECT("'"&$A64&"'!$D$33")),"",INDIRECT("'"&$A64&"'!$D$33")) ->  | E64: =INDEX($A$1:$M$194,MATCH(A64&C64,$A$1:$A$194&$C$1:$C$194,0),MATCH($E$2,$A$1:$M$1,0)) -> 0
A65: =C65 -> Portes Embarquement | B65: 3.3 Portes d'embarquement | C65: Portes Embarquement
A66: =C65 -> Portes Embarquement | B66: Paramètre #1 | C66: =IF(ISBLANK(INDIRECT("'"&$A66&"'!$C$29")),"Non utilisé",INDIRECT("'"&$A66&"'!$C$29")) -> Nombre de portes d'embarquement par quais | D66: =IF(ISBLANK(INDIRECT("'"&$A66&"'!$D$29")),"",INDIRECT("'"&$A66&"'!$D$29")) -> 6 | E66: =INDEX($A$1:$M$194,MATCH(A66&C66,$A$1:$A$194&$C$1:$C$194,0),MATCH($E$2,$A$1:$M$1,0)) -> 1 | F66: 1 | G66: 1 | H66: 1 | I66: 1 | J66: 1 | K66: 0.5 | L66: 0 | M66: 0
A67: =C65 -> Portes Embarquement | B67: Paramètre #2 | C67: =IF(ISBLANK(INDIRECT("'"&$A67&"'!$C$30")),"Non utilisé",INDIRECT("'"&$A67&"'!$C$30")) -> Non utilisé | D67: =IF(ISBLANK(INDIRECT("'"&$A67&"'!$D$30")),"",INDIRECT("'"&$A67&"'!$D$30")) ->  | E67: =INDEX($A$1:$M$194,MATCH(A67&C67,$A$1:$A$194&$C$1:$C$194,0),MATCH($E$2,$A$1:$M$1,0)) -> 0
A68: =C65 -> Portes Embarquement | B68: Paramètre #3 | C68: =IF(ISBLANK(INDIRECT("'"&$A68&"'!$C$31")),"Non utilisé",INDIRECT("'"&$A68&"'!$C$31")) -> Non utilisé | D68: =IF(ISBLANK(INDIRECT("'"&$A68&"'!$D$31")),"",INDIRECT("'"&$A68&"'!$D$31")) ->  | E68: =INDEX($A$1:$M$194,MATCH(A68&C68,$A$1:$A$194&$C$1:$C$194,0),MATCH($E$2,$A$1:$M$1,0)) -> 0
A69: =C65 -> Portes Embarquement | B69: Paramètre #4 | C69: =IF(ISBLANK(INDIRECT("'"&$A69&"'!$C$32")),"Non utilisé",INDIRECT("'"&$A69&"'!$C$32")) -> Non utilisé | D69: =IF(ISBLANK(INDIRECT("'"&$A69&"'!$D$32")),"",INDIRECT("'"&$A69&"'!$D$32")) ->  | E69: =INDEX($A$1:$M$194,MATCH(A69&C69,$A$1:$A$194&$C$1:$C$194,0),MATCH($E$2,$A$1:$M$1,0)) -> 0
A70: =C65 -> Portes Embarquement | B70: Paramètre #5 | C70: =IF(ISBLANK(INDIRECT("'"&$A70&"'!$C$33")),"Non utilisé",INDIRECT("'"&$A70&"'!$C$33")) -> Non utilisé | D70: =IF(ISBLANK(INDIRECT("'"&$A70&"'!$D$33")),"",INDIRECT("'"&$A70&"'!$D$33")) ->  | E70: =INDEX($A$1:$M$194,MATCH(A70&C70,$A$1:$A$194&$C$1:$C$194,0),MATCH($E$2,$A$1:$M$1,0)) -> 0
A71: =C71 -> Vidéosurveillance | B71: 3.4 Vidéosurveillance | C71: Vidéosurveillance
A72: =C71 -> Vidéosurveillance | B72: Paramètre #1 | C72: =IF(ISBLANK(INDIRECT("'"&$A72&"'!$C$29")),"Non utilisé",INDIRECT("'"&$A72&"'!$C$29")) -> Caméras par m² de gares | D72: =IF(ISBLANK(INDIRECT("'"&$A72&"'!$D$29")),"",INDIRECT("'"&$A72&"'!$D$29")) -> 0.01 | E72: =INDEX($A$1:$M$194,MATCH(A72&C72,$A$1:$A$194&$C$1:$C$194,0),MATCH($E$2,$A$1:$M$1,0)) -> 1 | F72: 1 | G72: 1 | H72: 1 | I72: 1 | J72: 1 | K72: 0.5 | L72: 0.5 | M72: 0
A73: =C71 -> Vidéosurveillance | B73: Paramètre #2 | C73: =IF(ISBLANK(INDIRECT("'"&$A73&"'!$C$30")),"Non utilisé",INDIRECT("'"&$A73&"'!$C$30")) -> Caméras par mètre de quais | D73: =IF(ISBLANK(INDIRECT("'"&$A73&"'!$D$30")),"",INDIRECT("'"&$A73&"'!$D$30")) -> 0.01 | E73: =INDEX($A$1:$M$194,MATCH(A73&C73,$A$1:$A$194&$C$1:$C$194,0),MATCH($E$2,$A$1:$M$1,0)) -> 1 | F73: 1 | G73: 1 | H73: 1 | I73: 1 | J73: 1 | K73: 0.5 | L73: 0.25 | M73: 0
A74: =C71 -> Vidéosurveillance | B74: Paramètre #3 | C74: =IF(ISBLANK(INDIRECT("'"&$A74&"'!$C$31")),"Non utilisé",INDIRECT("'"&$A74&"'!$C$31")) -> Caméras par entrées | D74: =IF(ISBLANK(INDIRECT("'"&$A74&"'!$D$31")),"",INDIRECT("'"&$A74&"'!$D$31")) -> 2 | E74: =INDEX($A$1:$M$194,MATCH(A74&C74,$A$1:$A$194&$C$1:$C$194,0),MATCH($E$2,$A$1:$M$1,0)) -> 1 | F74: 1 | G74: 1 | H74: 1 | I74: 1 | J74: 1 | K74: 1 | L74: 1 | M74: 0.5
A75: =C71 -> Vidéosurveillance | B75: Paramètre #4 | C75: =IF(ISBLANK(INDIRECT("'"&$A75&"'!$C$32")),"Non utilisé",INDIRECT("'"&$A75&"'!$C$32")) -> Coefficient d'augmentation du parc de caméras cœur de gare | D75: =IF(ISBLANK(INDIRECT("'"&$A75&"'!$D$32")),"",INDIRECT("'"&$A75&"'!$D$32")) -> 0.2 | E75: =INDEX($A$1:$M$194,MATCH(A75&C75,$A$1:$A$194&$C$1:$C$194,0),MATCH($E$2,$A$1:$M$1,0)) -> 1 | F75: 1 | G75: 1 | H75: 1 | I75: 1 | J75: 1 | K75: 1 | L75: 1 | M75: 1
A76: =C71 -> Vidéosurveillance | B76: Paramètre #5 | C76: =IF(ISBLANK(INDIRECT("'"&$A76&"'!$C$33")),"Non utilisé",INDIRECT("'"&$A76&"'!$C$33")) -> Non utilisé | D76: =IF(ISBLANK(INDIRECT("'"&$A76&"'!$D$33")),"",INDIRECT("'"&$A76&"'!$D$33")) ->  | E76: =INDEX($A$1:$M$194,MATCH(A76&C76,$A$1:$A$194&$C$1:$C$194,0),MATCH($E$2,$A$1:$M$1,0)) -> 0
A77: =C77 -> Sécurité Incendie | B77: 3.5 Sécurité incendie | C77: Sécurité Incendie
A78: =C77 -> Sécurité Incendie | B78: Paramètre #1 | C78: =IF(ISBLANK(INDIRECT("'"&$A78&"'!$C$29")),"Non utilisé",INDIRECT("'"&$A78&"'!$C$29")) -> Dispositif de sécurité incendie (Détecteurs de fumée, sprinkler, volets de désenfumage, signalétique de sortie de secours, déclencheurs manuel d'alerte, …) par m2 | D78: =IF(ISBLANK(INDIRECT("'"&$A78&"'!$D$29")),"",INDIRECT("'"&$A78&"'!$D$29")) -> 0.02 | E78: =INDEX($A$1:$M$194,MATCH(A78&C78,$A$1:$A$194&$C$1:$C$194,0),MATCH($E$2,$A$1:$M$1,0)) -> 1 | F78: 1 | G78: 1 | H78: 1 | I78: 1 | J78: 1 | K78: 1 | L78: 1 | M78: 1
A79: =C77 -> Sécurité Incendie | B79: Paramètre #2 | C79: =IF(ISBLANK(INDIRECT("'"&$A79&"'!$C$30")),"Non utilisé",INDIRECT("'"&$A79&"'!$C$30")) -> Nombre d'extincteurs par m2 | D79: =IF(ISBLANK(INDIRECT("'"&$A79&"'!$D$30")),"",INDIRECT("'"&$A79&"'!$D$30")) -> 0.005 | E79: =INDEX($A$1:$M$194,MATCH(A79&C79,$A$1:$A$194&$C$1:$C$194,0),MATCH($E$2,$A$1:$M$1,0)) -> 1 | F79: 1 | G79: 1 | H79: 1 | I79: 1 | J79: 1 | K79: 1 | L79: 1 | M79: 1
A80: =C77 -> Sécurité Incendie | B80: Paramètre #3 | C80: =IF(ISBLANK(INDIRECT("'"&$A80&"'!$C$31")),"Non utilisé",INDIRECT("'"&$A80&"'!$C$31")) -> Nombre de colonnes sèches par m2 | D80: =IF(ISBLANK(INDIRECT("'"&$A80&"'!$D$31")),"",INDIRECT("'"&$A80&"'!$D$31")) -> 0.0005 | E80: =INDEX($A$1:$M$194,MATCH(A80&C80,$A$1:$A$194&$C$1:$C$194,0),MATCH($E$2,$A$1:$M$1,0)) -> 1 | F80: 1 | G80: 1 | H80: 1 | I80: 1 | J80: 1 | K80: 1 | L80: 1 | M80: 1
A81: =C77 -> Sécurité Incendie | B81: Paramètre #4 | C81: =IF(ISBLANK(INDIRECT("'"&$A81&"'!$C$32")),"Non utilisé",INDIRECT("'"&$A81&"'!$C$32")) -> Nombre de véhicule d'intervention par m2 | D81: =IF(ISBLANK(INDIRECT("'"&$A81&"'!$D$32")),"",INDIRECT("'"&$A81&"'!$D$32")) -> 0.0001 | E81: =INDEX($A$1:$M$194,MATCH(A81&C81,$A$1:$A$194&$C$1:$C$194,0),MATCH($E$2,$A$1:$M$1,0)) -> 1 | F81: 1 | G81: 1 | H81: 1 | I81: 1 | J81: 1 | K81: 1 | L81: 1 | M81: 1
A82: =C77 -> Sécurité Incendie | B82: Paramètre #5 | C82: =IF(ISBLANK(INDIRECT("'"&$A82&"'!$C$33")),"Non utilisé",INDIRECT("'"&$A82&"'!$C$33")) -> Non utilisé | D82: =IF(ISBLANK(INDIRECT("'"&$A82&"'!$D$33")),"",INDIRECT("'"&$A82&"'!$D$33")) ->  | E82: =INDEX($A$1:$M$194,MATCH(A82&C82,$A$1:$A$194&$C$1:$C$194,0),MATCH($E$2,$A$1:$M$1,0)) -> 0
A83: =C83 -> Barrières | B83: 3.6 Barrières de sécurité, clôture, sécurisation d'accès | C83: Barrières
A84: =C83 -> Barrières | B84: Paramètre #1 | C84: =IF(ISBLANK(INDIRECT("'"&$A84&"'!$C$29")),"Non utilisé",INDIRECT("'"&$A84&"'!$C$29")) -> Nombre d'alarmes par entrées | D84: =IF(ISBLANK(INDIRECT("'"&$A84&"'!$D$29")),"",INDIRECT("'"&$A84&"'!$D$29")) -> 1 | E84: =INDEX($A$1:$M$194,MATCH(A84&C84,$A$1:$A$194&$C$1:$C$194,0),MATCH($E$2,$A$1:$M$1,0)) -> 1 | F84: 1 | G84: 1 | H84: 1 | I84: 1 | J84: 1 | K84: 1 | L84: 0.5 | M84: 0.5
A85: =C83 -> Barrières | B85: Paramètre #2 | C85: =IF(ISBLANK(INDIRECT("'"&$A85&"'!$C$30")),"Non utilisé",INDIRECT("'"&$A85&"'!$C$30")) -> Barrière par voie | D85: =IF(ISBLANK(INDIRECT("'"&$A85&"'!$D$30")),"",INDIRECT("'"&$A85&"'!$D$30")) -> 1 | E85: =INDEX($A$1:$M$194,MATCH(A85&C85,$A$1:$A$194&$C$1:$C$194,0),MATCH($E$2,$A$1:$M$1,0)) -> 1 | F85: 1 | G85: 1 | H85: 1 | I85: 1 | J85: 1 | K85: 1 | L85: 0.5 | M85: 0.5
A86: =C83 -> Barrières | B86: Paramètre #3 | C86: =IF(ISBLANK(INDIRECT("'"&$A86&"'!$C$31")),"Non utilisé",INDIRECT("'"&$A86&"'!$C$31")) -> Coefficient de sécurité (distance supplémentaire après les quais à clôturer) | D86: =IF(ISBLANK(INDIRECT("'"&$A86&"'!$D$31")),"",INDIRECT("'"&$A86&"'!$D$31")) -> 3 | E86: =INDEX($A$1:$M$194,MATCH(A86&C86,$A$1:$A$194&$C$1:$C$194,0),MATCH($E$2,$A$1:$M$1,0)) -> 1 | F86: 1 | G86: 1 | H86: 1 | I86: 1 | J86: 1 | K86: 1 | L86: 0.5 | M86: 0.5
A87: =C83 -> Barrières | B87: Paramètre #4 | C87: =IF(ISBLANK(INDIRECT("'"&$A87&"'!$C$32")),"Non utilisé",INDIRECT("'"&$A87&"'!$C$32")) -> Non utilisé | D87: =IF(ISBLANK(INDIRECT("'"&$A87&"'!$D$32")),"",INDIRECT("'"&$A87&"'!$D$32")) ->  | E87: =INDEX($A$1:$M$194,MATCH(A87&C87,$A$1:$A$194&$C$1:$C$194,0),MATCH($E$2,$A$1:$M$1,0)) -> 0
A88: =C83 -> Barrières | B88: Paramètre #5 | C88: =IF(ISBLANK(INDIRECT("'"&$A88&"'!$C$33")),"Non utilisé",INDIRECT("'"&$A88&"'!$C$33")) -> Non utilisé | D88: =IF(ISBLANK(INDIRECT("'"&$A88&"'!$D$33")),"",INDIRECT("'"&$A88&"'!$D$33")) ->  | E88: =INDEX($A$1:$M$194,MATCH(A88&C88,$A$1:$A$194&$C$1:$C$194,0),MATCH($E$2,$A$1:$M$1,0)) -> 0
A89: =C89 -> Sécurité extérieure | B89: 3.7 Points de mise en relation avec le centre de sécurité | C89: Sécurité extérieure
A90: =C89 -> Sécurité extérieure | B90: Paramètre #1 | C90: =IF(ISBLANK(INDIRECT("'"&$A90&"'!$C$29")),"Non utilisé",INDIRECT("'"&$A90&"'!$C$29")) -> m² maximum cœur de gare pour un défibrillateur | D90: =IF(ISBLANK(INDIRECT("'"&$A90&"'!$D$29")),"",INDIRECT("'"&$A90&"'!$D$29")) -> 4000 | E90: =INDEX($A$1:$M$194,MATCH(A90&C90,$A$1:$A$194&$C$1:$C$194,0),MATCH($E$2,$A$1:$M$1,0)) -> 1 | F90: 1 | G90: 1 | H90: 1 | I90: 1 | J90: 1 | K90: 1 | L90: 1 | M90: 1
A91: =C89 -> Sécurité extérieure | B91: Paramètre #2 | C91: =IF(ISBLANK(INDIRECT("'"&$A91&"'!$C$30")),"Non utilisé",INDIRECT("'"&$A91&"'!$C$30")) -> m² cœur de gare maximum par poste d'appel d'urgence | D91: =IF(ISBLANK(INDIRECT("'"&$A91&"'!$D$30")),"",INDIRECT("'"&$A91&"'!$D$30")) -> 300 | E91: =INDEX($A$1:$M$194,MATCH(A91&C91,$A$1:$A$194&$C$1:$C$194,0),MATCH($E$2,$A$1:$M$1,0)) -> 1 | F91: 1 | G91: 1 | H91: 1 | I91: 1 | J91: 1 | K91: 1 | L91: 1 | M91: 1
A92: =C89 -> Sécurité extérieure | B92: Paramètre #3 | C92: =IF(ISBLANK(INDIRECT("'"&$A92&"'!$C$31")),"Non utilisé",INDIRECT("'"&$A92&"'!$C$31")) -> Non utilisé | D92: =IF(ISBLANK(INDIRECT("'"&$A92&"'!$D$31")),"",INDIRECT("'"&$A92&"'!$D$31")) ->  | E92: =INDEX($A$1:$M$194,MATCH(A92&C92,$A$1:$A$194&$C$1:$C$194,0),MATCH($E$2,$A$1:$M$1,0)) -> 0
A93: =C89 -> Sécurité extérieure | B93: Paramètre #4 | C93: =IF(ISBLANK(INDIRECT("'"&$A93&"'!$C$32")),"Non utilisé",INDIRECT("'"&$A93&"'!$C$32")) -> Non utilisé | D93: =IF(ISBLANK(INDIRECT("'"&$A93&"'!$D$32")),"",INDIRECT("'"&$A93&"'!$D$32")) ->  | E93: =INDEX($A$1:$M$194,MATCH(A93&C93,$A$1:$A$194&$C$1:$C$194,0),MATCH($E$2,$A$1:$M$1,0)) -> 0
A94: =C89 -> Sécurité extérieure | B94: Paramètre #5 | C94: =IF(ISBLANK(INDIRECT("'"&$A94&"'!$C$33")),"Non utilisé",INDIRECT("'"&$A94&"'!$C$33")) -> Non utilisé | D94: =IF(ISBLANK(INDIRECT("'"&$A94&"'!$D$33")),"",INDIRECT("'"&$A94&"'!$D$33")) ->  | E94: =INDEX($A$1:$M$194,MATCH(A94&C94,$A$1:$A$194&$C$1:$C$194,0),MATCH($E$2,$A$1:$M$1,0)) -> 0
B95: 4 - Entretenir et assurer un bon niveau de confort | C95: =B95 -> 4 - Entretenir et assurer un bon niveau de confort
A96: =C96 -> Espace attente | B96: 4.1 Espace d’attente | C96: Espace attente
A97: =C96 -> Espace attente | B97: Paramètre #1 | C97: =IF(ISBLANK(INDIRECT("'"&$A97&"'!$C$29")),"Non utilisé",INDIRECT("'"&$A97&"'!$C$29")) -> Places assises par m² de cœur de gare | D97: =IF(ISBLANK(INDIRECT("'"&$A97&"'!$D$29")),"",INDIRECT("'"&$A97&"'!$D$29")) -> 0.1 | E97: =INDEX($A$1:$M$194,MATCH(A97&C97,$A$1:$A$194&$C$1:$C$194,0),MATCH($E$2,$A$1:$M$1,0)) -> 1 | F97: 1 | G97: 1 | H97: 1 | I97: 1 | J97: 1 | K97: 0.5 | L97: 1 | M97: 0.5
A98: =C96 -> Espace attente | B98: Paramètre #2 | C98: =IF(ISBLANK(INDIRECT("'"&$A98&"'!$C$30")),"Non utilisé",INDIRECT("'"&$A98&"'!$C$30")) -> Piano par m² de cœur de gare | D98: =IF(ISBLANK(INDIRECT("'"&$A98&"'!$D$30")),"",INDIRECT("'"&$A98&"'!$D$30")) -> 0.000301191269 | E98: =INDEX($A$1:$M$194,MATCH(A98&C98,$A$1:$A$194&$C$1:$C$194,0),MATCH($E$2,$A$1:$M$1,0)) -> 1 | F98: 1 | G98: 1 | H98: 1 | I98: 1 | J98: 1 | K98: 0 | L98: 0 | M98: 0
A99: =C96 -> Espace attente | B99: Paramètre #3 | C99: =IF(ISBLANK(INDIRECT("'"&$A99&"'!$C$31")),"Non utilisé",INDIRECT("'"&$A99&"'!$C$31")) -> Power Station par m² cœur de gare | D99: =IF(ISBLANK(INDIRECT("'"&$A99&"'!$D$31")),"",INDIRECT("'"&$A99&"'!$D$31")) -> 0.0004 | E99: =INDEX($A$1:$M$194,MATCH(A99&C99,$A$1:$A$194&$C$1:$C$194,0),MATCH($E$2,$A$1:$M$1,0)) -> 1 | F99: 1 | G99: 1 | H99: 1 | I99: 1 | J99: 1 | K99: 0 | L99: 0 | M99: 0
A100: =C96 -> Espace attente | B100: Paramètre #4 | C100: =IF(ISBLANK(INDIRECT("'"&$A100&"'!$C$32")),"Non utilisé",INDIRECT("'"&$A100&"'!$C$32")) -> Baby Foot par m² de cœur de gare | D100: =IF(ISBLANK(INDIRECT("'"&$A100&"'!$D$32")),"",INDIRECT("'"&$A100&"'!$D$32")) -> 0.0001 | E100: =INDEX($A$1:$M$194,MATCH(A100&C100,$A$1:$A$194&$C$1:$C$194,0),MATCH($E$2,$A$1:$M$1,0)) -> 1 | F100: 1 | G100: 1 | H100: 1 | I100: 1 | J100: 1 | K100: 0 | L100: 0 | M100: 0
A101: =C96 -> Espace attente | B101: Paramètre #5 | C101: =IF(ISBLANK(INDIRECT("'"&$A101&"'!$C$33")),"Non utilisé",INDIRECT("'"&$A101&"'!$C$33")) -> Non utilisé | D101: =IF(ISBLANK(INDIRECT("'"&$A101&"'!$D$33")),"",INDIRECT("'"&$A101&"'!$D$33")) ->  | E101: =INDEX($A$1:$M$194,MATCH(A101&C101,$A$1:$A$194&$C$1:$C$194,0),MATCH($E$2,$A$1:$M$1,0)) -> 0
A102: =C102 -> Propreté | B102: 4.2 Propreté | C102: Propreté
A103: =C102 -> Propreté | B103: Paramètre #1 | C103: =IF(ISBLANK(INDIRECT("'"&$A103&"'!$C$29")),"Non utilisé",INDIRECT("'"&$A103&"'!$C$29")) -> Nombre de poubelles par m² cœur de gare | D103: =IF(ISBLANK(INDIRECT("'"&$A103&"'!$D$29")),"",INDIRECT("'"&$A103&"'!$D$29")) -> 0.003333333333 | E103: =INDEX($A$1:$M$194,MATCH(A103&C103,$A$1:$A$194&$C$1:$C$194,0),MATCH($E$2,$A$1:$M$1,0)) -> 1 | F103: 1 | G103: 1 | H103: 1 | I103: 1 | J103: 1 | K103: 1 | L103: 0.5 | M103: 0.5
A104: =C102 -> Propreté | B104: Paramètre #2 | C104: =IF(ISBLANK(INDIRECT("'"&$A104&"'!$C$30")),"Non utilisé",INDIRECT("'"&$A104&"'!$C$30")) -> Nombre de poubelles par m de quai | D104: =IF(ISBLANK(INDIRECT("'"&$A104&"'!$D$30")),"",INDIRECT("'"&$A104&"'!$D$30")) -> 0.02 | E104: =INDEX($A$1:$M$194,MATCH(A104&C104,$A$1:$A$194&$C$1:$C$194,0),MATCH($E$2,$A$1:$M$1,0)) -> 1 | F104: 1 | G104: 1 | H104: 1 | I104: 1 | J104: 1 | K104: 1 | L104: 0.5 | M104: 0.5
A105: =C102 -> Propreté | B105: Paramètre #3 | C105: =IF(ISBLANK(INDIRECT("'"&$A105&"'!$C$31")),"Non utilisé",INDIRECT("'"&$A105&"'!$C$31")) -> Nombre de cendriers par m² cœur de gare | D105: =IF(ISBLANK(INDIRECT("'"&$A105&"'!$D$31")),"",INDIRECT("'"&$A105&"'!$D$31")) -> 0.001 | E105: =INDEX($A$1:$M$194,MATCH(A105&C105,$A$1:$A$194&$C$1:$C$194,0),MATCH($E$2,$A$1:$M$1,0)) -> 1 | F105: 1 | G105: 1 | H105: 1 | I105: 1 | J105: 1 | K105: 1 | L105: 0.5 | M105: 0.5
A106: =C102 -> Propreté | B106: Paramètre #4 | C106: =IF(ISBLANK(INDIRECT("'"&$A106&"'!$C$32")),"Non utilisé",INDIRECT("'"&$A106&"'!$C$32")) -> Nombre de cendriers par m de quai | D106: =IF(ISBLANK(INDIRECT("'"&$A106&"'!$D$32")),"",INDIRECT("'"&$A106&"'!$D$32")) -> 0.02 | E106: =INDEX($A$1:$M$194,MATCH(A106&C106,$A$1:$A$194&$C$1:$C$194,0),MATCH($E$2,$A$1:$M$1,0)) -> 1 | F106: 1 | G106: 1 | H106: 1 | I106: 1 | J106: 1 | K106: 1 | L106: 0.5 | M106: 0.5
A107: =C102 -> Propreté | B107: Paramètre #5 | C107: =IF(ISBLANK(INDIRECT("'"&$A107&"'!$C$33")),"Non utilisé",INDIRECT("'"&$A107&"'!$C$33")) -> Non utilisé | D107: =IF(ISBLANK(INDIRECT("'"&$A107&"'!$D$33")),"",INDIRECT("'"&$A107&"'!$D$33")) ->  | E107: =INDEX($A$1:$M$194,MATCH(A107&C107,$A$1:$A$194&$C$1:$C$194,0),MATCH($E$2,$A$1:$M$1,0)) -> 0
A108: =C108 -> Eclairage | B108: 4.3 Energie et fluide - Installation éclairage | C108: Eclairage
A109: =C108 -> Eclairage | B109: Paramètre #1 | C109: =IF(ISBLANK(INDIRECT("'"&$A109&"'!$C$29")),"Non utilisé",INDIRECT("'"&$A109&"'!$C$29")) -> Puissance nécessaire par m² espace circulation (W/m²) | D109: =IF(ISBLANK(INDIRECT("'"&$A109&"'!$D$29")),"",INDIRECT("'"&$A109&"'!$D$29")) -> 10 | E109: =INDEX($A$1:$M$194,MATCH(A109&C109,$A$1:$A$194&$C$1:$C$194,0),MATCH($E$2,$A$1:$M$1,0)) -> 1 | F109: 1 | G109: 1 | H109: 1 | I109: 1 | J109: 1 | K109: 1 | L109: 1 | M109: 1
A110: =C108 -> Eclairage | B110: Paramètre #2 | C110: =IF(ISBLANK(INDIRECT("'"&$A110&"'!$C$30")),"Non utilisé",INDIRECT("'"&$A110&"'!$C$30")) -> Puissance nécessaire par m² bureaux & locaux (W/m²) | D110: =IF(ISBLANK(INDIRECT("'"&$A110&"'!$D$30")),"",INDIRECT("'"&$A110&"'!$D$30")) -> 8 | E110: =INDEX($A$1:$M$194,MATCH(A110&C110,$A$1:$A$194&$C$1:$C$194,0),MATCH($E$2,$A$1:$M$1,0)) -> 1 | F110: 1 | G110: 1 | H110: 1 | I110: 1 | J110: 1 | K110: 1 | L110: 1 | M110: 1
A111: =C108 -> Eclairage | B111: Paramètre #3 | C111: =IF(ISBLANK(INDIRECT("'"&$A111&"'!$C$31")),"Non utilisé",INDIRECT("'"&$A111&"'!$C$31")) -> Puissance des luminaires (W/m²) | D111: =IF(ISBLANK(INDIRECT("'"&$A111&"'!$D$31")),"",INDIRECT("'"&$A111&"'!$D$31")) -> 40 | E111: =INDEX($A$1:$M$194,MATCH(A111&C111,$A$1:$A$194&$C$1:$C$194,0),MATCH($E$2,$A$1:$M$1,0)) -> 1 | F111: 1 | G111: 1 | H111: 1 | I111: 1 | J111: 1 | K111: 1 | L111: 1 | M111: 1
A112: =C108 -> Eclairage | B112: Paramètre #4 | C112: =IF(ISBLANK(INDIRECT("'"&$A112&"'!$C$32")),"Non utilisé",INDIRECT("'"&$A112&"'!$C$32")) -> Système d'éclairage par quai | D112: =IF(ISBLANK(INDIRECT("'"&$A112&"'!$D$32")),"",INDIRECT("'"&$A112&"'!$D$32")) -> 1 | E112: =INDEX($A$1:$M$194,MATCH(A112&C112,$A$1:$A$194&$C$1:$C$194,0),MATCH($E$2,$A$1:$M$1,0)) -> 1 | F112: 1 | G112: 1 | H112: 1 | I112: 1 | J112: 1 | K112: 1 | L112: 1 | M112: 1
A113: =C108 -> Eclairage | B113: Paramètre #5 | C113: =IF(ISBLANK(INDIRECT("'"&$A113&"'!$C$33")),"Non utilisé",INDIRECT("'"&$A113&"'!$C$33")) -> Non utilisé | D113: =IF(ISBLANK(INDIRECT("'"&$A113&"'!$D$33")),"",INDIRECT("'"&$A113&"'!$D$33")) ->  | E113: =INDEX($A$1:$M$194,MATCH(A113&C113,$A$1:$A$194&$C$1:$C$194,0),MATCH($E$2,$A$1:$M$1,0)) -> 0
A114: =C114 -> Chauffage et clim | B114: 4.4 Energie et fluide - Installation CVC | C114: Chauffage et clim
A115: =C114 -> Chauffage et clim | B115: Paramètre #1 | C115: =IF(ISBLANK(INDIRECT("'"&$A115&"'!$C$29")),"Non utilisé",INDIRECT("'"&$A115&"'!$C$29")) -> Puissance chauffage nécessaire par m² (W/m²) | D115: =IF(ISBLANK(INDIRECT("'"&$A115&"'!$D$29")),"",INDIRECT("'"&$A115&"'!$D$29")) -> 100 | E115: =INDEX($A$1:$M$194,MATCH(A115&C115,$A$1:$A$194&$C$1:$C$194,0),MATCH($E$2,$A$1:$M$1,0)) -> 1 | F115: 1 | G115: 1 | H115: 1 | I115: 1 | J115: 1 | K115: 1 | L115: 1 | M115: 1
A116: =C114 -> Chauffage et clim | B116: Paramètre #2 | C116: =IF(ISBLANK(INDIRECT("'"&$A116&"'!$C$30")),"Non utilisé",INDIRECT("'"&$A116&"'!$C$30")) -> Puissance nécessaire bâtiment (W) | D116: =IF(ISBLANK(INDIRECT("'"&$A116&"'!$D$30")),"",INDIRECT("'"&$A116&"'!$D$30")) -> 124914.4376 | E116: =INDEX($A$1:$M$194,MATCH(A116&C116,$A$1:$A$194&$C$1:$C$194,0),MATCH($E$2,$A$1:$M$1,0)) -> 1 | F116: 1 | G116: 1 | H116: 1 | I116: 1 | J116: 1 | K116: 1 | L116: 1 | M116: 1
A117: =C114 -> Chauffage et clim | B117: Paramètre #3 | C117: =IF(ISBLANK(INDIRECT("'"&$A117&"'!$C$31")),"Non utilisé",INDIRECT("'"&$A117&"'!$C$31")) -> Puissance générateur de chaleur | D117: =IF(ISBLANK(INDIRECT("'"&$A117&"'!$D$31")),"",INDIRECT("'"&$A117&"'!$D$31")) -> 150000 | E117: =INDEX($A$1:$M$194,MATCH(A117&C117,$A$1:$A$194&$C$1:$C$194,0),MATCH($E$2,$A$1:$M$1,0)) -> 1 | F117: 1 | G117: 1 | H117: 1 | I117: 1 | J117: 1 | K117: 1 | L117: 1 | M117: 1
A118: =C114 -> Chauffage et clim | B118: Paramètre #4 | C118: =IF(ISBLANK(INDIRECT("'"&$A118&"'!$C$32")),"Non utilisé",INDIRECT("'"&$A118&"'!$C$32")) -> Nombre de système CVC/Plomberie global au bâtiment | D118: =IF(ISBLANK(INDIRECT("'"&$A118&"'!$D$32")),"",INDIRECT("'"&$A118&"'!$D$32")) -> 1 | E118: =INDEX($A$1:$M$194,MATCH(A118&C118,$A$1:$A$194&$C$1:$C$194,0),MATCH($E$2,$A$1:$M$1,0)) -> 1 | F118: 1 | G118: 1 | H118: 1 | I118: 1 | J118: 1 | K118: 1 | L118: 1 | M118: 1
A119: =C114 -> Chauffage et clim | B119: Paramètre #5 | C119: =IF(ISBLANK(INDIRECT("'"&$A119&"'!$C$33")),"Non utilisé",INDIRECT("'"&$A119&"'!$C$33")) -> % de la surface couverte par l'émetteur (plancher chauffant) | D119: =IF(ISBLANK(INDIRECT("'"&$A119&"'!$D$33")),"",INDIRECT("'"&$A119&"'!$D$33")) -> 1 | E119: =INDEX($A$1:$M$194,MATCH(A119&C119,$A$1:$A$194&$C$1:$C$194,0),MATCH($E$2,$A$1:$M$1,0)) -> 1 | F119: 1 | G119: 1 | H119: 1 | I119: 1 | J119: 1 | K119: 1 | L119: 1 | M119: 1
A120: =C120 -> Eau | B120: 4.5 Dépenses énergétique et fluides - Eau | C120: Eau
A121: =C120 -> Eau | B121: Paramètre #1 | C121: =IF(ISBLANK(INDIRECT("'"&$A121&"'!$C$29")),"Non utilisé",INDIRECT("'"&$A121&"'!$C$29")) -> Non utilisé | D121: =IF(ISBLANK(INDIRECT("'"&$A121&"'!$D$29")),"",INDIRECT("'"&$A121&"'!$D$29")) ->  | E121: =INDEX($A$1:$M$194,MATCH(A121&C121,$A$1:$A$194&$C$1:$C$194,0),MATCH($E$2,$A$1:$M$1,0)) -> 0
A122: =C120 -> Eau | B122: Paramètre #2 | C122: =IF(ISBLANK(INDIRECT("'"&$A122&"'!$C$30")),"Non utilisé",INDIRECT("'"&$A122&"'!$C$30")) -> Non utilisé | D122: =IF(ISBLANK(INDIRECT("'"&$A122&"'!$D$30")),"",INDIRECT("'"&$A122&"'!$D$30")) ->  | E122: =INDEX($A$1:$M$194,MATCH(A122&C122,$A$1:$A$194&$C$1:$C$194,0),MATCH($E$2,$A$1:$M$1,0)) -> 0
A123: =C120 -> Eau | B123: Paramètre #3 | C123: =IF(ISBLANK(INDIRECT("'"&$A123&"'!$C$31")),"Non utilisé",INDIRECT("'"&$A123&"'!$C$31")) -> Non utilisé | D123: =IF(ISBLANK(INDIRECT("'"&$A123&"'!$D$31")),"",INDIRECT("'"&$A123&"'!$D$31")) ->  | E123: =INDEX($A$1:$M$194,MATCH(A123&C123,$A$1:$A$194&$C$1:$C$194,0),MATCH($E$2,$A$1:$M$1,0)) -> 0
A124: =C120 -> Eau | B124: Paramètre #4 | C124: =IF(ISBLANK(INDIRECT("'"&$A124&"'!$C$32")),"Non utilisé",INDIRECT("'"&$A124&"'!$C$32")) -> Non utilisé | D124: =IF(ISBLANK(INDIRECT("'"&$A124&"'!$D$32")),"",INDIRECT("'"&$A124&"'!$D$32")) ->  | E124: =INDEX($A$1:$M$194,MATCH(A124&C124,$A$1:$A$194&$C$1:$C$194,0),MATCH($E$2,$A$1:$M$1,0)) -> 0
A125: =C120 -> Eau | B125: Paramètre #5 | C125: =IF(ISBLANK(INDIRECT("'"&$A125&"'!$C$33")),"Non utilisé",INDIRECT("'"&$A125&"'!$C$33")) -> Non utilisé | D125: =IF(ISBLANK(INDIRECT("'"&$A125&"'!$D$33")),"",INDIRECT("'"&$A125&"'!$D$33")) ->  | E125: =INDEX($A$1:$M$194,MATCH(A125&C125,$A$1:$A$194&$C$1:$C$194,0),MATCH($E$2,$A$1:$M$1,0)) -> 0
A126: =C126 -> Consommation KWh | B126: 4.6 Dépenses énergétique et fluides - KWh | C126: Consommation KWh
A127: =C126 -> Consommation KWh | B127: Paramètre #1 | C127: =IF(ISBLANK(INDIRECT("'"&$A127&"'!$C$29")),"Non utilisé",INDIRECT("'"&$A127&"'!$C$29")) -> Non utilisé | D127: =IF(ISBLANK(INDIRECT("'"&$A127&"'!$D$29")),"",INDIRECT("'"&$A127&"'!$D$29")) ->  | E127: =INDEX($A$1:$M$194,MATCH(A127&C127,$A$1:$A$194&$C$1:$C$194,0),MATCH($E$2,$A$1:$M$1,0)) -> 0
A128: =C126 -> Consommation KWh | B128: Paramètre #2 | C128: =IF(ISBLANK(INDIRECT("'"&$A128&"'!$C$30")),"Non utilisé",INDIRECT("'"&$A128&"'!$C$30")) -> Non utilisé | D128: =IF(ISBLANK(INDIRECT("'"&$A128&"'!$D$30")),"",INDIRECT("'"&$A128&"'!$D$30")) ->  | E128: =INDEX($A$1:$M$194,MATCH(A128&C128,$A$1:$A$194&$C$1:$C$194,0),MATCH($E$2,$A$1:$M$1,0)) -> 0
A129: =C126 -> Consommation KWh | B129: Paramètre #3 | C129: =IF(ISBLANK(INDIRECT("'"&$A129&"'!$C$31")),"Non utilisé",INDIRECT("'"&$A129&"'!$C$31")) -> Non utilisé | D129: =IF(ISBLANK(INDIRECT("'"&$A129&"'!$D$31")),"",INDIRECT("'"&$A129&"'!$D$31")) ->  | E129: =INDEX($A$1:$M$194,MATCH(A129&C129,$A$1:$A$194&$C$1:$C$194,0),MATCH($E$2,$A$1:$M$1,0)) -> 0
A130: =C126 -> Consommation KWh | B130: Paramètre #4 | C130: =IF(ISBLANK(INDIRECT("'"&$A130&"'!$C$32")),"Non utilisé",INDIRECT("'"&$A130&"'!$C$32")) -> Non utilisé | D130: =IF(ISBLANK(INDIRECT("'"&$A130&"'!$D$32")),"",INDIRECT("'"&$A130&"'!$D$32")) ->  | E130: =INDEX($A$1:$M$194,MATCH(A130&C130,$A$1:$A$194&$C$1:$C$194,0),MATCH($E$2,$A$1:$M$1,0)) -> 0
A131: =C126 -> Consommation KWh | B131: Paramètre #5 | C131: =IF(ISBLANK(INDIRECT("'"&$A131&"'!$C$33")),"Non utilisé",INDIRECT("'"&$A131&"'!$C$33")) -> Non utilisé | D131: =IF(ISBLANK(INDIRECT("'"&$A131&"'!$D$33")),"",INDIRECT("'"&$A131&"'!$D$33")) ->  | E131: =INDEX($A$1:$M$194,MATCH(A131&C131,$A$1:$A$194&$C$1:$C$194,0),MATCH($E$2,$A$1:$M$1,0)) -> 0
A132: =C132 -> Sanitaires | B132: 4.7 Sanitaires | C132: Sanitaires
